Workbook

Sheet General
BA1: No. | BC1: Admin | BD1: Quarter | BE1: =Settings!$T$6 -> 4
BA2: 1 | BD2: FIRST QUARTER ENDED 30 JUNE 2021
BA3: 2 | BD3: SECOND QUARTER ENDED 30 SEPTEMBER 2021
BA4: 3 | BD4: THIRD QUARTER ENDED 31 DECEMBER 2021
BA5: 4 | BD5: FOURTH QUARTER ENDED 31 MARCH 2022
BA6: 5
BA7: 6 | BD7: =INDEX($BD$2:$BD$5,BE1) -> FOURTH QUARTER ENDED 31 MARCH 2022
BA8: 7
BA9: 8
BA10: 9
BA11: 10
BA12: 11
BA13: 12
BA14: 13
BA15: 14
BA16: 15
BA17: 16
BA18: 17
BA19: 18
BA20: 19
BA21: 20

Sheet Settings (hidden)
R3: Selections:
Q5: FALSE | R5: =INDEX($R$8:$R$17,$R$6,1) -> 2021/22 | S5: =INDEX($S$8:$S$17,$S$6,1) -> All Provinces | T5: =INDEX($T$8:$T$11,$T$6,1) -> 4th Quarter | U5: =LEFT(FinYear,4) & "-" & RIGHT(FinYear,2) -> 2021-22 | V5: =INDEX($V$8:$V$17,$V$6,1) -> ALL PROVINCES
R6: 7 | S6: 2 | T6: 4 | V6: 10
C7: Import Selection: | Q7: FALSE | R7: Financial Year | S7: Print | T7: Quarter | U7: PrintYear | V7: Province | W7: Province code | X7: Accounting officers | Y7: Title | Z7: Position | AA7: Provincial Treasury | AB7: Tel No.
R8: 2015/16 | S8: All Provinces | T8: 1st Quarter | V8: EASTERN CAPE | W8: EC | X8: Mr Daluhlanga Majeke | Y8: Mr | Z8: Head Official | AA8: Eastern Cape | AB8: (040) 101-0182
R9: 2016/17 | S9: =PROPER(Prov) -> All Provinces | T9: 2nd Quarter | V9: FREE STATE | W9: FS | X9: Ms MA Sesing | Y9: Ms | Z9: Acting Head Official | AA9: Free State | AB9: (051) 403-3066
R10: 2017/18 | T10: 3rd Quarter | V10: GAUTENG | W10: GT | X10: Ms Ncumisa Mnyani | Y10: Ms | Z10: Head Official | AA10: Gauteng | AB10: (011) 689-8233
R11: 2019/20 | T11: 4th Quarter | V11: KWAZULU-NATAL | W11: KZN | X11: Ms Carol Coetzee | Y11: Ms | Z11: Head Official | AA11: KwaZulu-Natal | AB11: (033) 897-4583
R12: 2019/20 | V12: LIMPOPO | W12: LIM | X12: Mr Gavin Pratt | Y12: Mr | Z12: Head Official | AA12: Limpopo | AB12: (015) 298-7123
R13: 2020/21 | V13: MPUMALANGA | W13: MPU | X13: Ms Gugu Mashiteng | Y13: Ms | Z13: Head Official | AA13: Mpumalanga | AB13: (013) 766-4571
R14: 2021/22 | V14: NORTHERN CAPE | W14: NC | X14: Dr Moses Gasela | Y14: Dr | Z14: Acting Head Official | AA14: Northern Cape | AB14: (053) 830-8357
R15: 2022/23 | V15: NORTH WEST | W15: NW | X15: Mr Ndlela Kunene | Y15: Mr | Z15: Head Official | AA15: North West | AB15: (018) 388-4441
R16: 2023/24 | V16: WESTERN CAPE | W16: WC | X16: Mr David Savage | Y16: Mr | Z16: Head Official | AA16: Western Cape | AB16: (021) 483-3749
R17: 2024/25 | V17: ALL PROVINCES
C21: Print Settings: | J21: Print Directory:
J23: K:\CD - PROVINCIAL BUDGET ANALYSIS\Provinces\Early Warning System\2019-20\06. Section 32 Publication\3rd Quarter\Final\02. Publication
C24: =PROPER(Prov) -> All Provinces

Sheet Overview (hidden)
C3: ="STATEMENT OF RECEIPTS AND PAYMENTS FOR THE " & QUARTER -> STATEMENT OF RECEIPTS AND PAYMENTS FOR THE FOURTH QUARTER ENDED 31 MARCH 2022 | T3: ="NATIONAL TREASURY: " & C3 -> NATIONAL TREASURY: STATEMENT OF RECEIPTS AND PAYMENTS FOR THE FOURTH QUARTER ENDED 31 MARCH 2022 | AK3: ="VARIANCE FROM NATIONAL TREASURY: " & C3 -> VARIANCE FROM NATIONAL TREASURY: STATEMENT OF RECEIPTS AND PAYMENTS FOR THE FOURTH QUARTER ENDED 31 MARCH 2022
C4: =UPPER(Prov) & " PROVINCE" -> ALL PROVINCES PROVINCE | T4: =C4 -> ALL PROVINCES PROVINCE | AK4: =C4 -> ALL PROVINCES PROVINCE
C6: Provincial departments | D6: =Settings!$R$5 -> 2021/22 | T6: Provincial departments | U6: 2019/20 | AK6: Provincial departments | AL6: 2019/20
D7: Budget | H7: Payments by Quarter | M7: Payments to Date | U7: Budget | Y7: Payments by Quarter | AD7: Payments to Date | AL7: Budget | AP7: Payments by Quarter | AU7: Payments to Date
D8: Main Budget1. | E8: Adjustments | F8: Adjusted Budget2. | H8: First Quarter | I8: Second Quarter | J8: Third Quarter | K8: Fourth Quarter | M8: Actual Payments | N8: % Actual Payments | U8: Main Budget1. | V8: Adjustments | W8: Adjusted Budget2. | Y8: First Quarter | Z8: Second Quarter | AA8: Third Quarter | AB8: Fourth Quarter | AD8: Actual Payments | AE8: % Actual Payments | AL8: Main Budget1. | AM8: Adjustments | AN8: Adjusted Budget2. | AP8: First Quarter | AQ8: Second Quarter | AR8: Third Quarter | AS8: Fourth Quarter | AU8: Actual Payments | AV8: % Actual Payments
A9: Filter | D9: R'000 | E9: R'000 | F9: R'000 | H9: R'000 | I9: R'000 | J9: R'000 | K9: R'000 | M9: R'000 | N9: % | U9: R'000 | V9: R'000 | W9: R'000 | Y9: R'000 | Z9: R'000 | AA9: R'000 | AB9: R'000 | AD9: R'000 | AE9: % | AL9: R'000 | AM9: R'000 | AN9: R'000 | AP9: R'000 | AQ9: R'000 | AR9: R'000 | AS9: R'000 | AU9: R'000 | AV9: %
A10: 1
A11: 1 | C11: Receipts | T11: Receipts | AK11: Receipts
A12: 1 | C12: Transfers from National Revenue Fund | D12: =SUM(D13:D14) -> 639017482 | E12: =SUM(E13:E14) -> 21741384 | F12: =SUM(F13:F14) -> 660758866 | H12: =SUM(H13:H14) -> 159440441.7 | I12: =SUM(I13:I14) -> 170120324 | J12: =SUM(J13:J14) -> 160820539.2 | K12: =SUM(K13:K14) -> 170369207.9 | M12: =SUM(M13:M14) -> 660750512.8 | N12: =IFERROR(M12/F12,0) -> 0.9999873582 | T12: =C12 -> Transfers from National Revenue Fund | U12: 611858281.2 | V12: 0 | W12: 611858281.2 | Y12: 153798224.3 | Z12: 154419901 | AA12: 0 | AB12: 0 | AD12: 308218125.3 | AE12: 0.5037410374 | AK12: Transfers from National Revenue Fund | AL12: =SUM(AL13:AL14) -> -27159200.81 | AM12: =SUM(AM13:AM14) -> -21741384 | AN12: =SUM(AN13:AN14) -> -48900584.81 | AP12: =SUM(AP13:AP14) -> -5642217.343 | AQ12: =SUM(AQ13:AQ14) -> -15700423.01 | AR12: -160820539.2 | AS12: -170369207.9 | AU12: =SUM(AU13:AU14) -> -352532387.5
A13: 1 | C13: Equitable share of revenue | D13: =EC_1!D13+FS_1!D13+GT_1!D13+KZN_1!D13+LIM_1!D13+MPU_1!D13+NC_1!D13+NW_1!D13+WC_1!D13 -> 523686351 | E13: =F13-D13 -> 21148560 | F13: =EC_1!F13+FS_1!F13+GT_1!F13+KZN_1!F13+LIM_1!F13+MPU_1!F13+NC_1!F13+NW_1!F13+WC_1!F13 -> 544834911 | H13: =EC_1!H13+FS_1!H13+GT_1!H13+KZN_1!H13+LIM_1!H13+MPU_1!H13+NC_1!H13+NW_1!H13+WC_1!H13 -> 130921587 | I13: =EC_1!I13+FS_1!I13+GT_1!I13+KZN_1!I13+LIM_1!I13+MPU_1!I13+NC_1!I13+NW_1!I13+WC_1!I13 -> 138274123 | J13: =EC_1!J13+FS_1!J13+GT_1!J13+KZN_1!J13+LIM_1!J13+MPU_1!J13+NC_1!J13+NW_1!J13+WC_1!J13 -> 130921587 | K13: =EC_1!K13+FS_1!K13+GT_1!K13+KZN_1!K13+LIM_1!K13+MPU_1!K13+NC_1!K13+NW_1!K13+WC_1!K13 -> 144717614 | M13: =SUM(H13:K13) -> 544834911 | N13: =IFERROR(M13/F13,0) -> 1 | T13: =C13 -> Equitable share of revenue | U13: 505553753 | V13: 0 | W13: 505553753 | Y13: 126388448 | Z13: 126388442 | AA13: 0 | AB13: 0 | AD13: 252776890 | AE13: 0.5000000267 | AK13: Equitable share of revenue | AL13: =IFERROR(U13-D13,0) -> -18132598 | AM13: =IFERROR(V13-E13,0) -> -21148560 | AN13: =IFERROR(W13-F13,0) -> -39281158 | AP13: =IFERROR(Y13-H13,0) -> -4533139 | AQ13: =IFERROR(Z13-I13,0) -> -11885681 | AR13: =IFERROR(AA13-J13,0) -> -130921587 | AS13: =IFERROR(AB13-K13,0) -> -144717614 | AU13: =IFERROR(AD13-M13,0) -> -292058021
A14: 1 | C14: Conditional grants | D14: =EC_1!D14+FS_1!D14+GT_1!D14+KZN_1!D14+LIM_1!D14+MPU_1!D14+NC_1!D14+NW_1!D14+WC_1!D14 -> 115331131 | E14: =F14-D14 -> 592824 | F14: =EC_1!F14+FS_1!F14+GT_1!F14+KZN_1!F14+LIM_1!F14+MPU_1!F14+NC_1!F14+NW_1!F14+WC_1!F14 -> 115923955 | H14: =EC_1!H14+FS_1!H14+GT_1!H14+KZN_1!H14+LIM_1!H14+MPU_1!H14+NC_1!H14+NW_1!H14+WC_1!H14 -> 28518854.68 | I14: =EC_1!I14+FS_1!I14+GT_1!I14+KZN_1!I14+LIM_1!I14+MPU_1!I14+NC_1!I14+NW_1!I14+WC_1!I14 -> 31846201.01 | J14: =EC_1!J14+FS_1!J14+GT_1!J14+KZN_1!J14+LIM_1!J14+MPU_1!J14+NC_1!J14+NW_1!J14+WC_1!J14 -> 29898952.23 | K14: =EC_1!K14+FS_1!K14+GT_1!K14+KZN_1!K14+LIM_1!K14+MPU_1!K14+NC_1!K14+NW_1!K14+WC_1!K14 -> 25651593.88 | M14: =SUM(H14:K14) -> 115915601.8 | N14: 0.9999279424 | T14: Conditional grants | U14: 106304528.2 | V14: 0 | W14: 106304528.2 | Y14: 27409776.33 | Z14: 28031459 | AA14: 0 | AB14: 0 | AD14: 55441235.33 | AE14: 0.5215322082 | AK14: Conditional grants | AL14: -9026602.81 | AM14: -592824 | AN14: -9619426.81 | AP14: =IFERROR(Y14-H14,0) -> -1109078.343 | AQ14: -3814742.009 | AR14: -29898952.23 | AS14: -25651593.88 | AU14: -60474366.46
A15: 1 | C15: Provincial own receipts | D15: =EC_1!D15+FS_1!D15+GT_1!D15+KZN_1!D15+LIM_1!D15+MPU_1!D15+NC_1!D15+NW_1!D15+WC_1!D15 -> 20792446.53 | E15: -34626 | F15: =EC_1!F15+FS_1!F15+GT_1!F15+KZN_1!F15+LIM_1!F15+MPU_1!F15+NC_1!F15+NW_1!F15+WC_1!F15 -> 20757820.53 | H15: =EC_1!H15+FS_1!H15+GT_1!H15+KZN_1!H15+LIM_1!H15+MPU_1!H15+NC_1!H15+NW_1!H15+WC_1!H15 -> 3776014.27 | I15: =EC_1!I15+FS_1!I15+GT_1!I15+KZN_1!I15+LIM_1!I15+MPU_1!I15+NC_1!I15+NW_1!I15+WC_1!I15 -> 4966319.34 | J15: =EC_1!J15+FS_1!J15+GT_1!J15+KZN_1!J15+LIM_1!J15+MPU_1!J15+NC_1!J15+NW_1!J15+WC_1!J15 -> 6157632.683 | K15: =EC_1!K15+FS_1!K15+GT_1!K15+KZN_1!K15+LIM_1!K15+MPU_1!K15+NC_1!K15+NW_1!K15+WC_1!K15 -> 5796721.4 | M15: 20696687.69 | N15: 0.9970549491 | T15: Provincial own receipts | U15: 19913905.47 | V15: 0 | W15: 19913905.47 | Y15: 5080097.347 | Z15: 5764382.395 | AA15: 0 | AB15: 0 | AD15: 10844479.74 | AE15: 0.5445682043 | AK15: Provincial own receipts | AL15: -878541.061 | AM15: 34626 | AN15: -843915.061 | AP15: 1304083.077 | AQ15: 798063.0553 | AR15: -6157632.683 | AS15: -5796721.4 | AU15: -9852207.951
A16: 1
A17: 1 | C17: Total receipts | D17: =D12+D15 -> 659809928.5 | E17: =E12+E15 -> 21706758 | F17: =F12+F15 -> 681516686.5 | G17: 0 | H17: 163216455.9 | I17: =IF(General!$BE$1>1,I12+I15,"") -> 175086643.3 | J17: =IF(General!$BE$1>2,J12+J15,"") -> 166978171.9 | K17: =IF(General!$BE$1>2,K12+K15,"") -> 176165929.3 | M17: =M12+M15 -> 681447200.5 | N17: =IFERROR(M17/F17,0) -> 0.9998980421 | T17: Total receipts | U17: 631772186.7 | V17: 0 | W17: 631772186.7 | X17: 0 | Y17: 158878321.7 | Z17: 160184283.4 | AD17: 319062605.1 | AE17: 0.5050279386 | AK17: Total receipts | AL17: =AL12+AL15 -> -28037741.87 | AM17: =AM12+AM15 -> -21706758 | AN17: -49744499.87 | AO17: =AO12+AO15 -> 0 | AP17: -4338134.266 | AQ17: =AQ12+AQ15 -> -14902359.95 | AR17: -166978171.9 | AS17: -176165929.3 | AU17: =AU12+AU15 -> -362384595.4
A18: 1
A19: 1 | C19: Payments by provincial departments | T19: Payments by provincial departments | AK19: Payments by provincial departments
A20: =IF(LEN(C20)>3,1,0) -> 1 | C20: Eastern Cape | D20: =EC_1!D$41 -> 82608174.93 | E20: =F20-D20 -> 3521934.8 | F20: =EC_1!F$41 -> 86130109.73 | H20: =EC_1!H$41 -> 22577670.2 | I20: =EC_1!I$41 -> 21791128.2 | J20: =EC_1!J$41 -> 20595287.31 | K20: =EC_1!K$41 -> 20895169.65 | M20: =SUM(H20:K20) -> 85859255.36 | N20: =IFERROR(M20/F20,0) -> 0.9968552882 | T20: =C20 -> Eastern Cape | U20: 82198245.27 | V20: 0 | W20: 82198245.27 | Y20: 21789359.04 | Z20: 20799153.57 | AA20: 0 | AD20: 42588512.61 | AE20: 0.5181194862 | AK20: =C20 -> Eastern Cape | AL20: =IFERROR(U20-D20,0) -> -409929.66 | AM20: =IFERROR(V20-E20,0) -> -3521934.8 | AN20: =IFERROR(W20-F20,0) -> -3931864.46 | AP20: =IFERROR(Y20-H20,0) -> -788311.1604 | AQ20: =IFERROR(Z20-I20,0) -> -991974.6333 | AR20: =IFERROR(AA20-J20,0) -> -20595287.31 | AS20: =IFERROR(AB20-K20,0) -> 0 | AU20: =IFERROR(AD20-M20,0) -> -43270742.75
A21: =IF(LEN(C21)>3,1,0) -> 1 | C21: Free State | D21: =FS_1!D$41 -> 38625344 | E21: 1492340 | F21: =FS_1!F$41 -> 40117684 | H21: =FS_1!H$41 -> 9187642 | I21: =FS_1!I$41 -> 9871491 | J21: =FS_1!J$41 -> 9963231 | K21: =FS_1!K$41 -> 10588791 | M21: 39611155 | N21: 0.9873739222 | T21: Free State | U21: 37274018 | V21: 0 | W21: 37274018 | Y21: 8962964 | Z21: 9036969 | AA21: 0 | AD21: 17999933 | AE21: 0.4829083089 | AK21: =C21 -> Free State | AL21: -1351326 | AM21: -1492340 | AN21: -2843666 | AP21: -224678 | AQ21: -834522 | AR21: -9963231 | AS21: 0 | AU21: -21611222
A22: 1 | C22: Gauteng | D22: =GT_1!D$41 -> 142552806 | E22: 6934221.8 | F22: =GT_1!F$41 -> 149487027.8 | H22: =GT_1!H$41 -> 34333319 | I22: =GT_1!I$41 -> 34230987 | J22: =GT_1!J$41 -> 39310436.96 | K22: =GT_1!K$41 -> 36255908 | M22: 144130651 | N22: 0.9641682833 | T22: Gauteng | U22: 132442501 | V22: 0 | W22: 132442501 | Y22: 30749660.6 | Z22: 30439757 | AA22: 0 | AD22: 61189417.6 | AE22: 0.4620074156 | AK22: Gauteng | AL22: -10110305 | AM22: -6934221.8 | AN22: -17044526.8 | AP22: -3583658.4 | AQ22: -3791230 | AR22: -39310436.96 | AS22: 0 | AU22: -82941233.36
A23: 1 | C23: KwaZulu-Natal | D23: =KZN_1!D$41 -> 133670022 | E23: 7504722 | F23: =KZN_1!F$41 -> 141174744 | H23: =KZN_1!H$41 -> 32195385 | I23: =KZN_1!I$41 -> 34161532 | J23: =KZN_1!J$41 -> 37402105 | K23: =KZN_1!K$41 -> 37441551 | M23: 141200573 | N23: 1.000182958 | T23: KwaZulu-Natal | U23: 130474221 | V23: 0 | W23: 130474221 | Y23: 29866683 | Z23: 31694200 | AA23: 0 | AD23: 61560883 | AE23: 0.4718241085 | AK23: KwaZulu-Natal | AL23: -3195801 | AM23: -7504722 | AN23: -10700523 | AP23: -2328702 | AQ23: -2467332 | AR23: -37402105 | AS23: 0 | AU23: -79639690
A24: 1 | C24: Limpopo | D24: =LIM_1!D$41 -> 68770447 | E24: 6896104 | F24: =LIM_1!F$41 -> 75666551 | H24: =LIM_1!H$41 -> 16686517 | I24: =LIM_1!I$41 -> 17207433 | J24: =LIM_1!J$41 -> 19076689 | K24: =LIM_1!K$41 -> 20533324 | M24: 73503963 | N24: 0.9714194982 | T24: Limpopo | U24: 69500910.14 | V24: 0 | W24: 69500910.14 | Y24: 16780589 | Z24: 16627341 | AA24: 0 | AD24: 33407930 | AE24: 0.4806833455 | AK24: Limpopo | AL24: 730463.14 | AM24: -6896104 | AN24: -6165640.86 | AP24: 94072 | AQ24: -580092 | AR24: -19076689 | AS24: 0 | AU24: -40096033
A25: 1 | C25: Mpumalanga | D25: =MPU_1!D$41 -> 53576427 | E25: 1820261 | F25: =MPU_1!F$41 -> 55396688 | H25: =MPU_1!H$41 -> 12343790 | I25: =MPU_1!I$41 -> 13510953 | J25: =MPU_1!J$41 -> 14441405 | K25: =MPU_1!K$41 -> 14529087 | M25: 54825235 | N25: 0.9896843472 | T25: Mpumalanga | U25: 50981105 | V25: 0 | W25: 50981105 | Y25: 12218034 | Z25: 12621778 | AA25: 0 | AD25: 24839812 | AE25: 0.4872356533 | AK25: Mpumalanga | AL25: -2595322 | AM25: -1820261 | AN25: -4415583 | AP25: -125756 | AQ25: -889175 | AR25: -14441405 | AS25: 0 | AU25: -29985423
A26: 1 | C26: Northern Cape | D26: =NC_1!D$41 -> 18994995 | E26: 994804 | F26: =NC_1!F$41 -> 19989799 | H26: =NC_1!H$41 -> 4672626 | I26: =NC_1!I$41 -> 4762444 | J26: =NC_1!J$41 -> 5076530 | K26: =NC_1!K$41 -> 5154954 | M26: 19666554 | N26: 0.9838295022 | T26: Northern Cape | U26: 18255416.41 | V26: 0 | W26: 18255416.41 | Y26: 4569432 | Z26: 4451310.285 | AA26: 0 | AD26: 9020742.285 | AE26: 0.4941405927 | AK26: Northern Cape | AL26: -739578.59 | AM26: -994804 | AN26: -1734382.59 | AP26: -103194 | AQ26: -311133.715 | AR26: -5076530 | AS26: 0 | AU26: -10645811.71
A27: 1 | C27: North West | D27: =NW_1!D$41 -> 46240425 | E27: 2547819 | F27: =NW_1!F$41 -> 48788244 | H27: =NW_1!H$41 -> 10676459 | I27: =NW_1!I$41 -> 11601451 | J27: =NW_1!J$41 -> 12384868 | K27: =NW_1!K$41 -> 12547191 | M27: 47209969 | N27: 0.9676505061 | T27: North West | U27: 44028547.2 | V27: 0 | W27: 44028547.2 | Y27: 9780722 | Z27: 10657495.4 | AA27: 0 | AD27: 20438217.4 | AE27: 0.4642037655 | AK27: North West | AL27: -2211877.8 | AM27: -2547819 | AN27: -4759696.8 | AP27: -895737 | AQ27: -943955.6 | AR27: -12384868 | AS27: 0 | AU27: -26771751.6
A28: 1 | C28: Western Cape | D28: =WC_1!D$41 -> 72397070 | E28: 1535730 | F28: =WC_1!F$41 -> 73932800 | H28: =WC_1!H$41 -> 16092285 | I28: =WC_1!I$41 -> 18159192.76 | J28: =WC_1!J$41 -> 19307963.11 | K28: =WC_1!K$41 -> 19641801 | M28: 73201241.87 | N28: 0.9901050937 | T28: Western Cape | U28: 67191484 | V28: 0 | W28: 67191484 | Y28: 15409780 | Z28: 16775647 | AA28: 0 | AD28: 32185427 | AE28: 0.4790105097 | AK28: Western Cape | AL28: -5205586 | AM28: -1535730 | AN28: -6741316 | AP28: -682505 | AQ28: -1383545.761 | AR28: -19307963.11 | AS28: 0 | AU28: -41015814.87
A29: 0 | E29: 0 | M29: 0 | N29: 0 | T29: 0 | V29: 0 | AD29: 0 | AE29: 0 | AK29: 0 | AL29: 0 | AM29: 0 | AN29: 0 | AP29: 0 | AQ29: 0 | AR29: 0 | AS29: 0 | AU29: 0
A30: 0 | E30: 0 | M30: 0 | N30: 0 | T30: 0 | V30: 0 | AD30: 0 | AE30: 0 | AK30: 0 | AL30: 0 | AM30: 0 | AN30: 0 | AP30: 0 | AQ30: 0 | AR30: 0 | AS30: 0 | AU30: 0
A31: 0 | E31: 0 | M31: 0 | N31: 0 | T31: 0 | V31: 0 | AD31: 0 | AE31: 0 | AK31: 0 | AL31: 0 | AM31: 0 | AN31: 0 | AP31: 0 | AQ31: 0 | AR31: 0 | AS31: 0 | AU31: 0
A32: 0 | E32: 0 | M32: 0 | N32: 0 | T32: 0 | V32: 0 | AD32: 0 | AE32: 0 | AK32: 0 | AL32: 0 | AM32: 0 | AN32: 0 | AP32: 0 | AQ32: 0 | AR32: 0 | AS32: 0 | AU32: 0
A33: 0 | E33: 0 | M33: 0 | N33: 0 | T33: 0 | V33: 0 | AD33: 0 | AE33: 0 | AK33: 0 | AL33: 0 | AM33: 0 | AN33: 0 | AP33: 0 | AQ33: 0 | AR33: 0 | AS33: 0 | AU33: 0
A34: 0 | M34: 0 | N34: 0 | T34: 0 | AD34: 0 | AE34: 0 | AK34: 0 | AL34: =U34-D34 -> 0 | AM34: =AN34-AL34 -> 0 | AN34: 0 | AP34: 0 | AQ34: =Z34-I34 -> 0 | AR34: =AA34-J34 -> 0 | AS34: =AB34-K34 -> 0 | AU34: =SUM(AP34:AQ34) -> 0
A35: 0 | M35: 0 | N35: 0 | T35: 0 | AD35: 0 | AE35: 0 | AK35: 0 | AL35: 0 | AM35: 0 | AN35: 0 | AP35: 0 | AQ35: 0 | AR35: 0 | AS35: 0 | AU35: 0
A36: 0 | M36: 0 | N36: 0 | T36: 0 | AD36: 0 | AE36: 0 | AK36: 0 | AL36: 0 | AM36: 0 | AN36: 0 | AP36: 0 | AQ36: 0 | AR36: 0 | AS36: 0 | AU36: 0
A37: 0 | M37: 0 | N37: 0 | T37: 0 | AD37: 0 | AE37: 0 | AK37: 0 | AL37: 0 | AM37: 0 | AN37: 0 | AP37: 0 | AQ37: 0 | AR37: 0 | AS37: 0 | AU37: 0
A38: 0 | M38: 0 | N38: 0 | T38: 0 | AD38: 0 | AE38: 0 | AK38: 0 | AL38: 0 | AM38: 0 | AN38: 0 | AP38: 0 | AQ38: 0 | AR38: 0 | AS38: 0 | AU38: 0
A39: 0 | M39: 0 | N39: 0 | T39: 0 | AD39: 0 | AE39: 0 | AK39: 0 | AL39: 0 | AM39: 0 | AN39: 0 | AP39: 0 | AQ39: 0 | AR39: 0 | AS39: 0 | AU39: 0
A40: 1
A41: 1 | C41: Total payments | D41: =SUM(D20:D39) -> 657435710.9 | E41: =SUM(E20:E39) -> 33247936.6 | F41: 690683647.5 | H41: =SUM(H20:H39) -> 158765693.2 | I41: =IF(General!$BE$1>1,SUM(I20:I39),"") -> 165296612 | J41: =IF(General!$BE$1>2,SUM(J20:J39),"") -> 177558515.4 | K41: =IF(General!$BE$1>2,SUM(K20:K39),"") -> 177587776.7 | M41: =SUM(M20:M39) -> 679208597.2 | N41: =IFERROR(M41/F41,0) -> 0.9833859534 | T41: Total payments | U41: 632346448 | V41: 0 | W41: 632346448 | Y41: 150127223.6 | Z41: 153103651.3 | AD41: 303230874.9 | AE41: 0.4795328191 | AK41: Total payments | AL41: =SUM(AL20:AL39) -> -25089262.91 | AM41: =SUM(AM20:AM39) -> -33247936.6 | AN41: =SUM(AN20:AN39) -> -58337199.51 | AP41: =SUM(AP20:AP39) -> -8638469.56 | AQ41: =SUM(AQ20:AQ39) -> -12192960.71 | AR41: -177558515.4 | AS41: 0 | AU41: =SUM(AU20:AU39) -> -375977722.3
A42: 1
A43: 1 | C43: Payments by economic classification | T43: Payments by economic classification | AK43: Payments by economic classification
A44: 1 | C44: Current payments | D44: =SUM(D45:D47) -> 538827480.5 | E44: =SUM(E45:E47) -> 23898832.1 | F44: 562726312.6 | G44: 0 | H44: 131030566.2 | I44: 139616872.6 | J44: =SUM(J45:J47) -> 142935418.8 | K44: =SUM(K45:K47) -> 143286425.8 | M44: 556869283.4 | N44: =IFERROR(M44/F44,0) -> 0.9895916913 | T44: =C44 -> Current payments | U44: 517162385.5 | V44: 0 | W44: 517162385.5 | X44: 0 | Y44: 123189152.4 | Z44: 127770205.8 | AA44: 0 | AB44: 0 | AD44: 250959358.2 | AE44: 0.4852622024 | AK44: Current payments | AL44: =SUM(AL45:AL47) -> -21665095.02 | AM44: =SUM(AM45:AM47) -> -23898832.1 | AN44: =SUM(AN45:AN47) -> -45563927.12 | AO44: 0 | AP44: =SUM(AP45:AP47) -> -7841413.811 | AQ44: =SUM(AQ45:AQ47) -> -11846666.87 | AR44: -142935418.8 | AS44: -143286425.8 | AU44: =SUM(AU45:AU47) -> -305909925.3
A45: 1 | C45: Compensation of employees | D45: =EC_1!D45+FS_1!D45+GT_1!D45+KZN_1!D45+LIM_1!D45+MPU_1!D45+NC_1!D45+NW_1!D45+WC_1!D45 -> 398921872.6 | E45: =F45-D45 -> 18204897.3 | F45: =EC_1!F45+FS_1!F45+GT_1!F45+KZN_1!F45+LIM_1!F45+MPU_1!F45+NC_1!F45+NW_1!F45+WC_1!F45 -> 417126769.9 | H45: =EC_1!H45+FS_1!H45+GT_1!H45+KZN_1!H45+LIM_1!H45+MPU_1!H45+NC_1!H45+NW_1!H45+WC_1!H45 -> 98732144.5 | I45: =EC_1!I45+FS_1!I45+GT_1!I45+KZN_1!I45+LIM_1!I45+MPU_1!I45+NC_1!I45+NW_1!I45+WC_1!I45 -> 106265700.3 | J45: =EC_1!J45+FS_1!J45+GT_1!J45+KZN_1!J45+LIM_1!J45+MPU_1!J45+NC_1!J45+NW_1!J45+WC_1!J45 -> 106770884.4 | K45: =EC_1!K45+FS_1!K45+GT_1!K45+KZN_1!K45+LIM_1!K45+MPU_1!K45+NC_1!K45+NW_1!K45+WC_1!K45 -> 104759243.6 | M45: =SUM(H45:K45) -> 416527972.8 | N45: 0.9985644719 | T45: Compensation of employees | U45: 389601795.5 | V45: 0 | W45: 389601795.5 | Y45: 94256640.33 | Z45: 95952953.6 | AA45: 0 | AB45: 0 | AD45: 190209593.9 | AE45: 0.4882153936 | AK45: Compensation of employees | AL45: =IFERROR(U45-D45,0) -> -9320077.16 | AM45: =IFERROR(V45-E45,0) -> -18204897.3 | AN45: =IFERROR(W45-F45,0) -> -27524974.46 | AP45: =IFERROR(Y45-H45,0) -> -4475504.169 | AQ45: =IFERROR(Z45-I45,0) -> -10312746.68 | AR45: =IFERROR(AA45-J45,0) -> -106770884.4 | AS45: =IFERROR(AB45-K45,0) -> -104759243.6 | AU45: =IFERROR(AD45-M45,0) -> -226318378.8
A46: 1 | C46: Goods and services | D46: =EC_1!D46+FS_1!D46+GT_1!D46+KZN_1!D46+LIM_1!D46+MPU_1!D46+NC_1!D46+NW_1!D46+WC_1!D46 -> 139900625.8 | E46: 5684056.8 | F46: =EC_1!F46+FS_1!F46+GT_1!F46+KZN_1!F46+LIM_1!F46+MPU_1!F46+NC_1!F46+NW_1!F46+WC_1!F46 -> 145584682.7 | H46: =EC_1!H46+FS_1!H46+GT_1!H46+KZN_1!H46+LIM_1!H46+MPU_1!H46+NC_1!H46+NW_1!H46+WC_1!H46 -> 32285983.7 | I46: =EC_1!I46+FS_1!I46+GT_1!I46+KZN_1!I46+LIM_1!I46+MPU_1!I46+NC_1!I46+NW_1!I46+WC_1!I46 -> 33344502.36 | J46: =EC_1!J46+FS_1!J46+GT_1!J46+KZN_1!J46+LIM_1!J46+MPU_1!J46+NC_1!J46+NW_1!J46+WC_1!J46 -> 36160906.36 | K46: =EC_1!K46+FS_1!K46+GT_1!K46+KZN_1!K46+LIM_1!K46+MPU_1!K46+NC_1!K46+NW_1!K46+WC_1!K46 -> 38446901.24 | M46: 140238293.7 | N46: 0.9632764321 | T46: Goods and services | U46: 127552746 | V46: 0 | W46: 127552746 | Y46: 28917149.06 | Z46: 31801029.78 | AA46: 0 | AB46: 0 | AD46: 60718178.84 | AE46: 0.4760240822 | AK46: Goods and services | AL46: -12347879.86 | AM46: -5684056.8 | AN46: -18031936.66 | AP46: -3368834.641 | AQ46: -1543472.583 | AR46: -36160906.36 | AS46: -38446901.24 | AU46: -79520114.83
A47: 1 | C47: Interest and rent on land | D47: =EC_1!D47+FS_1!D47+GT_1!D47+KZN_1!D47+LIM_1!D47+MPU_1!D47+NC_1!D47+NW_1!D47+WC_1!D47 -> 4982 | E47: 9878 | F47: =EC_1!F47+FS_1!F47+GT_1!F47+KZN_1!F47+LIM_1!F47+MPU_1!F47+NC_1!F47+NW_1!F47+WC_1!F47 -> 14860 | H47: =EC_1!H47+FS_1!H47+GT_1!H47+KZN_1!H47+LIM_1!H47+MPU_1!H47+NC_1!H47+NW_1!H47+WC_1!H47 -> 12438 | I47: =EC_1!I47+FS_1!I47+GT_1!I47+KZN_1!I47+LIM_1!I47+MPU_1!I47+NC_1!I47+NW_1!I47+WC_1!I47 -> 6670 | J47: =EC_1!J47+FS_1!J47+GT_1!J47+KZN_1!J47+LIM_1!J47+MPU_1!J47+NC_1!J47+NW_1!J47+WC_1!J47 -> 3628 | K47: =EC_1!K47+FS_1!K47+GT_1!K47+KZN_1!K47+LIM_1!K47+MPU_1!K47+NC_1!K47+NW_1!K47+WC_1!K47 -> 80281 | M47: 103017 | N47: 6.932503365 | T47: Interest and rent on land | U47: 7844 | V47: 0 | W47: 7844 | Y47: 15363 | Z47: 16222.389 | AA47: 0 | AB47: 0 | AD47: 31585.389 | AE47: 4.026694161 | AK47: Interest and rent on land | AL47: 2862 | AM47: -9878 | AN47: -7016 | AP47: 2925 | AQ47: 9552.389 | AR47: -3628 | AS47: -80281 | AU47: -71431.611
A48: 1 | C48: Transfers and subsidies | D48: =SUM(D49:D55) -> 82093546.43 | E48: =SUM(E49:E55) -> 9106598.8 | F48: =SUM(F49:F55) -> 91200145.23 | G48: 0 | H48: =SUM(H49:H55) -> 21641236.8 | I48: =SUM(I49:I55) -> 18643371.59 | J48: 26646523.77 | K48: =SUM(K49:K55) -> 21541769.8 | M48: 88472901.97 | N48: 0.9700960645 | T48: Transfers and subsidies | U48: 79200277.85 | V48: 0 | W48: 79200277.85 | X48: 0 | Y48: 21122423.39 | Z48: 18201285.06 | AA48: 0 | AB48: 0 | AD48: 39323708.45 | AE48: 0.4965097284 | AK48: Transfers and subsidies | AL48: =SUM(AL49:AL55) -> -2893268.58 | AM48: =SUM(AM49:AM55) -> -9106598.8 | AN48: =SUM(AN49:AN55) -> -11999867.38 | AO48: 0 | AP48: =SUM(AP49:AP55) -> -518813.4142 | AQ48: =SUM(AQ49:AQ55) -> -442086.5324 | AR48: -26646523.77 | AS48: -21541769.8 | AU48: =SUM(AU49:AU55) -> -49149193.52
A49: 1 | C49: Provinces and municipalities | D49: =EC_1!D49+FS_1!D49+GT_1!D49+KZN_1!D49+LIM_1!D49+MPU_1!D49+NC_1!D49+NW_1!D49+WC_1!D49 -> 7852944 | E49: =F49-D49 -> 919747 | F49: =EC_1!F49+FS_1!F49+GT_1!F49+KZN_1!F49+LIM_1!F49+MPU_1!F49+NC_1!F49+NW_1!F49+WC_1!F49 -> 8772691 | H49: =EC_1!H49+FS_1!H49+GT_1!H49+KZN_1!H49+LIM_1!H49+MPU_1!H49+NC_1!H49+NW_1!H49+WC_1!H49 -> 646403.3 | I49: =EC_1!I49+FS_1!I49+GT_1!I49+KZN_1!I49+LIM_1!I49+MPU_1!I49+NC_1!I49+NW_1!I49+WC_1!I49 -> 2738855.3 | J49: =EC_1!J49+FS_1!J49+GT_1!J49+KZN_1!J49+LIM_1!J49+MPU_1!J49+NC_1!J49+NW_1!J49+WC_1!J49 -> 3065548.3 | K49: =EC_1!K49+FS_1!K49+GT_1!K49+KZN_1!K49+LIM_1!K49+MPU_1!K49+NC_1!K49+NW_1!K49+WC_1!K49 -> 2140501.7 | M49: =SUM(H49:K49) -> 8591308.6 | N49: 0.9793242005 | T49: Provinces and municipalities | U49: 7089391 | V49: 0 | W49: 7089391 | Y49: 1008266.093 | Z49: 2243015 | AA49: 0 | AB49: 0 | AD49: 3251281.093 | AE49: 0.4586121845 | AK49: Provinces and municipalities | AL49: =IFERROR(U49-D49,0) -> -763553 | AM49: =IFERROR(V49-E49,0) -> -919747 | AN49: =IFERROR(W49-F49,0) -> -1683300 | AP49: =IFERROR(Y49-H49,0) -> 361862.7934 | AQ49: =IFERROR(Z49-I49,0) -> -495840.3 | AR49: =IFERROR(AA49-J49,0) -> -3065548.3 | AS49: =IFERROR(AB49-K49,0) -> -2140501.7 | AU49: =IFERROR(AD49-M49,0) -> -5340027.507
A50: 1 | C50: Departmental agencies and accounts | D50: =EC_1!D50+FS_1!D50+GT_1!D50+KZN_1!D50+LIM_1!D50+MPU_1!D50+NC_1!D50+NW_1!D50+WC_1!D50 -> 11719822 | E50: 1231904 | F50: =EC_1!F50+FS_1!F50+GT_1!F50+KZN_1!F50+LIM_1!F50+MPU_1!F50+NC_1!F50+NW_1!F50+WC_1!F50 -> 12951726 | H50: =EC_1!H50+FS_1!H50+GT_1!H50+KZN_1!H50+LIM_1!H50+MPU_1!H50+NC_1!H50+NW_1!H50+WC_1!H50 -> 3443441.8 | I50: =EC_1!I50+FS_1!I50+GT_1!I50+KZN_1!I50+LIM_1!I50+MPU_1!I50+NC_1!I50+NW_1!I50+WC_1!I50 -> 2932701.7 | J50: =EC_1!J50+FS_1!J50+GT_1!J50+KZN_1!J50+LIM_1!J50+MPU_1!J50+NC_1!J50+NW_1!J50+WC_1!J50 -> 3026163 | K50: =EC_1!K50+FS_1!K50+GT_1!K50+KZN_1!K50+LIM_1!K50+MPU_1!K50+NC_1!K50+NW_1!K50+WC_1!K50 -> 3662165 | M50: 13064471.5 | N50: 1.008705056 | T50: Departmental agencies and accounts | U50: 11273418 | V50: 0 | W50: 11273418 | Y50: 3019889.6 | Z50: 2691786.906 | AA50: 0 | AB50: 0 | AD50: 5711676.506 | AE50: 0.5066499358 | AK50: Departmental agencies and accounts | AL50: -446404 | AM50: -1231904 | AN50: -1678308 | AP50: -423552.1996 | AQ50: -240914.7942 | AR50: -3026163 | AS50: -3662165 | AU50: -7352794.994
A51: 1 | C51: Higher education and institutions | D51: =EC_1!D51+FS_1!D51+GT_1!D51+KZN_1!D51+LIM_1!D51+MPU_1!D51+NC_1!D51+NW_1!D51+WC_1!D51 -> 149609 | E51: 11674 | F51: =EC_1!F51+FS_1!F51+GT_1!F51+KZN_1!F51+LIM_1!F51+MPU_1!F51+NC_1!F51+NW_1!F51+WC_1!F51 -> 161283 | H51: =EC_1!H51+FS_1!H51+GT_1!H51+KZN_1!H51+LIM_1!H51+MPU_1!H51+NC_1!H51+NW_1!H51+WC_1!H51 -> 32021 | I51: =EC_1!I51+FS_1!I51+GT_1!I51+KZN_1!I51+LIM_1!I51+MPU_1!I51+NC_1!I51+NW_1!I51+WC_1!I51 -> 41917 | J51: =EC_1!J51+FS_1!J51+GT_1!J51+KZN_1!J51+LIM_1!J51+MPU_1!J51+NC_1!J51+NW_1!J51+WC_1!J51 -> 16052 | K51: =EC_1!K51+FS_1!K51+GT_1!K51+KZN_1!K51+LIM_1!K51+MPU_1!K51+NC_1!K51+NW_1!K51+WC_1!K51 -> 54195 | M51: 144185 | N51: 0.893987587 | T51: Higher education and institutions | U51: 142537 | V51: 0 | W51: 142537 | Y51: 29547 | Z51: 19561 | AA51: 0 | AB51: 0 | AD51: 49108 | AE51: 0.3445280874 | AK51: Higher education and institutions | AL51: -7072 | AM51: -11674 | AN51: -18746 | AP51: -2474 | AQ51: -22356 | AR51: -16052 | AS51: -54195 | AU51: -95077
A52: 1 | C52: Foreign governments and international organisations | D52: =EC_1!D52+FS_1!D52+GT_1!D52+KZN_1!D52+LIM_1!D52+MPU_1!D52+NC_1!D52+NW_1!D52+WC_1!D52 -> 596 | E52: 0 | F52: =EC_1!F52+FS_1!F52+GT_1!F52+KZN_1!F52+LIM_1!F52+MPU_1!F52+NC_1!F52+NW_1!F52+WC_1!F52 -> 596 | H52: =EC_1!H52+FS_1!H52+GT_1!H52+KZN_1!H52+LIM_1!H52+MPU_1!H52+NC_1!H52+NW_1!H52+WC_1!H52 -> 0 | I52: =EC_1!I52+FS_1!I52+GT_1!I52+KZN_1!I52+LIM_1!I52+MPU_1!I52+NC_1!I52+NW_1!I52+WC_1!I52 -> 0 | J52: =EC_1!J52+FS_1!J52+GT_1!J52+KZN_1!J52+LIM_1!J52+MPU_1!J52+NC_1!J52+NW_1!J52+WC_1!J52 -> 169 | K52: =EC_1!K52+FS_1!K52+GT_1!K52+KZN_1!K52+LIM_1!K52+MPU_1!K52+NC_1!K52+NW_1!K52+WC_1!K52 -> 440 | M52: 609 | N52: 1.021812081 | T52: Foreign governments and international organisations | U52: 554 | V52: 0 | W52: 554 | Y52: 0 | Z52: 0 | AA52: 0 | AB52: 0 | AD52: 0 | AE52: 0 | AK52: Foreign governments and international organisations | AL52: -42 | AM52: 0 | AN52: -42 | AP52: 0 | AQ52: 0 | AR52: -169 | AS52: -440 | AU52: -609
A53: 1 | C53: Public corporations and private enterprises | D53: =EC_1!D53+FS_1!D53+GT_1!D53+KZN_1!D53+LIM_1!D53+MPU_1!D53+NC_1!D53+NW_1!D53+WC_1!D53 -> 9398179 | E53: 690712 | F53: =EC_1!F53+FS_1!F53+GT_1!F53+KZN_1!F53+LIM_1!F53+MPU_1!F53+NC_1!F53+NW_1!F53+WC_1!F53 -> 10088891 | H53: =EC_1!H53+FS_1!H53+GT_1!H53+KZN_1!H53+LIM_1!H53+MPU_1!H53+NC_1!H53+NW_1!H53+WC_1!H53 -> 1834768.7 | I53: =EC_1!I53+FS_1!I53+GT_1!I53+KZN_1!I53+LIM_1!I53+MPU_1!I53+NC_1!I53+NW_1!I53+WC_1!I53 -> 2512605.9 | J53: =EC_1!J53+FS_1!J53+GT_1!J53+KZN_1!J53+LIM_1!J53+MPU_1!J53+NC_1!J53+NW_1!J53+WC_1!J53 -> 2491502.1 | K53: =EC_1!K53+FS_1!K53+GT_1!K53+KZN_1!K53+LIM_1!K53+MPU_1!K53+NC_1!K53+NW_1!K53+WC_1!K53 -> 2610565.6 | M53: 9449442.3 | N53: 0.9366185342 | T53: Public corporations and private enterprises | U53: 8827389 | V53: 0 | W53: 8827389 | Y53: 1563658.521 | Z53: 2158397.554 | AA53: 0 | AB53: 0 | AD53: 3722056.075 | AE53: 0.4216485843 | AK53: Public corporations and private enterprises | AL53: -570790 | AM53: -690712 | AN53: -1261502 | AP53: -271110.1787 | AQ53: -354208.3463 | AR53: -2491502.1 | AS53: -2610565.6 | AU53: -5727386.225
A54: 1 | C54: Non profit institutions | D54: =EC_1!D54+FS_1!D54+GT_1!D54+KZN_1!D54+LIM_1!D54+MPU_1!D54+NC_1!D54+NW_1!D54+WC_1!D54 -> 31384965 | E54: 5192501 | F54: =EC_1!F54+FS_1!F54+GT_1!F54+KZN_1!F54+LIM_1!F54+MPU_1!F54+NC_1!F54+NW_1!F54+WC_1!F54 -> 36577466 | H54: =EC_1!H54+FS_1!H54+GT_1!H54+KZN_1!H54+LIM_1!H54+MPU_1!H54+NC_1!H54+NW_1!H54+WC_1!H54 -> 10901272 | I54: =EC_1!I54+FS_1!I54+GT_1!I54+KZN_1!I54+LIM_1!I54+MPU_1!I54+NC_1!I54+NW_1!I54+WC_1!I54 -> 5963290.033 | J54: =EC_1!J54+FS_1!J54+GT_1!J54+KZN_1!J54+LIM_1!J54+MPU_1!J54+NC_1!J54+NW_1!J54+WC_1!J54 -> 11878423.38 | K54: =EC_1!K54+FS_1!K54+GT_1!K54+KZN_1!K54+LIM_1!K54+MPU_1!K54+NC_1!K54+NW_1!K54+WC_1!K54 -> 7046625 | M54: 35789610.41 | N54: 0.9784606296 | T54: Non profit institutions | U54: 28125855.75 | V54: 0 | W54: 28125855.75 | Y54: 9761444 | Z54: 5252023 | AA54: 0 | AB54: 0 | AD54: 15013467 | AE54: 0.5337959184 | AK54: Non profit institutions | AL54: -3259109.25 | AM54: -5192501 | AN54: -8451610.25 | AP54: -1139828 | AQ54: -711267.0333 | AR54: -11878423.38 | AS54: -7046625 | AU54: -20776143.41
A55: 1 | C55: Households | D55: =EC_1!D55+FS_1!D55+GT_1!D55+KZN_1!D55+LIM_1!D55+MPU_1!D55+NC_1!D55+NW_1!D55+WC_1!D55 -> 21587431.43 | E55: 1060060.8 | F55: =EC_1!F55+FS_1!F55+GT_1!F55+KZN_1!F55+LIM_1!F55+MPU_1!F55+NC_1!F55+NW_1!F55+WC_1!F55 -> 22647492.23 | H55: =EC_1!H55+FS_1!H55+GT_1!H55+KZN_1!H55+LIM_1!H55+MPU_1!H55+NC_1!H55+NW_1!H55+WC_1!H55 -> 4783330 | I55: =EC_1!I55+FS_1!I55+GT_1!I55+KZN_1!I55+LIM_1!I55+MPU_1!I55+NC_1!I55+NW_1!I55+WC_1!I55 -> 4454001.661 | J55: =EC_1!J55+FS_1!J55+GT_1!J55+KZN_1!J55+LIM_1!J55+MPU_1!J55+NC_1!J55+NW_1!J55+WC_1!J55 -> 6168665.994 | K55: =EC_1!K55+FS_1!K55+GT_1!K55+KZN_1!K55+LIM_1!K55+MPU_1!K55+NC_1!K55+NW_1!K55+WC_1!K55 -> 6027277.5 | M55: 21433275.16 | N55: 0.9463862461 | T55: Households | U55: 23741133.1 | V55: 0 | W55: 23741133.1 | Y55: 5739618.171 | Z55: 5836501.602 | AA55: 0 | AB55: 0 | AD55: 11576119.77 | AE55: 0.4875976106 | AK55: Households | AL55: 2153701.67 | AM55: -1060060.8 | AN55: 1093640.87 | AP55: 956288.1708 | AQ55: 1382499.941 | AR55: -6168665.994 | AS55: -6027277.5 | AU55: -9857155.382
A56: 1 | C56: Payments for capital assets | D56: =SUM(D57:D63) -> 36508825 | E56: =SUM(E57:E63) -> 196936.3 | F56: =SUM(F57:F63) -> 36705761.3 | G56: 0 | H56: =SUM(H57:H63) -> 6091481.4 | I56: =SUM(I57:I63) -> 7024514.265 | J56: 7961578.132 | K56: =SUM(K57:K63) -> 12638626.72 | M56: 33716200.52 | N56: 0.9185533639 | T56: Payments for capital assets | U56: 35977129.76 | V56: 0 | W56: 35977129.76 | X56: 0 | Y56: 5810214.985 | Z56: 7121714.125 | AA56: 0 | AB56: 0 | AD56: 12931929.11 | AE56: 0.3594486052 | AK56: Payments for capital assets | AL56: =SUM(AL57:AL63) -> -531695.2404 | AM56: =SUM(AM57:AM63) -> -196936.3 | AN56: =SUM(AN57:AN63) -> -728631.5404 | AO56: 0 | AP56: =SUM(AP57:AP63) -> -281266.4155 | AQ56: =SUM(AQ57:AQ63) -> 97199.86055 | AR56: -7961578.132 | AS56: -12638626.72 | AU56: =SUM(AU57:AU63) -> -20784271.41
A57: 1 | C57: Buildings and other fixed structures | D57: =EC_1!D57+FS_1!D57+GT_1!D57+KZN_1!D57+LIM_1!D57+MPU_1!D57+NC_1!D57+NW_1!D57+WC_1!D57 -> 28733201 | E57: =F57-D57 -> -1885957.6 | F57: =EC_1!F57+FS_1!F57+GT_1!F57+KZN_1!F57+LIM_1!F57+MPU_1!F57+NC_1!F57+NW_1!F57+WC_1!F57 -> 26847243.4 | H57: =EC_1!H57+FS_1!H57+GT_1!H57+KZN_1!H57+LIM_1!H57+MPU_1!H57+NC_1!H57+NW_1!H57+WC_1!H57 -> 4485348 | I57: =EC_1!I57+FS_1!I57+GT_1!I57+KZN_1!I57+LIM_1!I57+MPU_1!I57+NC_1!I57+NW_1!I57+WC_1!I57 -> 5498936 | J57: =EC_1!J57+FS_1!J57+GT_1!J57+KZN_1!J57+LIM_1!J57+MPU_1!J57+NC_1!J57+NW_1!J57+WC_1!J57 -> 6068122.6 | K57: =EC_1!K57+FS_1!K57+GT_1!K57+KZN_1!K57+LIM_1!K57+MPU_1!K57+NC_1!K57+NW_1!K57+WC_1!K57 -> 8691173.1 | M57: =SUM(H57:K57) -> 24743579.7 | N57: 0.9216432142 | T57: Buildings and other fixed structures | U57: 28372649 | V57: 0 | W57: 28372649 | Y57: 4734647.964 | Z57: 5655269.795 | AA57: 0 | AB57: 0 | AD57: 10389917.76 | AE57: 0.3661948435 | AK57: Buildings and other fixed structures | AL57: =IFERROR(U57-D57,0) -> -360552.0004 | AM57: =IFERROR(V57-E57,0) -> 1885957.6 | AN57: =IFERROR(W57-F57,0) -> 1525405.6 | AP57: =IFERROR(Y57-H57,0) -> 249299.9635 | AQ57: =IFERROR(Z57-I57,0) -> 156333.7954 | AR57: =IFERROR(AA57-J57,0) -> -6068122.6 | AS57: =IFERROR(AB57-K57,0) -> -8691173.1 | AU57: =IFERROR(AD57-M57,0) -> -14353661.94
A58: 1 | C58: Machinery and equipment | D58: =EC_1!D58+FS_1!D58+GT_1!D58+KZN_1!D58+LIM_1!D58+MPU_1!D58+NC_1!D58+NW_1!D58+WC_1!D58 -> 7426815 | E58: 1653387.5 | F58: =EC_1!F58+FS_1!F58+GT_1!F58+KZN_1!F58+LIM_1!F58+MPU_1!F58+NC_1!F58+NW_1!F58+WC_1!F58 -> 9080202.5 | H58: =EC_1!H58+FS_1!H58+GT_1!H58+KZN_1!H58+LIM_1!H58+MPU_1!H58+NC_1!H58+NW_1!H58+WC_1!H58 -> 1537593.5 | I58: =EC_1!I58+FS_1!I58+GT_1!I58+KZN_1!I58+LIM_1!I58+MPU_1!I58+NC_1!I58+NW_1!I58+WC_1!I58 -> 1438529.022 | J58: =EC_1!J58+FS_1!J58+GT_1!J58+KZN_1!J58+LIM_1!J58+MPU_1!J58+NC_1!J58+NW_1!J58+WC_1!J58 -> 1740706.975 | K58: =EC_1!K58+FS_1!K58+GT_1!K58+KZN_1!K58+LIM_1!K58+MPU_1!K58+NC_1!K58+NW_1!K58+WC_1!K58 -> 2464820.62 | M58: 7181650.117 | N58: 0.7909129908 | T58: Machinery and equipment | U58: 7470287.74 | V58: 0 | W58: 7470287.74 | Y58: 987833.021 | Z58: 1389910.936 | AA58: 0 | AB58: 0 | AD58: 2377743.957 | AE58: 0.3182934901 | AK58: Machinery and equipment | AL58: 43472.74 | AM58: -1653387.5 | AN58: -1609914.76 | AP58: -549760.479 | AQ58: -48618.08613 | AR58: -1740706.975 | AS58: -2464820.62 | AU58: -4803906.16
A59: 1 | C59: Heritage assets | D59: =EC_1!D59+FS_1!D59+GT_1!D59+KZN_1!D59+LIM_1!D59+MPU_1!D59+NC_1!D59+NW_1!D59+WC_1!D59 -> 15200 | E59: -9103 | F59: =EC_1!F59+FS_1!F59+GT_1!F59+KZN_1!F59+LIM_1!F59+MPU_1!F59+NC_1!F59+NW_1!F59+WC_1!F59 -> 6097 | H59: =EC_1!H59+FS_1!H59+GT_1!H59+KZN_1!H59+LIM_1!H59+MPU_1!H59+NC_1!H59+NW_1!H59+WC_1!H59 -> 100 | I59: =EC_1!I59+FS_1!I59+GT_1!I59+KZN_1!I59+LIM_1!I59+MPU_1!I59+NC_1!I59+NW_1!I59+WC_1!I59 -> 0 | J59: =EC_1!J59+FS_1!J59+GT_1!J59+KZN_1!J59+LIM_1!J59+MPU_1!J59+NC_1!J59+NW_1!J59+WC_1!J59 -> 379 | K59: =EC_1!K59+FS_1!K59+GT_1!K59+KZN_1!K59+LIM_1!K59+MPU_1!K59+NC_1!K59+NW_1!K59+WC_1!K59 -> 1816 | M59: 2295 | N59: 0.3764146301 | T59: Heritage assets | U59: 15447 | V59: 0 | W59: 15447 | Y59: 560 | Z59: 0 | AA59: 0 | AB59: 0 | AD59: 560 | AE59: 0.03625299411 | AK59: Heritage assets | AL59: 247 | AM59: 9103 | AN59: 9350 | AP59: 460 | AQ59: 0 | AR59: -379 | AS59: -1816 | AU59: -1735
A60: 1 | C60: Specialised military assets | D60: =EC_1!D60+FS_1!D60+GT_1!D60+KZN_1!D60+LIM_1!D60+MPU_1!D60+NC_1!D60+NW_1!D60+WC_1!D60 -> 0 | E60: 0 | F60: =EC_1!F60+FS_1!F60+GT_1!F60+KZN_1!F60+LIM_1!F60+MPU_1!F60+NC_1!F60+NW_1!F60+WC_1!F60 -> 0 | H60: =EC_1!H60+FS_1!H60+GT_1!H60+KZN_1!H60+LIM_1!H60+MPU_1!H60+NC_1!H60+NW_1!H60+WC_1!H60 -> 0 | I60: =EC_1!I60+FS_1!I60+GT_1!I60+KZN_1!I60+LIM_1!I60+MPU_1!I60+NC_1!I60+NW_1!I60+WC_1!I60 -> 0 | J60: =EC_1!J60+FS_1!J60+GT_1!J60+KZN_1!J60+LIM_1!J60+MPU_1!J60+NC_1!J60+NW_1!J60+WC_1!J60 -> 0 | K60: =EC_1!K60+FS_1!K60+GT_1!K60+KZN_1!K60+LIM_1!K60+MPU_1!K60+NC_1!K60+NW_1!K60+WC_1!K60 -> 0 | M60: 0 | N60: 0 | T60: Specialised military assets | U60: 35 | V60: 0 | W60: 35 | Y60: 0 | Z60: 0 | AA60: 0 | AB60: 0 | AD60: 0 | AE60: 0 | AK60: Specialised military assets | AL60: 35 | AM60: 0 | AN60: 35 | AP60: 0 | AQ60: 0 | AR60: 0 | AS60: 0 | AU60: 0
A61: 1 | C61: Biological assets | D61: =EC_1!D61+FS_1!D61+GT_1!D61+KZN_1!D61+LIM_1!D61+MPU_1!D61+NC_1!D61+NW_1!D61+WC_1!D61 -> 16065 | E61: -755 | F61: =EC_1!F61+FS_1!F61+GT_1!F61+KZN_1!F61+LIM_1!F61+MPU_1!F61+NC_1!F61+NW_1!F61+WC_1!F61 -> 15310 | H61: =EC_1!H61+FS_1!H61+GT_1!H61+KZN_1!H61+LIM_1!H61+MPU_1!H61+NC_1!H61+NW_1!H61+WC_1!H61 -> 0 | I61: =EC_1!I61+FS_1!I61+GT_1!I61+KZN_1!I61+LIM_1!I61+MPU_1!I61+NC_1!I61+NW_1!I61+WC_1!I61 -> 523 | J61: =EC_1!J61+FS_1!J61+GT_1!J61+KZN_1!J61+LIM_1!J61+MPU_1!J61+NC_1!J61+NW_1!J61+WC_1!J61 -> 6767 | K61: =EC_1!K61+FS_1!K61+GT_1!K61+KZN_1!K61+LIM_1!K61+MPU_1!K61+NC_1!K61+NW_1!K61+WC_1!K61 -> 10737 | M61: 18027 | N61: 1.177465709 | T61: Biological assets | U61: 22585 | V61: 0 | W61: 22585 | Y61: 0 | Z61: 3372 | AA61: 0 | AB61: 0 | AD61: 3372 | AE61: 0.1493026345 | AK61: Biological assets | AL61: 6520 | AM61: 755 | AN61: 7275 | AP61: 0 | AQ61: 2849 | AR61: -6767 | AS61: -10737 | AU61: -14655
A62: 1 | C62: Land and sub-soil assets | D62: =EC_1!D62+FS_1!D62+GT_1!D62+KZN_1!D62+LIM_1!D62+MPU_1!D62+NC_1!D62+NW_1!D62+WC_1!D62 -> 114770 | E62: 414980 | F62: =EC_1!F62+FS_1!F62+GT_1!F62+KZN_1!F62+LIM_1!F62+MPU_1!F62+NC_1!F62+NW_1!F62+WC_1!F62 -> 529750 | H62: =EC_1!H62+FS_1!H62+GT_1!H62+KZN_1!H62+LIM_1!H62+MPU_1!H62+NC_1!H62+NW_1!H62+WC_1!H62 -> 8683 | I62: =EC_1!I62+FS_1!I62+GT_1!I62+KZN_1!I62+LIM_1!I62+MPU_1!I62+NC_1!I62+NW_1!I62+WC_1!I62 -> 35299 | J62: =EC_1!J62+FS_1!J62+GT_1!J62+KZN_1!J62+LIM_1!J62+MPU_1!J62+NC_1!J62+NW_1!J62+WC_1!J62 -> 29048 | K62: =EC_1!K62+FS_1!K62+GT_1!K62+KZN_1!K62+LIM_1!K62+MPU_1!K62+NC_1!K62+NW_1!K62+WC_1!K62 -> 1379773 | M62: 1452803 | N62: 2.742431336 | T62: Land and sub-soil assets | U62: 14568 | V62: 0 | W62: 14568 | Y62: 3404 | Z62: 6906 | AA62: 0 | AB62: 0 | AD62: 10310 | AE62: 0.7077155409 | AK62: Land and sub-soil assets | AL62: -100202 | AM62: -414980 | AN62: -515182 | AP62: -5279 | AQ62: -28393 | AR62: -29048 | AS62: -1379773 | AU62: -1442493
A63: 1 | C63: Software and other intangible assets | D63: =EC_1!D63+FS_1!D63+GT_1!D63+KZN_1!D63+LIM_1!D63+MPU_1!D63+NC_1!D63+NW_1!D63+WC_1!D63 -> 202774 | E63: 24384.4 | F63: =EC_1!F63+FS_1!F63+GT_1!F63+KZN_1!F63+LIM_1!F63+MPU_1!F63+NC_1!F63+NW_1!F63+WC_1!F63 -> 227158.4 | H63: =EC_1!H63+FS_1!H63+GT_1!H63+KZN_1!H63+LIM_1!H63+MPU_1!H63+NC_1!H63+NW_1!H63+WC_1!H63 -> 59756.9 | I63: =EC_1!I63+FS_1!I63+GT_1!I63+KZN_1!I63+LIM_1!I63+MPU_1!I63+NC_1!I63+NW_1!I63+WC_1!I63 -> 51227.24297 | J63: =EC_1!J63+FS_1!J63+GT_1!J63+KZN_1!J63+LIM_1!J63+MPU_1!J63+NC_1!J63+NW_1!J63+WC_1!J63 -> 116554.557 | K63: =EC_1!K63+FS_1!K63+GT_1!K63+KZN_1!K63+LIM_1!K63+MPU_1!K63+NC_1!K63+NW_1!K63+WC_1!K63 -> 90307 | M63: 317845.7 | N63: 1.399224946 | T63: Software and other intangible assets | U63: 81558.02 | V63: 0 | W63: 81558.02 | Y63: 83770 | Z63: 66255.39424 | AA63: 0 | AB63: 0 | AD63: 150025.3942 | AE63: 1.839492845 | AK63: Software and other intangible assets | AL63: -121215.98 | AM63: -24384.4 | AN63: -145600.38 | AP63: 24013.1 | AQ63: 15028.15127 | AR63: -116554.557 | AS63: -90307 | AU63: -167820.3058
A64: 1 | C64: Payments for financial assets | D64: =EC_1!D64+FS_1!D64+GT_1!D64+KZN_1!D64+LIM_1!D64+MPU_1!D64+NC_1!D64+NW_1!D64+WC_1!D64 -> 5859 | E64: 45568 | F64: =EC_1!F64+FS_1!F64+GT_1!F64+KZN_1!F64+LIM_1!F64+MPU_1!F64+NC_1!F64+NW_1!F64+WC_1!F64 -> 51427 | H64: =EC_1!H64+FS_1!H64+GT_1!H64+KZN_1!H64+LIM_1!H64+MPU_1!H64+NC_1!H64+NW_1!H64+WC_1!H64 -> 2409 | I64: =EC_1!I64+FS_1!I64+GT_1!I64+KZN_1!I64+LIM_1!I64+MPU_1!I64+NC_1!I64+NW_1!I64+WC_1!I64 -> 11852.96548 | J64: =EC_1!J64+FS_1!J64+GT_1!J64+KZN_1!J64+LIM_1!J64+MPU_1!J64+NC_1!J64+NW_1!J64+WC_1!J64 -> 14994.13452 | K64: =EC_1!K64+FS_1!K64+GT_1!K64+KZN_1!K64+LIM_1!K64+MPU_1!K64+NC_1!K64+NW_1!K64+WC_1!K64 -> 120954.6 | M64: 150210.7 | N64: 2.920852859 | T64: Payments for financial assets | U64: 6655 | V64: 0 | W64: 6655 | Y64: 5433 | Z64: 10446 | AA64: 0 | AB64: 0 | AD64: 15879 | AE64: 2.386025545 | AK64: Payments for financial assets | AL64: 796 | AM64: -45568 | AN64: -44772 | AP64: 3024 | AQ64: -1406.96548 | AR64: -14994.13452 | AS64: -120954.6 | AU64: -134331.7
A65: 1
A66: 1 | C66: Total payments | D66: =D44+D48+D56+D64 -> 657435710.9 | E66: =E44+E48+E56+E64 -> 33247935.2 | F66: 690683646.1 | H66: =H44+H48+H56+H64 -> 158765693.4 | I66: =IF(General!$BE$1>1,I44+I48+I56+I64,"") -> 165296611.5 | J66: =IF(General!$BE$1>2,J44+J48+J56+J64,"") -> 177558514.8 | K66: =IF(General!$BE$1=4,K44+K48+K56+K64,"") -> 177587777 | M66: =M44+M48+M56+M64 -> 679208596.6 | N66: =IFERROR(M66/F66,0) -> 0.9833859545 | T66: Total payments | U66: 632346448.1 | V66: 0 | W66: 632346448.1 | Y66: 150127223.8 | Z66: 153103651 | AD66: 303230874.7 | AE66: 0.4795328188 | AK66: Total payments | AL66: =AL44+AL48+AL56+AL64 -> -25089262.84 | AM66: =AM44+AM48+AM56+AM64 -> -33247935.2 | AN66: =AN44+AN48+AN56+AN64 -> -58337198.04 | AP66: =AP44+AP48+AP56+AP64 -> -8638469.64 | AQ66: =AQ44+AQ48+AQ56+AQ64 -> -12192960.51 | AR66: -177558514.8 | AS66: -177587777 | AU66: =AU44+AU48+AU56+AU64 -> -375977721.9
A67: 1
A68: 1 | C68: Information submitted by provinces
A69: 1
A70: 1 | B70: 1. | C70: ="Main Budget figures are based on the " & Settings!FinYear & " Estimates of Provincial Revenue and Expenditure tabled in the Provincial Legislature during March " & LEFT(Settings!FinYear,4) & "." -> Main Budget figures are based on the 2021/22 Estimates of Provincial Revenue and Expenditure tabled in the Provincial Legislature during March 2021.
A71: 1 | B71: =IF(General!$BE$1>2,"2.","") -> 2. | C71: =IF(General!$BE$1>2,"Adjusted Budget figures are based on the " & Settings!FinYear & " Adjusted Estimates of Provincial Revenue and Expenditure tabled in the Provincial Legislature during November " & LEFT(Settings!FinYear,4) & ".","") -> Adjusted Budget figures are based on the 2021/22 Adjusted Estimates of Provincial Revenue and Expenditure tabled in the Provincial Legislature during November 2021.
A72: 1
A73: 1
A74: 1
A75: 1
A76: 1
A77: 1

Sheet Conditional Grants (hidden)
C3: ="CONDITIONAL GRANTS TRANSFERRED FROM NATIONAL DEPARTMENTS AND ACTUAL PAYMENTS MADE BY PROVINCES FOR THE " & QUARTER -> CONDITIONAL GRANTS TRANSFERRED FROM NATIONAL DEPARTMENTS AND ACTUAL PAYMENTS MADE BY PROVINCES FOR THE FOURTH QUARTER ENDED 31 MARCH 2022 | T3: ="NATIONAL TREASURY: " & C3 -> NATIONAL TREASURY: CONDITIONAL GRANTS TRANSFERRED FROM NATIONAL DEPARTMENTS AND ACTUAL PAYMENTS MADE BY PROVINCES FOR THE FOURTH QUARTER ENDED 31 MARCH 2022 | AK3: ="VARIANCE FROM NATIONAL TREASURY: " & C3 -> VARIANCE FROM NATIONAL TREASURY: CONDITIONAL GRANTS TRANSFERRED FROM NATIONAL DEPARTMENTS AND ACTUAL PAYMENTS MADE BY PROVINCES FOR THE FOURTH QUARTER ENDED 31 MARCH 2022
C4: =UPPER(Prov) & " PROVINCE" -> ALL PROVINCES PROVINCE | T4: =C4 -> ALL PROVINCES PROVINCE | AK4: =C4 -> ALL PROVINCES PROVINCE
C6: National departments administering conditional grants | D6: =Overview!D6 -> 2021/22 | T6: National departments administering conditional grants | U6: 2019/20 | AK6: National departments administering conditional grants | AL6: =D6 -> 2021/22
D7: Budget | J7: Transfers | M7: Payments to Date | U7: Budget | AA7: Transfers | AD7: Payments to Date | AL7: =D7 -> Budget | AR7: =J7 -> Transfers | AU7: =M7 -> Payments to Date
D8: ="Division of Revenue Act, No. 4 of " & LEFT(Settings!$R$5,4) -> Division of Revenue Act, No. 4 of 2021 | E8: ="Division of Revenue Amendment Act, No. 30 of " & LEFT(Settings!$R$5,4) & " and other Gazettes" -> Division of Revenue Amendment Act, No. 30 of 2021 and other Gazettes | F8: Total National Allocation | G8: Provincial roll-overs approved by National Treasury | H8: Total Available | J8: Provincial Payment Schedule (National Allocation) | K8: Transferred from National to Province | M8: Actual Payments | N8: % Actual Payments | U8: Division of Revenue Act, No. 14 of 2018 | V8: Division of Revenue Amendment Act, No. 14 of 2018 | W8: Total National Allocation | X8: Provincial roll-overs approved by National Treasury | Y8: Total Available | AA8: Provincial Payment Schedule (National Allocation) | AB8: Transferred from National to Province | AD8: Actual Payments | AE8: % Actual Payments | AL8: =D8 -> Division of Revenue Act, No. 4 of 2021 | AM8: =E8 -> Division of Revenue Amendment Act, No. 30 of 2021 and other Gazettes | AN8: Total National Allocation | AO8: Provincial roll-overs approved by National Treasury | AP8: Total Available | AR8: =J8 -> Provincial Payment Schedule (National Allocation) | AS8: Transferred from National to Province | AU8: =M8 -> Actual Payments | AV8: =N8 -> % Actual Payments
D9: R'000 | E9: R'000 | F9: R'000 | G9: R'000 | H9: R'000 | J9: R'000 | K9: R'000 | M9: R'000 | N9: % | U9: R'000 | V9: R'000 | W9: R'000 | X9: R'000 | Y9: R'000 | AA9: R'000 | AB9: R'000 | AD9: R'000 | AE9: % | AL9: R'000 | AM9: R'000 | AN9: R'000 | AO9: R'000 | AP9: R'000 | AR9: R'000 | AS9: R'000 | AU9: R'000 | AV9: %
D10: =EC_2!D10+FS_2!D10+GT_2!D10+KZN_2!D10+LIM_2!D10+MPU_2!D10+NC_2!D10+NW_2!D10+WC_2!D10 -> 0 | E10: =EC_2!E10+FS_2!E10+GT_2!E10+KZN_2!E10+LIM_2!E10+MPU_2!E10+NC_2!E10+NW_2!E10+WC_2!E10 -> 0 | F10: =EC_2!F10+FS_2!F10+GT_2!F10+KZN_2!F10+LIM_2!F10+MPU_2!F10+NC_2!F10+NW_2!F10+WC_2!F10 -> 0 | G10: =EC_2!G10+FS_2!G10+GT_2!G10+KZN_2!G10+LIM_2!G10+MPU_2!G10+NC_2!G10+NW_2!G10+WC_2!G10 -> 0 | H10: =EC_2!H10+FS_2!H10+GT_2!H10+KZN_2!H10+LIM_2!H10+MPU_2!H10+NC_2!H10+NW_2!H10+WC_2!H10 -> 0 | I10: =EC_2!I10+FS_2!I10+GT_2!I10+KZN_2!I10+LIM_2!I10+MPU_2!I10+NC_2!I10+NW_2!I10+WC_2!I10 -> 0 | J10: =EC_2!J10+FS_2!J10+GT_2!J10+KZN_2!J10+LIM_2!J10+MPU_2!J10+NC_2!J10+NW_2!J10+WC_2!J10 -> 0 | K10: =EC_2!K10+FS_2!K10+GT_2!K10+KZN_2!K10+LIM_2!K10+MPU_2!K10+NC_2!K10+NW_2!K10+WC_2!K10 -> 0 | L10: =EC_2!L10+FS_2!L10+GT_2!L10+KZN_2!L10+LIM_2!L10+MPU_2!L10+NC_2!L10+NW_2!L10+WC_2!L10 -> 0 | M10: =EC_2!M10+FS_2!M10+GT_2!M10+KZN_2!M10+LIM_2!M10+MPU_2!M10+NC_2!M10+NW_2!M10+WC_2!M10 -> 0
C11: Schedule 5, Part A Grants2. | D11: =EC_2!D11+FS_2!D11+GT_2!D11+KZN_2!D11+LIM_2!D11+MPU_2!D11+NC_2!D11+NW_2!D11+WC_2!D11 -> 0 | E11: =EC_2!E11+FS_2!E11+GT_2!E11+KZN_2!E11+LIM_2!E11+MPU_2!E11+NC_2!E11+NW_2!E11+WC_2!E11 -> 0 | F11: =EC_2!F11+FS_2!F11+GT_2!F11+KZN_2!F11+LIM_2!F11+MPU_2!F11+NC_2!F11+NW_2!F11+WC_2!F11 -> 0 | G11: =EC_2!G11+FS_2!G11+GT_2!G11+KZN_2!G11+LIM_2!G11+MPU_2!G11+NC_2!G11+NW_2!G11+WC_2!G11 -> 0 | H11: =EC_2!H11+FS_2!H11+GT_2!H11+KZN_2!H11+LIM_2!H11+MPU_2!H11+NC_2!H11+NW_2!H11+WC_2!H11 -> 0 | I11: =EC_2!I11+FS_2!I11+GT_2!I11+KZN_2!I11+LIM_2!I11+MPU_2!I11+NC_2!I11+NW_2!I11+WC_2!I11 -> 0 | J11: =EC_2!J11+FS_2!J11+GT_2!J11+KZN_2!J11+LIM_2!J11+MPU_2!J11+NC_2!J11+NW_2!J11+WC_2!J11 -> 0 | K11: =EC_2!K11+FS_2!K11+GT_2!K11+KZN_2!K11+LIM_2!K11+MPU_2!K11+NC_2!K11+NW_2!K11+WC_2!K11 -> 0 | L11: =EC_2!L11+FS_2!L11+GT_2!L11+KZN_2!L11+LIM_2!L11+MPU_2!L11+NC_2!L11+NW_2!L11+WC_2!L11 -> 0 | M11: =EC_2!M11+FS_2!M11+GT_2!M11+KZN_2!M11+LIM_2!M11+MPU_2!M11+NC_2!M11+NW_2!M11+WC_2!M11 -> 0 | T11: Schedule 5, Part A Grants2. | AK11: Schedule 5, Part A Grants2.
D12: =EC_2!D12+FS_2!D12+GT_2!D12+KZN_2!D12+LIM_2!D12+MPU_2!D12+NC_2!D12+NW_2!D12+WC_2!D12 -> 0 | E12: =EC_2!E12+FS_2!E12+GT_2!E12+KZN_2!E12+LIM_2!E12+MPU_2!E12+NC_2!E12+NW_2!E12+WC_2!E12 -> 0 | F12: =EC_2!F12+FS_2!F12+GT_2!F12+KZN_2!F12+LIM_2!F12+MPU_2!F12+NC_2!F12+NW_2!F12+WC_2!F12 -> 0 | G12: =EC_2!G12+FS_2!G12+GT_2!G12+KZN_2!G12+LIM_2!G12+MPU_2!G12+NC_2!G12+NW_2!G12+WC_2!G12 -> 0 | H12: =EC_2!H12+FS_2!H12+GT_2!H12+KZN_2!H12+LIM_2!H12+MPU_2!H12+NC_2!H12+NW_2!H12+WC_2!H12 -> 0 | I12: =EC_2!I12+FS_2!I12+GT_2!I12+KZN_2!I12+LIM_2!I12+MPU_2!I12+NC_2!I12+NW_2!I12+WC_2!I12 -> 0 | J12: =EC_2!J12+FS_2!J12+GT_2!J12+KZN_2!J12+LIM_2!J12+MPU_2!J12+NC_2!J12+NW_2!J12+WC_2!J12 -> 0 | K12: =EC_2!K12+FS_2!K12+GT_2!K12+KZN_2!K12+LIM_2!K12+MPU_2!K12+NC_2!K12+NW_2!K12+WC_2!K12 -> 0 | L12: =EC_2!L12+FS_2!L12+GT_2!L12+KZN_2!L12+LIM_2!L12+MPU_2!L12+NC_2!L12+NW_2!L12+WC_2!L12 -> 0 | M12: =EC_2!M12+FS_2!M12+GT_2!M12+KZN_2!M12+LIM_2!M12+MPU_2!M12+NC_2!M12+NW_2!M12+WC_2!M12 -> 0
C13: Agriculture, Land Reform and Rural Development (Vote 29) | D13: =EC_2!D13+FS_2!D13+GT_2!D13+KZN_2!D13+LIM_2!D13+MPU_2!D13+NC_2!D13+NW_2!D13+WC_2!D13 -> 2238023 | E13: =EC_2!E13+FS_2!E13+GT_2!E13+KZN_2!E13+LIM_2!E13+MPU_2!E13+NC_2!E13+NW_2!E13+WC_2!E13 -> 0 | F13: =EC_2!F13+FS_2!F13+GT_2!F13+KZN_2!F13+LIM_2!F13+MPU_2!F13+NC_2!F13+NW_2!F13+WC_2!F13 -> 2238023 | G13: =EC_2!G13+FS_2!G13+GT_2!G13+KZN_2!G13+LIM_2!G13+MPU_2!G13+NC_2!G13+NW_2!G13+WC_2!G13 -> 94435 | H13: =EC_2!H13+FS_2!H13+GT_2!H13+KZN_2!H13+LIM_2!H13+MPU_2!H13+NC_2!H13+NW_2!H13+WC_2!H13 -> 2332458 | I13: =EC_2!I13+FS_2!I13+GT_2!I13+KZN_2!I13+LIM_2!I13+MPU_2!I13+NC_2!I13+NW_2!I13+WC_2!I13 -> 0 | J13: =EC_2!J13+FS_2!J13+GT_2!J13+KZN_2!J13+LIM_2!J13+MPU_2!J13+NC_2!J13+NW_2!J13+WC_2!J13 -> 2238023 | K13: =EC_2!K13+FS_2!K13+GT_2!K13+KZN_2!K13+LIM_2!K13+MPU_2!K13+NC_2!K13+NW_2!K13+WC_2!K13 -> 2235264 | L13: =EC_2!L13+FS_2!L13+GT_2!L13+KZN_2!L13+LIM_2!L13+MPU_2!L13+NC_2!L13+NW_2!L13+WC_2!L13 -> 0 | M13: =EC_2!M13+FS_2!M13+GT_2!M13+KZN_2!M13+LIM_2!M13+MPU_2!M13+NC_2!M13+NW_2!M13+WC_2!M13 -> 1984995 | N13: =IFERROR(M13/D13,0) -> 0.886941287 | T13: =C13 -> Agriculture, Land Reform and Rural Development (Vote 29) | U13: 2203918 | V13: 0 | W13: 2203918 | X13: 0 | Y13: 2203918 | AA13: 1050981 | AB13: 1049141 | AD13: 729615 | AE13: 0.3310536054 | AK13: =C13 -> Agriculture, Land Reform and Rural Development (Vote 29) | AL13: =SUM(AL14:AL16) -> -34105 | AM13: =SUM(AM14:AM16) -> 0 | AN13: =SUM(AN14:AN16) -> -34105 | AO13: =SUM(AO14:AO16) -> -94435 | AP13: =SUM(AP14:AP16) -> -128540 | AR13: =SUM(AR14:AR16) -> -1187042 | AS13: =SUM(AS14:AS16) -> -1186123 | AU13: =SUM(AU14:AU16) -> -1255380
C14: (a) Comprehensive Agricultural Support Programme Grant | D14: =EC_2!D14+FS_2!D14+GT_2!D14+KZN_2!D14+LIM_2!D14+MPU_2!D14+NC_2!D14+NW_2!D14+WC_2!D14 -> 1557560 | E14: =EC_2!E14+FS_2!E14+GT_2!E14+KZN_2!E14+LIM_2!E14+MPU_2!E14+NC_2!E14+NW_2!E14+WC_2!E14 -> 0 | F14: =EC_2!F14+FS_2!F14+GT_2!F14+KZN_2!F14+LIM_2!F14+MPU_2!F14+NC_2!F14+NW_2!F14+WC_2!F14 -> 1557560 | G14: =EC_2!G14+FS_2!G14+GT_2!G14+KZN_2!G14+LIM_2!G14+MPU_2!G14+NC_2!G14+NW_2!G14+WC_2!G14 -> 75078 | H14: =EC_2!H14+FS_2!H14+GT_2!H14+KZN_2!H14+LIM_2!H14+MPU_2!H14+NC_2!H14+NW_2!H14+WC_2!H14 -> 1632638 | I14: =EC_2!I14+FS_2!I14+GT_2!I14+KZN_2!I14+LIM_2!I14+MPU_2!I14+NC_2!I14+NW_2!I14+WC_2!I14 -> 0 | J14: =EC_2!J14+FS_2!J14+GT_2!J14+KZN_2!J14+LIM_2!J14+MPU_2!J14+NC_2!J14+NW_2!J14+WC_2!J14 -> 1557560 | K14: =EC_2!K14+FS_2!K14+GT_2!K14+KZN_2!K14+LIM_2!K14+MPU_2!K14+NC_2!K14+NW_2!K14+WC_2!K14 -> 1557560 | L14: =EC_2!L14+FS_2!L14+GT_2!L14+KZN_2!L14+LIM_2!L14+MPU_2!L14+NC_2!L14+NW_2!L14+WC_2!L14 -> 0 | M14: =EC_2!M14+FS_2!M14+GT_2!M14+KZN_2!M14+LIM_2!M14+MPU_2!M14+NC_2!M14+NW_2!M14+WC_2!M14 -> 1382672 | N14: =IFERROR(M14/D14,0) -> 0.8877166851 | T14: =C14 -> (a) Comprehensive Agricultural Support Programme Grant | U14: 1538325 | V14: 0 | W14: 1538325 | X14: 0 | Y14: 1538325 | AA14: 733118 | AB14: 733117 | AD14: 472143 | AE14: 0.3069201892 | AK14: =C14 -> (a) Comprehensive Agricultural Support Programme Grant | AL14: =IFERROR(U14-D14,0) -> -19235 | AM14: =IFERROR(V14-E14,0) -> 0 | AN14: -19235 | AO14: -75078 | AP14: -94313 | AR14: =IFERROR(AA14-J14,0) -> -824442 | AS14: -824443 | AU14: =IFERROR(AD14-M14,0) -> -910529
C15: (b) Ilima/Letsema Projects Grant | D15: =EC_2!D15+FS_2!D15+GT_2!D15+KZN_2!D15+LIM_2!D15+MPU_2!D15+NC_2!D15+NW_2!D15+WC_2!D15 -> 597126 | E15: =EC_2!E15+FS_2!E15+GT_2!E15+KZN_2!E15+LIM_2!E15+MPU_2!E15+NC_2!E15+NW_2!E15+WC_2!E15 -> 0 | F15: =EC_2!F15+FS_2!F15+GT_2!F15+KZN_2!F15+LIM_2!F15+MPU_2!F15+NC_2!F15+NW_2!F15+WC_2!F15 -> 597126 | G15: =EC_2!G15+FS_2!G15+GT_2!G15+KZN_2!G15+LIM_2!G15+MPU_2!G15+NC_2!G15+NW_2!G15+WC_2!G15 -> 12836 | H15: =EC_2!H15+FS_2!H15+GT_2!H15+KZN_2!H15+LIM_2!H15+MPU_2!H15+NC_2!H15+NW_2!H15+WC_2!H15 -> 609962 | I15: =EC_2!I15+FS_2!I15+GT_2!I15+KZN_2!I15+LIM_2!I15+MPU_2!I15+NC_2!I15+NW_2!I15+WC_2!I15 -> 0 | J15: =EC_2!J15+FS_2!J15+GT_2!J15+KZN_2!J15+LIM_2!J15+MPU_2!J15+NC_2!J15+NW_2!J15+WC_2!J15 -> 597126 | K15: =EC_2!K15+FS_2!K15+GT_2!K15+KZN_2!K15+LIM_2!K15+MPU_2!K15+NC_2!K15+NW_2!K15+WC_2!K15 -> 597126 | L15: =EC_2!L15+FS_2!L15+GT_2!L15+KZN_2!L15+LIM_2!L15+MPU_2!L15+NC_2!L15+NW_2!L15+WC_2!L15 -> 0 | M15: =EC_2!M15+FS_2!M15+GT_2!M15+KZN_2!M15+LIM_2!M15+MPU_2!M15+NC_2!M15+NW_2!M15+WC_2!M15 -> 528069 | N15: 0.8843510415 | T15: =C15 -> (b) Ilima/Letsema Projects Grant | U15: 583359 | V15: 0 | W15: 583359 | X15: 0 | Y15: 583359 | AA15: 280858 | AB15: 280858 | AD15: 214350 | AE15: 0.3674409755 | AK15: =C15 -> (b) Ilima/Letsema Projects Grant | AL15: =IFERROR(U15-D15,0) -> -13767 | AM15: =IFERROR(V15-E15,0) -> 0 | AN15: =IFERROR(W15-F15,0) -> -13767 | AO15: =IFERROR(X15-G15,0) -> -12836 | AP15: =IFERROR(Y15-H15,0) -> -26603 | AR15: =IFERROR(AA15-J15,0) -> -316268 | AS15: =IFERROR(AB15-K15,0) -> -316268 | AU15: =IFERROR(AD15-M15,0) -> -313719
C16: (c) Land Care Programme Grant: Poverty Relief and Infrastructure Development | D16: =EC_2!D16+FS_2!D16+GT_2!D16+KZN_2!D16+LIM_2!D16+MPU_2!D16+NC_2!D16+NW_2!D16+WC_2!D16 -> 83337 | E16: =EC_2!E16+FS_2!E16+GT_2!E16+KZN_2!E16+LIM_2!E16+MPU_2!E16+NC_2!E16+NW_2!E16+WC_2!E16 -> 0 | F16: =EC_2!F16+FS_2!F16+GT_2!F16+KZN_2!F16+LIM_2!F16+MPU_2!F16+NC_2!F16+NW_2!F16+WC_2!F16 -> 83337 | G16: =EC_2!G16+FS_2!G16+GT_2!G16+KZN_2!G16+LIM_2!G16+MPU_2!G16+NC_2!G16+NW_2!G16+WC_2!G16 -> 6521 | H16: =EC_2!H16+FS_2!H16+GT_2!H16+KZN_2!H16+LIM_2!H16+MPU_2!H16+NC_2!H16+NW_2!H16+WC_2!H16 -> 89858 | I16: =EC_2!I16+FS_2!I16+GT_2!I16+KZN_2!I16+LIM_2!I16+MPU_2!I16+NC_2!I16+NW_2!I16+WC_2!I16 -> 0 | J16: =EC_2!J16+FS_2!J16+GT_2!J16+KZN_2!J16+LIM_2!J16+MPU_2!J16+NC_2!J16+NW_2!J16+WC_2!J16 -> 83337 | K16: =EC_2!K16+FS_2!K16+GT_2!K16+KZN_2!K16+LIM_2!K16+MPU_2!K16+NC_2!K16+NW_2!K16+WC_2!K16 -> 80578 | L16: =EC_2!L16+FS_2!L16+GT_2!L16+KZN_2!L16+LIM_2!L16+MPU_2!L16+NC_2!L16+NW_2!L16+WC_2!L16 -> 0 | M16: =EC_2!M16+FS_2!M16+GT_2!M16+KZN_2!M16+LIM_2!M16+MPU_2!M16+NC_2!M16+NW_2!M16+WC_2!M16 -> 74254 | N16: 0.8910087956 | T16: (c) Land Care Programme Grant: Poverty Relief and Infrastructure Development | U16: 82234 | V16: 0 | W16: 82234 | X16: 0 | Y16: 82234 | AA16: 37005 | AB16: 35166 | AD16: 43122 | AE16: 0.5243816426 | AK16: (c) Land Care Programme Grant: Poverty Relief and Infrastructure Development | AL16: -1103 | AM16: 0 | AN16: -1103 | AO16: -6521 | AP16: -7624 | AR16: -46332 | AS16: -45412 | AU16: -31132
D17: =EC_2!D17+FS_2!D17+GT_2!D17+KZN_2!D17+LIM_2!D17+MPU_2!D17+NC_2!D17+NW_2!D17+WC_2!D17 -> 0 | E17: =EC_2!E17+FS_2!E17+GT_2!E17+KZN_2!E17+LIM_2!E17+MPU_2!E17+NC_2!E17+NW_2!E17+WC_2!E17 -> 0 | F17: =EC_2!F17+FS_2!F17+GT_2!F17+KZN_2!F17+LIM_2!F17+MPU_2!F17+NC_2!F17+NW_2!F17+WC_2!F17 -> 0 | G17: =EC_2!G17+FS_2!G17+GT_2!G17+KZN_2!G17+LIM_2!G17+MPU_2!G17+NC_2!G17+NW_2!G17+WC_2!G17 -> 0 | H17: =EC_2!H17+FS_2!H17+GT_2!H17+KZN_2!H17+LIM_2!H17+MPU_2!H17+NC_2!H17+NW_2!H17+WC_2!H17 -> 0 | I17: =EC_2!I17+FS_2!I17+GT_2!I17+KZN_2!I17+LIM_2!I17+MPU_2!I17+NC_2!I17+NW_2!I17+WC_2!I17 -> 0 | J17: =EC_2!J17+FS_2!J17+GT_2!J17+KZN_2!J17+LIM_2!J17+MPU_2!J17+NC_2!J17+NW_2!J17+WC_2!J17 -> 0 | K17: =EC_2!K17+FS_2!K17+GT_2!K17+KZN_2!K17+LIM_2!K17+MPU_2!K17+NC_2!K17+NW_2!K17+WC_2!K17 -> 0 | L17: =EC_2!L17+FS_2!L17+GT_2!L17+KZN_2!L17+LIM_2!L17+MPU_2!L17+NC_2!L17+NW_2!L17+WC_2!L17 -> 0 | M17: =EC_2!M17+FS_2!M17+GT_2!M17+KZN_2!M17+LIM_2!M17+MPU_2!M17+NC_2!M17+NW_2!M17+WC_2!M17 -> 0 | N17: =IFERROR(M17/F17,0) -> 0 | T17: 0 | U17: 0 | V17: 0 | W17: 0 | X17: 0 | Y17: 0 | AA17: 0 | AB17: 0 | AD17: 0 | AE17: 0 | AK17: 0 | AL17: 0 | AM17: 0 | AN17: 0 | AO17: 0 | AP17: 0 | AR17: 0 | AS17: 0 | AU17: 0
D18: =EC_2!D18+FS_2!D18+GT_2!D18+KZN_2!D18+LIM_2!D18+MPU_2!D18+NC_2!D18+NW_2!D18+WC_2!D18 -> 0 | E18: =EC_2!E18+FS_2!E18+GT_2!E18+KZN_2!E18+LIM_2!E18+MPU_2!E18+NC_2!E18+NW_2!E18+WC_2!E18 -> 0 | F18: =EC_2!F18+FS_2!F18+GT_2!F18+KZN_2!F18+LIM_2!F18+MPU_2!F18+NC_2!F18+NW_2!F18+WC_2!F18 -> 0 | G18: =EC_2!G18+FS_2!G18+GT_2!G18+KZN_2!G18+LIM_2!G18+MPU_2!G18+NC_2!G18+NW_2!G18+WC_2!G18 -> 0 | H18: =EC_2!H18+FS_2!H18+GT_2!H18+KZN_2!H18+LIM_2!H18+MPU_2!H18+NC_2!H18+NW_2!H18+WC_2!H18 -> 0 | I18: =EC_2!I18+FS_2!I18+GT_2!I18+KZN_2!I18+LIM_2!I18+MPU_2!I18+NC_2!I18+NW_2!I18+WC_2!I18 -> 0 | J18: =EC_2!J18+FS_2!J18+GT_2!J18+KZN_2!J18+LIM_2!J18+MPU_2!J18+NC_2!J18+NW_2!J18+WC_2!J18 -> 0 | K18: =EC_2!K18+FS_2!K18+GT_2!K18+KZN_2!K18+LIM_2!K18+MPU_2!K18+NC_2!K18+NW_2!K18+WC_2!K18 -> 0 | L18: =EC_2!L18+FS_2!L18+GT_2!L18+KZN_2!L18+LIM_2!L18+MPU_2!L18+NC_2!L18+NW_2!L18+WC_2!L18 -> 0 | M18: =EC_2!M18+FS_2!M18+GT_2!M18+KZN_2!M18+LIM_2!M18+MPU_2!M18+NC_2!M18+NW_2!M18+WC_2!M18 -> 0 | N18: 0 | T18: 0 | U18: 0 | V18: 0 | W18: 0 | X18: 0 | Y18: 0 | AA18: 0 | AB18: 0 | AD18: 0 | AE18: 0 | AK18: 0 | AL18: 0 | AM18: 0 | AN18: 0 | AO18: 0 | AP18: 0 | AR18: 0 | AS18: 0 | AU18: 0
D19: =EC_2!D19+FS_2!D19+GT_2!D19+KZN_2!D19+LIM_2!D19+MPU_2!D19+NC_2!D19+NW_2!D19+WC_2!D19 -> 0 | E19: =EC_2!E19+FS_2!E19+GT_2!E19+KZN_2!E19+LIM_2!E19+MPU_2!E19+NC_2!E19+NW_2!E19+WC_2!E19 -> 0 | F19: =EC_2!F19+FS_2!F19+GT_2!F19+KZN_2!F19+LIM_2!F19+MPU_2!F19+NC_2!F19+NW_2!F19+WC_2!F19 -> 0 | G19: =EC_2!G19+FS_2!G19+GT_2!G19+KZN_2!G19+LIM_2!G19+MPU_2!G19+NC_2!G19+NW_2!G19+WC_2!G19 -> 0 | H19: =EC_2!H19+FS_2!H19+GT_2!H19+KZN_2!H19+LIM_2!H19+MPU_2!H19+NC_2!H19+NW_2!H19+WC_2!H19 -> 0 | I19: =EC_2!I19+FS_2!I19+GT_2!I19+KZN_2!I19+LIM_2!I19+MPU_2!I19+NC_2!I19+NW_2!I19+WC_2!I19 -> 0 | J19: =EC_2!J19+FS_2!J19+GT_2!J19+KZN_2!J19+LIM_2!J19+MPU_2!J19+NC_2!J19+NW_2!J19+WC_2!J19 -> 0 | K19: =EC_2!K19+FS_2!K19+GT_2!K19+KZN_2!K19+LIM_2!K19+MPU_2!K19+NC_2!K19+NW_2!K19+WC_2!K19 -> 0 | L19: =EC_2!L19+FS_2!L19+GT_2!L19+KZN_2!L19+LIM_2!L19+MPU_2!L19+NC_2!L19+NW_2!L19+WC_2!L19 -> 0 | M19: =EC_2!M19+FS_2!M19+GT_2!M19+KZN_2!M19+LIM_2!M19+MPU_2!M19+NC_2!M19+NW_2!M19+WC_2!M19 -> 0 | AK19: =C19 -> 0 | AL19: =IFERROR(U19-D19,0) -> 0 | AM19: 0 | AN19: 0 | AO19: 0 | AP19: 0 | AR19: 0 | AS19: 0 | AU19: =IFERROR(AD19-M19,0) -> 0
C20: Sports, Arts and Culture (Vote 37) | D20: =EC_2!D20+FS_2!D20+GT_2!D20+KZN_2!D20+LIM_2!D20+MPU_2!D20+NC_2!D20+NW_2!D20+WC_2!D20 -> 1495836 | E20: =EC_2!E20+FS_2!E20+GT_2!E20+KZN_2!E20+LIM_2!E20+MPU_2!E20+NC_2!E20+NW_2!E20+WC_2!E20 -> 0 | F20: =EC_2!F20+FS_2!F20+GT_2!F20+KZN_2!F20+LIM_2!F20+MPU_2!F20+NC_2!F20+NW_2!F20+WC_2!F20 -> 1495836 | G20: =EC_2!G20+FS_2!G20+GT_2!G20+KZN_2!G20+LIM_2!G20+MPU_2!G20+NC_2!G20+NW_2!G20+WC_2!G20 -> 51840 | H20: =EC_2!H20+FS_2!H20+GT_2!H20+KZN_2!H20+LIM_2!H20+MPU_2!H20+NC_2!H20+NW_2!H20+WC_2!H20 -> 1547676 | I20: =EC_2!I20+FS_2!I20+GT_2!I20+KZN_2!I20+LIM_2!I20+MPU_2!I20+NC_2!I20+NW_2!I20+WC_2!I20 -> 0 | J20: =EC_2!J20+FS_2!J20+GT_2!J20+KZN_2!J20+LIM_2!J20+MPU_2!J20+NC_2!J20+NW_2!J20+WC_2!J20 -> 1495836 | K20: =EC_2!K20+FS_2!K20+GT_2!K20+KZN_2!K20+LIM_2!K20+MPU_2!K20+NC_2!K20+NW_2!K20+WC_2!K20 -> 1495836 | L20: =EC_2!L20+FS_2!L20+GT_2!L20+KZN_2!L20+LIM_2!L20+MPU_2!L20+NC_2!L20+NW_2!L20+WC_2!L20 -> 0 | M20: =EC_2!M20+FS_2!M20+GT_2!M20+KZN_2!M20+LIM_2!M20+MPU_2!M20+NC_2!M20+NW_2!M20+WC_2!M20 -> 1379830 | N20: =IFERROR(M20/D20,0) -> 0.9224473806 | T20: =C20 -> Sports, Arts and Culture (Vote 37) | U20: 1501199 | V20: 0 | W20: 1501199 | X20: 0 | Y20: 1501199 | AA20: 802143 | AB20: 802143 | AD20: 651084 | AE20: 0.4337093217 | AK20: Sports, Arts and Culture (Vote 37) | AL20: 5363 | AM20: 0 | AN20: 5363 | AO20: -51840 | AP20: -46477 | AR20: -693693 | AS20: -693693 | AU20: -728746
C21: Community Library Services Grant | D21: =EC_2!D21+FS_2!D21+GT_2!D21+KZN_2!D21+LIM_2!D21+MPU_2!D21+NC_2!D21+NW_2!D21+WC_2!D21 -> 1495836 | E21: =EC_2!E21+FS_2!E21+GT_2!E21+KZN_2!E21+LIM_2!E21+MPU_2!E21+NC_2!E21+NW_2!E21+WC_2!E21 -> 0 | F21: =EC_2!F21+FS_2!F21+GT_2!F21+KZN_2!F21+LIM_2!F21+MPU_2!F21+NC_2!F21+NW_2!F21+WC_2!F21 -> 1495836 | G21: =EC_2!G21+FS_2!G21+GT_2!G21+KZN_2!G21+LIM_2!G21+MPU_2!G21+NC_2!G21+NW_2!G21+WC_2!G21 -> 51840 | H21: =EC_2!H21+FS_2!H21+GT_2!H21+KZN_2!H21+LIM_2!H21+MPU_2!H21+NC_2!H21+NW_2!H21+WC_2!H21 -> 1547676 | I21: =EC_2!I21+FS_2!I21+GT_2!I21+KZN_2!I21+LIM_2!I21+MPU_2!I21+NC_2!I21+NW_2!I21+WC_2!I21 -> 0 | J21: =EC_2!J21+FS_2!J21+GT_2!J21+KZN_2!J21+LIM_2!J21+MPU_2!J21+NC_2!J21+NW_2!J21+WC_2!J21 -> 1495836 | K21: =EC_2!K21+FS_2!K21+GT_2!K21+KZN_2!K21+LIM_2!K21+MPU_2!K21+NC_2!K21+NW_2!K21+WC_2!K21 -> 1495836 | L21: =EC_2!L21+FS_2!L21+GT_2!L21+KZN_2!L21+LIM_2!L21+MPU_2!L21+NC_2!L21+NW_2!L21+WC_2!L21 -> 0 | M21: =EC_2!M21+FS_2!M21+GT_2!M21+KZN_2!M21+LIM_2!M21+MPU_2!M21+NC_2!M21+NW_2!M21+WC_2!M21 -> 1379830 | N21: 0.9224473806 | T21: =C21 -> Community Library Services Grant | U21: 1501199 | V21: 0 | W21: 1501199 | X21: 0 | Y21: 1501199 | AA21: 802143 | AB21: 802143 | AD21: 651084 | AE21: 0.4337093217 | AK21: =C21 -> Community Library Services Grant | AL21: =IFERROR(U21-D21,0) -> 5363 | AM21: =IFERROR(V21-E21,0) -> 0 | AN21: =IFERROR(W21-F21,0) -> 5363 | AO21: =IFERROR(X21-G21,0) -> -51840 | AP21: =IFERROR(Y21-H21,0) -> -46477 | AR21: =IFERROR(AA21-J21,0) -> -693693 | AS21: =IFERROR(AB21-K21,0) -> -693693 | AU21: =IFERROR(AD21-M21,0) -> -728746
D22: =EC_2!D22+FS_2!D22+GT_2!D22+KZN_2!D22+LIM_2!D22+MPU_2!D22+NC_2!D22+NW_2!D22+WC_2!D22 -> 0 | E22: =EC_2!E22+FS_2!E22+GT_2!E22+KZN_2!E22+LIM_2!E22+MPU_2!E22+NC_2!E22+NW_2!E22+WC_2!E22 -> 0 | F22: =EC_2!F22+FS_2!F22+GT_2!F22+KZN_2!F22+LIM_2!F22+MPU_2!F22+NC_2!F22+NW_2!F22+WC_2!F22 -> 0 | G22: =EC_2!G22+FS_2!G22+GT_2!G22+KZN_2!G22+LIM_2!G22+MPU_2!G22+NC_2!G22+NW_2!G22+WC_2!G22 -> 0 | H22: =EC_2!H22+FS_2!H22+GT_2!H22+KZN_2!H22+LIM_2!H22+MPU_2!H22+NC_2!H22+NW_2!H22+WC_2!H22 -> 0 | I22: =EC_2!I22+FS_2!I22+GT_2!I22+KZN_2!I22+LIM_2!I22+MPU_2!I22+NC_2!I22+NW_2!I22+WC_2!I22 -> 0 | J22: =EC_2!J22+FS_2!J22+GT_2!J22+KZN_2!J22+LIM_2!J22+MPU_2!J22+NC_2!J22+NW_2!J22+WC_2!J22 -> 0 | K22: =EC_2!K22+FS_2!K22+GT_2!K22+KZN_2!K22+LIM_2!K22+MPU_2!K22+NC_2!K22+NW_2!K22+WC_2!K22 -> 0 | L22: =EC_2!L22+FS_2!L22+GT_2!L22+KZN_2!L22+LIM_2!L22+MPU_2!L22+NC_2!L22+NW_2!L22+WC_2!L22 -> 0 | M22: =EC_2!M22+FS_2!M22+GT_2!M22+KZN_2!M22+LIM_2!M22+MPU_2!M22+NC_2!M22+NW_2!M22+WC_2!M22 -> 0 | N22: =IFERROR(M22/F22,0) -> 0 | T22: 0 | U22: 0 | V22: 0 | W22: 0 | X22: 0 | Y22: 0 | AA22: 0 | AB22: 0 | AD22: 0 | AE22: 0 | AK22: =C22 -> 0 | AL22: =IFERROR(U22-D22,0) -> 0 | AM22: 0 | AN22: 0 | AO22: 0 | AP22: 0 | AR22: 0 | AS22: 0 | AU22: =IFERROR(AD22-M22,0) -> 0
D23: =EC_2!D23+FS_2!D23+GT_2!D23+KZN_2!D23+LIM_2!D23+MPU_2!D23+NC_2!D23+NW_2!D23+WC_2!D23 -> 0 | E23: =EC_2!E23+FS_2!E23+GT_2!E23+KZN_2!E23+LIM_2!E23+MPU_2!E23+NC_2!E23+NW_2!E23+WC_2!E23 -> 0 | F23: =EC_2!F23+FS_2!F23+GT_2!F23+KZN_2!F23+LIM_2!F23+MPU_2!F23+NC_2!F23+NW_2!F23+WC_2!F23 -> 0 | G23: =EC_2!G23+FS_2!G23+GT_2!G23+KZN_2!G23+LIM_2!G23+MPU_2!G23+NC_2!G23+NW_2!G23+WC_2!G23 -> 0 | H23: =EC_2!H23+FS_2!H23+GT_2!H23+KZN_2!H23+LIM_2!H23+MPU_2!H23+NC_2!H23+NW_2!H23+WC_2!H23 -> 0 | I23: =EC_2!I23+FS_2!I23+GT_2!I23+KZN_2!I23+LIM_2!I23+MPU_2!I23+NC_2!I23+NW_2!I23+WC_2!I23 -> 0 | J23: =EC_2!J23+FS_2!J23+GT_2!J23+KZN_2!J23+LIM_2!J23+MPU_2!J23+NC_2!J23+NW_2!J23+WC_2!J23 -> 0 | K23: =EC_2!K23+FS_2!K23+GT_2!K23+KZN_2!K23+LIM_2!K23+MPU_2!K23+NC_2!K23+NW_2!K23+WC_2!K23 -> 0 | L23: =EC_2!L23+FS_2!L23+GT_2!L23+KZN_2!L23+LIM_2!L23+MPU_2!L23+NC_2!L23+NW_2!L23+WC_2!L23 -> 0 | M23: =EC_2!M23+FS_2!M23+GT_2!M23+KZN_2!M23+LIM_2!M23+MPU_2!M23+NC_2!M23+NW_2!M23+WC_2!M23 -> 0 | N23: 0 | T23: 0 | U23: 0 | V23: 0 | W23: 0 | X23: 0 | Y23: 0 | AA23: 0 | AB23: 0 | AD23: 0 | AE23: 0 | AK23: 0 | AL23: 0 | AM23: 0 | AN23: 0 | AO23: 0 | AP23: 0 | AR23: 0 | AS23: 0 | AU23: 0
D24: =EC_2!D24+FS_2!D24+GT_2!D24+KZN_2!D24+LIM_2!D24+MPU_2!D24+NC_2!D24+NW_2!D24+WC_2!D24 -> 0 | E24: =EC_2!E24+FS_2!E24+GT_2!E24+KZN_2!E24+LIM_2!E24+MPU_2!E24+NC_2!E24+NW_2!E24+WC_2!E24 -> 0 | F24: =EC_2!F24+FS_2!F24+GT_2!F24+KZN_2!F24+LIM_2!F24+MPU_2!F24+NC_2!F24+NW_2!F24+WC_2!F24 -> 0 | G24: =EC_2!G24+FS_2!G24+GT_2!G24+KZN_2!G24+LIM_2!G24+MPU_2!G24+NC_2!G24+NW_2!G24+WC_2!G24 -> 0 | H24: =EC_2!H24+FS_2!H24+GT_2!H24+KZN_2!H24+LIM_2!H24+MPU_2!H24+NC_2!H24+NW_2!H24+WC_2!H24 -> 0 | I24: =EC_2!I24+FS_2!I24+GT_2!I24+KZN_2!I24+LIM_2!I24+MPU_2!I24+NC_2!I24+NW_2!I24+WC_2!I24 -> 0 | J24: =EC_2!J24+FS_2!J24+GT_2!J24+KZN_2!J24+LIM_2!J24+MPU_2!J24+NC_2!J24+NW_2!J24+WC_2!J24 -> 0 | K24: =EC_2!K24+FS_2!K24+GT_2!K24+KZN_2!K24+LIM_2!K24+MPU_2!K24+NC_2!K24+NW_2!K24+WC_2!K24 -> 0 | L24: =EC_2!L24+FS_2!L24+GT_2!L24+KZN_2!L24+LIM_2!L24+MPU_2!L24+NC_2!L24+NW_2!L24+WC_2!L24 -> 0 | M24: =EC_2!M24+FS_2!M24+GT_2!M24+KZN_2!M24+LIM_2!M24+MPU_2!M24+NC_2!M24+NW_2!M24+WC_2!M24 -> 0 | N24: 0 | T24: 0 | U24: 0 | V24: 0 | W24: 0 | X24: 0 | Y24: 0 | AA24: 0 | AB24: 0 | AD24: 0 | AE24: 0 | AK24: 0 | AL24: 0 | AM24: 0 | AN24: 0 | AO24: 0 | AP24: 0 | AR24: 0 | AS24: 0 | AU24: 0
D25: =EC_2!D25+FS_2!D25+GT_2!D25+KZN_2!D25+LIM_2!D25+MPU_2!D25+NC_2!D25+NW_2!D25+WC_2!D25 -> 0 | E25: =EC_2!E25+FS_2!E25+GT_2!E25+KZN_2!E25+LIM_2!E25+MPU_2!E25+NC_2!E25+NW_2!E25+WC_2!E25 -> 0 | F25: =EC_2!F25+FS_2!F25+GT_2!F25+KZN_2!F25+LIM_2!F25+MPU_2!F25+NC_2!F25+NW_2!F25+WC_2!F25 -> 0 | G25: =EC_2!G25+FS_2!G25+GT_2!G25+KZN_2!G25+LIM_2!G25+MPU_2!G25+NC_2!G25+NW_2!G25+WC_2!G25 -> 0 | H25: =EC_2!H25+FS_2!H25+GT_2!H25+KZN_2!H25+LIM_2!H25+MPU_2!H25+NC_2!H25+NW_2!H25+WC_2!H25 -> 0 | I25: =EC_2!I25+FS_2!I25+GT_2!I25+KZN_2!I25+LIM_2!I25+MPU_2!I25+NC_2!I25+NW_2!I25+WC_2!I25 -> 0 | J25: =EC_2!J25+FS_2!J25+GT_2!J25+KZN_2!J25+LIM_2!J25+MPU_2!J25+NC_2!J25+NW_2!J25+WC_2!J25 -> 0 | K25: =EC_2!K25+FS_2!K25+GT_2!K25+KZN_2!K25+LIM_2!K25+MPU_2!K25+NC_2!K25+NW_2!K25+WC_2!K25 -> 0 | L25: =EC_2!L25+FS_2!L25+GT_2!L25+KZN_2!L25+LIM_2!L25+MPU_2!L25+NC_2!L25+NW_2!L25+WC_2!L25 -> 0 | M25: =EC_2!M25+FS_2!M25+GT_2!M25+KZN_2!M25+LIM_2!M25+MPU_2!M25+NC_2!M25+NW_2!M25+WC_2!M25 -> 0 | N25: 0 | T25: 0 | U25: 0 | V25: 0 | W25: 0 | X25: 0 | Y25: 0 | AA25: 0 | AB25: 0 | AD25: 0 | AE25: 0 | AK25: 0 | AL25: 0 | AM25: 0 | AN25: 0 | AO25: 0 | AP25: 0 | AR25: 0 | AS25: 0 | AU25: 0
D26: =EC_2!D26+FS_2!D26+GT_2!D26+KZN_2!D26+LIM_2!D26+MPU_2!D26+NC_2!D26+NW_2!D26+WC_2!D26 -> 0 | E26: =EC_2!E26+FS_2!E26+GT_2!E26+KZN_2!E26+LIM_2!E26+MPU_2!E26+NC_2!E26+NW_2!E26+WC_2!E26 -> 0 | F26: =EC_2!F26+FS_2!F26+GT_2!F26+KZN_2!F26+LIM_2!F26+MPU_2!F26+NC_2!F26+NW_2!F26+WC_2!F26 -> 0 | G26: =EC_2!G26+FS_2!G26+GT_2!G26+KZN_2!G26+LIM_2!G26+MPU_2!G26+NC_2!G26+NW_2!G26+WC_2!G26 -> 0 | H26: =EC_2!H26+FS_2!H26+GT_2!H26+KZN_2!H26+LIM_2!H26+MPU_2!H26+NC_2!H26+NW_2!H26+WC_2!H26 -> 0 | I26: =EC_2!I26+FS_2!I26+GT_2!I26+KZN_2!I26+LIM_2!I26+MPU_2!I26+NC_2!I26+NW_2!I26+WC_2!I26 -> 0 | J26: =EC_2!J26+FS_2!J26+GT_2!J26+KZN_2!J26+LIM_2!J26+MPU_2!J26+NC_2!J26+NW_2!J26+WC_2!J26 -> 0 | K26: =EC_2!K26+FS_2!K26+GT_2!K26+KZN_2!K26+LIM_2!K26+MPU_2!K26+NC_2!K26+NW_2!K26+WC_2!K26 -> 0 | L26: =EC_2!L26+FS_2!L26+GT_2!L26+KZN_2!L26+LIM_2!L26+MPU_2!L26+NC_2!L26+NW_2!L26+WC_2!L26 -> 0 | M26: =EC_2!M26+FS_2!M26+GT_2!M26+KZN_2!M26+LIM_2!M26+MPU_2!M26+NC_2!M26+NW_2!M26+WC_2!M26 -> 0 | AK26: 0 | AL26: 0 | AM26: 0 | AN26: 0 | AO26: 0 | AP26: 0 | AR26: 0 | AS26: 0 | AU26: 0
C27: Basic Education (Vote 16) | D27: =EC_2!D27+FS_2!D27+GT_2!D27+KZN_2!D27+LIM_2!D27+MPU_2!D27+NC_2!D27+NW_2!D27+WC_2!D27 -> 9012077 | E27: =EC_2!E27+FS_2!E27+GT_2!E27+KZN_2!E27+LIM_2!E27+MPU_2!E27+NC_2!E27+NW_2!E27+WC_2!E27 -> 0 | F27: =EC_2!F27+FS_2!F27+GT_2!F27+KZN_2!F27+LIM_2!F27+MPU_2!F27+NC_2!F27+NW_2!F27+WC_2!F27 -> 9012077 | G27: =EC_2!G27+FS_2!G27+GT_2!G27+KZN_2!G27+LIM_2!G27+MPU_2!G27+NC_2!G27+NW_2!G27+WC_2!G27 -> 328697 | H27: =EC_2!H27+FS_2!H27+GT_2!H27+KZN_2!H27+LIM_2!H27+MPU_2!H27+NC_2!H27+NW_2!H27+WC_2!H27 -> 9340774 | I27: =EC_2!I27+FS_2!I27+GT_2!I27+KZN_2!I27+LIM_2!I27+MPU_2!I27+NC_2!I27+NW_2!I27+WC_2!I27 -> 0 | J27: =EC_2!J27+FS_2!J27+GT_2!J27+KZN_2!J27+LIM_2!J27+MPU_2!J27+NC_2!J27+NW_2!J27+WC_2!J27 -> 9012077 | K27: =EC_2!K27+FS_2!K27+GT_2!K27+KZN_2!K27+LIM_2!K27+MPU_2!K27+NC_2!K27+NW_2!K27+WC_2!K27 -> 9012077 | L27: =EC_2!L27+FS_2!L27+GT_2!L27+KZN_2!L27+LIM_2!L27+MPU_2!L27+NC_2!L27+NW_2!L27+WC_2!L27 -> 0 | M27: =EC_2!M27+FS_2!M27+GT_2!M27+KZN_2!M27+LIM_2!M27+MPU_2!M27+NC_2!M27+NW_2!M27+WC_2!M27 -> 9099391.254 | N27: =IFERROR(M27/D27,0) -> 1.009688583 | T27: =C27 -> Basic Education (Vote 16) | U27: 8054753.19 | V27: 0 | W27: 8054753.19 | X27: 0 | Y27: 8054753.19 | AA27: 4780518 | AB27: 4780518 | AD27: 4240268 | AE27: 0.5264305311 | AK27: Basic Education (Vote 16) | AL27: -957323.81 | AM27: 0 | AN27: -957323.81 | AO27: -328697 | AP27: -1286020.81 | AR27: -4231559 | AS27: -4231559 | AU27: -4859123.254
C28: (a) HIV and AIDS (Life Skills Education) Grant | D28: =EC_2!D28+FS_2!D28+GT_2!D28+KZN_2!D28+LIM_2!D28+MPU_2!D28+NC_2!D28+NW_2!D28+WC_2!D28 -> 241914 | E28: =EC_2!E28+FS_2!E28+GT_2!E28+KZN_2!E28+LIM_2!E28+MPU_2!E28+NC_2!E28+NW_2!E28+WC_2!E28 -> 0 | F28: =EC_2!F28+FS_2!F28+GT_2!F28+KZN_2!F28+LIM_2!F28+MPU_2!F28+NC_2!F28+NW_2!F28+WC_2!F28 -> 241914 | G28: =EC_2!G28+FS_2!G28+GT_2!G28+KZN_2!G28+LIM_2!G28+MPU_2!G28+NC_2!G28+NW_2!G28+WC_2!G28 -> 8733 | H28: =EC_2!H28+FS_2!H28+GT_2!H28+KZN_2!H28+LIM_2!H28+MPU_2!H28+NC_2!H28+NW_2!H28+WC_2!H28 -> 250647 | I28: =EC_2!I28+FS_2!I28+GT_2!I28+KZN_2!I28+LIM_2!I28+MPU_2!I28+NC_2!I28+NW_2!I28+WC_2!I28 -> 0 | J28: =EC_2!J28+FS_2!J28+GT_2!J28+KZN_2!J28+LIM_2!J28+MPU_2!J28+NC_2!J28+NW_2!J28+WC_2!J28 -> 241914 | K28: =EC_2!K28+FS_2!K28+GT_2!K28+KZN_2!K28+LIM_2!K28+MPU_2!K28+NC_2!K28+NW_2!K28+WC_2!K28 -> 241914 | L28: =EC_2!L28+FS_2!L28+GT_2!L28+KZN_2!L28+LIM_2!L28+MPU_2!L28+NC_2!L28+NW_2!L28+WC_2!L28 -> 0 | M28: =EC_2!M28+FS_2!M28+GT_2!M28+KZN_2!M28+LIM_2!M28+MPU_2!M28+NC_2!M28+NW_2!M28+WC_2!M28 -> 239663.8391 | N28: 0.990698509 | T28: =C28 -> (a) HIV and AIDS (Life Skills Education) Grant | U28: 256951 | V28: 0 | W28: 256951 | X28: 0 | Y28: 256951 | AA28: 102779 | AB28: 102779 | AD28: 122438 | AE28: 0.4765033022 | AK28: =C28 -> (a) HIV and AIDS (Life Skills Education) Grant | AL28: =IFERROR(U28-D28,0) -> 15037 | AM28: =IFERROR(V28-E28,0) -> 0 | AN28: =IFERROR(W28-F28,0) -> 15037 | AO28: =IFERROR(X28-G28,0) -> -8733 | AP28: =IFERROR(Y28-H28,0) -> 6304 | AR28: =IFERROR(AA28-J28,0) -> -139135 | AS28: =IFERROR(AB28-K28,0) -> -139135 | AU28: =IFERROR(AD28-M28,0) -> -117225.8391
C29: (b) Learners with Profound Intellectual Disabilities Grant | D29: =EC_2!D29+FS_2!D29+GT_2!D29+KZN_2!D29+LIM_2!D29+MPU_2!D29+NC_2!D29+NW_2!D29+WC_2!D29 -> 242760 | E29: =EC_2!E29+FS_2!E29+GT_2!E29+KZN_2!E29+LIM_2!E29+MPU_2!E29+NC_2!E29+NW_2!E29+WC_2!E29 -> 0 | F29: =EC_2!F29+FS_2!F29+GT_2!F29+KZN_2!F29+LIM_2!F29+MPU_2!F29+NC_2!F29+NW_2!F29+WC_2!F29 -> 242760 | G29: =EC_2!G29+FS_2!G29+GT_2!G29+KZN_2!G29+LIM_2!G29+MPU_2!G29+NC_2!G29+NW_2!G29+WC_2!G29 -> 14611 | H29: =EC_2!H29+FS_2!H29+GT_2!H29+KZN_2!H29+LIM_2!H29+MPU_2!H29+NC_2!H29+NW_2!H29+WC_2!H29 -> 257371 | I29: =EC_2!I29+FS_2!I29+GT_2!I29+KZN_2!I29+LIM_2!I29+MPU_2!I29+NC_2!I29+NW_2!I29+WC_2!I29 -> 0 | J29: =EC_2!J29+FS_2!J29+GT_2!J29+KZN_2!J29+LIM_2!J29+MPU_2!J29+NC_2!J29+NW_2!J29+WC_2!J29 -> 242760 | K29: =EC_2!K29+FS_2!K29+GT_2!K29+KZN_2!K29+LIM_2!K29+MPU_2!K29+NC_2!K29+NW_2!K29+WC_2!K29 -> 242760 | L29: =EC_2!L29+FS_2!L29+GT_2!L29+KZN_2!L29+LIM_2!L29+MPU_2!L29+NC_2!L29+NW_2!L29+WC_2!L29 -> 0 | M29: =EC_2!M29+FS_2!M29+GT_2!M29+KZN_2!M29+LIM_2!M29+MPU_2!M29+NC_2!M29+NW_2!M29+WC_2!M29 -> 224731.3042 | N29: 0.9257344875 | T29: (b) Learners with Profound Intellectual Disabilities Grant | U29: 220785 | V29: 0 | W29: 220785 | X29: 0 | Y29: 220785 | AA29: 146541 | AB29: 146541 | AD29: 103281 | AE29: 0.4677899314 | AK29: =C29 -> (b) Learners with Profound Intellectual Disabilities Grant | AL29: =IFERROR(U29-D29,0) -> -21975 | AM29: 0 | AN29: -21975 | AO29: -14611 | AP29: -36586 | AR29: -96219 | AS29: -96219 | AU29: =IFERROR(AD29-M29,0) -> -121450.3042
C30: (c) Maths, Science and Technology Grant | D30: =EC_2!D30+FS_2!D30+GT_2!D30+KZN_2!D30+LIM_2!D30+MPU_2!D30+NC_2!D30+NW_2!D30+WC_2!D30 -> 412134 | E30: =EC_2!E30+FS_2!E30+GT_2!E30+KZN_2!E30+LIM_2!E30+MPU_2!E30+NC_2!E30+NW_2!E30+WC_2!E30 -> 0 | F30: =EC_2!F30+FS_2!F30+GT_2!F30+KZN_2!F30+LIM_2!F30+MPU_2!F30+NC_2!F30+NW_2!F30+WC_2!F30 -> 412134 | G30: =EC_2!G30+FS_2!G30+GT_2!G30+KZN_2!G30+LIM_2!G30+MPU_2!G30+NC_2!G30+NW_2!G30+WC_2!G30 -> 39572 | H30: =EC_2!H30+FS_2!H30+GT_2!H30+KZN_2!H30+LIM_2!H30+MPU_2!H30+NC_2!H30+NW_2!H30+WC_2!H30 -> 451706 | I30: =EC_2!I30+FS_2!I30+GT_2!I30+KZN_2!I30+LIM_2!I30+MPU_2!I30+NC_2!I30+NW_2!I30+WC_2!I30 -> 0 | J30: =EC_2!J30+FS_2!J30+GT_2!J30+KZN_2!J30+LIM_2!J30+MPU_2!J30+NC_2!J30+NW_2!J30+WC_2!J30 -> 412134 | K30: =EC_2!K30+FS_2!K30+GT_2!K30+KZN_2!K30+LIM_2!K30+MPU_2!K30+NC_2!K30+NW_2!K30+WC_2!K30 -> 412134 | L30: =EC_2!L30+FS_2!L30+GT_2!L30+KZN_2!L30+LIM_2!L30+MPU_2!L30+NC_2!L30+NW_2!L30+WC_2!L30 -> 0 | M30: =EC_2!M30+FS_2!M30+GT_2!M30+KZN_2!M30+LIM_2!M30+MPU_2!M30+NC_2!M30+NW_2!M30+WC_2!M30 -> 401100.9085 | N30: 0.9732293586 | T30: (c) Maths, Science and Technology Grant | U30: 391302 | V30: 0 | W30: 391302 | X30: 0 | Y30: 391302 | AA30: 195651 | AB30: 195651 | AD30: 113639 | AE30: 0.2904125203 | AK30: (c) Maths, Science and Technology Grant | AL30: -20832 | AM30: 0 | AN30: -20832 | AO30: -39572 | AP30: -60404 | AR30: -216483 | AS30: -216483 | AU30: -287461.9085
C31: (d) National School Nutrition Programme Grant | D31: =EC_2!D31+FS_2!D31+GT_2!D31+KZN_2!D31+LIM_2!D31+MPU_2!D31+NC_2!D31+NW_2!D31+WC_2!D31 -> 8115269 | E31: =EC_2!E31+FS_2!E31+GT_2!E31+KZN_2!E31+LIM_2!E31+MPU_2!E31+NC_2!E31+NW_2!E31+WC_2!E31 -> 0 | F31: =EC_2!F31+FS_2!F31+GT_2!F31+KZN_2!F31+LIM_2!F31+MPU_2!F31+NC_2!F31+NW_2!F31+WC_2!F31 -> 8115269 | G31: =EC_2!G31+FS_2!G31+GT_2!G31+KZN_2!G31+LIM_2!G31+MPU_2!G31+NC_2!G31+NW_2!G31+WC_2!G31 -> 265781 | H31: =EC_2!H31+FS_2!H31+GT_2!H31+KZN_2!H31+LIM_2!H31+MPU_2!H31+NC_2!H31+NW_2!H31+WC_2!H31 -> 8381050 | I31: =EC_2!I31+FS_2!I31+GT_2!I31+KZN_2!I31+LIM_2!I31+MPU_2!I31+NC_2!I31+NW_2!I31+WC_2!I31 -> 0 | J31: =EC_2!J31+FS_2!J31+GT_2!J31+KZN_2!J31+LIM_2!J31+MPU_2!J31+NC_2!J31+NW_2!J31+WC_2!J31 -> 8115269 | K31: =EC_2!K31+FS_2!K31+GT_2!K31+KZN_2!K31+LIM_2!K31+MPU_2!K31+NC_2!K31+NW_2!K31+WC_2!K31 -> 8115269 | L31: =EC_2!L31+FS_2!L31+GT_2!L31+KZN_2!L31+LIM_2!L31+MPU_2!L31+NC_2!L31+NW_2!L31+WC_2!L31 -> 0 | M31: =EC_2!M31+FS_2!M31+GT_2!M31+KZN_2!M31+LIM_2!M31+MPU_2!M31+NC_2!M31+NW_2!M31+WC_2!M31 -> 8233895.202 | N31: 1.014617655 | T31: (d) National School Nutrition Programme Grant | U31: 7185715.19 | V31: 0 | W31: 7185715.19 | X31: 0 | Y31: 7185715.19 | AA31: 4335547 | AB31: 4335547 | AD31: 3900910 | AE31: 0.5428701106 | AK31: (d) National School Nutrition Programme Grant | AL31: -929553.81 | AM31: 0 | AN31: -929553.81 | AO31: -265781 | AP31: -1195334.81 | AR31: -3779722 | AS31: -3779722 | AU31: -4332985.202
D32: =EC_2!D32+FS_2!D32+GT_2!D32+KZN_2!D32+LIM_2!D32+MPU_2!D32+NC_2!D32+NW_2!D32+WC_2!D32 -> 0 | E32: =EC_2!E32+FS_2!E32+GT_2!E32+KZN_2!E32+LIM_2!E32+MPU_2!E32+NC_2!E32+NW_2!E32+WC_2!E32 -> 0 | F32: =EC_2!F32+FS_2!F32+GT_2!F32+KZN_2!F32+LIM_2!F32+MPU_2!F32+NC_2!F32+NW_2!F32+WC_2!F32 -> 0 | G32: =EC_2!G32+FS_2!G32+GT_2!G32+KZN_2!G32+LIM_2!G32+MPU_2!G32+NC_2!G32+NW_2!G32+WC_2!G32 -> 0 | H32: =EC_2!H32+FS_2!H32+GT_2!H32+KZN_2!H32+LIM_2!H32+MPU_2!H32+NC_2!H32+NW_2!H32+WC_2!H32 -> 0 | I32: =EC_2!I32+FS_2!I32+GT_2!I32+KZN_2!I32+LIM_2!I32+MPU_2!I32+NC_2!I32+NW_2!I32+WC_2!I32 -> 0 | J32: =EC_2!J32+FS_2!J32+GT_2!J32+KZN_2!J32+LIM_2!J32+MPU_2!J32+NC_2!J32+NW_2!J32+WC_2!J32 -> 0 | K32: =EC_2!K32+FS_2!K32+GT_2!K32+KZN_2!K32+LIM_2!K32+MPU_2!K32+NC_2!K32+NW_2!K32+WC_2!K32 -> 0 | L32: =EC_2!L32+FS_2!L32+GT_2!L32+KZN_2!L32+LIM_2!L32+MPU_2!L32+NC_2!L32+NW_2!L32+WC_2!L32 -> 0 | M32: =EC_2!M32+FS_2!M32+GT_2!M32+KZN_2!M32+LIM_2!M32+MPU_2!M32+NC_2!M32+NW_2!M32+WC_2!M32 -> 0 | N32: =IFERROR(M32/F32,0) -> 0 | T32: 0 | U32: 0 | V32: 0 | W32: 0 | X32: 0 | Y32: 0 | AA32: 0 | AB32: 0 | AD32: 0 | AE32: 0 | AK32: 0 | AL32: 0 | AM32: 0 | AN32: 0 | AO32: 0 | AP32: 0 | AR32: 0 | AS32: 0 | AU32: 0
D33: =EC_2!D33+FS_2!D33+GT_2!D33+KZN_2!D33+LIM_2!D33+MPU_2!D33+NC_2!D33+NW_2!D33+WC_2!D33 -> 0 | E33: =EC_2!E33+FS_2!E33+GT_2!E33+KZN_2!E33+LIM_2!E33+MPU_2!E33+NC_2!E33+NW_2!E33+WC_2!E33 -> 0 | F33: =EC_2!F33+FS_2!F33+GT_2!F33+KZN_2!F33+LIM_2!F33+MPU_2!F33+NC_2!F33+NW_2!F33+WC_2!F33 -> 0 | G33: =EC_2!G33+FS_2!G33+GT_2!G33+KZN_2!G33+LIM_2!G33+MPU_2!G33+NC_2!G33+NW_2!G33+WC_2!G33 -> 0 | H33: =EC_2!H33+FS_2!H33+GT_2!H33+KZN_2!H33+LIM_2!H33+MPU_2!H33+NC_2!H33+NW_2!H33+WC_2!H33 -> 0 | I33: =EC_2!I33+FS_2!I33+GT_2!I33+KZN_2!I33+LIM_2!I33+MPU_2!I33+NC_2!I33+NW_2!I33+WC_2!I33 -> 0 | J33: =EC_2!J33+FS_2!J33+GT_2!J33+KZN_2!J33+LIM_2!J33+MPU_2!J33+NC_2!J33+NW_2!J33+WC_2!J33 -> 0 | K33: =EC_2!K33+FS_2!K33+GT_2!K33+KZN_2!K33+LIM_2!K33+MPU_2!K33+NC_2!K33+NW_2!K33+WC_2!K33 -> 0 | L33: =EC_2!L33+FS_2!L33+GT_2!L33+KZN_2!L33+LIM_2!L33+MPU_2!L33+NC_2!L33+NW_2!L33+WC_2!L33 -> 0 | M33: =EC_2!M33+FS_2!M33+GT_2!M33+KZN_2!M33+LIM_2!M33+MPU_2!M33+NC_2!M33+NW_2!M33+WC_2!M33 -> 0 | AK33: 0 | AL33: =IFERROR(U33-D33,0) -> 0 | AM33: 0 | AN33: 0 | AO33: 0 | AP33: 0 | AR33: =IFERROR(AA33-J33,0) -> 0 | AS33: 0 | AU33: 0
C34: Cooperative Governance and Traditional Affairs (Vote 4) | D34: =EC_2!D34+FS_2!D34+GT_2!D34+KZN_2!D34+LIM_2!D34+MPU_2!D34+NC_2!D34+NW_2!D34+WC_2!D34 -> 0 | E34: =EC_2!E34+FS_2!E34+GT_2!E34+KZN_2!E34+LIM_2!E34+MPU_2!E34+NC_2!E34+NW_2!E34+WC_2!E34 -> 0 | F34: =EC_2!F34+FS_2!F34+GT_2!F34+KZN_2!F34+LIM_2!F34+MPU_2!F34+NC_2!F34+NW_2!F34+WC_2!F34 -> 0 | G34: =EC_2!G34+FS_2!G34+GT_2!G34+KZN_2!G34+LIM_2!G34+MPU_2!G34+NC_2!G34+NW_2!G34+WC_2!G34 -> 0 | H34: =EC_2!H34+FS_2!H34+GT_2!H34+KZN_2!H34+LIM_2!H34+MPU_2!H34+NC_2!H34+NW_2!H34+WC_2!H34 -> 0 | I34: =EC_2!I34+FS_2!I34+GT_2!I34+KZN_2!I34+LIM_2!I34+MPU_2!I34+NC_2!I34+NW_2!I34+WC_2!I34 -> 0 | J34: =EC_2!J34+FS_2!J34+GT_2!J34+KZN_2!J34+LIM_2!J34+MPU_2!J34+NC_2!J34+NW_2!J34+WC_2!J34 -> 0 | K34: =EC_2!K34+FS_2!K34+GT_2!K34+KZN_2!K34+LIM_2!K34+MPU_2!K34+NC_2!K34+NW_2!K34+WC_2!K34 -> 0 | L34: =EC_2!L34+FS_2!L34+GT_2!L34+KZN_2!L34+LIM_2!L34+MPU_2!L34+NC_2!L34+NW_2!L34+WC_2!L34 -> 0 | M34: =EC_2!M34+FS_2!M34+GT_2!M34+KZN_2!M34+LIM_2!M34+MPU_2!M34+NC_2!M34+NW_2!M34+WC_2!M34 -> 0 | N34: =IFERROR(M34/H34,0) -> 0 | T34: =C34 -> Cooperative Governance and Traditional Affairs (Vote 4) | AK34: Cooperative Governance and Traditional Affairs (Vote 4) | AL34: =SUM(AL35:AL37) -> 0 | AM34: =SUM(AM35:AM37) -> 0 | AN34: 0 | AO34: 0 | AP34: 0 | AR34: =SUM(AR35:AR37) -> 0 | AS34: 0 | AU34: =SUM(AU35:AU37) -> 0
C35: Provincial Disaster Recovery Grant | D35: =EC_2!D35+FS_2!D35+GT_2!D35+KZN_2!D35+LIM_2!D35+MPU_2!D35+NC_2!D35+NW_2!D35+WC_2!D35 -> 0 | E35: =EC_2!E35+FS_2!E35+GT_2!E35+KZN_2!E35+LIM_2!E35+MPU_2!E35+NC_2!E35+NW_2!E35+WC_2!E35 -> 0 | F35: =EC_2!F35+FS_2!F35+GT_2!F35+KZN_2!F35+LIM_2!F35+MPU_2!F35+NC_2!F35+NW_2!F35+WC_2!F35 -> 0 | G35: =EC_2!G35+FS_2!G35+GT_2!G35+KZN_2!G35+LIM_2!G35+MPU_2!G35+NC_2!G35+NW_2!G35+WC_2!G35 -> 0 | H35: =EC_2!H35+FS_2!H35+GT_2!H35+KZN_2!H35+LIM_2!H35+MPU_2!H35+NC_2!H35+NW_2!H35+WC_2!H35 -> 0 | I35: =EC_2!I35+FS_2!I35+GT_2!I35+KZN_2!I35+LIM_2!I35+MPU_2!I35+NC_2!I35+NW_2!I35+WC_2!I35 -> 0 | J35: =EC_2!J35+FS_2!J35+GT_2!J35+KZN_2!J35+LIM_2!J35+MPU_2!J35+NC_2!J35+NW_2!J35+WC_2!J35 -> 0 | K35: =EC_2!K35+FS_2!K35+GT_2!K35+KZN_2!K35+LIM_2!K35+MPU_2!K35+NC_2!K35+NW_2!K35+WC_2!K35 -> 0 | L35: =EC_2!L35+FS_2!L35+GT_2!L35+KZN_2!L35+LIM_2!L35+MPU_2!L35+NC_2!L35+NW_2!L35+WC_2!L35 -> 0 | M35: =EC_2!M35+FS_2!M35+GT_2!M35+KZN_2!M35+LIM_2!M35+MPU_2!M35+NC_2!M35+NW_2!M35+WC_2!M35 -> 0 | N35: 0 | T35: =C35 -> Provincial Disaster Recovery Grant | U35: 0 | V35: 0 | W35: 0 | X35: 0 | Y35: 0 | AA35: 0 | AB35: 0 | AD35: 0 | AE35: 0 | AK35: =C35 -> Provincial Disaster Recovery Grant | AL35: =IFERROR(U35-D35,0) -> 0 | AM35: =IFERROR(V35-E35,0) -> 0 | AN35: =IFERROR(W35-F35,0) -> 0 | AO35: =IFERROR(X35-G35,0) -> 0 | AP35: =IFERROR(Y35-H35,0) -> 0 | AR35: =IFERROR(AA35-J35,0) -> 0 | AS35: =IFERROR(AB35-K35,0) -> 0 | AU35: =IFERROR(AD35-M35,0) -> 0
D36: =EC_2!D36+FS_2!D36+GT_2!D36+KZN_2!D36+LIM_2!D36+MPU_2!D36+NC_2!D36+NW_2!D36+WC_2!D36 -> 0 | E36: =EC_2!E36+FS_2!E36+GT_2!E36+KZN_2!E36+LIM_2!E36+MPU_2!E36+NC_2!E36+NW_2!E36+WC_2!E36 -> 0 | F36: =EC_2!F36+FS_2!F36+GT_2!F36+KZN_2!F36+LIM_2!F36+MPU_2!F36+NC_2!F36+NW_2!F36+WC_2!F36 -> 0 | G36: =EC_2!G36+FS_2!G36+GT_2!G36+KZN_2!G36+LIM_2!G36+MPU_2!G36+NC_2!G36+NW_2!G36+WC_2!G36 -> 0 | H36: =EC_2!H36+FS_2!H36+GT_2!H36+KZN_2!H36+LIM_2!H36+MPU_2!H36+NC_2!H36+NW_2!H36+WC_2!H36 -> 0 | I36: =EC_2!I36+FS_2!I36+GT_2!I36+KZN_2!I36+LIM_2!I36+MPU_2!I36+NC_2!I36+NW_2!I36+WC_2!I36 -> 0 | J36: =EC_2!J36+FS_2!J36+GT_2!J36+KZN_2!J36+LIM_2!J36+MPU_2!J36+NC_2!J36+NW_2!J36+WC_2!J36 -> 0 | K36: =EC_2!K36+FS_2!K36+GT_2!K36+KZN_2!K36+LIM_2!K36+MPU_2!K36+NC_2!K36+NW_2!K36+WC_2!K36 -> 0 | L36: =EC_2!L36+FS_2!L36+GT_2!L36+KZN_2!L36+LIM_2!L36+MPU_2!L36+NC_2!L36+NW_2!L36+WC_2!L36 -> 0 | M36: =EC_2!M36+FS_2!M36+GT_2!M36+KZN_2!M36+LIM_2!M36+MPU_2!M36+NC_2!M36+NW_2!M36+WC_2!M36 -> 0 | N36: =IFERROR(M36/F36,0) -> 0 | T36: 0 | U36: 0 | V36: 0 | W36: 0 | X36: 0 | Y36: 0 | AA36: 0 | AB36: 0 | AD36: 0 | AE36: 0 | AK36: =C36 -> 0 | AL36: =IFERROR(U36-D36,0) -> 0 | AM36: 0 | AN36: 0 | AO36: 0 | AP36: 0 | AR36: 0 | AS36: 0 | AU36: =IFERROR(AD36-M36,0) -> 0
D37: =EC_2!D37+FS_2!D37+GT_2!D37+KZN_2!D37+LIM_2!D37+MPU_2!D37+NC_2!D37+NW_2!D37+WC_2!D37 -> 0 | E37: =EC_2!E37+FS_2!E37+GT_2!E37+KZN_2!E37+LIM_2!E37+MPU_2!E37+NC_2!E37+NW_2!E37+WC_2!E37 -> 0 | F37: =EC_2!F37+FS_2!F37+GT_2!F37+KZN_2!F37+LIM_2!F37+MPU_2!F37+NC_2!F37+NW_2!F37+WC_2!F37 -> 0 | G37: =EC_2!G37+FS_2!G37+GT_2!G37+KZN_2!G37+LIM_2!G37+MPU_2!G37+NC_2!G37+NW_2!G37+WC_2!G37 -> 0 | H37: =EC_2!H37+FS_2!H37+GT_2!H37+KZN_2!H37+LIM_2!H37+MPU_2!H37+NC_2!H37+NW_2!H37+WC_2!H37 -> 0 | I37: =EC_2!I37+FS_2!I37+GT_2!I37+KZN_2!I37+LIM_2!I37+MPU_2!I37+NC_2!I37+NW_2!I37+WC_2!I37 -> 0 | J37: =EC_2!J37+FS_2!J37+GT_2!J37+KZN_2!J37+LIM_2!J37+MPU_2!J37+NC_2!J37+NW_2!J37+WC_2!J37 -> 0 | K37: =EC_2!K37+FS_2!K37+GT_2!K37+KZN_2!K37+LIM_2!K37+MPU_2!K37+NC_2!K37+NW_2!K37+WC_2!K37 -> 0 | L37: =EC_2!L37+FS_2!L37+GT_2!L37+KZN_2!L37+LIM_2!L37+MPU_2!L37+NC_2!L37+NW_2!L37+WC_2!L37 -> 0 | M37: =EC_2!M37+FS_2!M37+GT_2!M37+KZN_2!M37+LIM_2!M37+MPU_2!M37+NC_2!M37+NW_2!M37+WC_2!M37 -> 0 | N37: 0 | T37: 0 | U37: 0 | V37: 0 | W37: 0 | X37: 0 | Y37: 0 | AA37: 0 | AB37: 0 | AD37: 0 | AE37: 0 | AK37: 0 | AL37: 0 | AM37: 0 | AN37: 0 | AO37: 0 | AP37: 0 | AR37: 0 | AS37: 0 | AU37: 0
D38: =EC_2!D38+FS_2!D38+GT_2!D38+KZN_2!D38+LIM_2!D38+MPU_2!D38+NC_2!D38+NW_2!D38+WC_2!D38 -> 0 | E38: =EC_2!E38+FS_2!E38+GT_2!E38+KZN_2!E38+LIM_2!E38+MPU_2!E38+NC_2!E38+NW_2!E38+WC_2!E38 -> 0 | F38: =EC_2!F38+FS_2!F38+GT_2!F38+KZN_2!F38+LIM_2!F38+MPU_2!F38+NC_2!F38+NW_2!F38+WC_2!F38 -> 0 | G38: =EC_2!G38+FS_2!G38+GT_2!G38+KZN_2!G38+LIM_2!G38+MPU_2!G38+NC_2!G38+NW_2!G38+WC_2!G38 -> 0 | H38: =EC_2!H38+FS_2!H38+GT_2!H38+KZN_2!H38+LIM_2!H38+MPU_2!H38+NC_2!H38+NW_2!H38+WC_2!H38 -> 0 | I38: =EC_2!I38+FS_2!I38+GT_2!I38+KZN_2!I38+LIM_2!I38+MPU_2!I38+NC_2!I38+NW_2!I38+WC_2!I38 -> 0 | J38: =EC_2!J38+FS_2!J38+GT_2!J38+KZN_2!J38+LIM_2!J38+MPU_2!J38+NC_2!J38+NW_2!J38+WC_2!J38 -> 0 | K38: =EC_2!K38+FS_2!K38+GT_2!K38+KZN_2!K38+LIM_2!K38+MPU_2!K38+NC_2!K38+NW_2!K38+WC_2!K38 -> 0 | L38: =EC_2!L38+FS_2!L38+GT_2!L38+KZN_2!L38+LIM_2!L38+MPU_2!L38+NC_2!L38+NW_2!L38+WC_2!L38 -> 0 | M38: =EC_2!M38+FS_2!M38+GT_2!M38+KZN_2!M38+LIM_2!M38+MPU_2!M38+NC_2!M38+NW_2!M38+WC_2!M38 -> 0 | N38: 0 | T38: 0 | U38: 0 | V38: 0 | W38: 0 | X38: 0 | Y38: 0 | AA38: 0 | AB38: 0 | AD38: 0 | AE38: 0 | AK38: 0 | AL38: 0 | AM38: 0 | AN38: 0 | AO38: 0 | AP38: 0 | AR38: 0 | AS38: 0 | AU38: 0
D39: =EC_2!D39+FS_2!D39+GT_2!D39+KZN_2!D39+LIM_2!D39+MPU_2!D39+NC_2!D39+NW_2!D39+WC_2!D39 -> 0 | E39: =EC_2!E39+FS_2!E39+GT_2!E39+KZN_2!E39+LIM_2!E39+MPU_2!E39+NC_2!E39+NW_2!E39+WC_2!E39 -> 0 | F39: =EC_2!F39+FS_2!F39+GT_2!F39+KZN_2!F39+LIM_2!F39+MPU_2!F39+NC_2!F39+NW_2!F39+WC_2!F39 -> 0 | G39: =EC_2!G39+FS_2!G39+GT_2!G39+KZN_2!G39+LIM_2!G39+MPU_2!G39+NC_2!G39+NW_2!G39+WC_2!G39 -> 0 | H39: =EC_2!H39+FS_2!H39+GT_2!H39+KZN_2!H39+LIM_2!H39+MPU_2!H39+NC_2!H39+NW_2!H39+WC_2!H39 -> 0 | I39: =EC_2!I39+FS_2!I39+GT_2!I39+KZN_2!I39+LIM_2!I39+MPU_2!I39+NC_2!I39+NW_2!I39+WC_2!I39 -> 0 | J39: =EC_2!J39+FS_2!J39+GT_2!J39+KZN_2!J39+LIM_2!J39+MPU_2!J39+NC_2!J39+NW_2!J39+WC_2!J39 -> 0 | K39: =EC_2!K39+FS_2!K39+GT_2!K39+KZN_2!K39+LIM_2!K39+MPU_2!K39+NC_2!K39+NW_2!K39+WC_2!K39 -> 0 | L39: =EC_2!L39+FS_2!L39+GT_2!L39+KZN_2!L39+LIM_2!L39+MPU_2!L39+NC_2!L39+NW_2!L39+WC_2!L39 -> 0 | M39: =EC_2!M39+FS_2!M39+GT_2!M39+KZN_2!M39+LIM_2!M39+MPU_2!M39+NC_2!M39+NW_2!M39+WC_2!M39 -> 0 | N39: 0 | T39: 0 | U39: 0 | V39: 0 | W39: 0 | X39: 0 | Y39: 0 | AA39: 0 | AB39: 0 | AD39: 0 | AE39: 0 | AK39: 0 | AL39: 0 | AM39: 0 | AN39: 0 | AO39: 0 | AP39: 0 | AR39: 0 | AS39: 0 | AU39: 0
D40: =EC_2!D40+FS_2!D40+GT_2!D40+KZN_2!D40+LIM_2!D40+MPU_2!D40+NC_2!D40+NW_2!D40+WC_2!D40 -> 0 | E40: =EC_2!E40+FS_2!E40+GT_2!E40+KZN_2!E40+LIM_2!E40+MPU_2!E40+NC_2!E40+NW_2!E40+WC_2!E40 -> 0 | F40: =EC_2!F40+FS_2!F40+GT_2!F40+KZN_2!F40+LIM_2!F40+MPU_2!F40+NC_2!F40+NW_2!F40+WC_2!F40 -> 0 | G40: =EC_2!G40+FS_2!G40+GT_2!G40+KZN_2!G40+LIM_2!G40+MPU_2!G40+NC_2!G40+NW_2!G40+WC_2!G40 -> 0 | H40: =EC_2!H40+FS_2!H40+GT_2!H40+KZN_2!H40+LIM_2!H40+MPU_2!H40+NC_2!H40+NW_2!H40+WC_2!H40 -> 0 | I40: =EC_2!I40+FS_2!I40+GT_2!I40+KZN_2!I40+LIM_2!I40+MPU_2!I40+NC_2!I40+NW_2!I40+WC_2!I40 -> 0 | J40: =EC_2!J40+FS_2!J40+GT_2!J40+KZN_2!J40+LIM_2!J40+MPU_2!J40+NC_2!J40+NW_2!J40+WC_2!J40 -> 0 | K40: =EC_2!K40+FS_2!K40+GT_2!K40+KZN_2!K40+LIM_2!K40+MPU_2!K40+NC_2!K40+NW_2!K40+WC_2!K40 -> 0 | L40: =EC_2!L40+FS_2!L40+GT_2!L40+KZN_2!L40+LIM_2!L40+MPU_2!L40+NC_2!L40+NW_2!L40+WC_2!L40 -> 0 | M40: =EC_2!M40+FS_2!M40+GT_2!M40+KZN_2!M40+LIM_2!M40+MPU_2!M40+NC_2!M40+NW_2!M40+WC_2!M40 -> 0 | AK40: =C40 -> 0 | AL40: =IFERROR(U40-D40,0) -> 0 | AM40: =IFERROR(V40-E40,0) -> 0 | AN40: 0 | AO40: 0 | AP40: 0 | AR40: =IFERROR(AA40-J40,0) -> 0 | AS40: 0 | AU40: =IFERROR(AD40-M40,0) -> 0
C41: Health (Vote 18) | D41: =EC_2!D41+FS_2!D41+GT_2!D41+KZN_2!D41+LIM_2!D41+MPU_2!D41+NC_2!D41+NW_2!D41+WC_2!D41 -> 38353775 | E41: =EC_2!E41+FS_2!E41+GT_2!E41+KZN_2!E41+LIM_2!E41+MPU_2!E41+NC_2!E41+NW_2!E41+WC_2!E41 -> 400647 | F41: =EC_2!F41+FS_2!F41+GT_2!F41+KZN_2!F41+LIM_2!F41+MPU_2!F41+NC_2!F41+NW_2!F41+WC_2!F41 -> 38754422 | G41: =EC_2!G41+FS_2!G41+GT_2!G41+KZN_2!G41+LIM_2!G41+MPU_2!G41+NC_2!G41+NW_2!G41+WC_2!G41 -> 616318 | H41: =EC_2!H41+FS_2!H41+GT_2!H41+KZN_2!H41+LIM_2!H41+MPU_2!H41+NC_2!H41+NW_2!H41+WC_2!H41 -> 39370740 | I41: =EC_2!I41+FS_2!I41+GT_2!I41+KZN_2!I41+LIM_2!I41+MPU_2!I41+NC_2!I41+NW_2!I41+WC_2!I41 -> 0 | J41: =EC_2!J41+FS_2!J41+GT_2!J41+KZN_2!J41+LIM_2!J41+MPU_2!J41+NC_2!J41+NW_2!J41+WC_2!J41 -> 38754422 | K41: =EC_2!K41+FS_2!K41+GT_2!K41+KZN_2!K41+LIM_2!K41+MPU_2!K41+NC_2!K41+NW_2!K41+WC_2!K41 -> 38754422 | L41: =EC_2!L41+FS_2!L41+GT_2!L41+KZN_2!L41+LIM_2!L41+MPU_2!L41+NC_2!L41+NW_2!L41+WC_2!L41 -> 0 | M41: =EC_2!M41+FS_2!M41+GT_2!M41+KZN_2!M41+LIM_2!M41+MPU_2!M41+NC_2!M41+NW_2!M41+WC_2!M41 -> 37058610 | N41: =IFERROR(M41/D41,0) -> 0.9662310946 | T41: =C41 -> Health (Vote 18) | U41: 28862864 | V41: 0 | W41: 28862864 | X41: 0 | Y41: 28862864 | AA41: 14608296 | AB41: 14608269 | AD41: 13130521 | AE41: 0.4549278616 | AK41: Health (Vote 18) | AL41: -9490911 | AM41: -400647 | AN41: -9891558 | AO41: -616318 | AP41: -10507876 | AR41: -24146126 | AS41: -24146153 | AU41: -23928089
C42: (a) HIV, TB, Malaria and Community Outreach Grant | D42: =EC_2!D42+FS_2!D42+GT_2!D42+KZN_2!D42+LIM_2!D42+MPU_2!D42+NC_2!D42+NW_2!D42+WC_2!D42 -> 27585452 | E42: =EC_2!E42+FS_2!E42+GT_2!E42+KZN_2!E42+LIM_2!E42+MPU_2!E42+NC_2!E42+NW_2!E42+WC_2!E42 -> 167424 | F42: =EC_2!F42+FS_2!F42+GT_2!F42+KZN_2!F42+LIM_2!F42+MPU_2!F42+NC_2!F42+NW_2!F42+WC_2!F42 -> 27752876 | G42: =EC_2!G42+FS_2!G42+GT_2!G42+KZN_2!G42+LIM_2!G42+MPU_2!G42+NC_2!G42+NW_2!G42+WC_2!G42 -> 101959 | H42: =EC_2!H42+FS_2!H42+GT_2!H42+KZN_2!H42+LIM_2!H42+MPU_2!H42+NC_2!H42+NW_2!H42+WC_2!H42 -> 27854835 | I42: =EC_2!I42+FS_2!I42+GT_2!I42+KZN_2!I42+LIM_2!I42+MPU_2!I42+NC_2!I42+NW_2!I42+WC_2!I42 -> 0 | J42: =EC_2!J42+FS_2!J42+GT_2!J42+KZN_2!J42+LIM_2!J42+MPU_2!J42+NC_2!J42+NW_2!J42+WC_2!J42 -> 27752876 | K42: =EC_2!K42+FS_2!K42+GT_2!K42+KZN_2!K42+LIM_2!K42+MPU_2!K42+NC_2!K42+NW_2!K42+WC_2!K42 -> 27752876 | L42: =EC_2!L42+FS_2!L42+GT_2!L42+KZN_2!L42+LIM_2!L42+MPU_2!L42+NC_2!L42+NW_2!L42+WC_2!L42 -> 0 | M42: =EC_2!M42+FS_2!M42+GT_2!M42+KZN_2!M42+LIM_2!M42+MPU_2!M42+NC_2!M42+NW_2!M42+WC_2!M42 -> 26380496 | N42: 0.9563191497 | T42: =C42 -> (a) HIV, TB, Malaria and Community Outreach Grant | U42: 22038995 | V42: 0 | W42: 22038995 | X42: 0 | Y42: 22038995 | AA42: 11019474 | AB42: 11019447 | AD42: 9943973 | AE42: 0.4511990225 | AK42: =C42 -> (a) HIV, TB, Malaria and Community Outreach Grant | AL42: =IFERROR(U42-D42,0) -> -5546457 | AM42: =IFERROR(V42-E42,0) -> -167424 | AN42: =IFERROR(W42-F42,0) -> -5713881 | AO42: =IFERROR(X42-G42,0) -> -101959 | AP42: =IFERROR(Y42-H42,0) -> -5815840 | AR42: -16733402 | AS42: -16733429 | AU42: =IFERROR(AD42-M42,0) -> -16436523
C43: (b) Health Facility Revitalisation Grant | D43: =EC_2!D43+FS_2!D43+GT_2!D43+KZN_2!D43+LIM_2!D43+MPU_2!D43+NC_2!D43+NW_2!D43+WC_2!D43 -> 6445188 | E43: =EC_2!E43+FS_2!E43+GT_2!E43+KZN_2!E43+LIM_2!E43+MPU_2!E43+NC_2!E43+NW_2!E43+WC_2!E43 -> -10000 | F43: =EC_2!F43+FS_2!F43+GT_2!F43+KZN_2!F43+LIM_2!F43+MPU_2!F43+NC_2!F43+NW_2!F43+WC_2!F43 -> 6435188 | G43: =EC_2!G43+FS_2!G43+GT_2!G43+KZN_2!G43+LIM_2!G43+MPU_2!G43+NC_2!G43+NW_2!G43+WC_2!G43 -> 463046 | H43: =EC_2!H43+FS_2!H43+GT_2!H43+KZN_2!H43+LIM_2!H43+MPU_2!H43+NC_2!H43+NW_2!H43+WC_2!H43 -> 6898234 | I43: =EC_2!I43+FS_2!I43+GT_2!I43+KZN_2!I43+LIM_2!I43+MPU_2!I43+NC_2!I43+NW_2!I43+WC_2!I43 -> 0 | J43: =EC_2!J43+FS_2!J43+GT_2!J43+KZN_2!J43+LIM_2!J43+MPU_2!J43+NC_2!J43+NW_2!J43+WC_2!J43 -> 6435188 | K43: =EC_2!K43+FS_2!K43+GT_2!K43+KZN_2!K43+LIM_2!K43+MPU_2!K43+NC_2!K43+NW_2!K43+WC_2!K43 -> 6435187.998 | L43: =EC_2!L43+FS_2!L43+GT_2!L43+KZN_2!L43+LIM_2!L43+MPU_2!L43+NC_2!L43+NW_2!L43+WC_2!L43 -> 0 | M43: =EC_2!M43+FS_2!M43+GT_2!M43+KZN_2!M43+LIM_2!M43+MPU_2!M43+NC_2!M43+NW_2!M43+WC_2!M43 -> 6168513 | N43: 0.9570726253 | T43: (b) Health Facility Revitalisation Grant | U43: 6006973 | V43: 0 | W43: 6006973 | X43: 0 | Y43: 6006973 | AA43: 3180425 | AB43: 3180425 | AD43: 2693839 | AE43: 0.4484519907 | AK43: =C43 -> (b) Health Facility Revitalisation Grant | AL43: =IFERROR(U43-D43,0) -> -438215 | AM43: 10000 | AN43: -428215 | AO43: -463046 | AP43: -891261 | AR43: -3254763 | AS43: -3254762.998 | AU43: =IFERROR(AD43-M43,0) -> -3474674
C44: (c) Human Papillomavirus Vaccine Grant | D44: =EC_2!D44+FS_2!D44+GT_2!D44+KZN_2!D44+LIM_2!D44+MPU_2!D44+NC_2!D44+NW_2!D44+WC_2!D44 -> 0 | E44: =EC_2!E44+FS_2!E44+GT_2!E44+KZN_2!E44+LIM_2!E44+MPU_2!E44+NC_2!E44+NW_2!E44+WC_2!E44 -> 0 | F44: =EC_2!F44+FS_2!F44+GT_2!F44+KZN_2!F44+LIM_2!F44+MPU_2!F44+NC_2!F44+NW_2!F44+WC_2!F44 -> 0 | G44: =EC_2!G44+FS_2!G44+GT_2!G44+KZN_2!G44+LIM_2!G44+MPU_2!G44+NC_2!G44+NW_2!G44+WC_2!G44 -> 0 | H44: =EC_2!H44+FS_2!H44+GT_2!H44+KZN_2!H44+LIM_2!H44+MPU_2!H44+NC_2!H44+NW_2!H44+WC_2!H44 -> 0 | I44: =EC_2!I44+FS_2!I44+GT_2!I44+KZN_2!I44+LIM_2!I44+MPU_2!I44+NC_2!I44+NW_2!I44+WC_2!I44 -> 0 | J44: =EC_2!J44+FS_2!J44+GT_2!J44+KZN_2!J44+LIM_2!J44+MPU_2!J44+NC_2!J44+NW_2!J44+WC_2!J44 -> 0 | K44: =EC_2!K44+FS_2!K44+GT_2!K44+KZN_2!K44+LIM_2!K44+MPU_2!K44+NC_2!K44+NW_2!K44+WC_2!K44 -> 0 | L44: =EC_2!L44+FS_2!L44+GT_2!L44+KZN_2!L44+LIM_2!L44+MPU_2!L44+NC_2!L44+NW_2!L44+WC_2!L44 -> 0 | M44: =EC_2!M44+FS_2!M44+GT_2!M44+KZN_2!M44+LIM_2!M44+MPU_2!M44+NC_2!M44+NW_2!M44+WC_2!M44 -> 0 | N44: 0 | T44: (c) Human Papillomavirus Vaccine Grant | U44: 211200 | V44: 0 | W44: 211200 | X44: 0 | Y44: 211200 | AA44: 105570 | AB44: 105570 | AD44: 62287 | AE44: 0.2949195076 | AK44: (c) Human Papillomavirus Vaccine Grant | AL44: 211200 | AM44: 0 | AN44: 211200 | AO44: 0 | AP44: 211200 | AR44: 105570 | AS44: 105570 | AU44: 62287
C45: (d) Statutory Human Resources, Training and Development Grant | D45: =EC_2!D45+FS_2!D45+GT_2!D45+KZN_2!D45+LIM_2!D45+MPU_2!D45+NC_2!D45+NW_2!D45+WC_2!D45 -> 4054458 | E45: =EC_2!E45+FS_2!E45+GT_2!E45+KZN_2!E45+LIM_2!E45+MPU_2!E45+NC_2!E45+NW_2!E45+WC_2!E45 -> 243223 | F45: =EC_2!F45+FS_2!F45+GT_2!F45+KZN_2!F45+LIM_2!F45+MPU_2!F45+NC_2!F45+NW_2!F45+WC_2!F45 -> 4297681 | G45: =EC_2!G45+FS_2!G45+GT_2!G45+KZN_2!G45+LIM_2!G45+MPU_2!G45+NC_2!G45+NW_2!G45+WC_2!G45 -> 51313 | H45: =EC_2!H45+FS_2!H45+GT_2!H45+KZN_2!H45+LIM_2!H45+MPU_2!H45+NC_2!H45+NW_2!H45+WC_2!H45 -> 4348994 | I45: =EC_2!I45+FS_2!I45+GT_2!I45+KZN_2!I45+LIM_2!I45+MPU_2!I45+NC_2!I45+NW_2!I45+WC_2!I45 -> 0 | J45: =EC_2!J45+FS_2!J45+GT_2!J45+KZN_2!J45+LIM_2!J45+MPU_2!J45+NC_2!J45+NW_2!J45+WC_2!J45 -> 4297681 | K45: =EC_2!K45+FS_2!K45+GT_2!K45+KZN_2!K45+LIM_2!K45+MPU_2!K45+NC_2!K45+NW_2!K45+WC_2!K45 -> 4297681 | L45: =EC_2!L45+FS_2!L45+GT_2!L45+KZN_2!L45+LIM_2!L45+MPU_2!L45+NC_2!L45+NW_2!L45+WC_2!L45 -> 0 | M45: =EC_2!M45+FS_2!M45+GT_2!M45+KZN_2!M45+LIM_2!M45+MPU_2!M45+NC_2!M45+NW_2!M45+WC_2!M45 -> 4262631 | N45: 1.051344224 | T45: (d) Statutory Human Resources, Training and Development Grant | U45: 605696 | V45: 0 | W45: 605696 | X45: 0 | Y45: 605696 | AA45: 302827 | AB45: 302827 | AD45: 430422 | AE45: 0.7106238113 | AK45: (d) Statutory Human Resources, Training and Development Grant | AL45: -3448762 | AM45: -243223 | AN45: -3691985 | AO45: -51313 | AP45: -3743298 | AR45: -3994854 | AS45: -3994854 | AU45: -3832209
C46: (e) National Health Insurance Grant | D46: =EC_2!D46+FS_2!D46+GT_2!D46+KZN_2!D46+LIM_2!D46+MPU_2!D46+NC_2!D46+NW_2!D46+WC_2!D46 -> 268677 | E46: =EC_2!E46+FS_2!E46+GT_2!E46+KZN_2!E46+LIM_2!E46+MPU_2!E46+NC_2!E46+NW_2!E46+WC_2!E46 -> 0 | F46: =EC_2!F46+FS_2!F46+GT_2!F46+KZN_2!F46+LIM_2!F46+MPU_2!F46+NC_2!F46+NW_2!F46+WC_2!F46 -> 268677 | G46: =EC_2!G46+FS_2!G46+GT_2!G46+KZN_2!G46+LIM_2!G46+MPU_2!G46+NC_2!G46+NW_2!G46+WC_2!G46 -> 0 | H46: =EC_2!H46+FS_2!H46+GT_2!H46+KZN_2!H46+LIM_2!H46+MPU_2!H46+NC_2!H46+NW_2!H46+WC_2!H46 -> 268677 | I46: =EC_2!I46+FS_2!I46+GT_2!I46+KZN_2!I46+LIM_2!I46+MPU_2!I46+NC_2!I46+NW_2!I46+WC_2!I46 -> 0 | J46: =EC_2!J46+FS_2!J46+GT_2!J46+KZN_2!J46+LIM_2!J46+MPU_2!J46+NC_2!J46+NW_2!J46+WC_2!J46 -> 268677 | K46: =EC_2!K46+FS_2!K46+GT_2!K46+KZN_2!K46+LIM_2!K46+MPU_2!K46+NC_2!K46+NW_2!K46+WC_2!K46 -> 268677.0027 | L46: =EC_2!L46+FS_2!L46+GT_2!L46+KZN_2!L46+LIM_2!L46+MPU_2!L46+NC_2!L46+NW_2!L46+WC_2!L46 -> 0 | M46: =EC_2!M46+FS_2!M46+GT_2!M46+KZN_2!M46+LIM_2!M46+MPU_2!M46+NC_2!M46+NW_2!M46+WC_2!M46 -> 246970 | N46: 0.919207822 | T46: (e) National Health Insurance Grant | U46: 0 | V46: 0 | W46: 0 | X46: 0 | Y46: 0 | AA46: 0 | AB46: 0 | AD46: 0 | AE46: 0 | AK46: (e) National Health Insurance Grant | AL46: -268677 | AM46: 0 | AN46: -268677 | AO46: 0 | AP46: -268677 | AR46: -268677 | AS46: -268677.0027 | AU46: -246970
D47: =EC_2!D47+FS_2!D47+GT_2!D47+KZN_2!D47+LIM_2!D47+MPU_2!D47+NC_2!D47+NW_2!D47+WC_2!D47 -> 0 | E47: =EC_2!E47+FS_2!E47+GT_2!E47+KZN_2!E47+LIM_2!E47+MPU_2!E47+NC_2!E47+NW_2!E47+WC_2!E47 -> 0 | F47: =EC_2!F47+FS_2!F47+GT_2!F47+KZN_2!F47+LIM_2!F47+MPU_2!F47+NC_2!F47+NW_2!F47+WC_2!F47 -> 0 | G47: =EC_2!G47+FS_2!G47+GT_2!G47+KZN_2!G47+LIM_2!G47+MPU_2!G47+NC_2!G47+NW_2!G47+WC_2!G47 -> 0 | H47: =EC_2!H47+FS_2!H47+GT_2!H47+KZN_2!H47+LIM_2!H47+MPU_2!H47+NC_2!H47+NW_2!H47+WC_2!H47 -> 0 | I47: =EC_2!I47+FS_2!I47+GT_2!I47+KZN_2!I47+LIM_2!I47+MPU_2!I47+NC_2!I47+NW_2!I47+WC_2!I47 -> 0 | J47: =EC_2!J47+FS_2!J47+GT_2!J47+KZN_2!J47+LIM_2!J47+MPU_2!J47+NC_2!J47+NW_2!J47+WC_2!J47 -> 0 | K47: =EC_2!K47+FS_2!K47+GT_2!K47+KZN_2!K47+LIM_2!K47+MPU_2!K47+NC_2!K47+NW_2!K47+WC_2!K47 -> 0 | L47: =EC_2!L47+FS_2!L47+GT_2!L47+KZN_2!L47+LIM_2!L47+MPU_2!L47+NC_2!L47+NW_2!L47+WC_2!L47 -> 0 | M47: =EC_2!M47+FS_2!M47+GT_2!M47+KZN_2!M47+LIM_2!M47+MPU_2!M47+NC_2!M47+NW_2!M47+WC_2!M47 -> 0 | AK47: 0 | AL47: 0 | AM47: 0 | AN47: 0 | AO47: 0 | AP47: 0 | AR47: 0 | AS47: 0 | AU47: 0
C48: Human Settlements (Vote 33) | D48: =EC_2!D48+FS_2!D48+GT_2!D48+KZN_2!D48+LIM_2!D48+MPU_2!D48+NC_2!D48+NW_2!D48+WC_2!D48 -> 17292679 | E48: =EC_2!E48+FS_2!E48+GT_2!E48+KZN_2!E48+LIM_2!E48+MPU_2!E48+NC_2!E48+NW_2!E48+WC_2!E48 -> 0 | F48: =EC_2!F48+FS_2!F48+GT_2!F48+KZN_2!F48+LIM_2!F48+MPU_2!F48+NC_2!F48+NW_2!F48+WC_2!F48 -> 17292679 | G48: =EC_2!G48+FS_2!G48+GT_2!G48+KZN_2!G48+LIM_2!G48+MPU_2!G48+NC_2!G48+NW_2!G48+WC_2!G48 -> 526568 | H48: =EC_2!H48+FS_2!H48+GT_2!H48+KZN_2!H48+LIM_2!H48+MPU_2!H48+NC_2!H48+NW_2!H48+WC_2!H48 -> 17819247 | I48: =EC_2!I48+FS_2!I48+GT_2!I48+KZN_2!I48+LIM_2!I48+MPU_2!I48+NC_2!I48+NW_2!I48+WC_2!I48 -> 0 | J48: =EC_2!J48+FS_2!J48+GT_2!J48+KZN_2!J48+LIM_2!J48+MPU_2!J48+NC_2!J48+NW_2!J48+WC_2!J48 -> 17292679 | K48: =EC_2!K48+FS_2!K48+GT_2!K48+KZN_2!K48+LIM_2!K48+MPU_2!K48+NC_2!K48+NW_2!K48+WC_2!K48 -> 17292679 | L48: =EC_2!L48+FS_2!L48+GT_2!L48+KZN_2!L48+LIM_2!L48+MPU_2!L48+NC_2!L48+NW_2!L48+WC_2!L48 -> 0 | M48: =EC_2!M48+FS_2!M48+GT_2!M48+KZN_2!M48+LIM_2!M48+MPU_2!M48+NC_2!M48+NW_2!M48+WC_2!M48 -> 16891349.45 | N48: =IFERROR(M48/D48,0) -> 0.9767919389 | T48: =C48 -> Human Settlements (Vote 33) | U48: 19327515 | V48: 0 | W48: 19327515 | X48: 0 | Y48: 19327515 | AA48: 9130694 | AB48: 9170843.175 | AD48: 8294072 | AE48: 0.4291328709 | AK48: Human Settlements (Vote 33) | AL48: 2034836 | AM48: 0 | AN48: 2034836 | AO48: -526568 | AP48: 1508268 | AR48: -8161985 | AS48: -8121835.825 | AU48: -8597277.45
C49: (a) Human Settlements Development Grant | D49: =EC_2!D49+FS_2!D49+GT_2!D49+KZN_2!D49+LIM_2!D49+MPU_2!D49+NC_2!D49+NW_2!D49+WC_2!D49 -> 13402961 | E49: =EC_2!E49+FS_2!E49+GT_2!E49+KZN_2!E49+LIM_2!E49+MPU_2!E49+NC_2!E49+NW_2!E49+WC_2!E49 -> 0 | F49: =EC_2!F49+FS_2!F49+GT_2!F49+KZN_2!F49+LIM_2!F49+MPU_2!F49+NC_2!F49+NW_2!F49+WC_2!F49 -> 13402961 | G49: =EC_2!G49+FS_2!G49+GT_2!G49+KZN_2!G49+LIM_2!G49+MPU_2!G49+NC_2!G49+NW_2!G49+WC_2!G49 -> 443797 | H49: =EC_2!H49+FS_2!H49+GT_2!H49+KZN_2!H49+LIM_2!H49+MPU_2!H49+NC_2!H49+NW_2!H49+WC_2!H49 -> 13846758 | I49: =EC_2!I49+FS_2!I49+GT_2!I49+KZN_2!I49+LIM_2!I49+MPU_2!I49+NC_2!I49+NW_2!I49+WC_2!I49 -> 0 | J49: =EC_2!J49+FS_2!J49+GT_2!J49+KZN_2!J49+LIM_2!J49+MPU_2!J49+NC_2!J49+NW_2!J49+WC_2!J49 -> 13402961 | K49: =EC_2!K49+FS_2!K49+GT_2!K49+KZN_2!K49+LIM_2!K49+MPU_2!K49+NC_2!K49+NW_2!K49+WC_2!K49 -> 13402961 | L49: =EC_2!L49+FS_2!L49+GT_2!L49+KZN_2!L49+LIM_2!L49+MPU_2!L49+NC_2!L49+NW_2!L49+WC_2!L49 -> 0 | M49: =EC_2!M49+FS_2!M49+GT_2!M49+KZN_2!M49+LIM_2!M49+MPU_2!M49+NC_2!M49+NW_2!M49+WC_2!M49 -> 13329865.95 | N49: 0.9945463503 | T49: =C49 -> (a) Human Settlements Development Grant | U49: 18779815 | V49: 0 | W49: 18779815 | X49: 0 | Y49: 18779815 | AA49: 8931387 | AB49: 8961386.175 | AD49: 8210247 | AE49: 0.4371846581 | AK49: =C49 -> (a) Human Settlements Development Grant | AL49: =IFERROR(U49-D49,0) -> 5376854 | AM49: =IFERROR(V49-E49,0) -> 0 | AN49: =IFERROR(W49-F49,0) -> 5376854 | AO49: =IFERROR(X49-G49,0) -> -443797 | AP49: =IFERROR(Y49-H49,0) -> 4933057 | AR49: -4471574 | AS49: -4441574.825 | AU49: =IFERROR(AD49-M49,0) -> -5119618.946
C50: (b) Title Deeds Restoriation Grant | D50: =EC_2!D50+FS_2!D50+GT_2!D50+KZN_2!D50+LIM_2!D50+MPU_2!D50+NC_2!D50+NW_2!D50+WC_2!D50 -> 3889718 | E50: =EC_2!E50+FS_2!E50+GT_2!E50+KZN_2!E50+LIM_2!E50+MPU_2!E50+NC_2!E50+NW_2!E50+WC_2!E50 -> 0 | F50: =EC_2!F50+FS_2!F50+GT_2!F50+KZN_2!F50+LIM_2!F50+MPU_2!F50+NC_2!F50+NW_2!F50+WC_2!F50 -> 3889718 | G50: =EC_2!G50+FS_2!G50+GT_2!G50+KZN_2!G50+LIM_2!G50+MPU_2!G50+NC_2!G50+NW_2!G50+WC_2!G50 -> 61264 | H50: =EC_2!H50+FS_2!H50+GT_2!H50+KZN_2!H50+LIM_2!H50+MPU_2!H50+NC_2!H50+NW_2!H50+WC_2!H50 -> 3950982 | I50: =EC_2!I50+FS_2!I50+GT_2!I50+KZN_2!I50+LIM_2!I50+MPU_2!I50+NC_2!I50+NW_2!I50+WC_2!I50 -> 0 | J50: =EC_2!J50+FS_2!J50+GT_2!J50+KZN_2!J50+LIM_2!J50+MPU_2!J50+NC_2!J50+NW_2!J50+WC_2!J50 -> 3889718 | K50: =EC_2!K50+FS_2!K50+GT_2!K50+KZN_2!K50+LIM_2!K50+MPU_2!K50+NC_2!K50+NW_2!K50+WC_2!K50 -> 3889718 | L50: =EC_2!L50+FS_2!L50+GT_2!L50+KZN_2!L50+LIM_2!L50+MPU_2!L50+NC_2!L50+NW_2!L50+WC_2!L50 -> 0 | M50: =EC_2!M50+FS_2!M50+GT_2!M50+KZN_2!M50+LIM_2!M50+MPU_2!M50+NC_2!M50+NW_2!M50+WC_2!M50 -> 3551092.504 | N50: 0.912943433 | T50: (b) Title Deeds Restoriation Grant | U50: 547700 | V50: 0 | W50: 547700 | X50: 0 | Y50: 547700 | AA50: 199307 | AB50: 209457 | AD50: 83825 | AE50: 0.1530491145 | AK50: =C50 -> (b) Title Deeds Restoriation Grant | AL50: =IFERROR(U50-D50,0) -> -3342018 | AM50: 0 | AN50: -3342018 | AO50: -61264 | AP50: -3403282 | AR50: -3690411 | AS50: -3680261 | AU50: =IFERROR(AD50-M50,0) -> -3467267.504
D51: =EC_2!D51+FS_2!D51+GT_2!D51+KZN_2!D51+LIM_2!D51+MPU_2!D51+NC_2!D51+NW_2!D51+WC_2!D51 -> 0 | E51: =EC_2!E51+FS_2!E51+GT_2!E51+KZN_2!E51+LIM_2!E51+MPU_2!E51+NC_2!E51+NW_2!E51+WC_2!E51 -> 0 | F51: =EC_2!F51+FS_2!F51+GT_2!F51+KZN_2!F51+LIM_2!F51+MPU_2!F51+NC_2!F51+NW_2!F51+WC_2!F51 -> 0 | G51: =EC_2!G51+FS_2!G51+GT_2!G51+KZN_2!G51+LIM_2!G51+MPU_2!G51+NC_2!G51+NW_2!G51+WC_2!G51 -> 21507 | H51: =EC_2!H51+FS_2!H51+GT_2!H51+KZN_2!H51+LIM_2!H51+MPU_2!H51+NC_2!H51+NW_2!H51+WC_2!H51 -> 21507 | I51: =EC_2!I51+FS_2!I51+GT_2!I51+KZN_2!I51+LIM_2!I51+MPU_2!I51+NC_2!I51+NW_2!I51+WC_2!I51 -> 0 | J51: =EC_2!J51+FS_2!J51+GT_2!J51+KZN_2!J51+LIM_2!J51+MPU_2!J51+NC_2!J51+NW_2!J51+WC_2!J51 -> 0 | K51: =EC_2!K51+FS_2!K51+GT_2!K51+KZN_2!K51+LIM_2!K51+MPU_2!K51+NC_2!K51+NW_2!K51+WC_2!K51 -> 0 | L51: =EC_2!L51+FS_2!L51+GT_2!L51+KZN_2!L51+LIM_2!L51+MPU_2!L51+NC_2!L51+NW_2!L51+WC_2!L51 -> 0 | M51: =EC_2!M51+FS_2!M51+GT_2!M51+KZN_2!M51+LIM_2!M51+MPU_2!M51+NC_2!M51+NW_2!M51+WC_2!M51 -> 10391 | N51: =IFERROR(M51/F51,0) -> 0 | T51: 0 | U51: 0 | V51: 0 | W51: 0 | X51: 0 | Y51: 0 | AA51: 0 | AB51: 0 | AD51: 0 | AE51: 0 | AK51: 0 | AL51: 0 | AM51: 0 | AN51: 0 | AO51: -21507 | AP51: -21507 | AR51: 0 | AS51: 0 | AU51: -10391
D52: =EC_2!D52+FS_2!D52+GT_2!D52+KZN_2!D52+LIM_2!D52+MPU_2!D52+NC_2!D52+NW_2!D52+WC_2!D52 -> 0 | E52: =EC_2!E52+FS_2!E52+GT_2!E52+KZN_2!E52+LIM_2!E52+MPU_2!E52+NC_2!E52+NW_2!E52+WC_2!E52 -> 0 | F52: =EC_2!F52+FS_2!F52+GT_2!F52+KZN_2!F52+LIM_2!F52+MPU_2!F52+NC_2!F52+NW_2!F52+WC_2!F52 -> 0 | G52: =EC_2!G52+FS_2!G52+GT_2!G52+KZN_2!G52+LIM_2!G52+MPU_2!G52+NC_2!G52+NW_2!G52+WC_2!G52 -> 0 | H52: =EC_2!H52+FS_2!H52+GT_2!H52+KZN_2!H52+LIM_2!H52+MPU_2!H52+NC_2!H52+NW_2!H52+WC_2!H52 -> 0 | I52: =EC_2!I52+FS_2!I52+GT_2!I52+KZN_2!I52+LIM_2!I52+MPU_2!I52+NC_2!I52+NW_2!I52+WC_2!I52 -> 0 | J52: =EC_2!J52+FS_2!J52+GT_2!J52+KZN_2!J52+LIM_2!J52+MPU_2!J52+NC_2!J52+NW_2!J52+WC_2!J52 -> 0 | K52: =EC_2!K52+FS_2!K52+GT_2!K52+KZN_2!K52+LIM_2!K52+MPU_2!K52+NC_2!K52+NW_2!K52+WC_2!K52 -> 0 | L52: =EC_2!L52+FS_2!L52+GT_2!L52+KZN_2!L52+LIM_2!L52+MPU_2!L52+NC_2!L52+NW_2!L52+WC_2!L52 -> 0 | M52: =EC_2!M52+FS_2!M52+GT_2!M52+KZN_2!M52+LIM_2!M52+MPU_2!M52+NC_2!M52+NW_2!M52+WC_2!M52 -> 0 | N52: 0 | T52: 0 | U52: 0 | V52: 0 | W52: 0 | X52: 0 | Y52: 0 | AA52: 0 | AB52: 0 | AD52: 0 | AE52: 0 | AK52: 0 | AL52: 0 | AM52: 0 | AN52: 0 | AO52: 0 | AP52: 0 | AR52: 0 | AS52: 0 | AU52: 0
D53: =EC_2!D53+FS_2!D53+GT_2!D53+KZN_2!D53+LIM_2!D53+MPU_2!D53+NC_2!D53+NW_2!D53+WC_2!D53 -> 0 | E53: =EC_2!E53+FS_2!E53+GT_2!E53+KZN_2!E53+LIM_2!E53+MPU_2!E53+NC_2!E53+NW_2!E53+WC_2!E53 -> 0 | F53: =EC_2!F53+FS_2!F53+GT_2!F53+KZN_2!F53+LIM_2!F53+MPU_2!F53+NC_2!F53+NW_2!F53+WC_2!F53 -> 0 | G53: =EC_2!G53+FS_2!G53+GT_2!G53+KZN_2!G53+LIM_2!G53+MPU_2!G53+NC_2!G53+NW_2!G53+WC_2!G53 -> 0 | H53: =EC_2!H53+FS_2!H53+GT_2!H53+KZN_2!H53+LIM_2!H53+MPU_2!H53+NC_2!H53+NW_2!H53+WC_2!H53 -> 0 | I53: =EC_2!I53+FS_2!I53+GT_2!I53+KZN_2!I53+LIM_2!I53+MPU_2!I53+NC_2!I53+NW_2!I53+WC_2!I53 -> 0 | J53: =EC_2!J53+FS_2!J53+GT_2!J53+KZN_2!J53+LIM_2!J53+MPU_2!J53+NC_2!J53+NW_2!J53+WC_2!J53 -> 0 | K53: =EC_2!K53+FS_2!K53+GT_2!K53+KZN_2!K53+LIM_2!K53+MPU_2!K53+NC_2!K53+NW_2!K53+WC_2!K53 -> 0 | L53: =EC_2!L53+FS_2!L53+GT_2!L53+KZN_2!L53+LIM_2!L53+MPU_2!L53+NC_2!L53+NW_2!L53+WC_2!L53 -> 0 | M53: =EC_2!M53+FS_2!M53+GT_2!M53+KZN_2!M53+LIM_2!M53+MPU_2!M53+NC_2!M53+NW_2!M53+WC_2!M53 -> 0 | N53: 0 | T53: 0 | U53: 0 | V53: 0 | W53: 0 | X53: 0 | Y53: 0 | AA53: 0 | AB53: 0 | AD53: 0 | AE53: 0 | AK53: 0 | AL53: 0 | AM53: 0 | AN53: 0 | AO53: 0 | AP53: 0 | AR53: 0 | AS53: 0 | AU53: 0
D54: =EC_2!D54+FS_2!D54+GT_2!D54+KZN_2!D54+LIM_2!D54+MPU_2!D54+NC_2!D54+NW_2!D54+WC_2!D54 -> 0 | E54: =EC_2!E54+FS_2!E54+GT_2!E54+KZN_2!E54+LIM_2!E54+MPU_2!E54+NC_2!E54+NW_2!E54+WC_2!E54 -> 0 | F54: =EC_2!F54+FS_2!F54+GT_2!F54+KZN_2!F54+LIM_2!F54+MPU_2!F54+NC_2!F54+NW_2!F54+WC_2!F54 -> 0 | G54: =EC_2!G54+FS_2!G54+GT_2!G54+KZN_2!G54+LIM_2!G54+MPU_2!G54+NC_2!G54+NW_2!G54+WC_2!G54 -> 0 | H54: =EC_2!H54+FS_2!H54+GT_2!H54+KZN_2!H54+LIM_2!H54+MPU_2!H54+NC_2!H54+NW_2!H54+WC_2!H54 -> 0 | I54: =EC_2!I54+FS_2!I54+GT_2!I54+KZN_2!I54+LIM_2!I54+MPU_2!I54+NC_2!I54+NW_2!I54+WC_2!I54 -> 0 | J54: =EC_2!J54+FS_2!J54+GT_2!J54+KZN_2!J54+LIM_2!J54+MPU_2!J54+NC_2!J54+NW_2!J54+WC_2!J54 -> 0 | K54: =EC_2!K54+FS_2!K54+GT_2!K54+KZN_2!K54+LIM_2!K54+MPU_2!K54+NC_2!K54+NW_2!K54+WC_2!K54 -> 0 | L54: =EC_2!L54+FS_2!L54+GT_2!L54+KZN_2!L54+LIM_2!L54+MPU_2!L54+NC_2!L54+NW_2!L54+WC_2!L54 -> 0 | M54: =EC_2!M54+FS_2!M54+GT_2!M54+KZN_2!M54+LIM_2!M54+MPU_2!M54+NC_2!M54+NW_2!M54+WC_2!M54 -> 0 | AK54: 0 | AL54: 0 | AM54: 0 | AN54: 0 | AO54: 0 | AP54: 0 | AR54: 0 | AS54: 0 | AU54: 0
C55: Public Works and Infrastructure (Vote 13) | D55: =EC_2!D55+FS_2!D55+GT_2!D55+KZN_2!D55+LIM_2!D55+MPU_2!D55+NC_2!D55+NW_2!D55+WC_2!D55 -> 836930 | E55: =EC_2!E55+FS_2!E55+GT_2!E55+KZN_2!E55+LIM_2!E55+MPU_2!E55+NC_2!E55+NW_2!E55+WC_2!E55 -> 0 | F55: =EC_2!F55+FS_2!F55+GT_2!F55+KZN_2!F55+LIM_2!F55+MPU_2!F55+NC_2!F55+NW_2!F55+WC_2!F55 -> 836930 | G55: =EC_2!G55+FS_2!G55+GT_2!G55+KZN_2!G55+LIM_2!G55+MPU_2!G55+NC_2!G55+NW_2!G55+WC_2!G55 -> 3307 | H55: =EC_2!H55+FS_2!H55+GT_2!H55+KZN_2!H55+LIM_2!H55+MPU_2!H55+NC_2!H55+NW_2!H55+WC_2!H55 -> 840237 | I55: =EC_2!I55+FS_2!I55+GT_2!I55+KZN_2!I55+LIM_2!I55+MPU_2!I55+NC_2!I55+NW_2!I55+WC_2!I55 -> 0 | J55: =EC_2!J55+FS_2!J55+GT_2!J55+KZN_2!J55+LIM_2!J55+MPU_2!J55+NC_2!J55+NW_2!J55+WC_2!J55 -> 836930 | K55: =EC_2!K55+FS_2!K55+GT_2!K55+KZN_2!K55+LIM_2!K55+MPU_2!K55+NC_2!K55+NW_2!K55+WC_2!K55 -> 835460 | L55: =EC_2!L55+FS_2!L55+GT_2!L55+KZN_2!L55+LIM_2!L55+MPU_2!L55+NC_2!L55+NW_2!L55+WC_2!L55 -> 0 | M55: =EC_2!M55+FS_2!M55+GT_2!M55+KZN_2!M55+LIM_2!M55+MPU_2!M55+NC_2!M55+NW_2!M55+WC_2!M55 -> 802611.4945 | N55: =IFERROR(M55/D55,0) -> 0.958994772 | T55: =C55 -> Public Works and Infrastructure (Vote 13) | U55: 868181 | V55: 0 | W55: 868181 | X55: 0 | Y55: 868181 | AA55: 607727 | AB55: 528974 | AD55: 388243.1276 | AE55: 0.4471914585 | AK55: Public Works and Infrastructure (Vote 13) | AL55: 31251 | AM55: 0 | AN55: 31251 | AO55: -3307 | AP55: 27944 | AR55: -229203 | AS55: -306486 | AU55: -414368.3669
C56: (a) Expanded Public Works Programme Integrated Grant for Provinces | D56: =EC_2!D56+FS_2!D56+GT_2!D56+KZN_2!D56+LIM_2!D56+MPU_2!D56+NC_2!D56+NW_2!D56+WC_2!D56 -> 422486 | E56: =EC_2!E56+FS_2!E56+GT_2!E56+KZN_2!E56+LIM_2!E56+MPU_2!E56+NC_2!E56+NW_2!E56+WC_2!E56 -> 0 | F56: =EC_2!F56+FS_2!F56+GT_2!F56+KZN_2!F56+LIM_2!F56+MPU_2!F56+NC_2!F56+NW_2!F56+WC_2!F56 -> 422486 | G56: =EC_2!G56+FS_2!G56+GT_2!G56+KZN_2!G56+LIM_2!G56+MPU_2!G56+NC_2!G56+NW_2!G56+WC_2!G56 -> 1472 | H56: =EC_2!H56+FS_2!H56+GT_2!H56+KZN_2!H56+LIM_2!H56+MPU_2!H56+NC_2!H56+NW_2!H56+WC_2!H56 -> 423958 | I56: =EC_2!I56+FS_2!I56+GT_2!I56+KZN_2!I56+LIM_2!I56+MPU_2!I56+NC_2!I56+NW_2!I56+WC_2!I56 -> 0 | J56: =EC_2!J56+FS_2!J56+GT_2!J56+KZN_2!J56+LIM_2!J56+MPU_2!J56+NC_2!J56+NW_2!J56+WC_2!J56 -> 422486 | K56: =EC_2!K56+FS_2!K56+GT_2!K56+KZN_2!K56+LIM_2!K56+MPU_2!K56+NC_2!K56+NW_2!K56+WC_2!K56 -> 421016 | L56: =EC_2!L56+FS_2!L56+GT_2!L56+KZN_2!L56+LIM_2!L56+MPU_2!L56+NC_2!L56+NW_2!L56+WC_2!L56 -> 0 | M56: =EC_2!M56+FS_2!M56+GT_2!M56+KZN_2!M56+LIM_2!M56+MPU_2!M56+NC_2!M56+NW_2!M56+WC_2!M56 -> 390003.5 | N56: 0.9231157956 | T56: =C56 -> (a) Expanded Public Works Programme Integrated Grant for Provinces | U56: 437388 | V56: 0 | W56: 437388 | X56: 0 | Y56: 437388 | AA56: 306172 | AB56: 231365 | AD56: 177734.1276 | AE56: 0.406353461 | AK56: =C56 -> (a) Expanded Public Works Programme Integrated Grant for Provinces | AL56: =IFERROR(U56-D56,0) -> 14902 | AM56: =IFERROR(V56-E56,0) -> 0 | AN56: =IFERROR(W56-F56,0) -> 14902 | AO56: =IFERROR(X56-G56,0) -> -1472 | AP56: =IFERROR(Y56-H56,0) -> 13430 | AR56: -116314 | AS56: -189651 | AU56: =IFERROR(AD56-M56,0) -> -212269.3724
C57: (b) Social Sector Expanded Public Works Programme Incentive Grant for Provinces | D57: =EC_2!D57+FS_2!D57+GT_2!D57+KZN_2!D57+LIM_2!D57+MPU_2!D57+NC_2!D57+NW_2!D57+WC_2!D57 -> 414444 | E57: =EC_2!E57+FS_2!E57+GT_2!E57+KZN_2!E57+LIM_2!E57+MPU_2!E57+NC_2!E57+NW_2!E57+WC_2!E57 -> 0 | F57: =EC_2!F57+FS_2!F57+GT_2!F57+KZN_2!F57+LIM_2!F57+MPU_2!F57+NC_2!F57+NW_2!F57+WC_2!F57 -> 414444 | G57: =EC_2!G57+FS_2!G57+GT_2!G57+KZN_2!G57+LIM_2!G57+MPU_2!G57+NC_2!G57+NW_2!G57+WC_2!G57 -> 1835 | H57: =EC_2!H57+FS_2!H57+GT_2!H57+KZN_2!H57+LIM_2!H57+MPU_2!H57+NC_2!H57+NW_2!H57+WC_2!H57 -> 416279 | I57: =EC_2!I57+FS_2!I57+GT_2!I57+KZN_2!I57+LIM_2!I57+MPU_2!I57+NC_2!I57+NW_2!I57+WC_2!I57 -> 0 | J57: =EC_2!J57+FS_2!J57+GT_2!J57+KZN_2!J57+LIM_2!J57+MPU_2!J57+NC_2!J57+NW_2!J57+WC_2!J57 -> 414444 | K57: =EC_2!K57+FS_2!K57+GT_2!K57+KZN_2!K57+LIM_2!K57+MPU_2!K57+NC_2!K57+NW_2!K57+WC_2!K57 -> 414444 | L57: =EC_2!L57+FS_2!L57+GT_2!L57+KZN_2!L57+LIM_2!L57+MPU_2!L57+NC_2!L57+NW_2!L57+WC_2!L57 -> 0 | M57: =EC_2!M57+FS_2!M57+GT_2!M57+KZN_2!M57+LIM_2!M57+MPU_2!M57+NC_2!M57+NW_2!M57+WC_2!M57 -> 412607.9945 | N57: 0.9955699553 | T57: (b) Social Sector Expanded Public Works Programme Incentive Grant for Provinces | U57: 430793 | V57: 0 | W57: 430793 | X57: 0 | Y57: 430793 | AA57: 301555 | AB57: 297609 | AD57: 210509 | AE57: 0.4886546439 | AK57: =C57 -> (b) Social Sector Expanded Public Works Programme Incentive Grant for Provinces | AL57: =IFERROR(U57-D57,0) -> 16349 | AM57: 0 | AN57: 16349 | AO57: -1835 | AP57: 14514 | AR57: -112889 | AS57: -116835 | AU57: =IFERROR(AD57-M57,0) -> -202098.9945
D58: =EC_2!D58+FS_2!D58+GT_2!D58+KZN_2!D58+LIM_2!D58+MPU_2!D58+NC_2!D58+NW_2!D58+WC_2!D58 -> 0 | E58: =EC_2!E58+FS_2!E58+GT_2!E58+KZN_2!E58+LIM_2!E58+MPU_2!E58+NC_2!E58+NW_2!E58+WC_2!E58 -> 0 | F58: =EC_2!F58+FS_2!F58+GT_2!F58+KZN_2!F58+LIM_2!F58+MPU_2!F58+NC_2!F58+NW_2!F58+WC_2!F58 -> 0 | G58: =EC_2!G58+FS_2!G58+GT_2!G58+KZN_2!G58+LIM_2!G58+MPU_2!G58+NC_2!G58+NW_2!G58+WC_2!G58 -> 0 | H58: =EC_2!H58+FS_2!H58+GT_2!H58+KZN_2!H58+LIM_2!H58+MPU_2!H58+NC_2!H58+NW_2!H58+WC_2!H58 -> 0 | I58: =EC_2!I58+FS_2!I58+GT_2!I58+KZN_2!I58+LIM_2!I58+MPU_2!I58+NC_2!I58+NW_2!I58+WC_2!I58 -> 0 | J58: =EC_2!J58+FS_2!J58+GT_2!J58+KZN_2!J58+LIM_2!J58+MPU_2!J58+NC_2!J58+NW_2!J58+WC_2!J58 -> 0 | K58: =EC_2!K58+FS_2!K58+GT_2!K58+KZN_2!K58+LIM_2!K58+MPU_2!K58+NC_2!K58+NW_2!K58+WC_2!K58 -> 0 | L58: =EC_2!L58+FS_2!L58+GT_2!L58+KZN_2!L58+LIM_2!L58+MPU_2!L58+NC_2!L58+NW_2!L58+WC_2!L58 -> 0 | M58: =EC_2!M58+FS_2!M58+GT_2!M58+KZN_2!M58+LIM_2!M58+MPU_2!M58+NC_2!M58+NW_2!M58+WC_2!M58 -> 0 | N58: =IFERROR(M58/F58,0) -> 0 | T58: 0 | U58: 0 | V58: 0 | W58: 0 | X58: 0 | Y58: 0 | AA58: 0 | AB58: 0 | AD58: 0 | AE58: 0 | AK58: 0 | AL58: 0 | AM58: 0 | AN58: 0 | AO58: 0 | AP58: 0 | AR58: 0 | AS58: 0 | AU58: 0
D59: =EC_2!D59+FS_2!D59+GT_2!D59+KZN_2!D59+LIM_2!D59+MPU_2!D59+NC_2!D59+NW_2!D59+WC_2!D59 -> 0 | E59: =EC_2!E59+FS_2!E59+GT_2!E59+KZN_2!E59+LIM_2!E59+MPU_2!E59+NC_2!E59+NW_2!E59+WC_2!E59 -> 0 | F59: =EC_2!F59+FS_2!F59+GT_2!F59+KZN_2!F59+LIM_2!F59+MPU_2!F59+NC_2!F59+NW_2!F59+WC_2!F59 -> 0 | G59: =EC_2!G59+FS_2!G59+GT_2!G59+KZN_2!G59+LIM_2!G59+MPU_2!G59+NC_2!G59+NW_2!G59+WC_2!G59 -> 0 | H59: =EC_2!H59+FS_2!H59+GT_2!H59+KZN_2!H59+LIM_2!H59+MPU_2!H59+NC_2!H59+NW_2!H59+WC_2!H59 -> 0 | I59: =EC_2!I59+FS_2!I59+GT_2!I59+KZN_2!I59+LIM_2!I59+MPU_2!I59+NC_2!I59+NW_2!I59+WC_2!I59 -> 0 | J59: =EC_2!J59+FS_2!J59+GT_2!J59+KZN_2!J59+LIM_2!J59+MPU_2!J59+NC_2!J59+NW_2!J59+WC_2!J59 -> 0 | K59: =EC_2!K59+FS_2!K59+GT_2!K59+KZN_2!K59+LIM_2!K59+MPU_2!K59+NC_2!K59+NW_2!K59+WC_2!K59 -> 0 | L59: =EC_2!L59+FS_2!L59+GT_2!L59+KZN_2!L59+LIM_2!L59+MPU_2!L59+NC_2!L59+NW_2!L59+WC_2!L59 -> 0 | M59: =EC_2!M59+FS_2!M59+GT_2!M59+KZN_2!M59+LIM_2!M59+MPU_2!M59+NC_2!M59+NW_2!M59+WC_2!M59 -> 0 | N59: 0 | T59: 0 | U59: 0 | V59: 0 | W59: 0 | X59: 0 | Y59: 0 | AA59: 0 | AB59: 0 | AD59: 0 | AE59: 0 | AK59: 0 | AL59: 0 | AM59: 0 | AN59: 0 | AO59: 0 | AP59: 0 | AR59: 0 | AS59: 0 | AU59: 0
D60: =EC_2!D60+FS_2!D60+GT_2!D60+KZN_2!D60+LIM_2!D60+MPU_2!D60+NC_2!D60+NW_2!D60+WC_2!D60 -> 0 | E60: =EC_2!E60+FS_2!E60+GT_2!E60+KZN_2!E60+LIM_2!E60+MPU_2!E60+NC_2!E60+NW_2!E60+WC_2!E60 -> 0 | F60: =EC_2!F60+FS_2!F60+GT_2!F60+KZN_2!F60+LIM_2!F60+MPU_2!F60+NC_2!F60+NW_2!F60+WC_2!F60 -> 0 | G60: =EC_2!G60+FS_2!G60+GT_2!G60+KZN_2!G60+LIM_2!G60+MPU_2!G60+NC_2!G60+NW_2!G60+WC_2!G60 -> 0 | H60: =EC_2!H60+FS_2!H60+GT_2!H60+KZN_2!H60+LIM_2!H60+MPU_2!H60+NC_2!H60+NW_2!H60+WC_2!H60 -> 0 | I60: =EC_2!I60+FS_2!I60+GT_2!I60+KZN_2!I60+LIM_2!I60+MPU_2!I60+NC_2!I60+NW_2!I60+WC_2!I60 -> 0 | J60: =EC_2!J60+FS_2!J60+GT_2!J60+KZN_2!J60+LIM_2!J60+MPU_2!J60+NC_2!J60+NW_2!J60+WC_2!J60 -> 0 | K60: =EC_2!K60+FS_2!K60+GT_2!K60+KZN_2!K60+LIM_2!K60+MPU_2!K60+NC_2!K60+NW_2!K60+WC_2!K60 -> 0 | L60: =EC_2!L60+FS_2!L60+GT_2!L60+KZN_2!L60+LIM_2!L60+MPU_2!L60+NC_2!L60+NW_2!L60+WC_2!L60 -> 0 | M60: =EC_2!M60+FS_2!M60+GT_2!M60+KZN_2!M60+LIM_2!M60+MPU_2!M60+NC_2!M60+NW_2!M60+WC_2!M60 -> 0 | N60: 0 | T60: 0 | U60: 0 | V60: 0 | W60: 0 | X60: 0 | Y60: 0 | AA60: 0 | AB60: 0 | AD60: 0 | AE60: 0 | AK60: 0 | AL60: 0 | AM60: 0 | AN60: 0 | AO60: 0 | AP60: 0 | AR60: 0 | AS60: 0 | AU60: 0
D61: =EC_2!D61+FS_2!D61+GT_2!D61+KZN_2!D61+LIM_2!D61+MPU_2!D61+NC_2!D61+NW_2!D61+WC_2!D61 -> 0 | E61: =EC_2!E61+FS_2!E61+GT_2!E61+KZN_2!E61+LIM_2!E61+MPU_2!E61+NC_2!E61+NW_2!E61+WC_2!E61 -> 0 | F61: =EC_2!F61+FS_2!F61+GT_2!F61+KZN_2!F61+LIM_2!F61+MPU_2!F61+NC_2!F61+NW_2!F61+WC_2!F61 -> 0 | G61: =EC_2!G61+FS_2!G61+GT_2!G61+KZN_2!G61+LIM_2!G61+MPU_2!G61+NC_2!G61+NW_2!G61+WC_2!G61 -> 0 | H61: =EC_2!H61+FS_2!H61+GT_2!H61+KZN_2!H61+LIM_2!H61+MPU_2!H61+NC_2!H61+NW_2!H61+WC_2!H61 -> 0 | I61: =EC_2!I61+FS_2!I61+GT_2!I61+KZN_2!I61+LIM_2!I61+MPU_2!I61+NC_2!I61+NW_2!I61+WC_2!I61 -> 0 | J61: =EC_2!J61+FS_2!J61+GT_2!J61+KZN_2!J61+LIM_2!J61+MPU_2!J61+NC_2!J61+NW_2!J61+WC_2!J61 -> 0 | K61: =EC_2!K61+FS_2!K61+GT_2!K61+KZN_2!K61+LIM_2!K61+MPU_2!K61+NC_2!K61+NW_2!K61+WC_2!K61 -> 0 | L61: =EC_2!L61+FS_2!L61+GT_2!L61+KZN_2!L61+LIM_2!L61+MPU_2!L61+NC_2!L61+NW_2!L61+WC_2!L61 -> 0 | M61: =EC_2!M61+FS_2!M61+GT_2!M61+KZN_2!M61+LIM_2!M61+MPU_2!M61+NC_2!M61+NW_2!M61+WC_2!M61 -> 0 | AK61: 0 | AL61: 0 | AM61: 0 | AN61: 0 | AO61: 0 | AP61: 0 | AR61: 0 | AS61: 0 | AU61: 0
C62: Social Development (Vote 19) | D62: =EC_2!D62+FS_2!D62+GT_2!D62+KZN_2!D62+LIM_2!D62+MPU_2!D62+NC_2!D62+NW_2!D62+WC_2!D62 -> 1056661 | E62: =EC_2!E62+FS_2!E62+GT_2!E62+KZN_2!E62+LIM_2!E62+MPU_2!E62+NC_2!E62+NW_2!E62+WC_2!E62 -> 178000 | F62: =EC_2!F62+FS_2!F62+GT_2!F62+KZN_2!F62+LIM_2!F62+MPU_2!F62+NC_2!F62+NW_2!F62+WC_2!F62 -> 1234661 | G62: =EC_2!G62+FS_2!G62+GT_2!G62+KZN_2!G62+LIM_2!G62+MPU_2!G62+NC_2!G62+NW_2!G62+WC_2!G62 -> 365754 | H62: =EC_2!H62+FS_2!H62+GT_2!H62+KZN_2!H62+LIM_2!H62+MPU_2!H62+NC_2!H62+NW_2!H62+WC_2!H62 -> 1600415 | I62: =EC_2!I62+FS_2!I62+GT_2!I62+KZN_2!I62+LIM_2!I62+MPU_2!I62+NC_2!I62+NW_2!I62+WC_2!I62 -> 0 | J62: =EC_2!J62+FS_2!J62+GT_2!J62+KZN_2!J62+LIM_2!J62+MPU_2!J62+NC_2!J62+NW_2!J62+WC_2!J62 -> 1234661 | K62: =EC_2!K62+FS_2!K62+GT_2!K62+KZN_2!K62+LIM_2!K62+MPU_2!K62+NC_2!K62+NW_2!K62+WC_2!K62 -> 1234661 | L62: =EC_2!L62+FS_2!L62+GT_2!L62+KZN_2!L62+LIM_2!L62+MPU_2!L62+NC_2!L62+NW_2!L62+WC_2!L62 -> 0 | M62: =EC_2!M62+FS_2!M62+GT_2!M62+KZN_2!M62+LIM_2!M62+MPU_2!M62+NC_2!M62+NW_2!M62+WC_2!M62 -> 1161066.821 | N62: =IFERROR(M62/D62,0) -> 1.0988073 | T62: =C62 -> Social Development (Vote 19) | U62: 518228 | V62: 0 | W62: 518228 | X62: 0 | Y62: 518228 | AA62: 259334 | AB62: 259682 | AD62: 212847 | AE62: 0.4107207638 | AK62: Social Development (Vote 19) | AL62: -538433 | AM62: -178000 | AN62: -716433 | AO62: -365754 | AP62: -1082187 | AR62: -975327 | AS62: -974979 | AU62: -948219.8208
C63: (a) Early Childhood Development Grant | D63: =EC_2!D63+FS_2!D63+GT_2!D63+KZN_2!D63+LIM_2!D63+MPU_2!D63+NC_2!D63+NW_2!D63+WC_2!D63 -> 1056661 | E63: =EC_2!E63+FS_2!E63+GT_2!E63+KZN_2!E63+LIM_2!E63+MPU_2!E63+NC_2!E63+NW_2!E63+WC_2!E63 -> 178000 | F63: =EC_2!F63+FS_2!F63+GT_2!F63+KZN_2!F63+LIM_2!F63+MPU_2!F63+NC_2!F63+NW_2!F63+WC_2!F63 -> 1234661 | G63: =EC_2!G63+FS_2!G63+GT_2!G63+KZN_2!G63+LIM_2!G63+MPU_2!G63+NC_2!G63+NW_2!G63+WC_2!G63 -> 365754 | H63: =EC_2!H63+FS_2!H63+GT_2!H63+KZN_2!H63+LIM_2!H63+MPU_2!H63+NC_2!H63+NW_2!H63+WC_2!H63 -> 1600415 | I63: =EC_2!I63+FS_2!I63+GT_2!I63+KZN_2!I63+LIM_2!I63+MPU_2!I63+NC_2!I63+NW_2!I63+WC_2!I63 -> 0 | J63: =EC_2!J63+FS_2!J63+GT_2!J63+KZN_2!J63+LIM_2!J63+MPU_2!J63+NC_2!J63+NW_2!J63+WC_2!J63 -> 1234661 | K63: =EC_2!K63+FS_2!K63+GT_2!K63+KZN_2!K63+LIM_2!K63+MPU_2!K63+NC_2!K63+NW_2!K63+WC_2!K63 -> 1234661 | L63: =EC_2!L63+FS_2!L63+GT_2!L63+KZN_2!L63+LIM_2!L63+MPU_2!L63+NC_2!L63+NW_2!L63+WC_2!L63 -> 0 | M63: =EC_2!M63+FS_2!M63+GT_2!M63+KZN_2!M63+LIM_2!M63+MPU_2!M63+NC_2!M63+NW_2!M63+WC_2!M63 -> 1161066.821 | N63: 1.0988073 | T63: =C63 -> (a) Early Childhood Development Grant | U63: 518228 | V63: 0 | W63: 518228 | X63: 0 | Y63: 518228 | AA63: 259334 | AB63: 259682 | AD63: 212847 | AE63: 0.4107207638 | AK63: =C63 -> (a) Early Childhood Development Grant | AL63: =IFERROR(U63-D63,0) -> -538433 | AM63: =IFERROR(V63-E63,0) -> -178000 | AN63: =IFERROR(W63-F63,0) -> -716433 | AO63: =IFERROR(X63-G63,0) -> -365754 | AP63: =IFERROR(Y63-H63,0) -> -1082187 | AR63: -975327 | AS63: -974979 | AU63: =IFERROR(AD63-M63,0) -> -948219.8208
C64: (b) Substance Abuse Treatment Grant | D64: =EC_2!D64+FS_2!D64+GT_2!D64+KZN_2!D64+LIM_2!D64+MPU_2!D64+NC_2!D64+NW_2!D64+WC_2!D64 -> 0 | E64: =EC_2!E64+FS_2!E64+GT_2!E64+KZN_2!E64+LIM_2!E64+MPU_2!E64+NC_2!E64+NW_2!E64+WC_2!E64 -> 0 | F64: =EC_2!F64+FS_2!F64+GT_2!F64+KZN_2!F64+LIM_2!F64+MPU_2!F64+NC_2!F64+NW_2!F64+WC_2!F64 -> 0 | G64: =EC_2!G64+FS_2!G64+GT_2!G64+KZN_2!G64+LIM_2!G64+MPU_2!G64+NC_2!G64+NW_2!G64+WC_2!G64 -> 0 | H64: =EC_2!H64+FS_2!H64+GT_2!H64+KZN_2!H64+LIM_2!H64+MPU_2!H64+NC_2!H64+NW_2!H64+WC_2!H64 -> 0 | I64: =EC_2!I64+FS_2!I64+GT_2!I64+KZN_2!I64+LIM_2!I64+MPU_2!I64+NC_2!I64+NW_2!I64+WC_2!I64 -> 0 | J64: =EC_2!J64+FS_2!J64+GT_2!J64+KZN_2!J64+LIM_2!J64+MPU_2!J64+NC_2!J64+NW_2!J64+WC_2!J64 -> 0 | K64: =EC_2!K64+FS_2!K64+GT_2!K64+KZN_2!K64+LIM_2!K64+MPU_2!K64+NC_2!K64+NW_2!K64+WC_2!K64 -> 0 | L64: =EC_2!L64+FS_2!L64+GT_2!L64+KZN_2!L64+LIM_2!L64+MPU_2!L64+NC_2!L64+NW_2!L64+WC_2!L64 -> 0 | M64: =EC_2!M64+FS_2!M64+GT_2!M64+KZN_2!M64+LIM_2!M64+MPU_2!M64+NC_2!M64+NW_2!M64+WC_2!M64 -> 0 | N64: =IFERROR(M64/H64,0) -> 0 | T64: (b) Substance Abuse Treatment Grant | U64: 0 | V64: 0 | W64: 0 | X64: 0 | Y64: 0 | AA64: 0 | AB64: 0 | AD64: 0 | AE64: 0 | AK64: =C64 -> (b) Substance Abuse Treatment Grant | AL64: =IFERROR(U64-D64,0) -> 0 | AM64: 0 | AN64: 0 | AO64: 0 | AP64: 0 | AR64: 0 | AS64: 0 | AU64: =IFERROR(AD64-M64,0) -> 0
D65: =EC_2!D65+FS_2!D65+GT_2!D65+KZN_2!D65+LIM_2!D65+MPU_2!D65+NC_2!D65+NW_2!D65+WC_2!D65 -> 0 | E65: =EC_2!E65+FS_2!E65+GT_2!E65+KZN_2!E65+LIM_2!E65+MPU_2!E65+NC_2!E65+NW_2!E65+WC_2!E65 -> 0 | F65: =EC_2!F65+FS_2!F65+GT_2!F65+KZN_2!F65+LIM_2!F65+MPU_2!F65+NC_2!F65+NW_2!F65+WC_2!F65 -> 0 | G65: =EC_2!G65+FS_2!G65+GT_2!G65+KZN_2!G65+LIM_2!G65+MPU_2!G65+NC_2!G65+NW_2!G65+WC_2!G65 -> 0 | H65: =EC_2!H65+FS_2!H65+GT_2!H65+KZN_2!H65+LIM_2!H65+MPU_2!H65+NC_2!H65+NW_2!H65+WC_2!H65 -> 0 | I65: =EC_2!I65+FS_2!I65+GT_2!I65+KZN_2!I65+LIM_2!I65+MPU_2!I65+NC_2!I65+NW_2!I65+WC_2!I65 -> 0 | J65: =EC_2!J65+FS_2!J65+GT_2!J65+KZN_2!J65+LIM_2!J65+MPU_2!J65+NC_2!J65+NW_2!J65+WC_2!J65 -> 0 | K65: =EC_2!K65+FS_2!K65+GT_2!K65+KZN_2!K65+LIM_2!K65+MPU_2!K65+NC_2!K65+NW_2!K65+WC_2!K65 -> 0 | L65: =EC_2!L65+FS_2!L65+GT_2!L65+KZN_2!L65+LIM_2!L65+MPU_2!L65+NC_2!L65+NW_2!L65+WC_2!L65 -> 0 | M65: =EC_2!M65+FS_2!M65+GT_2!M65+KZN_2!M65+LIM_2!M65+MPU_2!M65+NC_2!M65+NW_2!M65+WC_2!M65 -> 0 | N65: =IFERROR(M65/F65,0) -> 0 | T65: 0 | U65: 0 | V65: 0 | W65: 0 | X65: 0 | Y65: 0 | AA65: 0 | AB65: 0 | AD65: 0 | AE65: 0 | AK65: 0 | AL65: 0 | AM65: 0 | AN65: 0 | AO65: 0 | AP65: 0 | AR65: 0 | AS65: 0 | AU65: 0
D66: =EC_2!D66+FS_2!D66+GT_2!D66+KZN_2!D66+LIM_2!D66+MPU_2!D66+NC_2!D66+NW_2!D66+WC_2!D66 -> 0 | E66: =EC_2!E66+FS_2!E66+GT_2!E66+KZN_2!E66+LIM_2!E66+MPU_2!E66+NC_2!E66+NW_2!E66+WC_2!E66 -> 0 | F66: =EC_2!F66+FS_2!F66+GT_2!F66+KZN_2!F66+LIM_2!F66+MPU_2!F66+NC_2!F66+NW_2!F66+WC_2!F66 -> 0 | G66: =EC_2!G66+FS_2!G66+GT_2!G66+KZN_2!G66+LIM_2!G66+MPU_2!G66+NC_2!G66+NW_2!G66+WC_2!G66 -> 0 | H66: =EC_2!H66+FS_2!H66+GT_2!H66+KZN_2!H66+LIM_2!H66+MPU_2!H66+NC_2!H66+NW_2!H66+WC_2!H66 -> 0 | I66: =EC_2!I66+FS_2!I66+GT_2!I66+KZN_2!I66+LIM_2!I66+MPU_2!I66+NC_2!I66+NW_2!I66+WC_2!I66 -> 0 | J66: =EC_2!J66+FS_2!J66+GT_2!J66+KZN_2!J66+LIM_2!J66+MPU_2!J66+NC_2!J66+NW_2!J66+WC_2!J66 -> 0 | K66: =EC_2!K66+FS_2!K66+GT_2!K66+KZN_2!K66+LIM_2!K66+MPU_2!K66+NC_2!K66+NW_2!K66+WC_2!K66 -> 0 | L66: =EC_2!L66+FS_2!L66+GT_2!L66+KZN_2!L66+LIM_2!L66+MPU_2!L66+NC_2!L66+NW_2!L66+WC_2!L66 -> 0 | M66: =EC_2!M66+FS_2!M66+GT_2!M66+KZN_2!M66+LIM_2!M66+MPU_2!M66+NC_2!M66+NW_2!M66+WC_2!M66 -> 0 | N66: 0 | T66: 0 | U66: 0 | V66: 0 | W66: 0 | X66: 0 | Y66: 0 | AA66: 0 | AB66: 0 | AD66: 0 | AE66: 0 | AK66: 0 | AL66: 0 | AM66: 0 | AN66: 0 | AO66: 0 | AP66: 0 | AR66: 0 | AS66: 0 | AU66: 0
D67: =EC_2!D67+FS_2!D67+GT_2!D67+KZN_2!D67+LIM_2!D67+MPU_2!D67+NC_2!D67+NW_2!D67+WC_2!D67 -> 0 | E67: =EC_2!E67+FS_2!E67+GT_2!E67+KZN_2!E67+LIM_2!E67+MPU_2!E67+NC_2!E67+NW_2!E67+WC_2!E67 -> 0 | F67: =EC_2!F67+FS_2!F67+GT_2!F67+KZN_2!F67+LIM_2!F67+MPU_2!F67+NC_2!F67+NW_2!F67+WC_2!F67 -> 0 | G67: =EC_2!G67+FS_2!G67+GT_2!G67+KZN_2!G67+LIM_2!G67+MPU_2!G67+NC_2!G67+NW_2!G67+WC_2!G67 -> 0 | H67: =EC_2!H67+FS_2!H67+GT_2!H67+KZN_2!H67+LIM_2!H67+MPU_2!H67+NC_2!H67+NW_2!H67+WC_2!H67 -> 0 | I67: =EC_2!I67+FS_2!I67+GT_2!I67+KZN_2!I67+LIM_2!I67+MPU_2!I67+NC_2!I67+NW_2!I67+WC_2!I67 -> 0 | J67: =EC_2!J67+FS_2!J67+GT_2!J67+KZN_2!J67+LIM_2!J67+MPU_2!J67+NC_2!J67+NW_2!J67+WC_2!J67 -> 0 | K67: =EC_2!K67+FS_2!K67+GT_2!K67+KZN_2!K67+LIM_2!K67+MPU_2!K67+NC_2!K67+NW_2!K67+WC_2!K67 -> 0 | L67: =EC_2!L67+FS_2!L67+GT_2!L67+KZN_2!L67+LIM_2!L67+MPU_2!L67+NC_2!L67+NW_2!L67+WC_2!L67 -> 0 | M67: =EC_2!M67+FS_2!M67+GT_2!M67+KZN_2!M67+LIM_2!M67+MPU_2!M67+NC_2!M67+NW_2!M67+WC_2!M67 -> 0 | N67: 0 | T67: 0 | U67: 0 | V67: 0 | W67: 0 | X67: 0 | Y67: 0 | AA67: 0 | AB67: 0 | AD67: 0 | AE67: 0 | AK67: 0 | AL67: 0 | AM67: 0 | AN67: 0 | AO67: 0 | AP67: 0 | AR67: 0 | AS67: 0 | AU67: 0
D68: =EC_2!D68+FS_2!D68+GT_2!D68+KZN_2!D68+LIM_2!D68+MPU_2!D68+NC_2!D68+NW_2!D68+WC_2!D68 -> 0 | E68: =EC_2!E68+FS_2!E68+GT_2!E68+KZN_2!E68+LIM_2!E68+MPU_2!E68+NC_2!E68+NW_2!E68+WC_2!E68 -> 0 | F68: =EC_2!F68+FS_2!F68+GT_2!F68+KZN_2!F68+LIM_2!F68+MPU_2!F68+NC_2!F68+NW_2!F68+WC_2!F68 -> 0 | G68: =EC_2!G68+FS_2!G68+GT_2!G68+KZN_2!G68+LIM_2!G68+MPU_2!G68+NC_2!G68+NW_2!G68+WC_2!G68 -> 0 | H68: =EC_2!H68+FS_2!H68+GT_2!H68+KZN_2!H68+LIM_2!H68+MPU_2!H68+NC_2!H68+NW_2!H68+WC_2!H68 -> 0 | I68: =EC_2!I68+FS_2!I68+GT_2!I68+KZN_2!I68+LIM_2!I68+MPU_2!I68+NC_2!I68+NW_2!I68+WC_2!I68 -> 0 | J68: =EC_2!J68+FS_2!J68+GT_2!J68+KZN_2!J68+LIM_2!J68+MPU_2!J68+NC_2!J68+NW_2!J68+WC_2!J68 -> 0 | K68: =EC_2!K68+FS_2!K68+GT_2!K68+KZN_2!K68+LIM_2!K68+MPU_2!K68+NC_2!K68+NW_2!K68+WC_2!K68 -> 0 | L68: =EC_2!L68+FS_2!L68+GT_2!L68+KZN_2!L68+LIM_2!L68+MPU_2!L68+NC_2!L68+NW_2!L68+WC_2!L68 -> 0 | M68: =EC_2!M68+FS_2!M68+GT_2!M68+KZN_2!M68+LIM_2!M68+MPU_2!M68+NC_2!M68+NW_2!M68+WC_2!M68 -> 0 | AK68: 0 | AL68: 0 | AM68: 0 | AN68: 0 | AO68: 0 | AP68: 0 | AR68: 0 | AS68: 0 | AU68: 0
C69: Sports, Arts and Culture (Vote 37) | D69: =EC_2!D69+FS_2!D69+GT_2!D69+KZN_2!D69+LIM_2!D69+MPU_2!D69+NC_2!D69+NW_2!D69+WC_2!D69 -> 591049 | E69: =EC_2!E69+FS_2!E69+GT_2!E69+KZN_2!E69+LIM_2!E69+MPU_2!E69+NC_2!E69+NW_2!E69+WC_2!E69 -> 0 | F69: =EC_2!F69+FS_2!F69+GT_2!F69+KZN_2!F69+LIM_2!F69+MPU_2!F69+NC_2!F69+NW_2!F69+WC_2!F69 -> 591049 | G69: =EC_2!G69+FS_2!G69+GT_2!G69+KZN_2!G69+LIM_2!G69+MPU_2!G69+NC_2!G69+NW_2!G69+WC_2!G69 -> 4795 | H69: =EC_2!H69+FS_2!H69+GT_2!H69+KZN_2!H69+LIM_2!H69+MPU_2!H69+NC_2!H69+NW_2!H69+WC_2!H69 -> 595844 | I69: =EC_2!I69+FS_2!I69+GT_2!I69+KZN_2!I69+LIM_2!I69+MPU_2!I69+NC_2!I69+NW_2!I69+WC_2!I69 -> 0 | J69: =EC_2!J69+FS_2!J69+GT_2!J69+KZN_2!J69+LIM_2!J69+MPU_2!J69+NC_2!J69+NW_2!J69+WC_2!J69 -> 591049 | K69: =EC_2!K69+FS_2!K69+GT_2!K69+KZN_2!K69+LIM_2!K69+MPU_2!K69+NC_2!K69+NW_2!K69+WC_2!K69 -> 591049 | L69: =EC_2!L69+FS_2!L69+GT_2!L69+KZN_2!L69+LIM_2!L69+MPU_2!L69+NC_2!L69+NW_2!L69+WC_2!L69 -> 0 | M69: =EC_2!M69+FS_2!M69+GT_2!M69+KZN_2!M69+LIM_2!M69+MPU_2!M69+NC_2!M69+NW_2!M69+WC_2!M69 -> 538215 | N69: =IFERROR(M69/D69,0) -> 0.9106097802 | T69: =C69 -> Sports, Arts and Culture (Vote 37) | U69: 620016 | V69: 0 | W69: 620016 | X69: 0 | Y69: 620016 | AA69: 310009 | AB69: 310009 | AD69: 251292 | AE69: 0.4052992181 | AK69: Sports, Arts and Culture (Vote 37) | AL69: 28967 | AM69: 0 | AN69: 28967 | AO69: -4795 | AP69: 24172 | AR69: -281040 | AS69: -281040 | AU69: -286923
C70: Mass Participation and Sport Development Grant | D70: =EC_2!D70+FS_2!D70+GT_2!D70+KZN_2!D70+LIM_2!D70+MPU_2!D70+NC_2!D70+NW_2!D70+WC_2!D70 -> 591049 | E70: =EC_2!E70+FS_2!E70+GT_2!E70+KZN_2!E70+LIM_2!E70+MPU_2!E70+NC_2!E70+NW_2!E70+WC_2!E70 -> 0 | F70: =EC_2!F70+FS_2!F70+GT_2!F70+KZN_2!F70+LIM_2!F70+MPU_2!F70+NC_2!F70+NW_2!F70+WC_2!F70 -> 591049 | G70: =EC_2!G70+FS_2!G70+GT_2!G70+KZN_2!G70+LIM_2!G70+MPU_2!G70+NC_2!G70+NW_2!G70+WC_2!G70 -> 4795 | H70: =EC_2!H70+FS_2!H70+GT_2!H70+KZN_2!H70+LIM_2!H70+MPU_2!H70+NC_2!H70+NW_2!H70+WC_2!H70 -> 595844 | I70: =EC_2!I70+FS_2!I70+GT_2!I70+KZN_2!I70+LIM_2!I70+MPU_2!I70+NC_2!I70+NW_2!I70+WC_2!I70 -> 0 | J70: =EC_2!J70+FS_2!J70+GT_2!J70+KZN_2!J70+LIM_2!J70+MPU_2!J70+NC_2!J70+NW_2!J70+WC_2!J70 -> 591049 | K70: =EC_2!K70+FS_2!K70+GT_2!K70+KZN_2!K70+LIM_2!K70+MPU_2!K70+NC_2!K70+NW_2!K70+WC_2!K70 -> 591049 | L70: =EC_2!L70+FS_2!L70+GT_2!L70+KZN_2!L70+LIM_2!L70+MPU_2!L70+NC_2!L70+NW_2!L70+WC_2!L70 -> 0 | M70: =EC_2!M70+FS_2!M70+GT_2!M70+KZN_2!M70+LIM_2!M70+MPU_2!M70+NC_2!M70+NW_2!M70+WC_2!M70 -> 538215 | N70: 0.9106097802 | T70: =C70 -> Mass Participation and Sport Development Grant | U70: 620016 | V70: 0 | W70: 620016 | X70: 0 | Y70: 620016 | AA70: 310009 | AB70: 310009 | AD70: 251292 | AE70: 0.4052992181 | AK70: =C70 -> Mass Participation and Sport Development Grant | AL70: =IFERROR(U70-D70,0) -> 28967 | AM70: =IFERROR(V70-E70,0) -> 0 | AN70: =IFERROR(W70-F70,0) -> 28967 | AO70: =IFERROR(X70-G70,0) -> -4795 | AP70: =IFERROR(Y70-H70,0) -> 24172 | AR70: -281040 | AS70: -281040 | AU70: =IFERROR(AD70-M70,0) -> -286923
D71: =EC_2!D71+FS_2!D71+GT_2!D71+KZN_2!D71+LIM_2!D71+MPU_2!D71+NC_2!D71+NW_2!D71+WC_2!D71 -> 0 | E71: =EC_2!E71+FS_2!E71+GT_2!E71+KZN_2!E71+LIM_2!E71+MPU_2!E71+NC_2!E71+NW_2!E71+WC_2!E71 -> 0 | F71: =EC_2!F71+FS_2!F71+GT_2!F71+KZN_2!F71+LIM_2!F71+MPU_2!F71+NC_2!F71+NW_2!F71+WC_2!F71 -> 0 | G71: =EC_2!G71+FS_2!G71+GT_2!G71+KZN_2!G71+LIM_2!G71+MPU_2!G71+NC_2!G71+NW_2!G71+WC_2!G71 -> 0 | H71: =EC_2!H71+FS_2!H71+GT_2!H71+KZN_2!H71+LIM_2!H71+MPU_2!H71+NC_2!H71+NW_2!H71+WC_2!H71 -> 0 | I71: =EC_2!I71+FS_2!I71+GT_2!I71+KZN_2!I71+LIM_2!I71+MPU_2!I71+NC_2!I71+NW_2!I71+WC_2!I71 -> 0 | J71: =EC_2!J71+FS_2!J71+GT_2!J71+KZN_2!J71+LIM_2!J71+MPU_2!J71+NC_2!J71+NW_2!J71+WC_2!J71 -> 0 | K71: =EC_2!K71+FS_2!K71+GT_2!K71+KZN_2!K71+LIM_2!K71+MPU_2!K71+NC_2!K71+NW_2!K71+WC_2!K71 -> 0 | L71: =EC_2!L71+FS_2!L71+GT_2!L71+KZN_2!L71+LIM_2!L71+MPU_2!L71+NC_2!L71+NW_2!L71+WC_2!L71 -> 0 | M71: =EC_2!M71+FS_2!M71+GT_2!M71+KZN_2!M71+LIM_2!M71+MPU_2!M71+NC_2!M71+NW_2!M71+WC_2!M71 -> 0 | N71: =IFERROR(M71/F71,0) -> 0 | T71: 0 | U71: 0 | V71: 0 | W71: 0 | X71: 0 | Y71: 0 | AA71: 0 | AB71: 0 | AD71: 0 | AE71: 0 | AK71: =C71 -> 0 | AL71: =IFERROR(U71-D71,0) -> 0 | AM71: 0 | AN71: 0 | AO71: 0 | AP71: 0 | AR71: 0 | AS71: 0 | AU71: =IFERROR(AD71-M71,0) -> 0
D72: =EC_2!D72+FS_2!D72+GT_2!D72+KZN_2!D72+LIM_2!D72+MPU_2!D72+NC_2!D72+NW_2!D72+WC_2!D72 -> 0 | E72: =EC_2!E72+FS_2!E72+GT_2!E72+KZN_2!E72+LIM_2!E72+MPU_2!E72+NC_2!E72+NW_2!E72+WC_2!E72 -> 0 | F72: =EC_2!F72+FS_2!F72+GT_2!F72+KZN_2!F72+LIM_2!F72+MPU_2!F72+NC_2!F72+NW_2!F72+WC_2!F72 -> 0 | G72: =EC_2!G72+FS_2!G72+GT_2!G72+KZN_2!G72+LIM_2!G72+MPU_2!G72+NC_2!G72+NW_2!G72+WC_2!G72 -> 0 | H72: =EC_2!H72+FS_2!H72+GT_2!H72+KZN_2!H72+LIM_2!H72+MPU_2!H72+NC_2!H72+NW_2!H72+WC_2!H72 -> 0 | I72: =EC_2!I72+FS_2!I72+GT_2!I72+KZN_2!I72+LIM_2!I72+MPU_2!I72+NC_2!I72+NW_2!I72+WC_2!I72 -> 0 | J72: =EC_2!J72+FS_2!J72+GT_2!J72+KZN_2!J72+LIM_2!J72+MPU_2!J72+NC_2!J72+NW_2!J72+WC_2!J72 -> 0 | K72: =EC_2!K72+FS_2!K72+GT_2!K72+KZN_2!K72+LIM_2!K72+MPU_2!K72+NC_2!K72+NW_2!K72+WC_2!K72 -> 0 | L72: =EC_2!L72+FS_2!L72+GT_2!L72+KZN_2!L72+LIM_2!L72+MPU_2!L72+NC_2!L72+NW_2!L72+WC_2!L72 -> 0 | M72: =EC_2!M72+FS_2!M72+GT_2!M72+KZN_2!M72+LIM_2!M72+MPU_2!M72+NC_2!M72+NW_2!M72+WC_2!M72 -> 0 | N72: 0 | T72: 0 | U72: 0 | V72: 0 | W72: 0 | X72: 0 | Y72: 0 | AA72: 0 | AB72: 0 | AD72: 0 | AE72: 0 | AK72: 0 | AL72: 0 | AM72: 0 | AN72: 0 | AO72: 0 | AP72: 0 | AR72: 0 | AS72: 0 | AU72: 0
D73: =EC_2!D73+FS_2!D73+GT_2!D73+KZN_2!D73+LIM_2!D73+MPU_2!D73+NC_2!D73+NW_2!D73+WC_2!D73 -> 0 | E73: =EC_2!E73+FS_2!E73+GT_2!E73+KZN_2!E73+LIM_2!E73+MPU_2!E73+NC_2!E73+NW_2!E73+WC_2!E73 -> 0 | F73: =EC_2!F73+FS_2!F73+GT_2!F73+KZN_2!F73+LIM_2!F73+MPU_2!F73+NC_2!F73+NW_2!F73+WC_2!F73 -> 0 | G73: =EC_2!G73+FS_2!G73+GT_2!G73+KZN_2!G73+LIM_2!G73+MPU_2!G73+NC_2!G73+NW_2!G73+WC_2!G73 -> 0 | H73: =EC_2!H73+FS_2!H73+GT_2!H73+KZN_2!H73+LIM_2!H73+MPU_2!H73+NC_2!H73+NW_2!H73+WC_2!H73 -> 0 | I73: =EC_2!I73+FS_2!I73+GT_2!I73+KZN_2!I73+LIM_2!I73+MPU_2!I73+NC_2!I73+NW_2!I73+WC_2!I73 -> 0 | J73: =EC_2!J73+FS_2!J73+GT_2!J73+KZN_2!J73+LIM_2!J73+MPU_2!J73+NC_2!J73+NW_2!J73+WC_2!J73 -> 0 | K73: =EC_2!K73+FS_2!K73+GT_2!K73+KZN_2!K73+LIM_2!K73+MPU_2!K73+NC_2!K73+NW_2!K73+WC_2!K73 -> 0 | L73: =EC_2!L73+FS_2!L73+GT_2!L73+KZN_2!L73+LIM_2!L73+MPU_2!L73+NC_2!L73+NW_2!L73+WC_2!L73 -> 0 | M73: =EC_2!M73+FS_2!M73+GT_2!M73+KZN_2!M73+LIM_2!M73+MPU_2!M73+NC_2!M73+NW_2!M73+WC_2!M73 -> 0 | N73: 0 | T73: 0 | U73: 0 | V73: 0 | W73: 0 | X73: 0 | Y73: 0 | AA73: 0 | AB73: 0 | AD73: 0 | AE73: 0 | AK73: 0 | AL73: 0 | AM73: 0 | AN73: 0 | AO73: 0 | AP73: 0 | AR73: 0 | AS73: 0 | AU73: 0
D74: =EC_2!D74+FS_2!D74+GT_2!D74+KZN_2!D74+LIM_2!D74+MPU_2!D74+NC_2!D74+NW_2!D74+WC_2!D74 -> 0 | E74: =EC_2!E74+FS_2!E74+GT_2!E74+KZN_2!E74+LIM_2!E74+MPU_2!E74+NC_2!E74+NW_2!E74+WC_2!E74 -> 0 | F74: =EC_2!F74+FS_2!F74+GT_2!F74+KZN_2!F74+LIM_2!F74+MPU_2!F74+NC_2!F74+NW_2!F74+WC_2!F74 -> 0 | G74: =EC_2!G74+FS_2!G74+GT_2!G74+KZN_2!G74+LIM_2!G74+MPU_2!G74+NC_2!G74+NW_2!G74+WC_2!G74 -> 0 | H74: =EC_2!H74+FS_2!H74+GT_2!H74+KZN_2!H74+LIM_2!H74+MPU_2!H74+NC_2!H74+NW_2!H74+WC_2!H74 -> 0 | I74: =EC_2!I74+FS_2!I74+GT_2!I74+KZN_2!I74+LIM_2!I74+MPU_2!I74+NC_2!I74+NW_2!I74+WC_2!I74 -> 0 | J74: =EC_2!J74+FS_2!J74+GT_2!J74+KZN_2!J74+LIM_2!J74+MPU_2!J74+NC_2!J74+NW_2!J74+WC_2!J74 -> 0 | K74: =EC_2!K74+FS_2!K74+GT_2!K74+KZN_2!K74+LIM_2!K74+MPU_2!K74+NC_2!K74+NW_2!K74+WC_2!K74 -> 0 | L74: =EC_2!L74+FS_2!L74+GT_2!L74+KZN_2!L74+LIM_2!L74+MPU_2!L74+NC_2!L74+NW_2!L74+WC_2!L74 -> 0 | M74: =EC_2!M74+FS_2!M74+GT_2!M74+KZN_2!M74+LIM_2!M74+MPU_2!M74+NC_2!M74+NW_2!M74+WC_2!M74 -> 0 | N74: 0 | T74: 0 | U74: 0 | V74: 0 | W74: 0 | X74: 0 | Y74: 0 | AA74: 0 | AB74: 0 | AD74: 0 | AE74: 0 | AK74: 0 | AL74: 0 | AM74: 0 | AN74: 0 | AO74: 0 | AP74: 0 | AR74: 0 | AS74: 0 | AU74: 0
D75: =EC_2!D75+FS_2!D75+GT_2!D75+KZN_2!D75+LIM_2!D75+MPU_2!D75+NC_2!D75+NW_2!D75+WC_2!D75 -> 0 | E75: =EC_2!E75+FS_2!E75+GT_2!E75+KZN_2!E75+LIM_2!E75+MPU_2!E75+NC_2!E75+NW_2!E75+WC_2!E75 -> 0 | F75: =EC_2!F75+FS_2!F75+GT_2!F75+KZN_2!F75+LIM_2!F75+MPU_2!F75+NC_2!F75+NW_2!F75+WC_2!F75 -> 0 | G75: =EC_2!G75+FS_2!G75+GT_2!G75+KZN_2!G75+LIM_2!G75+MPU_2!G75+NC_2!G75+NW_2!G75+WC_2!G75 -> 0 | H75: =EC_2!H75+FS_2!H75+GT_2!H75+KZN_2!H75+LIM_2!H75+MPU_2!H75+NC_2!H75+NW_2!H75+WC_2!H75 -> 0 | I75: =EC_2!I75+FS_2!I75+GT_2!I75+KZN_2!I75+LIM_2!I75+MPU_2!I75+NC_2!I75+NW_2!I75+WC_2!I75 -> 0 | J75: =EC_2!J75+FS_2!J75+GT_2!J75+KZN_2!J75+LIM_2!J75+MPU_2!J75+NC_2!J75+NW_2!J75+WC_2!J75 -> 0 | K75: =EC_2!K75+FS_2!K75+GT_2!K75+KZN_2!K75+LIM_2!K75+MPU_2!K75+NC_2!K75+NW_2!K75+WC_2!K75 -> 0 | L75: =EC_2!L75+FS_2!L75+GT_2!L75+KZN_2!L75+LIM_2!L75+MPU_2!L75+NC_2!L75+NW_2!L75+WC_2!L75 -> 0 | M75: =EC_2!M75+FS_2!M75+GT_2!M75+KZN_2!M75+LIM_2!M75+MPU_2!M75+NC_2!M75+NW_2!M75+WC_2!M75 -> 0 | AK75: 0 | AL75: 0 | AM75: 0 | AN75: 0 | AO75: 0 | AP75: 0 | AR75: 0 | AS75: 0 | AU75: 0
C76: Sub-Total | D76: =EC_2!D76+FS_2!D76+GT_2!D76+KZN_2!D76+LIM_2!D76+MPU_2!D76+NC_2!D76+NW_2!D76+WC_2!D76 -> 70877030 | E76: =EC_2!E76+FS_2!E76+GT_2!E76+KZN_2!E76+LIM_2!E76+MPU_2!E76+NC_2!E76+NW_2!E76+WC_2!E76 -> 578647 | F76: =EC_2!F76+FS_2!F76+GT_2!F76+KZN_2!F76+LIM_2!F76+MPU_2!F76+NC_2!F76+NW_2!F76+WC_2!F76 -> 71455677 | G76: =EC_2!G76+FS_2!G76+GT_2!G76+KZN_2!G76+LIM_2!G76+MPU_2!G76+NC_2!G76+NW_2!G76+WC_2!G76 -> 1991714 | H76: =EC_2!H76+FS_2!H76+GT_2!H76+KZN_2!H76+LIM_2!H76+MPU_2!H76+NC_2!H76+NW_2!H76+WC_2!H76 -> 73447391 | I76: =EC_2!I76+FS_2!I76+GT_2!I76+KZN_2!I76+LIM_2!I76+MPU_2!I76+NC_2!I76+NW_2!I76+WC_2!I76 -> 0 | J76: =EC_2!J76+FS_2!J76+GT_2!J76+KZN_2!J76+LIM_2!J76+MPU_2!J76+NC_2!J76+NW_2!J76+WC_2!J76 -> 71455677 | K76: =EC_2!K76+FS_2!K76+GT_2!K76+KZN_2!K76+LIM_2!K76+MPU_2!K76+NC_2!K76+NW_2!K76+WC_2!K76 -> 71451448 | L76: =EC_2!L76+FS_2!L76+GT_2!L76+KZN_2!L76+LIM_2!L76+MPU_2!L76+NC_2!L76+NW_2!L76+WC_2!L76 -> 0 | M76: =EC_2!M76+FS_2!M76+GT_2!M76+KZN_2!M76+LIM_2!M76+MPU_2!M76+NC_2!M76+NW_2!M76+WC_2!M76 -> 68916069.02 | N76: =IFERROR(M76/D76,0) -> 0.9723329126 | T76: Sub-Total | U76: 61956674.19 | V76: 0 | W76: 61956674.19 | X76: 0 | Y76: 61956674.19 | Z76: 0 | AA76: 31549702 | AB76: 31509579.18 | AD76: 27897942.13 | AE76: 0.4502814667 | AK76: Sub-Total | AL76: -8920355.81 | AM76: -578647 | AN76: -9499002.81 | AO76: -1991714 | AP76: -11490716.81 | AR76: -39905975 | AS76: -39941868.83 | AU76: -41018126.89
D77: =EC_2!D77+FS_2!D77+GT_2!D77+KZN_2!D77+LIM_2!D77+MPU_2!D77+NC_2!D77+NW_2!D77+WC_2!D77 -> 0 | E77: =EC_2!E77+FS_2!E77+GT_2!E77+KZN_2!E77+LIM_2!E77+MPU_2!E77+NC_2!E77+NW_2!E77+WC_2!E77 -> 0 | F77: =EC_2!F77+FS_2!F77+GT_2!F77+KZN_2!F77+LIM_2!F77+MPU_2!F77+NC_2!F77+NW_2!F77+WC_2!F77 -> 0 | G77: =EC_2!G77+FS_2!G77+GT_2!G77+KZN_2!G77+LIM_2!G77+MPU_2!G77+NC_2!G77+NW_2!G77+WC_2!G77 -> 0 | H77: =EC_2!H77+FS_2!H77+GT_2!H77+KZN_2!H77+LIM_2!H77+MPU_2!H77+NC_2!H77+NW_2!H77+WC_2!H77 -> 0 | I77: =EC_2!I77+FS_2!I77+GT_2!I77+KZN_2!I77+LIM_2!I77+MPU_2!I77+NC_2!I77+NW_2!I77+WC_2!I77 -> 0 | J77: =EC_2!J77+FS_2!J77+GT_2!J77+KZN_2!J77+LIM_2!J77+MPU_2!J77+NC_2!J77+NW_2!J77+WC_2!J77 -> 0 | K77: =EC_2!K77+FS_2!K77+GT_2!K77+KZN_2!K77+LIM_2!K77+MPU_2!K77+NC_2!K77+NW_2!K77+WC_2!K77 -> 0 | L77: =EC_2!L77+FS_2!L77+GT_2!L77+KZN_2!L77+LIM_2!L77+MPU_2!L77+NC_2!L77+NW_2!L77+WC_2!L77 -> 0 | M77: =EC_2!M77+FS_2!M77+GT_2!M77+KZN_2!M77+LIM_2!M77+MPU_2!M77+NC_2!M77+NW_2!M77+WC_2!M77 -> 0 | AL77: 0 | AM77: 0 | AN77: 0 | AO77: 0 | AP77: 0 | AR77: 0 | AS77: 0 | AU77: 0
C78: Schedule 4, Part A Grants1. | D78: =EC_2!D78+FS_2!D78+GT_2!D78+KZN_2!D78+LIM_2!D78+MPU_2!D78+NC_2!D78+NW_2!D78+WC_2!D78 -> 0 | E78: =EC_2!E78+FS_2!E78+GT_2!E78+KZN_2!E78+LIM_2!E78+MPU_2!E78+NC_2!E78+NW_2!E78+WC_2!E78 -> 0 | F78: =EC_2!F78+FS_2!F78+GT_2!F78+KZN_2!F78+LIM_2!F78+MPU_2!F78+NC_2!F78+NW_2!F78+WC_2!F78 -> 0 | G78: =EC_2!G78+FS_2!G78+GT_2!G78+KZN_2!G78+LIM_2!G78+MPU_2!G78+NC_2!G78+NW_2!G78+WC_2!G78 -> 0 | H78: =EC_2!H78+FS_2!H78+GT_2!H78+KZN_2!H78+LIM_2!H78+MPU_2!H78+NC_2!H78+NW_2!H78+WC_2!H78 -> 0 | I78: =EC_2!I78+FS_2!I78+GT_2!I78+KZN_2!I78+LIM_2!I78+MPU_2!I78+NC_2!I78+NW_2!I78+WC_2!I78 -> 0 | J78: =EC_2!J78+FS_2!J78+GT_2!J78+KZN_2!J78+LIM_2!J78+MPU_2!J78+NC_2!J78+NW_2!J78+WC_2!J78 -> 0 | K78: =EC_2!K78+FS_2!K78+GT_2!K78+KZN_2!K78+LIM_2!K78+MPU_2!K78+NC_2!K78+NW_2!K78+WC_2!K78 -> 0 | L78: =EC_2!L78+FS_2!L78+GT_2!L78+KZN_2!L78+LIM_2!L78+MPU_2!L78+NC_2!L78+NW_2!L78+WC_2!L78 -> 0 | M78: =EC_2!M78+FS_2!M78+GT_2!M78+KZN_2!M78+LIM_2!M78+MPU_2!M78+NC_2!M78+NW_2!M78+WC_2!M78 -> 0 | T78: Schedule 4, Part A Grants1. | AK78: Schedule 4, Part A Grants1. | AL78: 0 | AM78: 0 | AN78: 0 | AO78: 0 | AP78: 0 | AR78: 0 | AS78: 0 | AU78: 0
D79: =EC_2!D79+FS_2!D79+GT_2!D79+KZN_2!D79+LIM_2!D79+MPU_2!D79+NC_2!D79+NW_2!D79+WC_2!D79 -> 0 | E79: =EC_2!E79+FS_2!E79+GT_2!E79+KZN_2!E79+LIM_2!E79+MPU_2!E79+NC_2!E79+NW_2!E79+WC_2!E79 -> 0 | F79: =EC_2!F79+FS_2!F79+GT_2!F79+KZN_2!F79+LIM_2!F79+MPU_2!F79+NC_2!F79+NW_2!F79+WC_2!F79 -> 0 | G79: =EC_2!G79+FS_2!G79+GT_2!G79+KZN_2!G79+LIM_2!G79+MPU_2!G79+NC_2!G79+NW_2!G79+WC_2!G79 -> 0 | H79: =EC_2!H79+FS_2!H79+GT_2!H79+KZN_2!H79+LIM_2!H79+MPU_2!H79+NC_2!H79+NW_2!H79+WC_2!H79 -> 0 | I79: =EC_2!I79+FS_2!I79+GT_2!I79+KZN_2!I79+LIM_2!I79+MPU_2!I79+NC_2!I79+NW_2!I79+WC_2!I79 -> 0 | J79: =EC_2!J79+FS_2!J79+GT_2!J79+KZN_2!J79+LIM_2!J79+MPU_2!J79+NC_2!J79+NW_2!J79+WC_2!J79 -> 0 | K79: =EC_2!K79+FS_2!K79+GT_2!K79+KZN_2!K79+LIM_2!K79+MPU_2!K79+NC_2!K79+NW_2!K79+WC_2!K79 -> 0 | L79: =EC_2!L79+FS_2!L79+GT_2!L79+KZN_2!L79+LIM_2!L79+MPU_2!L79+NC_2!L79+NW_2!L79+WC_2!L79 -> 0 | M79: =EC_2!M79+FS_2!M79+GT_2!M79+KZN_2!M79+LIM_2!M79+MPU_2!M79+NC_2!M79+NW_2!M79+WC_2!M79 -> 0 | AK79: =C79 -> 0 | AL79: 0 | AM79: 0 | AN79: 0 | AO79: 0 | AP79: 0 | AR79: 0 | AS79: 0 | AU79: =IFERROR(AD79-M79,0) -> 0
C80: Basic Education (Vote 16) | D80: =EC_2!D80+FS_2!D80+GT_2!D80+KZN_2!D80+LIM_2!D80+MPU_2!D80+NC_2!D80+NW_2!D80+WC_2!D80 -> 11688936 | E80: =EC_2!E80+FS_2!E80+GT_2!E80+KZN_2!E80+LIM_2!E80+MPU_2!E80+NC_2!E80+NW_2!E80+WC_2!E80 -> 0 | F80: =EC_2!F80+FS_2!F80+GT_2!F80+KZN_2!F80+LIM_2!F80+MPU_2!F80+NC_2!F80+NW_2!F80+WC_2!F80 -> 11688936 | G80: =EC_2!G80+FS_2!G80+GT_2!G80+KZN_2!G80+LIM_2!G80+MPU_2!G80+NC_2!G80+NW_2!G80+WC_2!G80 -> 169395 | H80: =EC_2!H80+FS_2!H80+GT_2!H80+KZN_2!H80+LIM_2!H80+MPU_2!H80+NC_2!H80+NW_2!H80+WC_2!H80 -> 11858331 | I80: =EC_2!I80+FS_2!I80+GT_2!I80+KZN_2!I80+LIM_2!I80+MPU_2!I80+NC_2!I80+NW_2!I80+WC_2!I80 -> 0 | J80: =EC_2!J80+FS_2!J80+GT_2!J80+KZN_2!J80+LIM_2!J80+MPU_2!J80+NC_2!J80+NW_2!J80+WC_2!J80 -> 11688936 | K80: =EC_2!K80+FS_2!K80+GT_2!K80+KZN_2!K80+LIM_2!K80+MPU_2!K80+NC_2!K80+NW_2!K80+WC_2!K80 -> 11688936 | L80: =EC_2!L80+FS_2!L80+GT_2!L80+KZN_2!L80+LIM_2!L80+MPU_2!L80+NC_2!L80+NW_2!L80+WC_2!L80 -> 0 | M80: =SUM(M81) -> 11511565.13 | N80: =IFERROR(M80/H80,0) -> 0.9707576162 | T80: =C80 -> Basic Education (Vote 16) | U80: 10514478 | V80: 0 | W80: 10514478 | X80: 0 | Y80: 10514478 | AA80: 6571550 | AB80: 6571550 | AK80: Basic Education (Vote 16) | AL80: -1174458 | AM80: 0 | AN80: -1174458 | AO80: -169395 | AP80: -1343853 | AR80: -5117386 | AS80: -5117386 | AU80: -11511565.13
C81: Education Infrastructure Grant | D81: =EC_2!D81+FS_2!D81+GT_2!D81+KZN_2!D81+LIM_2!D81+MPU_2!D81+NC_2!D81+NW_2!D81+WC_2!D81 -> 11688936 | E81: =EC_2!E81+FS_2!E81+GT_2!E81+KZN_2!E81+LIM_2!E81+MPU_2!E81+NC_2!E81+NW_2!E81+WC_2!E81 -> 0 | F81: =EC_2!F81+FS_2!F81+GT_2!F81+KZN_2!F81+LIM_2!F81+MPU_2!F81+NC_2!F81+NW_2!F81+WC_2!F81 -> 11688936 | G81: =EC_2!G81+FS_2!G81+GT_2!G81+KZN_2!G81+LIM_2!G81+MPU_2!G81+NC_2!G81+NW_2!G81+WC_2!G81 -> 169395 | H81: =EC_2!H81+FS_2!H81+GT_2!H81+KZN_2!H81+LIM_2!H81+MPU_2!H81+NC_2!H81+NW_2!H81+WC_2!H81 -> 11858331 | I81: =EC_2!I81+FS_2!I81+GT_2!I81+KZN_2!I81+LIM_2!I81+MPU_2!I81+NC_2!I81+NW_2!I81+WC_2!I81 -> 0 | J81: =EC_2!J81+FS_2!J81+GT_2!J81+KZN_2!J81+LIM_2!J81+MPU_2!J81+NC_2!J81+NW_2!J81+WC_2!J81 -> 11688936 | K81: =EC_2!K81+FS_2!K81+GT_2!K81+KZN_2!K81+LIM_2!K81+MPU_2!K81+NC_2!K81+NW_2!K81+WC_2!K81 -> 11688936 | L81: =EC_2!L81+FS_2!L81+GT_2!L81+KZN_2!L81+LIM_2!L81+MPU_2!L81+NC_2!L81+NW_2!L81+WC_2!L81 -> 0 | M81: 11511565.13 | N81: 0.9707576162 | T81: =C81 -> Education Infrastructure Grant | U81: 10514478 | V81: 0 | W81: 10514478 | X81: 0 | Y81: 10514478 | AA81: 6571550 | AB81: 6571550 | AK81: =C81 -> Education Infrastructure Grant | AL81: =IFERROR(U81-D81,0) -> -1174458 | AM81: =IFERROR(V81-E81,0) -> 0 | AN81: =IFERROR(W81-F81,0) -> -1174458 | AO81: =IFERROR(X81-G81,0) -> -169395 | AP81: =IFERROR(Y81-H81,0) -> -1343853 | AR81: -5117386 | AS81: -5117386 | AU81: =IFERROR(AD81-M81,0) -> -11511565.13
D82: =EC_2!D82+FS_2!D82+GT_2!D82+KZN_2!D82+LIM_2!D82+MPU_2!D82+NC_2!D82+NW_2!D82+WC_2!D82 -> 0 | E82: =EC_2!E82+FS_2!E82+GT_2!E82+KZN_2!E82+LIM_2!E82+MPU_2!E82+NC_2!E82+NW_2!E82+WC_2!E82 -> 0 | F82: =EC_2!F82+FS_2!F82+GT_2!F82+KZN_2!F82+LIM_2!F82+MPU_2!F82+NC_2!F82+NW_2!F82+WC_2!F82 -> 0 | G82: =EC_2!G82+FS_2!G82+GT_2!G82+KZN_2!G82+LIM_2!G82+MPU_2!G82+NC_2!G82+NW_2!G82+WC_2!G82 -> 0 | H82: =EC_2!H82+FS_2!H82+GT_2!H82+KZN_2!H82+LIM_2!H82+MPU_2!H82+NC_2!H82+NW_2!H82+WC_2!H82 -> 0 | I82: =EC_2!I82+FS_2!I82+GT_2!I82+KZN_2!I82+LIM_2!I82+MPU_2!I82+NC_2!I82+NW_2!I82+WC_2!I82 -> 0 | J82: =EC_2!J82+FS_2!J82+GT_2!J82+KZN_2!J82+LIM_2!J82+MPU_2!J82+NC_2!J82+NW_2!J82+WC_2!J82 -> 0 | K82: =EC_2!K82+FS_2!K82+GT_2!K82+KZN_2!K82+LIM_2!K82+MPU_2!K82+NC_2!K82+NW_2!K82+WC_2!K82 -> 0 | L82: =EC_2!L82+FS_2!L82+GT_2!L82+KZN_2!L82+LIM_2!L82+MPU_2!L82+NC_2!L82+NW_2!L82+WC_2!L82 -> 0 | M82: =EC_2!M82+FS_2!M82+GT_2!M82+KZN_2!M82+LIM_2!M82+MPU_2!M82+NC_2!M82+NW_2!M82+WC_2!M82 -> 0 | T82: 0 | U82: 0 | V82: 0 | W82: 0 | X82: 0 | Y82: 0 | AA82: 0 | AB82: 0 | AK82: =C82 -> 0 | AL82: =IFERROR(U82-D82,0) -> 0 | AM82: 0 | AN82: 0 | AO82: 0 | AP82: 0 | AR82: 0 | AS82: 0 | AU82: =IFERROR(AD82-M82,0) -> 0
D83: =EC_2!D83+FS_2!D83+GT_2!D83+KZN_2!D83+LIM_2!D83+MPU_2!D83+NC_2!D83+NW_2!D83+WC_2!D83 -> 0 | E83: =EC_2!E83+FS_2!E83+GT_2!E83+KZN_2!E83+LIM_2!E83+MPU_2!E83+NC_2!E83+NW_2!E83+WC_2!E83 -> 0 | F83: =EC_2!F83+FS_2!F83+GT_2!F83+KZN_2!F83+LIM_2!F83+MPU_2!F83+NC_2!F83+NW_2!F83+WC_2!F83 -> 0 | G83: =EC_2!G83+FS_2!G83+GT_2!G83+KZN_2!G83+LIM_2!G83+MPU_2!G83+NC_2!G83+NW_2!G83+WC_2!G83 -> 0 | H83: =EC_2!H83+FS_2!H83+GT_2!H83+KZN_2!H83+LIM_2!H83+MPU_2!H83+NC_2!H83+NW_2!H83+WC_2!H83 -> 0 | I83: =EC_2!I83+FS_2!I83+GT_2!I83+KZN_2!I83+LIM_2!I83+MPU_2!I83+NC_2!I83+NW_2!I83+WC_2!I83 -> 0 | J83: =EC_2!J83+FS_2!J83+GT_2!J83+KZN_2!J83+LIM_2!J83+MPU_2!J83+NC_2!J83+NW_2!J83+WC_2!J83 -> 0 | K83: =EC_2!K83+FS_2!K83+GT_2!K83+KZN_2!K83+LIM_2!K83+MPU_2!K83+NC_2!K83+NW_2!K83+WC_2!K83 -> 0 | L83: =EC_2!L83+FS_2!L83+GT_2!L83+KZN_2!L83+LIM_2!L83+MPU_2!L83+NC_2!L83+NW_2!L83+WC_2!L83 -> 0 | M83: =EC_2!M83+FS_2!M83+GT_2!M83+KZN_2!M83+LIM_2!M83+MPU_2!M83+NC_2!M83+NW_2!M83+WC_2!M83 -> 0 | T83: 0 | U83: 0 | V83: 0 | W83: 0 | X83: 0 | Y83: 0 | AA83: 0 | AB83: 0 | AK83: 0 | AL83: 0 | AM83: 0 | AN83: 0 | AO83: 0 | AP83: 0 | AR83: 0 | AS83: 0 | AU83: 0
D84: =EC_2!D84+FS_2!D84+GT_2!D84+KZN_2!D84+LIM_2!D84+MPU_2!D84+NC_2!D84+NW_2!D84+WC_2!D84 -> 0 | E84: =EC_2!E84+FS_2!E84+GT_2!E84+KZN_2!E84+LIM_2!E84+MPU_2!E84+NC_2!E84+NW_2!E84+WC_2!E84 -> 0 | F84: =EC_2!F84+FS_2!F84+GT_2!F84+KZN_2!F84+LIM_2!F84+MPU_2!F84+NC_2!F84+NW_2!F84+WC_2!F84 -> 0 | G84: =EC_2!G84+FS_2!G84+GT_2!G84+KZN_2!G84+LIM_2!G84+MPU_2!G84+NC_2!G84+NW_2!G84+WC_2!G84 -> 0 | H84: =EC_2!H84+FS_2!H84+GT_2!H84+KZN_2!H84+LIM_2!H84+MPU_2!H84+NC_2!H84+NW_2!H84+WC_2!H84 -> 0 | I84: =EC_2!I84+FS_2!I84+GT_2!I84+KZN_2!I84+LIM_2!I84+MPU_2!I84+NC_2!I84+NW_2!I84+WC_2!I84 -> 0 | J84: =EC_2!J84+FS_2!J84+GT_2!J84+KZN_2!J84+LIM_2!J84+MPU_2!J84+NC_2!J84+NW_2!J84+WC_2!J84 -> 0 | K84: =EC_2!K84+FS_2!K84+GT_2!K84+KZN_2!K84+LIM_2!K84+MPU_2!K84+NC_2!K84+NW_2!K84+WC_2!K84 -> 0 | L84: =EC_2!L84+FS_2!L84+GT_2!L84+KZN_2!L84+LIM_2!L84+MPU_2!L84+NC_2!L84+NW_2!L84+WC_2!L84 -> 0 | M84: =EC_2!M84+FS_2!M84+GT_2!M84+KZN_2!M84+LIM_2!M84+MPU_2!M84+NC_2!M84+NW_2!M84+WC_2!M84 -> 0 | T84: 0 | U84: 0 | V84: 0 | W84: 0 | X84: 0 | Y84: 0 | AA84: 0 | AB84: 0 | AK84: 0 | AL84: 0 | AM84: 0 | AN84: 0 | AO84: 0 | AP84: 0 | AR84: 0 | AS84: 0 | AU84: 0
D85: =EC_2!D85+FS_2!D85+GT_2!D85+KZN_2!D85+LIM_2!D85+MPU_2!D85+NC_2!D85+NW_2!D85+WC_2!D85 -> 0 | E85: =EC_2!E85+FS_2!E85+GT_2!E85+KZN_2!E85+LIM_2!E85+MPU_2!E85+NC_2!E85+NW_2!E85+WC_2!E85 -> 0 | F85: =EC_2!F85+FS_2!F85+GT_2!F85+KZN_2!F85+LIM_2!F85+MPU_2!F85+NC_2!F85+NW_2!F85+WC_2!F85 -> 0 | G85: =EC_2!G85+FS_2!G85+GT_2!G85+KZN_2!G85+LIM_2!G85+MPU_2!G85+NC_2!G85+NW_2!G85+WC_2!G85 -> 0 | H85: =EC_2!H85+FS_2!H85+GT_2!H85+KZN_2!H85+LIM_2!H85+MPU_2!H85+NC_2!H85+NW_2!H85+WC_2!H85 -> 0 | I85: =EC_2!I85+FS_2!I85+GT_2!I85+KZN_2!I85+LIM_2!I85+MPU_2!I85+NC_2!I85+NW_2!I85+WC_2!I85 -> 0 | J85: =EC_2!J85+FS_2!J85+GT_2!J85+KZN_2!J85+LIM_2!J85+MPU_2!J85+NC_2!J85+NW_2!J85+WC_2!J85 -> 0 | K85: =EC_2!K85+FS_2!K85+GT_2!K85+KZN_2!K85+LIM_2!K85+MPU_2!K85+NC_2!K85+NW_2!K85+WC_2!K85 -> 0 | L85: =EC_2!L85+FS_2!L85+GT_2!L85+KZN_2!L85+LIM_2!L85+MPU_2!L85+NC_2!L85+NW_2!L85+WC_2!L85 -> 0 | M85: =EC_2!M85+FS_2!M85+GT_2!M85+KZN_2!M85+LIM_2!M85+MPU_2!M85+NC_2!M85+NW_2!M85+WC_2!M85 -> 0 | T85: 0 | U85: 0 | V85: 0 | W85: 0 | X85: 0 | Y85: 0 | AA85: 0 | AB85: 0 | AK85: 0 | AL85: 0 | AM85: 0 | AN85: 0 | AO85: 0 | AP85: 0 | AR85: 0 | AS85: 0 | AU85: 0
D86: =EC_2!D86+FS_2!D86+GT_2!D86+KZN_2!D86+LIM_2!D86+MPU_2!D86+NC_2!D86+NW_2!D86+WC_2!D86 -> 0 | E86: =EC_2!E86+FS_2!E86+GT_2!E86+KZN_2!E86+LIM_2!E86+MPU_2!E86+NC_2!E86+NW_2!E86+WC_2!E86 -> 0 | F86: =EC_2!F86+FS_2!F86+GT_2!F86+KZN_2!F86+LIM_2!F86+MPU_2!F86+NC_2!F86+NW_2!F86+WC_2!F86 -> 0 | G86: =EC_2!G86+FS_2!G86+GT_2!G86+KZN_2!G86+LIM_2!G86+MPU_2!G86+NC_2!G86+NW_2!G86+WC_2!G86 -> 0 | H86: =EC_2!H86+FS_2!H86+GT_2!H86+KZN_2!H86+LIM_2!H86+MPU_2!H86+NC_2!H86+NW_2!H86+WC_2!H86 -> 0 | I86: =EC_2!I86+FS_2!I86+GT_2!I86+KZN_2!I86+LIM_2!I86+MPU_2!I86+NC_2!I86+NW_2!I86+WC_2!I86 -> 0 | J86: =EC_2!J86+FS_2!J86+GT_2!J86+KZN_2!J86+LIM_2!J86+MPU_2!J86+NC_2!J86+NW_2!J86+WC_2!J86 -> 0 | K86: =EC_2!K86+FS_2!K86+GT_2!K86+KZN_2!K86+LIM_2!K86+MPU_2!K86+NC_2!K86+NW_2!K86+WC_2!K86 -> 0 | L86: =EC_2!L86+FS_2!L86+GT_2!L86+KZN_2!L86+LIM_2!L86+MPU_2!L86+NC_2!L86+NW_2!L86+WC_2!L86 -> 0 | M86: =EC_2!M86+FS_2!M86+GT_2!M86+KZN_2!M86+LIM_2!M86+MPU_2!M86+NC_2!M86+NW_2!M86+WC_2!M86 -> 0 | AK86: 0 | AL86: 0 | AM86: 0 | AN86: 0 | AO86: 0 | AP86: 0 | AR86: 0 | AS86: 0 | AU86: 0
C87: Health (Vote 18) | D87: =EC_2!D87+FS_2!D87+GT_2!D87+KZN_2!D87+LIM_2!D87+MPU_2!D87+NC_2!D87+NW_2!D87+WC_2!D87 -> 13707798 | E87: =EC_2!E87+FS_2!E87+GT_2!E87+KZN_2!E87+LIM_2!E87+MPU_2!E87+NC_2!E87+NW_2!E87+WC_2!E87 -> 0 | F87: =EC_2!F87+FS_2!F87+GT_2!F87+KZN_2!F87+LIM_2!F87+MPU_2!F87+NC_2!F87+NW_2!F87+WC_2!F87 -> 13707798 | G87: =EC_2!G87+FS_2!G87+GT_2!G87+KZN_2!G87+LIM_2!G87+MPU_2!G87+NC_2!G87+NW_2!G87+WC_2!G87 -> 385978 | H87: =EC_2!H87+FS_2!H87+GT_2!H87+KZN_2!H87+LIM_2!H87+MPU_2!H87+NC_2!H87+NW_2!H87+WC_2!H87 -> 14093776 | I87: =EC_2!I87+FS_2!I87+GT_2!I87+KZN_2!I87+LIM_2!I87+MPU_2!I87+NC_2!I87+NW_2!I87+WC_2!I87 -> 0 | J87: =EC_2!J87+FS_2!J87+GT_2!J87+KZN_2!J87+LIM_2!J87+MPU_2!J87+NC_2!J87+NW_2!J87+WC_2!J87 -> 13707798 | K87: =EC_2!K87+FS_2!K87+GT_2!K87+KZN_2!K87+LIM_2!K87+MPU_2!K87+NC_2!K87+NW_2!K87+WC_2!K87 -> 13707798 | L87: =EC_2!L87+FS_2!L87+GT_2!L87+KZN_2!L87+LIM_2!L87+MPU_2!L87+NC_2!L87+NW_2!L87+WC_2!L87 -> 0 | M87: =SUM(M88:M89) -> 13373895 | N87: =IFERROR(M87/H87,0) -> 0.9489220632 | T87: =C87 -> Health (Vote 18) | U87: 16125956 | V87: 0 | W87: 16125956 | X87: 0 | Y87: 16125956 | AA87: 8262934 | AB87: 8262934 | AK87: Health (Vote 18) | AL87: 2418158 | AM87: 0 | AN87: 2418158 | AO87: -385978 | AP87: 2032180 | AR87: -5444864 | AS87: -5444863.999 | AU87: -13373895
C88: (a) Health Professions Training and Development Grant | D88: =EC_2!D88+FS_2!D88+GT_2!D88+KZN_2!D88+LIM_2!D88+MPU_2!D88+NC_2!D88+NW_2!D88+WC_2!D88 -> 0 | E88: =EC_2!E88+FS_2!E88+GT_2!E88+KZN_2!E88+LIM_2!E88+MPU_2!E88+NC_2!E88+NW_2!E88+WC_2!E88 -> 0 | F88: =EC_2!F88+FS_2!F88+GT_2!F88+KZN_2!F88+LIM_2!F88+MPU_2!F88+NC_2!F88+NW_2!F88+WC_2!F88 -> 0 | G88: =EC_2!G88+FS_2!G88+GT_2!G88+KZN_2!G88+LIM_2!G88+MPU_2!G88+NC_2!G88+NW_2!G88+WC_2!G88 -> 0 | H88: =EC_2!H88+FS_2!H88+GT_2!H88+KZN_2!H88+LIM_2!H88+MPU_2!H88+NC_2!H88+NW_2!H88+WC_2!H88 -> 0 | I88: =EC_2!I88+FS_2!I88+GT_2!I88+KZN_2!I88+LIM_2!I88+MPU_2!I88+NC_2!I88+NW_2!I88+WC_2!I88 -> 0 | J88: =EC_2!J88+FS_2!J88+GT_2!J88+KZN_2!J88+LIM_2!J88+MPU_2!J88+NC_2!J88+NW_2!J88+WC_2!J88 -> 0 | K88: =EC_2!K88+FS_2!K88+GT_2!K88+KZN_2!K88+LIM_2!K88+MPU_2!K88+NC_2!K88+NW_2!K88+WC_2!K88 -> 0 | L88: =EC_2!L88+FS_2!L88+GT_2!L88+KZN_2!L88+LIM_2!L88+MPU_2!L88+NC_2!L88+NW_2!L88+WC_2!L88 -> 0 | M88: 0 | N88: 0 | T88: =C88 -> (a) Health Professions Training and Development Grant | U88: 2940428 | V88: 0 | W88: 2940428 | X88: 0 | Y88: 2940428 | AA88: 1470194 | AB88: 1470194 | AK88: =C88 -> (a) Health Professions Training and Development Grant | AL88: =IFERROR(U88-D88,0) -> 2940428 | AM88: =IFERROR(V88-E88,0) -> 0 | AN88: =IFERROR(W88-F88,0) -> 2940428 | AO88: =IFERROR(X88-G88,0) -> 0 | AP88: =IFERROR(Y88-H88,0) -> 2940428 | AR88: 1470194 | AS88: 1470194 | AU88: =IFERROR(AD88-M88,0) -> 0
C89: (b) National Tertiary Services Grant | D89: =EC_2!D89+FS_2!D89+GT_2!D89+KZN_2!D89+LIM_2!D89+MPU_2!D89+NC_2!D89+NW_2!D89+WC_2!D89 -> 13707798 | E89: =EC_2!E89+FS_2!E89+GT_2!E89+KZN_2!E89+LIM_2!E89+MPU_2!E89+NC_2!E89+NW_2!E89+WC_2!E89 -> 0 | F89: =EC_2!F89+FS_2!F89+GT_2!F89+KZN_2!F89+LIM_2!F89+MPU_2!F89+NC_2!F89+NW_2!F89+WC_2!F89 -> 13707798 | G89: =EC_2!G89+FS_2!G89+GT_2!G89+KZN_2!G89+LIM_2!G89+MPU_2!G89+NC_2!G89+NW_2!G89+WC_2!G89 -> 385978 | H89: =EC_2!H89+FS_2!H89+GT_2!H89+KZN_2!H89+LIM_2!H89+MPU_2!H89+NC_2!H89+NW_2!H89+WC_2!H89 -> 14093776 | I89: =EC_2!I89+FS_2!I89+GT_2!I89+KZN_2!I89+LIM_2!I89+MPU_2!I89+NC_2!I89+NW_2!I89+WC_2!I89 -> 0 | J89: =EC_2!J89+FS_2!J89+GT_2!J89+KZN_2!J89+LIM_2!J89+MPU_2!J89+NC_2!J89+NW_2!J89+WC_2!J89 -> 13707798 | K89: =EC_2!K89+FS_2!K89+GT_2!K89+KZN_2!K89+LIM_2!K89+MPU_2!K89+NC_2!K89+NW_2!K89+WC_2!K89 -> 13707798 | L89: =EC_2!L89+FS_2!L89+GT_2!L89+KZN_2!L89+LIM_2!L89+MPU_2!L89+NC_2!L89+NW_2!L89+WC_2!L89 -> 0 | M89: 13373895 | N89: 0.9489220632 | T89: (b) National Tertiary Services Grant | U89: 13185528 | V89: 0 | W89: 13185528 | X89: 0 | Y89: 13185528 | AA89: 6792740 | AB89: 6792740 | AK89: =C89 -> (b) National Tertiary Services Grant | AL89: =IFERROR(U89-D89,0) -> -522270 | AM89: 0 | AN89: -522270 | AO89: -385978 | AP89: -908248 | AR89: -6915058 | AS89: -6915057.999 | AU89: =IFERROR(AD89-M89,0) -> -13373895
D90: =EC_2!D90+FS_2!D90+GT_2!D90+KZN_2!D90+LIM_2!D90+MPU_2!D90+NC_2!D90+NW_2!D90+WC_2!D90 -> 0 | E90: =EC_2!E90+FS_2!E90+GT_2!E90+KZN_2!E90+LIM_2!E90+MPU_2!E90+NC_2!E90+NW_2!E90+WC_2!E90 -> 0 | F90: =EC_2!F90+FS_2!F90+GT_2!F90+KZN_2!F90+LIM_2!F90+MPU_2!F90+NC_2!F90+NW_2!F90+WC_2!F90 -> 0 | G90: =EC_2!G90+FS_2!G90+GT_2!G90+KZN_2!G90+LIM_2!G90+MPU_2!G90+NC_2!G90+NW_2!G90+WC_2!G90 -> 0 | H90: =EC_2!H90+FS_2!H90+GT_2!H90+KZN_2!H90+LIM_2!H90+MPU_2!H90+NC_2!H90+NW_2!H90+WC_2!H90 -> 0 | I90: =EC_2!I90+FS_2!I90+GT_2!I90+KZN_2!I90+LIM_2!I90+MPU_2!I90+NC_2!I90+NW_2!I90+WC_2!I90 -> 0 | J90: =EC_2!J90+FS_2!J90+GT_2!J90+KZN_2!J90+LIM_2!J90+MPU_2!J90+NC_2!J90+NW_2!J90+WC_2!J90 -> 0 | K90: =EC_2!K90+FS_2!K90+GT_2!K90+KZN_2!K90+LIM_2!K90+MPU_2!K90+NC_2!K90+NW_2!K90+WC_2!K90 -> 0 | L90: =EC_2!L90+FS_2!L90+GT_2!L90+KZN_2!L90+LIM_2!L90+MPU_2!L90+NC_2!L90+NW_2!L90+WC_2!L90 -> 0 | M90: =EC_2!M90+FS_2!M90+GT_2!M90+KZN_2!M90+LIM_2!M90+MPU_2!M90+NC_2!M90+NW_2!M90+WC_2!M90 -> 0 | T90: 0 | U90: 0 | V90: 0 | W90: 0 | X90: 0 | Y90: 0 | AA90: 0 | AB90: 0 | AK90: 0 | AL90: 0 | AM90: 0 | AN90: 0 | AO90: 0 | AP90: 0 | AR90: 0 | AS90: 0 | AU90: 0
D91: =EC_2!D91+FS_2!D91+GT_2!D91+KZN_2!D91+LIM_2!D91+MPU_2!D91+NC_2!D91+NW_2!D91+WC_2!D91 -> 0 | E91: =EC_2!E91+FS_2!E91+GT_2!E91+KZN_2!E91+LIM_2!E91+MPU_2!E91+NC_2!E91+NW_2!E91+WC_2!E91 -> 0 | F91: =EC_2!F91+FS_2!F91+GT_2!F91+KZN_2!F91+LIM_2!F91+MPU_2!F91+NC_2!F91+NW_2!F91+WC_2!F91 -> 0 | G91: =EC_2!G91+FS_2!G91+GT_2!G91+KZN_2!G91+LIM_2!G91+MPU_2!G91+NC_2!G91+NW_2!G91+WC_2!G91 -> 0 | H91: =EC_2!H91+FS_2!H91+GT_2!H91+KZN_2!H91+LIM_2!H91+MPU_2!H91+NC_2!H91+NW_2!H91+WC_2!H91 -> 0 | I91: =EC_2!I91+FS_2!I91+GT_2!I91+KZN_2!I91+LIM_2!I91+MPU_2!I91+NC_2!I91+NW_2!I91+WC_2!I91 -> 0 | J91: =EC_2!J91+FS_2!J91+GT_2!J91+KZN_2!J91+LIM_2!J91+MPU_2!J91+NC_2!J91+NW_2!J91+WC_2!J91 -> 0 | K91: =EC_2!K91+FS_2!K91+GT_2!K91+KZN_2!K91+LIM_2!K91+MPU_2!K91+NC_2!K91+NW_2!K91+WC_2!K91 -> 0 | L91: =EC_2!L91+FS_2!L91+GT_2!L91+KZN_2!L91+LIM_2!L91+MPU_2!L91+NC_2!L91+NW_2!L91+WC_2!L91 -> 0 | M91: =EC_2!M91+FS_2!M91+GT_2!M91+KZN_2!M91+LIM_2!M91+MPU_2!M91+NC_2!M91+NW_2!M91+WC_2!M91 -> 0 | T91: 0 | U91: 0 | V91: 0 | W91: 0 | X91: 0 | Y91: 0 | AA91: 0 | AB91: 0 | AK91: 0 | AL91: 0 | AM91: 0 | AN91: 0 | AO91: 0 | AP91: 0 | AR91: 0 | AS91: 0 | AU91: 0
D92: =EC_2!D92+FS_2!D92+GT_2!D92+KZN_2!D92+LIM_2!D92+MPU_2!D92+NC_2!D92+NW_2!D92+WC_2!D92 -> 0 | E92: =EC_2!E92+FS_2!E92+GT_2!E92+KZN_2!E92+LIM_2!E92+MPU_2!E92+NC_2!E92+NW_2!E92+WC_2!E92 -> 0 | F92: =EC_2!F92+FS_2!F92+GT_2!F92+KZN_2!F92+LIM_2!F92+MPU_2!F92+NC_2!F92+NW_2!F92+WC_2!F92 -> 0 | G92: =EC_2!G92+FS_2!G92+GT_2!G92+KZN_2!G92+LIM_2!G92+MPU_2!G92+NC_2!G92+NW_2!G92+WC_2!G92 -> 0 | H92: =EC_2!H92+FS_2!H92+GT_2!H92+KZN_2!H92+LIM_2!H92+MPU_2!H92+NC_2!H92+NW_2!H92+WC_2!H92 -> 0 | I92: =EC_2!I92+FS_2!I92+GT_2!I92+KZN_2!I92+LIM_2!I92+MPU_2!I92+NC_2!I92+NW_2!I92+WC_2!I92 -> 0 | J92: =EC_2!J92+FS_2!J92+GT_2!J92+KZN_2!J92+LIM_2!J92+MPU_2!J92+NC_2!J92+NW_2!J92+WC_2!J92 -> 0 | K92: =EC_2!K92+FS_2!K92+GT_2!K92+KZN_2!K92+LIM_2!K92+MPU_2!K92+NC_2!K92+NW_2!K92+WC_2!K92 -> 0 | L92: =EC_2!L92+FS_2!L92+GT_2!L92+KZN_2!L92+LIM_2!L92+MPU_2!L92+NC_2!L92+NW_2!L92+WC_2!L92 -> 0 | M92: =EC_2!M92+FS_2!M92+GT_2!M92+KZN_2!M92+LIM_2!M92+MPU_2!M92+NC_2!M92+NW_2!M92+WC_2!M92 -> 0 | T92: 0 | U92: 0 | V92: 0 | W92: 0 | X92: 0 | Y92: 0 | AA92: 0 | AB92: 0 | AK92: 0 | AL92: 0 | AM92: 0 | AN92: 0 | AO92: 0 | AP92: 0 | AR92: 0 | AS92: 0 | AU92: 0
D93: =EC_2!D93+FS_2!D93+GT_2!D93+KZN_2!D93+LIM_2!D93+MPU_2!D93+NC_2!D93+NW_2!D93+WC_2!D93 -> 0 | E93: =EC_2!E93+FS_2!E93+GT_2!E93+KZN_2!E93+LIM_2!E93+MPU_2!E93+NC_2!E93+NW_2!E93+WC_2!E93 -> 0 | F93: =EC_2!F93+FS_2!F93+GT_2!F93+KZN_2!F93+LIM_2!F93+MPU_2!F93+NC_2!F93+NW_2!F93+WC_2!F93 -> 0 | G93: =EC_2!G93+FS_2!G93+GT_2!G93+KZN_2!G93+LIM_2!G93+MPU_2!G93+NC_2!G93+NW_2!G93+WC_2!G93 -> 0 | H93: =EC_2!H93+FS_2!H93+GT_2!H93+KZN_2!H93+LIM_2!H93+MPU_2!H93+NC_2!H93+NW_2!H93+WC_2!H93 -> 0 | I93: =EC_2!I93+FS_2!I93+GT_2!I93+KZN_2!I93+LIM_2!I93+MPU_2!I93+NC_2!I93+NW_2!I93+WC_2!I93 -> 0 | J93: =EC_2!J93+FS_2!J93+GT_2!J93+KZN_2!J93+LIM_2!J93+MPU_2!J93+NC_2!J93+NW_2!J93+WC_2!J93 -> 0 | K93: =EC_2!K93+FS_2!K93+GT_2!K93+KZN_2!K93+LIM_2!K93+MPU_2!K93+NC_2!K93+NW_2!K93+WC_2!K93 -> 0 | L93: =EC_2!L93+FS_2!L93+GT_2!L93+KZN_2!L93+LIM_2!L93+MPU_2!L93+NC_2!L93+NW_2!L93+WC_2!L93 -> 0 | M93: =EC_2!M93+FS_2!M93+GT_2!M93+KZN_2!M93+LIM_2!M93+MPU_2!M93+NC_2!M93+NW_2!M93+WC_2!M93 -> 0 | AK93: 0 | AL93: =IFERROR(U93-D93,0) -> 0 | AM93: 0 | AN93: 0 | AO93: 0 | AP93: 0 | AR93: 0 | AS93: 0 | AU93: 0
D94: =EC_2!D94+FS_2!D94+GT_2!D94+KZN_2!D94+LIM_2!D94+MPU_2!D94+NC_2!D94+NW_2!D94+WC_2!D94 -> 0 | E94: =EC_2!E94+FS_2!E94+GT_2!E94+KZN_2!E94+LIM_2!E94+MPU_2!E94+NC_2!E94+NW_2!E94+WC_2!E94 -> 0 | F94: =EC_2!F94+FS_2!F94+GT_2!F94+KZN_2!F94+LIM_2!F94+MPU_2!F94+NC_2!F94+NW_2!F94+WC_2!F94 -> 0 | G94: =EC_2!G94+FS_2!G94+GT_2!G94+KZN_2!G94+LIM_2!G94+MPU_2!G94+NC_2!G94+NW_2!G94+WC_2!G94 -> 0 | H94: =EC_2!H94+FS_2!H94+GT_2!H94+KZN_2!H94+LIM_2!H94+MPU_2!H94+NC_2!H94+NW_2!H94+WC_2!H94 -> 0 | I94: =EC_2!I94+FS_2!I94+GT_2!I94+KZN_2!I94+LIM_2!I94+MPU_2!I94+NC_2!I94+NW_2!I94+WC_2!I94 -> 0 | J94: =EC_2!J94+FS_2!J94+GT_2!J94+KZN_2!J94+LIM_2!J94+MPU_2!J94+NC_2!J94+NW_2!J94+WC_2!J94 -> 0 | K94: =EC_2!K94+FS_2!K94+GT_2!K94+KZN_2!K94+LIM_2!K94+MPU_2!K94+NC_2!K94+NW_2!K94+WC_2!K94 -> 0 | L94: =EC_2!L94+FS_2!L94+GT_2!L94+KZN_2!L94+LIM_2!L94+MPU_2!L94+NC_2!L94+NW_2!L94+WC_2!L94 -> 0 | M94: =EC_2!M94+FS_2!M94+GT_2!M94+KZN_2!M94+LIM_2!M94+MPU_2!M94+NC_2!M94+NW_2!M94+WC_2!M94 -> 0 | T94: =C94 -> 0 | V94: 0 | AK94: 0 | AL94: 0 | AM94: 0 | AN94: 0 | AO94: 0 | AP94: 0 | AR94: 0 | AS94: 0 | AU94: 0
D95: =EC_2!D95+FS_2!D95+GT_2!D95+KZN_2!D95+LIM_2!D95+MPU_2!D95+NC_2!D95+NW_2!D95+WC_2!D95 -> 0 | E95: =EC_2!E95+FS_2!E95+GT_2!E95+KZN_2!E95+LIM_2!E95+MPU_2!E95+NC_2!E95+NW_2!E95+WC_2!E95 -> 0 | F95: =EC_2!F95+FS_2!F95+GT_2!F95+KZN_2!F95+LIM_2!F95+MPU_2!F95+NC_2!F95+NW_2!F95+WC_2!F95 -> 0 | G95: =EC_2!G95+FS_2!G95+GT_2!G95+KZN_2!G95+LIM_2!G95+MPU_2!G95+NC_2!G95+NW_2!G95+WC_2!G95 -> 0 | H95: =EC_2!H95+FS_2!H95+GT_2!H95+KZN_2!H95+LIM_2!H95+MPU_2!H95+NC_2!H95+NW_2!H95+WC_2!H95 -> 0 | I95: =EC_2!I95+FS_2!I95+GT_2!I95+KZN_2!I95+LIM_2!I95+MPU_2!I95+NC_2!I95+NW_2!I95+WC_2!I95 -> 0 | J95: =EC_2!J95+FS_2!J95+GT_2!J95+KZN_2!J95+LIM_2!J95+MPU_2!J95+NC_2!J95+NW_2!J95+WC_2!J95 -> 0 | K95: =EC_2!K95+FS_2!K95+GT_2!K95+KZN_2!K95+LIM_2!K95+MPU_2!K95+NC_2!K95+NW_2!K95+WC_2!K95 -> 0 | L95: =EC_2!L95+FS_2!L95+GT_2!L95+KZN_2!L95+LIM_2!L95+MPU_2!L95+NC_2!L95+NW_2!L95+WC_2!L95 -> 0 | M95: =EC_2!M95+FS_2!M95+GT_2!M95+KZN_2!M95+LIM_2!M95+MPU_2!M95+NC_2!M95+NW_2!M95+WC_2!M95 -> 0 | T95: =C95 -> 0 | U95: 0 | V95: 0 | W95: 0 | X95: 0 | Y95: 0 | AA95: 0 | AB95: 0 | AK95: =C95 -> 0 | AL95: =IFERROR(U95-D95,0) -> 0 | AM95: 0 | AN95: 0 | AO95: 0 | AP95: 0 | AR95: 0 | AS95: 0 | AU95: =IFERROR(AD95-M95,0) -> 0
D96: =EC_2!D96+FS_2!D96+GT_2!D96+KZN_2!D96+LIM_2!D96+MPU_2!D96+NC_2!D96+NW_2!D96+WC_2!D96 -> 0 | E96: =EC_2!E96+FS_2!E96+GT_2!E96+KZN_2!E96+LIM_2!E96+MPU_2!E96+NC_2!E96+NW_2!E96+WC_2!E96 -> 0 | F96: =EC_2!F96+FS_2!F96+GT_2!F96+KZN_2!F96+LIM_2!F96+MPU_2!F96+NC_2!F96+NW_2!F96+WC_2!F96 -> 0 | G96: =EC_2!G96+FS_2!G96+GT_2!G96+KZN_2!G96+LIM_2!G96+MPU_2!G96+NC_2!G96+NW_2!G96+WC_2!G96 -> 0 | H96: =EC_2!H96+FS_2!H96+GT_2!H96+KZN_2!H96+LIM_2!H96+MPU_2!H96+NC_2!H96+NW_2!H96+WC_2!H96 -> 0 | I96: =EC_2!I96+FS_2!I96+GT_2!I96+KZN_2!I96+LIM_2!I96+MPU_2!I96+NC_2!I96+NW_2!I96+WC_2!I96 -> 0 | J96: =EC_2!J96+FS_2!J96+GT_2!J96+KZN_2!J96+LIM_2!J96+MPU_2!J96+NC_2!J96+NW_2!J96+WC_2!J96 -> 0 | K96: =EC_2!K96+FS_2!K96+GT_2!K96+KZN_2!K96+LIM_2!K96+MPU_2!K96+NC_2!K96+NW_2!K96+WC_2!K96 -> 0 | L96: =EC_2!L96+FS_2!L96+GT_2!L96+KZN_2!L96+LIM_2!L96+MPU_2!L96+NC_2!L96+NW_2!L96+WC_2!L96 -> 0 | M96: =EC_2!M96+FS_2!M96+GT_2!M96+KZN_2!M96+LIM_2!M96+MPU_2!M96+NC_2!M96+NW_2!M96+WC_2!M96 -> 0 | T96: 0 | U96: 0 | V96: 0 | W96: 0 | X96: 0 | Y96: 0 | AA96: 0 | AB96: 0 | AK96: =C96 -> 0 | AL96: =IFERROR(U96-D96,0) -> 0 | AM96: 0 | AN96: 0 | AO96: 0 | AP96: 0 | AR96: 0 | AS96: 0 | AU96: =IFERROR(AD96-M96,0) -> 0
D97: =EC_2!D97+FS_2!D97+GT_2!D97+KZN_2!D97+LIM_2!D97+MPU_2!D97+NC_2!D97+NW_2!D97+WC_2!D97 -> 0 | E97: =EC_2!E97+FS_2!E97+GT_2!E97+KZN_2!E97+LIM_2!E97+MPU_2!E97+NC_2!E97+NW_2!E97+WC_2!E97 -> 0 | F97: =EC_2!F97+FS_2!F97+GT_2!F97+KZN_2!F97+LIM_2!F97+MPU_2!F97+NC_2!F97+NW_2!F97+WC_2!F97 -> 0 | G97: =EC_2!G97+FS_2!G97+GT_2!G97+KZN_2!G97+LIM_2!G97+MPU_2!G97+NC_2!G97+NW_2!G97+WC_2!G97 -> 0 | H97: =EC_2!H97+FS_2!H97+GT_2!H97+KZN_2!H97+LIM_2!H97+MPU_2!H97+NC_2!H97+NW_2!H97+WC_2!H97 -> 0 | I97: =EC_2!I97+FS_2!I97+GT_2!I97+KZN_2!I97+LIM_2!I97+MPU_2!I97+NC_2!I97+NW_2!I97+WC_2!I97 -> 0 | J97: =EC_2!J97+FS_2!J97+GT_2!J97+KZN_2!J97+LIM_2!J97+MPU_2!J97+NC_2!J97+NW_2!J97+WC_2!J97 -> 0 | K97: =EC_2!K97+FS_2!K97+GT_2!K97+KZN_2!K97+LIM_2!K97+MPU_2!K97+NC_2!K97+NW_2!K97+WC_2!K97 -> 0 | L97: =EC_2!L97+FS_2!L97+GT_2!L97+KZN_2!L97+LIM_2!L97+MPU_2!L97+NC_2!L97+NW_2!L97+WC_2!L97 -> 0 | M97: =EC_2!M97+FS_2!M97+GT_2!M97+KZN_2!M97+LIM_2!M97+MPU_2!M97+NC_2!M97+NW_2!M97+WC_2!M97 -> 0 | T97: 0 | U97: 0 | V97: 0 | W97: 0 | X97: 0 | Y97: 0 | AA97: 0 | AB97: 0 | AK97: 0 | AL97: 0 | AM97: 0 | AN97: 0 | AO97: 0 | AP97: 0 | AR97: 0 | AS97: 0 | AU97: 0
D98: =EC_2!D98+FS_2!D98+GT_2!D98+KZN_2!D98+LIM_2!D98+MPU_2!D98+NC_2!D98+NW_2!D98+WC_2!D98 -> 0 | E98: =EC_2!E98+FS_2!E98+GT_2!E98+KZN_2!E98+LIM_2!E98+MPU_2!E98+NC_2!E98+NW_2!E98+WC_2!E98 -> 0 | F98: =EC_2!F98+FS_2!F98+GT_2!F98+KZN_2!F98+LIM_2!F98+MPU_2!F98+NC_2!F98+NW_2!F98+WC_2!F98 -> 0 | G98: =EC_2!G98+FS_2!G98+GT_2!G98+KZN_2!G98+LIM_2!G98+MPU_2!G98+NC_2!G98+NW_2!G98+WC_2!G98 -> 0 | H98: =EC_2!H98+FS_2!H98+GT_2!H98+KZN_2!H98+LIM_2!H98+MPU_2!H98+NC_2!H98+NW_2!H98+WC_2!H98 -> 0 | I98: =EC_2!I98+FS_2!I98+GT_2!I98+KZN_2!I98+LIM_2!I98+MPU_2!I98+NC_2!I98+NW_2!I98+WC_2!I98 -> 0 | J98: =EC_2!J98+FS_2!J98+GT_2!J98+KZN_2!J98+LIM_2!J98+MPU_2!J98+NC_2!J98+NW_2!J98+WC_2!J98 -> 0 | K98: =EC_2!K98+FS_2!K98+GT_2!K98+KZN_2!K98+LIM_2!K98+MPU_2!K98+NC_2!K98+NW_2!K98+WC_2!K98 -> 0 | L98: =EC_2!L98+FS_2!L98+GT_2!L98+KZN_2!L98+LIM_2!L98+MPU_2!L98+NC_2!L98+NW_2!L98+WC_2!L98 -> 0 | M98: =EC_2!M98+FS_2!M98+GT_2!M98+KZN_2!M98+LIM_2!M98+MPU_2!M98+NC_2!M98+NW_2!M98+WC_2!M98 -> 0 | T98: 0 | U98: 0 | V98: 0 | W98: 0 | X98: 0 | Y98: 0 | AA98: 0 | AB98: 0 | AK98: 0 | AL98: 0 | AM98: 0 | AN98: 0 | AO98: 0 | AP98: 0 | AR98: =IFERROR(AA98-J98,0) -> 0 | AS98: =IFERROR(AB98-K98,0) -> 0 | AU98: 0
D99: =EC_2!D99+FS_2!D99+GT_2!D99+KZN_2!D99+LIM_2!D99+MPU_2!D99+NC_2!D99+NW_2!D99+WC_2!D99 -> 0 | E99: =EC_2!E99+FS_2!E99+GT_2!E99+KZN_2!E99+LIM_2!E99+MPU_2!E99+NC_2!E99+NW_2!E99+WC_2!E99 -> 0 | F99: =EC_2!F99+FS_2!F99+GT_2!F99+KZN_2!F99+LIM_2!F99+MPU_2!F99+NC_2!F99+NW_2!F99+WC_2!F99 -> 0 | G99: =EC_2!G99+FS_2!G99+GT_2!G99+KZN_2!G99+LIM_2!G99+MPU_2!G99+NC_2!G99+NW_2!G99+WC_2!G99 -> 0 | H99: =EC_2!H99+FS_2!H99+GT_2!H99+KZN_2!H99+LIM_2!H99+MPU_2!H99+NC_2!H99+NW_2!H99+WC_2!H99 -> 0 | I99: =EC_2!I99+FS_2!I99+GT_2!I99+KZN_2!I99+LIM_2!I99+MPU_2!I99+NC_2!I99+NW_2!I99+WC_2!I99 -> 0 | J99: =EC_2!J99+FS_2!J99+GT_2!J99+KZN_2!J99+LIM_2!J99+MPU_2!J99+NC_2!J99+NW_2!J99+WC_2!J99 -> 0 | K99: =EC_2!K99+FS_2!K99+GT_2!K99+KZN_2!K99+LIM_2!K99+MPU_2!K99+NC_2!K99+NW_2!K99+WC_2!K99 -> 0 | L99: =EC_2!L99+FS_2!L99+GT_2!L99+KZN_2!L99+LIM_2!L99+MPU_2!L99+NC_2!L99+NW_2!L99+WC_2!L99 -> 0 | M99: =EC_2!M99+FS_2!M99+GT_2!M99+KZN_2!M99+LIM_2!M99+MPU_2!M99+NC_2!M99+NW_2!M99+WC_2!M99 -> 0 | T99: 0 | U99: 0 | V99: 0 | W99: 0 | X99: 0 | Y99: 0 | AA99: 0 | AB99: 0 | AK99: 0 | AL99: 0 | AM99: 0 | AN99: 0 | AO99: 0 | AP99: 0 | AR99: 0 | AS99: 0 | AU99: 0
D100: =EC_2!D100+FS_2!D100+GT_2!D100+KZN_2!D100+LIM_2!D100+MPU_2!D100+NC_2!D100+NW_2!D100+WC_2!D100 -> 0 | E100: =EC_2!E100+FS_2!E100+GT_2!E100+KZN_2!E100+LIM_2!E100+MPU_2!E100+NC_2!E100+NW_2!E100+WC_2!E100 -> 0 | F100: =EC_2!F100+FS_2!F100+GT_2!F100+KZN_2!F100+LIM_2!F100+MPU_2!F100+NC_2!F100+NW_2!F100+WC_2!F100 -> 0 | G100: =EC_2!G100+FS_2!G100+GT_2!G100+KZN_2!G100+LIM_2!G100+MPU_2!G100+NC_2!G100+NW_2!G100+WC_2!G100 -> 0 | H100: =EC_2!H100+FS_2!H100+GT_2!H100+KZN_2!H100+LIM_2!H100+MPU_2!H100+NC_2!H100+NW_2!H100+WC_2!H100 -> 0 | I100: =EC_2!I100+FS_2!I100+GT_2!I100+KZN_2!I100+LIM_2!I100+MPU_2!I100+NC_2!I100+NW_2!I100+WC_2!I100 -> 0 | J100: =EC_2!J100+FS_2!J100+GT_2!J100+KZN_2!J100+LIM_2!J100+MPU_2!J100+NC_2!J100+NW_2!J100+WC_2!J100 -> 0 | K100: =EC_2!K100+FS_2!K100+GT_2!K100+KZN_2!K100+LIM_2!K100+MPU_2!K100+NC_2!K100+NW_2!K100+WC_2!K100 -> 0 | L100: =EC_2!L100+FS_2!L100+GT_2!L100+KZN_2!L100+LIM_2!L100+MPU_2!L100+NC_2!L100+NW_2!L100+WC_2!L100 -> 0 | M100: =EC_2!M100+FS_2!M100+GT_2!M100+KZN_2!M100+LIM_2!M100+MPU_2!M100+NC_2!M100+NW_2!M100+WC_2!M100 -> 0 | AK100: 0 | AL100: 0 | AM100: 0 | AN100: 0 | AO100: 0 | AP100: 0 | AR100: =IFERROR(AA100-J100,0) -> 0 | AS100: 0 | AU100: 0
C101: Transport (Vote 40) | D101: =EC_2!D101+FS_2!D101+GT_2!D101+KZN_2!D101+LIM_2!D101+MPU_2!D101+NC_2!D101+NW_2!D101+WC_2!D101 -> 19057367 | E101: =EC_2!E101+FS_2!E101+GT_2!E101+KZN_2!E101+LIM_2!E101+MPU_2!E101+NC_2!E101+NW_2!E101+WC_2!E101 -> 0 | F101: =EC_2!F101+FS_2!F101+GT_2!F101+KZN_2!F101+LIM_2!F101+MPU_2!F101+NC_2!F101+NW_2!F101+WC_2!F101 -> 19057367 | G101: =EC_2!G101+FS_2!G101+GT_2!G101+KZN_2!G101+LIM_2!G101+MPU_2!G101+NC_2!G101+NW_2!G101+WC_2!G101 -> 94476 | H101: =EC_2!H101+FS_2!H101+GT_2!H101+KZN_2!H101+LIM_2!H101+MPU_2!H101+NC_2!H101+NW_2!H101+WC_2!H101 -> 19151843 | I101: =EC_2!I101+FS_2!I101+GT_2!I101+KZN_2!I101+LIM_2!I101+MPU_2!I101+NC_2!I101+NW_2!I101+WC_2!I101 -> 0 | J101: =EC_2!J101+FS_2!J101+GT_2!J101+KZN_2!J101+LIM_2!J101+MPU_2!J101+NC_2!J101+NW_2!J101+WC_2!J101 -> 19057367 | K101: =EC_2!K101+FS_2!K101+GT_2!K101+KZN_2!K101+LIM_2!K101+MPU_2!K101+NC_2!K101+NW_2!K101+WC_2!K101 -> 19057367 | L101: =EC_2!L101+FS_2!L101+GT_2!L101+KZN_2!L101+LIM_2!L101+MPU_2!L101+NC_2!L101+NW_2!L101+WC_2!L101 -> 0 | M101: =SUM(M102:M103) -> 18281857.3 | T101: =C101 -> Transport (Vote 40) | U101: 17707420 | V101: 0 | W101: 17707420 | X101: 0 | Y101: 17707420 | AA101: 9167804 | AB101: 8942514 | AK101: Transport (Vote 40) | AL101: -1349947 | AM101: 0 | AN101: -1349947 | AO101: -94476 | AP101: -1444423 | AR101: -9889563 | AS101: -10114853 | AU101: -18281857.3
C102: (a) Provincial Roads Maintenance Grant | D102: =EC_2!D102+FS_2!D102+GT_2!D102+KZN_2!D102+LIM_2!D102+MPU_2!D102+NC_2!D102+NW_2!D102+WC_2!D102 -> 11936559 | E102: =EC_2!E102+FS_2!E102+GT_2!E102+KZN_2!E102+LIM_2!E102+MPU_2!E102+NC_2!E102+NW_2!E102+WC_2!E102 -> 0 | F102: =EC_2!F102+FS_2!F102+GT_2!F102+KZN_2!F102+LIM_2!F102+MPU_2!F102+NC_2!F102+NW_2!F102+WC_2!F102 -> 11936559 | G102: =EC_2!G102+FS_2!G102+GT_2!G102+KZN_2!G102+LIM_2!G102+MPU_2!G102+NC_2!G102+NW_2!G102+WC_2!G102 -> 0 | H102: =EC_2!H102+FS_2!H102+GT_2!H102+KZN_2!H102+LIM_2!H102+MPU_2!H102+NC_2!H102+NW_2!H102+WC_2!H102 -> 11936559 | I102: =EC_2!I102+FS_2!I102+GT_2!I102+KZN_2!I102+LIM_2!I102+MPU_2!I102+NC_2!I102+NW_2!I102+WC_2!I102 -> 0 | J102: =EC_2!J102+FS_2!J102+GT_2!J102+KZN_2!J102+LIM_2!J102+MPU_2!J102+NC_2!J102+NW_2!J102+WC_2!J102 -> 11936559 | K102: =EC_2!K102+FS_2!K102+GT_2!K102+KZN_2!K102+LIM_2!K102+MPU_2!K102+NC_2!K102+NW_2!K102+WC_2!K102 -> 11936559 | L102: =EC_2!L102+FS_2!L102+GT_2!L102+KZN_2!L102+LIM_2!L102+MPU_2!L102+NC_2!L102+NW_2!L102+WC_2!L102 -> 0 | M102: 11611552 | T102: =C102 -> (a) Provincial Roads Maintenance Grant | U102: 11381665 | V102: 0 | W102: 11381665 | X102: 0 | Y102: 11381665 | AA102: 6803168 | AB102: 6367422 | AK102: =C102 -> (a) Provincial Roads Maintenance Grant | AL102: =IFERROR(U102-D102,0) -> -554894 | AM102: 0 | AN102: -554894 | AO102: 0 | AP102: -554894 | AR102: -5133391 | AS102: -5569137 | AU102: =IFERROR(AD102-M102,0) -> -11611552
C103: (b) Public Transport Operations Grant | D103: =EC_2!D103+FS_2!D103+GT_2!D103+KZN_2!D103+LIM_2!D103+MPU_2!D103+NC_2!D103+NW_2!D103+WC_2!D103 -> 7120808 | E103: =EC_2!E103+FS_2!E103+GT_2!E103+KZN_2!E103+LIM_2!E103+MPU_2!E103+NC_2!E103+NW_2!E103+WC_2!E103 -> 0 | F103: =EC_2!F103+FS_2!F103+GT_2!F103+KZN_2!F103+LIM_2!F103+MPU_2!F103+NC_2!F103+NW_2!F103+WC_2!F103 -> 7120808 | G103: =EC_2!G103+FS_2!G103+GT_2!G103+KZN_2!G103+LIM_2!G103+MPU_2!G103+NC_2!G103+NW_2!G103+WC_2!G103 -> 94476 | H103: =EC_2!H103+FS_2!H103+GT_2!H103+KZN_2!H103+LIM_2!H103+MPU_2!H103+NC_2!H103+NW_2!H103+WC_2!H103 -> 7215284 | I103: =EC_2!I103+FS_2!I103+GT_2!I103+KZN_2!I103+LIM_2!I103+MPU_2!I103+NC_2!I103+NW_2!I103+WC_2!I103 -> 0 | J103: =EC_2!J103+FS_2!J103+GT_2!J103+KZN_2!J103+LIM_2!J103+MPU_2!J103+NC_2!J103+NW_2!J103+WC_2!J103 -> 7120808 | K103: =EC_2!K103+FS_2!K103+GT_2!K103+KZN_2!K103+LIM_2!K103+MPU_2!K103+NC_2!K103+NW_2!K103+WC_2!K103 -> 7120808 | L103: =EC_2!L103+FS_2!L103+GT_2!L103+KZN_2!L103+LIM_2!L103+MPU_2!L103+NC_2!L103+NW_2!L103+WC_2!L103 -> 0 | M103: 6670305.3 | T103: (b) Public Transport Operations Grant | U103: 6325755 | V103: 0 | W103: 6325755 | X103: 0 | Y103: 6325755 | AA103: 2364636 | AB103: 2575092 | AK103: =C103 -> (b) Public Transport Operations Grant | AL103: =IFERROR(U103-D103,0) -> -795053 | AM103: 0 | AN103: -795053 | AO103: -94476 | AP103: -889529 | AR103: -4756172 | AS103: -4545716 | AU103: =IFERROR(AD103-M103,0) -> -6670305.3
D104: =EC_2!D104+FS_2!D104+GT_2!D104+KZN_2!D104+LIM_2!D104+MPU_2!D104+NC_2!D104+NW_2!D104+WC_2!D104 -> 0 | E104: =EC_2!E104+FS_2!E104+GT_2!E104+KZN_2!E104+LIM_2!E104+MPU_2!E104+NC_2!E104+NW_2!E104+WC_2!E104 -> 0 | F104: =EC_2!F104+FS_2!F104+GT_2!F104+KZN_2!F104+LIM_2!F104+MPU_2!F104+NC_2!F104+NW_2!F104+WC_2!F104 -> 0 | G104: =EC_2!G104+FS_2!G104+GT_2!G104+KZN_2!G104+LIM_2!G104+MPU_2!G104+NC_2!G104+NW_2!G104+WC_2!G104 -> 0 | H104: =EC_2!H104+FS_2!H104+GT_2!H104+KZN_2!H104+LIM_2!H104+MPU_2!H104+NC_2!H104+NW_2!H104+WC_2!H104 -> 0 | I104: =EC_2!I104+FS_2!I104+GT_2!I104+KZN_2!I104+LIM_2!I104+MPU_2!I104+NC_2!I104+NW_2!I104+WC_2!I104 -> 0 | J104: =EC_2!J104+FS_2!J104+GT_2!J104+KZN_2!J104+LIM_2!J104+MPU_2!J104+NC_2!J104+NW_2!J104+WC_2!J104 -> 0 | K104: =EC_2!K104+FS_2!K104+GT_2!K104+KZN_2!K104+LIM_2!K104+MPU_2!K104+NC_2!K104+NW_2!K104+WC_2!K104 -> 0 | L104: =EC_2!L104+FS_2!L104+GT_2!L104+KZN_2!L104+LIM_2!L104+MPU_2!L104+NC_2!L104+NW_2!L104+WC_2!L104 -> 0 | M104: =EC_2!M104+FS_2!M104+GT_2!M104+KZN_2!M104+LIM_2!M104+MPU_2!M104+NC_2!M104+NW_2!M104+WC_2!M104 -> 0 | T104: 0 | U104: 0 | V104: 0 | W104: 0 | X104: 0 | Y104: 0 | AA104: 0 | AB104: 0 | AK104: 0 | AL104: 0 | AM104: 0 | AN104: 0 | AO104: 0 | AP104: 0 | AR104: 0 | AS104: 0 | AU104: 0
D105: =EC_2!D105+FS_2!D105+GT_2!D105+KZN_2!D105+LIM_2!D105+MPU_2!D105+NC_2!D105+NW_2!D105+WC_2!D105 -> 0 | E105: =EC_2!E105+FS_2!E105+GT_2!E105+KZN_2!E105+LIM_2!E105+MPU_2!E105+NC_2!E105+NW_2!E105+WC_2!E105 -> 0 | F105: =EC_2!F105+FS_2!F105+GT_2!F105+KZN_2!F105+LIM_2!F105+MPU_2!F105+NC_2!F105+NW_2!F105+WC_2!F105 -> 0 | G105: =EC_2!G105+FS_2!G105+GT_2!G105+KZN_2!G105+LIM_2!G105+MPU_2!G105+NC_2!G105+NW_2!G105+WC_2!G105 -> 0 | H105: =EC_2!H105+FS_2!H105+GT_2!H105+KZN_2!H105+LIM_2!H105+MPU_2!H105+NC_2!H105+NW_2!H105+WC_2!H105 -> 0 | I105: =EC_2!I105+FS_2!I105+GT_2!I105+KZN_2!I105+LIM_2!I105+MPU_2!I105+NC_2!I105+NW_2!I105+WC_2!I105 -> 0 | J105: =EC_2!J105+FS_2!J105+GT_2!J105+KZN_2!J105+LIM_2!J105+MPU_2!J105+NC_2!J105+NW_2!J105+WC_2!J105 -> 0 | K105: =EC_2!K105+FS_2!K105+GT_2!K105+KZN_2!K105+LIM_2!K105+MPU_2!K105+NC_2!K105+NW_2!K105+WC_2!K105 -> 0 | L105: =EC_2!L105+FS_2!L105+GT_2!L105+KZN_2!L105+LIM_2!L105+MPU_2!L105+NC_2!L105+NW_2!L105+WC_2!L105 -> 0 | M105: =EC_2!M105+FS_2!M105+GT_2!M105+KZN_2!M105+LIM_2!M105+MPU_2!M105+NC_2!M105+NW_2!M105+WC_2!M105 -> 0 | T105: 0 | U105: 0 | V105: 0 | W105: 0 | X105: 0 | Y105: 0 | AA105: 0 | AB105: 0 | AK105: 0 | AL105: 0 | AM105: 0 | AN105: 0 | AO105: 0 | AP105: 0 | AR105: 0 | AS105: 0 | AU105: 0
D106: =EC_2!D106+FS_2!D106+GT_2!D106+KZN_2!D106+LIM_2!D106+MPU_2!D106+NC_2!D106+NW_2!D106+WC_2!D106 -> 0 | E106: =EC_2!E106+FS_2!E106+GT_2!E106+KZN_2!E106+LIM_2!E106+MPU_2!E106+NC_2!E106+NW_2!E106+WC_2!E106 -> 0 | F106: =EC_2!F106+FS_2!F106+GT_2!F106+KZN_2!F106+LIM_2!F106+MPU_2!F106+NC_2!F106+NW_2!F106+WC_2!F106 -> 0 | G106: =EC_2!G106+FS_2!G106+GT_2!G106+KZN_2!G106+LIM_2!G106+MPU_2!G106+NC_2!G106+NW_2!G106+WC_2!G106 -> 0 | H106: =EC_2!H106+FS_2!H106+GT_2!H106+KZN_2!H106+LIM_2!H106+MPU_2!H106+NC_2!H106+NW_2!H106+WC_2!H106 -> 0 | I106: =EC_2!I106+FS_2!I106+GT_2!I106+KZN_2!I106+LIM_2!I106+MPU_2!I106+NC_2!I106+NW_2!I106+WC_2!I106 -> 0 | J106: =EC_2!J106+FS_2!J106+GT_2!J106+KZN_2!J106+LIM_2!J106+MPU_2!J106+NC_2!J106+NW_2!J106+WC_2!J106 -> 0 | K106: =EC_2!K106+FS_2!K106+GT_2!K106+KZN_2!K106+LIM_2!K106+MPU_2!K106+NC_2!K106+NW_2!K106+WC_2!K106 -> 0 | L106: =EC_2!L106+FS_2!L106+GT_2!L106+KZN_2!L106+LIM_2!L106+MPU_2!L106+NC_2!L106+NW_2!L106+WC_2!L106 -> 0 | M106: =EC_2!M106+FS_2!M106+GT_2!M106+KZN_2!M106+LIM_2!M106+MPU_2!M106+NC_2!M106+NW_2!M106+WC_2!M106 -> 0 | T106: 0 | U106: 0 | V106: 0 | W106: 0 | X106: 0 | Y106: 0 | AA106: 0 | AB106: 0 | AK106: 0 | AL106: 0 | AM106: 0 | AN106: 0 | AO106: 0 | AP106: 0 | AR106: 0 | AS106: 0 | AU106: 0
D107: =EC_2!D107+FS_2!D107+GT_2!D107+KZN_2!D107+LIM_2!D107+MPU_2!D107+NC_2!D107+NW_2!D107+WC_2!D107 -> 0 | E107: =EC_2!E107+FS_2!E107+GT_2!E107+KZN_2!E107+LIM_2!E107+MPU_2!E107+NC_2!E107+NW_2!E107+WC_2!E107 -> 0 | F107: =EC_2!F107+FS_2!F107+GT_2!F107+KZN_2!F107+LIM_2!F107+MPU_2!F107+NC_2!F107+NW_2!F107+WC_2!F107 -> 0 | G107: =EC_2!G107+FS_2!G107+GT_2!G107+KZN_2!G107+LIM_2!G107+MPU_2!G107+NC_2!G107+NW_2!G107+WC_2!G107 -> 0 | H107: =EC_2!H107+FS_2!H107+GT_2!H107+KZN_2!H107+LIM_2!H107+MPU_2!H107+NC_2!H107+NW_2!H107+WC_2!H107 -> 0 | I107: =EC_2!I107+FS_2!I107+GT_2!I107+KZN_2!I107+LIM_2!I107+MPU_2!I107+NC_2!I107+NW_2!I107+WC_2!I107 -> 0 | J107: =EC_2!J107+FS_2!J107+GT_2!J107+KZN_2!J107+LIM_2!J107+MPU_2!J107+NC_2!J107+NW_2!J107+WC_2!J107 -> 0 | K107: =EC_2!K107+FS_2!K107+GT_2!K107+KZN_2!K107+LIM_2!K107+MPU_2!K107+NC_2!K107+NW_2!K107+WC_2!K107 -> 0 | L107: =EC_2!L107+FS_2!L107+GT_2!L107+KZN_2!L107+LIM_2!L107+MPU_2!L107+NC_2!L107+NW_2!L107+WC_2!L107 -> 0 | M107: =EC_2!M107+FS_2!M107+GT_2!M107+KZN_2!M107+LIM_2!M107+MPU_2!M107+NC_2!M107+NW_2!M107+WC_2!M107 -> 0 | AK107: 0 | AL107: 0 | AM107: 0 | AN107: 0 | AO107: 0 | AP107: 0 | AR107: 0 | AS107: 0 | AU107: 0
C108: Sub-Total | D108: =EC_2!D108+FS_2!D108+GT_2!D108+KZN_2!D108+LIM_2!D108+MPU_2!D108+NC_2!D108+NW_2!D108+WC_2!D108 -> 44454101 | E108: =EC_2!E108+FS_2!E108+GT_2!E108+KZN_2!E108+LIM_2!E108+MPU_2!E108+NC_2!E108+NW_2!E108+WC_2!E108 -> 0 | F108: =EC_2!F108+FS_2!F108+GT_2!F108+KZN_2!F108+LIM_2!F108+MPU_2!F108+NC_2!F108+NW_2!F108+WC_2!F108 -> 44454101 | G108: =EC_2!G108+FS_2!G108+GT_2!G108+KZN_2!G108+LIM_2!G108+MPU_2!G108+NC_2!G108+NW_2!G108+WC_2!G108 -> 649849 | H108: =EC_2!H108+FS_2!H108+GT_2!H108+KZN_2!H108+LIM_2!H108+MPU_2!H108+NC_2!H108+NW_2!H108+WC_2!H108 -> 45103950 | I108: =EC_2!I108+FS_2!I108+GT_2!I108+KZN_2!I108+LIM_2!I108+MPU_2!I108+NC_2!I108+NW_2!I108+WC_2!I108 -> 0 | J108: =EC_2!J108+FS_2!J108+GT_2!J108+KZN_2!J108+LIM_2!J108+MPU_2!J108+NC_2!J108+NW_2!J108+WC_2!J108 -> 44454101 | K108: =EC_2!K108+FS_2!K108+GT_2!K108+KZN_2!K108+LIM_2!K108+MPU_2!K108+NC_2!K108+NW_2!K108+WC_2!K108 -> 44454101 | L108: =EC_2!L108+FS_2!L108+GT_2!L108+KZN_2!L108+LIM_2!L108+MPU_2!L108+NC_2!L108+NW_2!L108+WC_2!L108 -> 0 | M108: =SUM(M80+M87+M101) -> 43167317.43 | N108: =IFERROR(M108/H108,0) -> 0.9570629054 | T108: Sub-Total | U108: 44347854 | V108: 0 | W108: 44347854 | X108: 0 | Y108: 44347854 | AA108: 24002288 | AB108: 23776998 | AK108: Sub-Total | AL108: -106247 | AM108: 0 | AN108: -106247 | AO108: -649849 | AP108: -756096 | AR108: -20451813 | AS108: -20677103 | AU108: -43167317.43
D109: =EC_2!D109+FS_2!D109+GT_2!D109+KZN_2!D109+LIM_2!D109+MPU_2!D109+NC_2!D109+NW_2!D109+WC_2!D109 -> 0 | E109: =EC_2!E109+FS_2!E109+GT_2!E109+KZN_2!E109+LIM_2!E109+MPU_2!E109+NC_2!E109+NW_2!E109+WC_2!E109 -> 0 | F109: =EC_2!F109+FS_2!F109+GT_2!F109+KZN_2!F109+LIM_2!F109+MPU_2!F109+NC_2!F109+NW_2!F109+WC_2!F109 -> 0 | G109: =EC_2!G109+FS_2!G109+GT_2!G109+KZN_2!G109+LIM_2!G109+MPU_2!G109+NC_2!G109+NW_2!G109+WC_2!G109 -> 0 | H109: =EC_2!H109+FS_2!H109+GT_2!H109+KZN_2!H109+LIM_2!H109+MPU_2!H109+NC_2!H109+NW_2!H109+WC_2!H109 -> 0 | I109: =EC_2!I109+FS_2!I109+GT_2!I109+KZN_2!I109+LIM_2!I109+MPU_2!I109+NC_2!I109+NW_2!I109+WC_2!I109 -> 0 | J109: =EC_2!J109+FS_2!J109+GT_2!J109+KZN_2!J109+LIM_2!J109+MPU_2!J109+NC_2!J109+NW_2!J109+WC_2!J109 -> 0 | K109: =EC_2!K109+FS_2!K109+GT_2!K109+KZN_2!K109+LIM_2!K109+MPU_2!K109+NC_2!K109+NW_2!K109+WC_2!K109 -> 0 | L109: =EC_2!L109+FS_2!L109+GT_2!L109+KZN_2!L109+LIM_2!L109+MPU_2!L109+NC_2!L109+NW_2!L109+WC_2!L109 -> 0 | M109: =EC_2!M109+FS_2!M109+GT_2!M109+KZN_2!M109+LIM_2!M109+MPU_2!M109+NC_2!M109+NW_2!M109+WC_2!M109 -> 0 | AL109: 0 | AM109: 0 | AN109: 0 | AO109: 0 | AP109: 0 | AR109: 0 | AS109: 0 | AU109: 0
C110: Schedule 7, Part A Grants3. | D110: =EC_2!D110+FS_2!D110+GT_2!D110+KZN_2!D110+LIM_2!D110+MPU_2!D110+NC_2!D110+NW_2!D110+WC_2!D110 -> 0 | E110: =EC_2!E110+FS_2!E110+GT_2!E110+KZN_2!E110+LIM_2!E110+MPU_2!E110+NC_2!E110+NW_2!E110+WC_2!E110 -> 0 | F110: =EC_2!F110+FS_2!F110+GT_2!F110+KZN_2!F110+LIM_2!F110+MPU_2!F110+NC_2!F110+NW_2!F110+WC_2!F110 -> 0 | G110: =EC_2!G110+FS_2!G110+GT_2!G110+KZN_2!G110+LIM_2!G110+MPU_2!G110+NC_2!G110+NW_2!G110+WC_2!G110 -> 0 | H110: =EC_2!H110+FS_2!H110+GT_2!H110+KZN_2!H110+LIM_2!H110+MPU_2!H110+NC_2!H110+NW_2!H110+WC_2!H110 -> 0 | I110: =EC_2!I110+FS_2!I110+GT_2!I110+KZN_2!I110+LIM_2!I110+MPU_2!I110+NC_2!I110+NW_2!I110+WC_2!I110 -> 0 | J110: =EC_2!J110+FS_2!J110+GT_2!J110+KZN_2!J110+LIM_2!J110+MPU_2!J110+NC_2!J110+NW_2!J110+WC_2!J110 -> 0 | K110: =EC_2!K110+FS_2!K110+GT_2!K110+KZN_2!K110+LIM_2!K110+MPU_2!K110+NC_2!K110+NW_2!K110+WC_2!K110 -> 0 | L110: =EC_2!L110+FS_2!L110+GT_2!L110+KZN_2!L110+LIM_2!L110+MPU_2!L110+NC_2!L110+NW_2!L110+WC_2!L110 -> 0 | M110: =EC_2!M110+FS_2!M110+GT_2!M110+KZN_2!M110+LIM_2!M110+MPU_2!M110+NC_2!M110+NW_2!M110+WC_2!M110 -> 0 | T110: Schedule 7, Part A Grants3. | AK110: Schedule 7, Part A Grants3. | AL110: 0 | AM110: 0 | AN110: 0 | AO110: 0 | AP110: 0 | AR110: 0 | AS110: 0 | AU110: 0
D111: =EC_2!D111+FS_2!D111+GT_2!D111+KZN_2!D111+LIM_2!D111+MPU_2!D111+NC_2!D111+NW_2!D111+WC_2!D111 -> 0 | E111: =EC_2!E111+FS_2!E111+GT_2!E111+KZN_2!E111+LIM_2!E111+MPU_2!E111+NC_2!E111+NW_2!E111+WC_2!E111 -> 0 | F111: =EC_2!F111+FS_2!F111+GT_2!F111+KZN_2!F111+LIM_2!F111+MPU_2!F111+NC_2!F111+NW_2!F111+WC_2!F111 -> 0 | G111: =EC_2!G111+FS_2!G111+GT_2!G111+KZN_2!G111+LIM_2!G111+MPU_2!G111+NC_2!G111+NW_2!G111+WC_2!G111 -> 0 | H111: =EC_2!H111+FS_2!H111+GT_2!H111+KZN_2!H111+LIM_2!H111+MPU_2!H111+NC_2!H111+NW_2!H111+WC_2!H111 -> 0 | I111: =EC_2!I111+FS_2!I111+GT_2!I111+KZN_2!I111+LIM_2!I111+MPU_2!I111+NC_2!I111+NW_2!I111+WC_2!I111 -> 0 | J111: =EC_2!J111+FS_2!J111+GT_2!J111+KZN_2!J111+LIM_2!J111+MPU_2!J111+NC_2!J111+NW_2!J111+WC_2!J111 -> 0 | K111: =EC_2!K111+FS_2!K111+GT_2!K111+KZN_2!K111+LIM_2!K111+MPU_2!K111+NC_2!K111+NW_2!K111+WC_2!K111 -> 0 | L111: =EC_2!L111+FS_2!L111+GT_2!L111+KZN_2!L111+LIM_2!L111+MPU_2!L111+NC_2!L111+NW_2!L111+WC_2!L111 -> 0 | M111: =EC_2!M111+FS_2!M111+GT_2!M111+KZN_2!M111+LIM_2!M111+MPU_2!M111+NC_2!M111+NW_2!M111+WC_2!M111 -> 0 | AK111: 0 | AL111: 0 | AM111: 0 | AN111: 0 | AO111: 0 | AP111: 0 | AR111: 0 | AS111: 0 | AU111: 0
C112: Cooperative Governance (Vote 3) | D112: =EC_2!D112+FS_2!D112+GT_2!D112+KZN_2!D112+LIM_2!D112+MPU_2!D112+NC_2!D112+NW_2!D112+WC_2!D112 -> 0 | E112: =EC_2!E112+FS_2!E112+GT_2!E112+KZN_2!E112+LIM_2!E112+MPU_2!E112+NC_2!E112+NW_2!E112+WC_2!E112 -> 0 | F112: =EC_2!F112+FS_2!F112+GT_2!F112+KZN_2!F112+LIM_2!F112+MPU_2!F112+NC_2!F112+NW_2!F112+WC_2!F112 -> 0 | G112: =EC_2!G112+FS_2!G112+GT_2!G112+KZN_2!G112+LIM_2!G112+MPU_2!G112+NC_2!G112+NW_2!G112+WC_2!G112 -> 1225 | H112: =EC_2!H112+FS_2!H112+GT_2!H112+KZN_2!H112+LIM_2!H112+MPU_2!H112+NC_2!H112+NW_2!H112+WC_2!H112 -> 1225 | I112: =EC_2!I112+FS_2!I112+GT_2!I112+KZN_2!I112+LIM_2!I112+MPU_2!I112+NC_2!I112+NW_2!I112+WC_2!I112 -> 0 | J112: =EC_2!J112+FS_2!J112+GT_2!J112+KZN_2!J112+LIM_2!J112+MPU_2!J112+NC_2!J112+NW_2!J112+WC_2!J112 -> 0 | K112: =EC_2!K112+FS_2!K112+GT_2!K112+KZN_2!K112+LIM_2!K112+MPU_2!K112+NC_2!K112+NW_2!K112+WC_2!K112 -> 0 | L112: =EC_2!L112+FS_2!L112+GT_2!L112+KZN_2!L112+LIM_2!L112+MPU_2!L112+NC_2!L112+NW_2!L112+WC_2!L112 -> 0 | M112: =SUM(M113) -> 1225 | N112: =IFERROR(M112/H112,0) -> 1 | T112: =C112 -> Cooperative Governance (Vote 3) | U112: 0 | V112: 0 | W112: 0 | X112: 0 | Y112: 0 | AB112: 0 | AK112: Cooperative Governance (Vote 3) | AL112: 0 | AM112: 0 | AN112: 0 | AO112: -1225 | AP112: -1225 | AR112: 0 | AS112: 0 | AU112: -1225
C113: Provincial Disaster Relief Grant | D113: =EC_2!D113+FS_2!D113+GT_2!D113+KZN_2!D113+LIM_2!D113+MPU_2!D113+NC_2!D113+NW_2!D113+WC_2!D113 -> 0 | E113: =EC_2!E113+FS_2!E113+GT_2!E113+KZN_2!E113+LIM_2!E113+MPU_2!E113+NC_2!E113+NW_2!E113+WC_2!E113 -> 0 | F113: =EC_2!F113+FS_2!F113+GT_2!F113+KZN_2!F113+LIM_2!F113+MPU_2!F113+NC_2!F113+NW_2!F113+WC_2!F113 -> 0 | G113: =EC_2!G113+FS_2!G113+GT_2!G113+KZN_2!G113+LIM_2!G113+MPU_2!G113+NC_2!G113+NW_2!G113+WC_2!G113 -> 1225 | H113: =EC_2!H113+FS_2!H113+GT_2!H113+KZN_2!H113+LIM_2!H113+MPU_2!H113+NC_2!H113+NW_2!H113+WC_2!H113 -> 1225 | I113: =EC_2!I113+FS_2!I113+GT_2!I113+KZN_2!I113+LIM_2!I113+MPU_2!I113+NC_2!I113+NW_2!I113+WC_2!I113 -> 0 | J113: =EC_2!J113+FS_2!J113+GT_2!J113+KZN_2!J113+LIM_2!J113+MPU_2!J113+NC_2!J113+NW_2!J113+WC_2!J113 -> 0 | K113: =EC_2!K113+FS_2!K113+GT_2!K113+KZN_2!K113+LIM_2!K113+MPU_2!K113+NC_2!K113+NW_2!K113+WC_2!K113 -> 0 | L113: =EC_2!L113+FS_2!L113+GT_2!L113+KZN_2!L113+LIM_2!L113+MPU_2!L113+NC_2!L113+NW_2!L113+WC_2!L113 -> 0 | M113: 1225 | N113: 1 | T113: =C113 -> Provincial Disaster Relief Grant | U113: 0 | V113: 0 | W113: 0 | X113: 0 | Y113: 0 | AB113: 0 | AK113: Provincial Disaster Relief Grant | AL113: 0 | AM113: =IFERROR(V113-E113,0) -> 0 | AN113: =IFERROR(W113-F113,0) -> 0 | AO113: =IFERROR(X113-G113,0) -> -1225 | AP113: =IFERROR(Y113-H113,0) -> -1225 | AR113: =IFERROR(AA113-J113,0) -> 0 | AS113: =IFERROR(AB113-K113,0) -> 0 | AU113: -1225
D114: =EC_2!D114+FS_2!D114+GT_2!D114+KZN_2!D114+LIM_2!D114+MPU_2!D114+NC_2!D114+NW_2!D114+WC_2!D114 -> 0 | E114: =EC_2!E114+FS_2!E114+GT_2!E114+KZN_2!E114+LIM_2!E114+MPU_2!E114+NC_2!E114+NW_2!E114+WC_2!E114 -> 0 | F114: =EC_2!F114+FS_2!F114+GT_2!F114+KZN_2!F114+LIM_2!F114+MPU_2!F114+NC_2!F114+NW_2!F114+WC_2!F114 -> 0 | G114: =EC_2!G114+FS_2!G114+GT_2!G114+KZN_2!G114+LIM_2!G114+MPU_2!G114+NC_2!G114+NW_2!G114+WC_2!G114 -> 0 | H114: =EC_2!H114+FS_2!H114+GT_2!H114+KZN_2!H114+LIM_2!H114+MPU_2!H114+NC_2!H114+NW_2!H114+WC_2!H114 -> 0 | I114: =EC_2!I114+FS_2!I114+GT_2!I114+KZN_2!I114+LIM_2!I114+MPU_2!I114+NC_2!I114+NW_2!I114+WC_2!I114 -> 0 | J114: =EC_2!J114+FS_2!J114+GT_2!J114+KZN_2!J114+LIM_2!J114+MPU_2!J114+NC_2!J114+NW_2!J114+WC_2!J114 -> 0 | K114: =EC_2!K114+FS_2!K114+GT_2!K114+KZN_2!K114+LIM_2!K114+MPU_2!K114+NC_2!K114+NW_2!K114+WC_2!K114 -> 0 | L114: =EC_2!L114+FS_2!L114+GT_2!L114+KZN_2!L114+LIM_2!L114+MPU_2!L114+NC_2!L114+NW_2!L114+WC_2!L114 -> 0 | M114: =EC_2!M114+FS_2!M114+GT_2!M114+KZN_2!M114+LIM_2!M114+MPU_2!M114+NC_2!M114+NW_2!M114+WC_2!M114 -> 0 | T114: 0 | U114: 0 | V114: 0 | W114: 0 | X114: 0 | Y114: 0 | AB114: 0 | AK114: 0 | AL114: 0 | AM114: 0 | AN114: 0 | AO114: 0 | AP114: 0 | AR114: 0 | AS114: 0 | AU114: 0
D115: =EC_2!D115+FS_2!D115+GT_2!D115+KZN_2!D115+LIM_2!D115+MPU_2!D115+NC_2!D115+NW_2!D115+WC_2!D115 -> 0 | E115: =EC_2!E115+FS_2!E115+GT_2!E115+KZN_2!E115+LIM_2!E115+MPU_2!E115+NC_2!E115+NW_2!E115+WC_2!E115 -> 0 | F115: =EC_2!F115+FS_2!F115+GT_2!F115+KZN_2!F115+LIM_2!F115+MPU_2!F115+NC_2!F115+NW_2!F115+WC_2!F115 -> 0 | G115: =EC_2!G115+FS_2!G115+GT_2!G115+KZN_2!G115+LIM_2!G115+MPU_2!G115+NC_2!G115+NW_2!G115+WC_2!G115 -> 0 | H115: =EC_2!H115+FS_2!H115+GT_2!H115+KZN_2!H115+LIM_2!H115+MPU_2!H115+NC_2!H115+NW_2!H115+WC_2!H115 -> 0 | I115: =EC_2!I115+FS_2!I115+GT_2!I115+KZN_2!I115+LIM_2!I115+MPU_2!I115+NC_2!I115+NW_2!I115+WC_2!I115 -> 0 | J115: =EC_2!J115+FS_2!J115+GT_2!J115+KZN_2!J115+LIM_2!J115+MPU_2!J115+NC_2!J115+NW_2!J115+WC_2!J115 -> 0 | K115: =EC_2!K115+FS_2!K115+GT_2!K115+KZN_2!K115+LIM_2!K115+MPU_2!K115+NC_2!K115+NW_2!K115+WC_2!K115 -> 0 | L115: =EC_2!L115+FS_2!L115+GT_2!L115+KZN_2!L115+LIM_2!L115+MPU_2!L115+NC_2!L115+NW_2!L115+WC_2!L115 -> 0 | M115: =EC_2!M115+FS_2!M115+GT_2!M115+KZN_2!M115+LIM_2!M115+MPU_2!M115+NC_2!M115+NW_2!M115+WC_2!M115 -> 0 | T115: 0 | U115: 0 | V115: 0 | W115: 0 | X115: 0 | Y115: 0 | AB115: 0 | AK115: 0 | AL115: 0 | AM115: 0 | AN115: 0 | AO115: 0 | AP115: 0 | AR115: 0 | AS115: 0 | AU115: 0
D116: =EC_2!D116+FS_2!D116+GT_2!D116+KZN_2!D116+LIM_2!D116+MPU_2!D116+NC_2!D116+NW_2!D116+WC_2!D116 -> 0 | E116: =EC_2!E116+FS_2!E116+GT_2!E116+KZN_2!E116+LIM_2!E116+MPU_2!E116+NC_2!E116+NW_2!E116+WC_2!E116 -> 0 | F116: =EC_2!F116+FS_2!F116+GT_2!F116+KZN_2!F116+LIM_2!F116+MPU_2!F116+NC_2!F116+NW_2!F116+WC_2!F116 -> 0 | G116: =EC_2!G116+FS_2!G116+GT_2!G116+KZN_2!G116+LIM_2!G116+MPU_2!G116+NC_2!G116+NW_2!G116+WC_2!G116 -> 0 | H116: =EC_2!H116+FS_2!H116+GT_2!H116+KZN_2!H116+LIM_2!H116+MPU_2!H116+NC_2!H116+NW_2!H116+WC_2!H116 -> 0 | I116: =EC_2!I116+FS_2!I116+GT_2!I116+KZN_2!I116+LIM_2!I116+MPU_2!I116+NC_2!I116+NW_2!I116+WC_2!I116 -> 0 | J116: =EC_2!J116+FS_2!J116+GT_2!J116+KZN_2!J116+LIM_2!J116+MPU_2!J116+NC_2!J116+NW_2!J116+WC_2!J116 -> 0 | K116: =EC_2!K116+FS_2!K116+GT_2!K116+KZN_2!K116+LIM_2!K116+MPU_2!K116+NC_2!K116+NW_2!K116+WC_2!K116 -> 0 | L116: =EC_2!L116+FS_2!L116+GT_2!L116+KZN_2!L116+LIM_2!L116+MPU_2!L116+NC_2!L116+NW_2!L116+WC_2!L116 -> 0 | M116: =EC_2!M116+FS_2!M116+GT_2!M116+KZN_2!M116+LIM_2!M116+MPU_2!M116+NC_2!M116+NW_2!M116+WC_2!M116 -> 0 | AK116: 0 | AL116: 0 | AM116: 0 | AN116: 0 | AO116: 0 | AP116: 0 | AR116: 0 | AS116: 0 | AU116: 0
C117: Human Settlements (Vote 33) | D117: =EC_2!D117+FS_2!D117+GT_2!D117+KZN_2!D117+LIM_2!D117+MPU_2!D117+NC_2!D117+NW_2!D117+WC_2!D117 -> 0 | E117: =EC_2!E117+FS_2!E117+GT_2!E117+KZN_2!E117+LIM_2!E117+MPU_2!E117+NC_2!E117+NW_2!E117+WC_2!E117 -> 14177 | F117: =EC_2!F117+FS_2!F117+GT_2!F117+KZN_2!F117+LIM_2!F117+MPU_2!F117+NC_2!F117+NW_2!F117+WC_2!F117 -> 14177 | G117: =EC_2!G117+FS_2!G117+GT_2!G117+KZN_2!G117+LIM_2!G117+MPU_2!G117+NC_2!G117+NW_2!G117+WC_2!G117 -> 212697 | H117: =EC_2!H117+FS_2!H117+GT_2!H117+KZN_2!H117+LIM_2!H117+MPU_2!H117+NC_2!H117+NW_2!H117+WC_2!H117 -> 226874 | I117: =EC_2!I117+FS_2!I117+GT_2!I117+KZN_2!I117+LIM_2!I117+MPU_2!I117+NC_2!I117+NW_2!I117+WC_2!I117 -> 0 | J117: =EC_2!J117+FS_2!J117+GT_2!J117+KZN_2!J117+LIM_2!J117+MPU_2!J117+NC_2!J117+NW_2!J117+WC_2!J117 -> 0 | K117: =EC_2!K117+FS_2!K117+GT_2!K117+KZN_2!K117+LIM_2!K117+MPU_2!K117+NC_2!K117+NW_2!K117+WC_2!K117 -> 10052.795 | L117: =EC_2!L117+FS_2!L117+GT_2!L117+KZN_2!L117+LIM_2!L117+MPU_2!L117+NC_2!L117+NW_2!L117+WC_2!L117 -> 0 | M117: =SUM(M118) -> 127134 | N117: =IFERROR(M117/H117,0) -> 0.5603727179 | T117: =C117 -> Human Settlements (Vote 33) | U117: 0 | V117: 0 | W117: 0 | X117: 0 | Y117: 0 | AB117: 154658.157 | AK117: Human Settlements (Vote 33) | AL117: 0 | AM117: -14177 | AN117: -14177 | AO117: -212697 | AP117: -226874 | AR117: 0 | AS117: 144605.362 | AU117: -127134
C118: Provincial Emergency Housing Grant | D118: =EC_2!D118+FS_2!D118+GT_2!D118+KZN_2!D118+LIM_2!D118+MPU_2!D118+NC_2!D118+NW_2!D118+WC_2!D118 -> 0 | E118: =EC_2!E118+FS_2!E118+GT_2!E118+KZN_2!E118+LIM_2!E118+MPU_2!E118+NC_2!E118+NW_2!E118+WC_2!E118 -> 14177 | F118: =EC_2!F118+FS_2!F118+GT_2!F118+KZN_2!F118+LIM_2!F118+MPU_2!F118+NC_2!F118+NW_2!F118+WC_2!F118 -> 14177 | G118: =EC_2!G118+FS_2!G118+GT_2!G118+KZN_2!G118+LIM_2!G118+MPU_2!G118+NC_2!G118+NW_2!G118+WC_2!G118 -> 212697 | H118: =EC_2!H118+FS_2!H118+GT_2!H118+KZN_2!H118+LIM_2!H118+MPU_2!H118+NC_2!H118+NW_2!H118+WC_2!H118 -> 226874 | I118: =EC_2!I118+FS_2!I118+GT_2!I118+KZN_2!I118+LIM_2!I118+MPU_2!I118+NC_2!I118+NW_2!I118+WC_2!I118 -> 0 | J118: =EC_2!J118+FS_2!J118+GT_2!J118+KZN_2!J118+LIM_2!J118+MPU_2!J118+NC_2!J118+NW_2!J118+WC_2!J118 -> 0 | K118: =EC_2!K118+FS_2!K118+GT_2!K118+KZN_2!K118+LIM_2!K118+MPU_2!K118+NC_2!K118+NW_2!K118+WC_2!K118 -> 10052.795 | L118: =EC_2!L118+FS_2!L118+GT_2!L118+KZN_2!L118+LIM_2!L118+MPU_2!L118+NC_2!L118+NW_2!L118+WC_2!L118 -> 0 | M118: 127134 | N118: 0.5603727179 | T118: =C118 -> Provincial Emergency Housing Grant | U118: 0 | V118: 0 | W118: 0 | X118: 0 | Y118: 0 | AB118: 154658.157 | AK118: Provincial Emergency Housing Grant | AL118: 0 | AM118: =IFERROR(V118-E118,0) -> -14177 | AN118: =IFERROR(W118-F118,0) -> -14177 | AO118: =IFERROR(X118-G118,0) -> -212697 | AP118: =IFERROR(Y118-H118,0) -> -226874 | AR118: =IFERROR(AA118-J118,0) -> 0 | AS118: =IFERROR(AB118-K118,0) -> 144605.362 | AU118: -127134
D119: =EC_2!D119+FS_2!D119+GT_2!D119+KZN_2!D119+LIM_2!D119+MPU_2!D119+NC_2!D119+NW_2!D119+WC_2!D119 -> 0 | E119: =EC_2!E119+FS_2!E119+GT_2!E119+KZN_2!E119+LIM_2!E119+MPU_2!E119+NC_2!E119+NW_2!E119+WC_2!E119 -> 0 | F119: =EC_2!F119+FS_2!F119+GT_2!F119+KZN_2!F119+LIM_2!F119+MPU_2!F119+NC_2!F119+NW_2!F119+WC_2!F119 -> 0 | G119: =EC_2!G119+FS_2!G119+GT_2!G119+KZN_2!G119+LIM_2!G119+MPU_2!G119+NC_2!G119+NW_2!G119+WC_2!G119 -> 0 | H119: =EC_2!H119+FS_2!H119+GT_2!H119+KZN_2!H119+LIM_2!H119+MPU_2!H119+NC_2!H119+NW_2!H119+WC_2!H119 -> 0 | I119: =EC_2!I119+FS_2!I119+GT_2!I119+KZN_2!I119+LIM_2!I119+MPU_2!I119+NC_2!I119+NW_2!I119+WC_2!I119 -> 0 | J119: =EC_2!J119+FS_2!J119+GT_2!J119+KZN_2!J119+LIM_2!J119+MPU_2!J119+NC_2!J119+NW_2!J119+WC_2!J119 -> 0 | K119: =EC_2!K119+FS_2!K119+GT_2!K119+KZN_2!K119+LIM_2!K119+MPU_2!K119+NC_2!K119+NW_2!K119+WC_2!K119 -> 0 | L119: =EC_2!L119+FS_2!L119+GT_2!L119+KZN_2!L119+LIM_2!L119+MPU_2!L119+NC_2!L119+NW_2!L119+WC_2!L119 -> 0 | M119: =EC_2!M119+FS_2!M119+GT_2!M119+KZN_2!M119+LIM_2!M119+MPU_2!M119+NC_2!M119+NW_2!M119+WC_2!M119 -> 0 | T119: 0 | U119: 0 | V119: 0 | W119: 0 | X119: 0 | Y119: 0 | AB119: 0 | AK119: 0 | AL119: 0 | AM119: 0 | AN119: 0 | AO119: 0 | AP119: 0 | AR119: 0 | AS119: 0 | AU119: 0
D120: =EC_2!D120+FS_2!D120+GT_2!D120+KZN_2!D120+LIM_2!D120+MPU_2!D120+NC_2!D120+NW_2!D120+WC_2!D120 -> 0 | E120: =EC_2!E120+FS_2!E120+GT_2!E120+KZN_2!E120+LIM_2!E120+MPU_2!E120+NC_2!E120+NW_2!E120+WC_2!E120 -> 0 | F120: =EC_2!F120+FS_2!F120+GT_2!F120+KZN_2!F120+LIM_2!F120+MPU_2!F120+NC_2!F120+NW_2!F120+WC_2!F120 -> 0 | G120: =EC_2!G120+FS_2!G120+GT_2!G120+KZN_2!G120+LIM_2!G120+MPU_2!G120+NC_2!G120+NW_2!G120+WC_2!G120 -> 0 | H120: =EC_2!H120+FS_2!H120+GT_2!H120+KZN_2!H120+LIM_2!H120+MPU_2!H120+NC_2!H120+NW_2!H120+WC_2!H120 -> 0 | I120: =EC_2!I120+FS_2!I120+GT_2!I120+KZN_2!I120+LIM_2!I120+MPU_2!I120+NC_2!I120+NW_2!I120+WC_2!I120 -> 0 | J120: =EC_2!J120+FS_2!J120+GT_2!J120+KZN_2!J120+LIM_2!J120+MPU_2!J120+NC_2!J120+NW_2!J120+WC_2!J120 -> 0 | K120: =EC_2!K120+FS_2!K120+GT_2!K120+KZN_2!K120+LIM_2!K120+MPU_2!K120+NC_2!K120+NW_2!K120+WC_2!K120 -> 0 | L120: =EC_2!L120+FS_2!L120+GT_2!L120+KZN_2!L120+LIM_2!L120+MPU_2!L120+NC_2!L120+NW_2!L120+WC_2!L120 -> 0 | M120: =EC_2!M120+FS_2!M120+GT_2!M120+KZN_2!M120+LIM_2!M120+MPU_2!M120+NC_2!M120+NW_2!M120+WC_2!M120 -> 0 | T120: 0 | U120: 0 | V120: 0 | W120: 0 | X120: 0 | Y120: 0 | AB120: 0 | AK120: 0 | AL120: 0 | AM120: 0 | AN120: 0 | AO120: 0 | AP120: 0 | AR120: 0 | AS120: 0 | AU120: 0
D121: =EC_2!D121+FS_2!D121+GT_2!D121+KZN_2!D121+LIM_2!D121+MPU_2!D121+NC_2!D121+NW_2!D121+WC_2!D121 -> 0 | E121: =EC_2!E121+FS_2!E121+GT_2!E121+KZN_2!E121+LIM_2!E121+MPU_2!E121+NC_2!E121+NW_2!E121+WC_2!E121 -> 0 | F121: =EC_2!F121+FS_2!F121+GT_2!F121+KZN_2!F121+LIM_2!F121+MPU_2!F121+NC_2!F121+NW_2!F121+WC_2!F121 -> 0 | G121: =EC_2!G121+FS_2!G121+GT_2!G121+KZN_2!G121+LIM_2!G121+MPU_2!G121+NC_2!G121+NW_2!G121+WC_2!G121 -> 0 | H121: =EC_2!H121+FS_2!H121+GT_2!H121+KZN_2!H121+LIM_2!H121+MPU_2!H121+NC_2!H121+NW_2!H121+WC_2!H121 -> 0 | I121: =EC_2!I121+FS_2!I121+GT_2!I121+KZN_2!I121+LIM_2!I121+MPU_2!I121+NC_2!I121+NW_2!I121+WC_2!I121 -> 0 | J121: =EC_2!J121+FS_2!J121+GT_2!J121+KZN_2!J121+LIM_2!J121+MPU_2!J121+NC_2!J121+NW_2!J121+WC_2!J121 -> 0 | K121: =EC_2!K121+FS_2!K121+GT_2!K121+KZN_2!K121+LIM_2!K121+MPU_2!K121+NC_2!K121+NW_2!K121+WC_2!K121 -> 0 | L121: =EC_2!L121+FS_2!L121+GT_2!L121+KZN_2!L121+LIM_2!L121+MPU_2!L121+NC_2!L121+NW_2!L121+WC_2!L121 -> 0 | M121: =EC_2!M121+FS_2!M121+GT_2!M121+KZN_2!M121+LIM_2!M121+MPU_2!M121+NC_2!M121+NW_2!M121+WC_2!M121 -> 0 | AK121: 0 | AL121: 0 | AM121: 0 | AN121: 0 | AO121: 0 | AP121: 0 | AR121: 0 | AS121: 0 | AU121: 0
C122: Sub-Total | D122: =EC_2!D122+FS_2!D122+GT_2!D122+KZN_2!D122+LIM_2!D122+MPU_2!D122+NC_2!D122+NW_2!D122+WC_2!D122 -> 0 | E122: =EC_2!E122+FS_2!E122+GT_2!E122+KZN_2!E122+LIM_2!E122+MPU_2!E122+NC_2!E122+NW_2!E122+WC_2!E122 -> 14177 | F122: =EC_2!F122+FS_2!F122+GT_2!F122+KZN_2!F122+LIM_2!F122+MPU_2!F122+NC_2!F122+NW_2!F122+WC_2!F122 -> 14177 | G122: =EC_2!G122+FS_2!G122+GT_2!G122+KZN_2!G122+LIM_2!G122+MPU_2!G122+NC_2!G122+NW_2!G122+WC_2!G122 -> 213922 | H122: =EC_2!H122+FS_2!H122+GT_2!H122+KZN_2!H122+LIM_2!H122+MPU_2!H122+NC_2!H122+NW_2!H122+WC_2!H122 -> 228099 | I122: =EC_2!I122+FS_2!I122+GT_2!I122+KZN_2!I122+LIM_2!I122+MPU_2!I122+NC_2!I122+NW_2!I122+WC_2!I122 -> 0 | J122: =EC_2!J122+FS_2!J122+GT_2!J122+KZN_2!J122+LIM_2!J122+MPU_2!J122+NC_2!J122+NW_2!J122+WC_2!J122 -> 0 | K122: =EC_2!K122+FS_2!K122+GT_2!K122+KZN_2!K122+LIM_2!K122+MPU_2!K122+NC_2!K122+NW_2!K122+WC_2!K122 -> 10052.795 | L122: =EC_2!L122+FS_2!L122+GT_2!L122+KZN_2!L122+LIM_2!L122+MPU_2!L122+NC_2!L122+NW_2!L122+WC_2!L122 -> 0 | M122: =SUM(M112+M117) -> 128359 | N122: =IFERROR(M122/H122,0) -> 0.5627337253 | T122: Sub-Total | U122: 0 | V122: 0 | W122: 0 | X122: 0 | Y122: 0 | AB122: 154658.157 | AK122: Sub-Total | AL122: 0 | AM122: -14177 | AN122: -14177 | AO122: -213922 | AP122: -228099 | AR122: 0 | AS122: 144605.362 | AU122: -128359
D123: =EC_2!D123+FS_2!D123+GT_2!D123+KZN_2!D123+LIM_2!D123+MPU_2!D123+NC_2!D123+NW_2!D123+WC_2!D123 -> 0 | E123: =EC_2!E123+FS_2!E123+GT_2!E123+KZN_2!E123+LIM_2!E123+MPU_2!E123+NC_2!E123+NW_2!E123+WC_2!E123 -> 0 | F123: =EC_2!F123+FS_2!F123+GT_2!F123+KZN_2!F123+LIM_2!F123+MPU_2!F123+NC_2!F123+NW_2!F123+WC_2!F123 -> 0 | G123: =EC_2!G123+FS_2!G123+GT_2!G123+KZN_2!G123+LIM_2!G123+MPU_2!G123+NC_2!G123+NW_2!G123+WC_2!G123 -> 0 | H123: =EC_2!H123+FS_2!H123+GT_2!H123+KZN_2!H123+LIM_2!H123+MPU_2!H123+NC_2!H123+NW_2!H123+WC_2!H123 -> 0 | I123: =EC_2!I123+FS_2!I123+GT_2!I123+KZN_2!I123+LIM_2!I123+MPU_2!I123+NC_2!I123+NW_2!I123+WC_2!I123 -> 0 | J123: =EC_2!J123+FS_2!J123+GT_2!J123+KZN_2!J123+LIM_2!J123+MPU_2!J123+NC_2!J123+NW_2!J123+WC_2!J123 -> 0 | K123: =EC_2!K123+FS_2!K123+GT_2!K123+KZN_2!K123+LIM_2!K123+MPU_2!K123+NC_2!K123+NW_2!K123+WC_2!K123 -> 0 | L123: =EC_2!L123+FS_2!L123+GT_2!L123+KZN_2!L123+LIM_2!L123+MPU_2!L123+NC_2!L123+NW_2!L123+WC_2!L123 -> 0 | M123: =EC_2!M123+FS_2!M123+GT_2!M123+KZN_2!M123+LIM_2!M123+MPU_2!M123+NC_2!M123+NW_2!M123+WC_2!M123 -> 0 | AL123: 0 | AM123: 0 | AN123: 0 | AO123: 0 | AP123: 0 | AR123: 0 | AS123: 0 | AU123: 0
C124: Total | D124: =EC_2!D124+FS_2!D124+GT_2!D124+KZN_2!D124+LIM_2!D124+MPU_2!D124+NC_2!D124+NW_2!D124+WC_2!D124 -> 115331131 | E124: =EC_2!E124+FS_2!E124+GT_2!E124+KZN_2!E124+LIM_2!E124+MPU_2!E124+NC_2!E124+NW_2!E124+WC_2!E124 -> 592824 | F124: =EC_2!F124+FS_2!F124+GT_2!F124+KZN_2!F124+LIM_2!F124+MPU_2!F124+NC_2!F124+NW_2!F124+WC_2!F124 -> 115923955 | G124: =EC_2!G124+FS_2!G124+GT_2!G124+KZN_2!G124+LIM_2!G124+MPU_2!G124+NC_2!G124+NW_2!G124+WC_2!G124 -> 2855485 | H124: =EC_2!H124+FS_2!H124+GT_2!H124+KZN_2!H124+LIM_2!H124+MPU_2!H124+NC_2!H124+NW_2!H124+WC_2!H124 -> 118779440 | I124: =EC_2!I124+FS_2!I124+GT_2!I124+KZN_2!I124+LIM_2!I124+MPU_2!I124+NC_2!I124+NW_2!I124+WC_2!I124 -> 0 | J124: =EC_2!J124+FS_2!J124+GT_2!J124+KZN_2!J124+LIM_2!J124+MPU_2!J124+NC_2!J124+NW_2!J124+WC_2!J124 -> 115909778 | K124: =EC_2!K124+FS_2!K124+GT_2!K124+KZN_2!K124+LIM_2!K124+MPU_2!K124+NC_2!K124+NW_2!K124+WC_2!K124 -> 115915601.8 | L124: =EC_2!L124+FS_2!L124+GT_2!L124+KZN_2!L124+LIM_2!L124+MPU_2!L124+NC_2!L124+NW_2!L124+WC_2!L124 -> 0 | M124: =SUM(M76+M108+M122) -> 112211745.5 | N124: =IFERROR(M124/H124,0) -> 0.9447068066 | T124: Total | U124: 106304528.2 | V124: 0 | W124: 106304528.2 | X124: 0 | Y124: 106304528.2 | AA124: 55551990 | AB124: 55441235.33 | AK124: Total | AL124: -9026602.81 | AM124: -592824 | AN124: -9619426.81 | AO124: -2855485 | AP124: -12474911.81 | AR124: -60357788 | AS124: -60474366.46 | AU124: -112211745.5
D125: =EC_2!D125+FS_2!D125+GT_2!D125+KZN_2!D125+LIM_2!D125+MPU_2!D125+NC_2!D125+NW_2!D125+WC_2!D125 -> 0 | E125: =EC_2!E125+FS_2!E125+GT_2!E125+KZN_2!E125+LIM_2!E125+MPU_2!E125+NC_2!E125+NW_2!E125+WC_2!E125 -> 0 | F125: =EC_2!F125+FS_2!F125+GT_2!F125+KZN_2!F125+LIM_2!F125+MPU_2!F125+NC_2!F125+NW_2!F125+WC_2!F125 -> 0 | G125: =EC_2!G125+FS_2!G125+GT_2!G125+KZN_2!G125+LIM_2!G125+MPU_2!G125+NC_2!G125+NW_2!G125+WC_2!G125 -> 0 | H125: =EC_2!H125+FS_2!H125+GT_2!H125+KZN_2!H125+LIM_2!H125+MPU_2!H125+NC_2!H125+NW_2!H125+WC_2!H125 -> 0 | I125: =EC_2!I125+FS_2!I125+GT_2!I125+KZN_2!I125+LIM_2!I125+MPU_2!I125+NC_2!I125+NW_2!I125+WC_2!I125 -> 0 | J125: =EC_2!J125+FS_2!J125+GT_2!J125+KZN_2!J125+LIM_2!J125+MPU_2!J125+NC_2!J125+NW_2!J125+WC_2!J125 -> 0 | K125: =EC_2!K125+FS_2!K125+GT_2!K125+KZN_2!K125+LIM_2!K125+MPU_2!K125+NC_2!K125+NW_2!K125+WC_2!K125 -> 0 | L125: =EC_2!L125+FS_2!L125+GT_2!L125+KZN_2!L125+LIM_2!L125+MPU_2!L125+NC_2!L125+NW_2!L125+WC_2!L125 -> 0 | M125: =EC_2!M125+FS_2!M125+GT_2!M125+KZN_2!M125+LIM_2!M125+MPU_2!M125+NC_2!M125+NW_2!M125+WC_2!M125 -> 0
B126: 1. | C126: Schedule 4, Part A grants specifying allocations to provinces to supplement the funding of programmes or functions funded from provincial budgets.
B127: 2. | C127: Schedule 5, Part A grants specifying specific-purpose allocations to provinces.
B128: 3. | C128: Schedule 7, Part A grants specifying unallocated provisions for provinces for disaster response.
D130: 0 | E130: 0 | F130: 0 | G130: 0 | H130: 0 | J130: 0 | K130: 0 | M130: 76916

Sheet Infrastructure1 (hidden)
C3: ="PROVINCIAL INFRASTRUCTURE BUDGETS AND ACTUAL PAYMENTS BY PROVINCES FOR THE " & QUARTER -> PROVINCIAL INFRASTRUCTURE BUDGETS AND ACTUAL PAYMENTS BY PROVINCES FOR THE FOURTH QUARTER ENDED 31 MARCH 2022 | T3: ="NATIONAL TREASURY: " & C3 -> NATIONAL TREASURY: PROVINCIAL INFRASTRUCTURE BUDGETS AND ACTUAL PAYMENTS BY PROVINCES FOR THE FOURTH QUARTER ENDED 31 MARCH 2022 | AK3: ="VARIANCE FROM NATIONAL TREASURY: " & C3 -> VARIANCE FROM NATIONAL TREASURY: PROVINCIAL INFRASTRUCTURE BUDGETS AND ACTUAL PAYMENTS BY PROVINCES FOR THE FOURTH QUARTER ENDED 31 MARCH 2022
C4: =UPPER(Prov) & " PROVINCE" -> ALL PROVINCES PROVINCE | T4: =C4 -> ALL PROVINCES PROVINCE | AK4: =C4 -> ALL PROVINCES PROVINCE
C6: Details | D6: =Overview!D6 -> 2021/22 | T6: Details | U6: 2019/20 | AK6: Details | AL6: 2019/20
D7: Budget | H7: Payments by Quarter | M7: Payments to Date | U7: Budget | Y7: Payments by Quarter | AD7: Payments to Date | AL7: Budget | AP7: Payments by Quarter | AU7: Payments to Date
D8: Main Budget1. | E8: Adjustments | F8: Adjusted Budget2. | H8: First Quarter | I8: Second Quarter | J8: Third Quarter | K8: Fourth Quarter | M8: Actual Payments | N8: % Actual Payments | U8: Main Budget1. | V8: Adjustments | W8: Adjusted Budget2. | Y8: First Quarter | Z8: Second Quarter | AA8: Third Quarter | AB8: Fourth Quarter | AD8: Actual Payments | AE8: % Actual Payments | AL8: Main Budget1. | AM8: Adjustments | AN8: Adjusted Budget2. | AP8: First Quarter | AQ8: Second Quarter | AR8: Third Quarter | AS8: Fourth Quarter | AU8: Actual Payments | AV8: % Actual Payments
A9: Filter | C9: Financial information | D9: R'000 | E9: R'000 | F9: R'000 | H9: R'000 | I9: R'000 | J9: R'000 | K9: R'000 | M9: R'000 | N9: % | T9: Financial information | U9: R'000 | V9: R'000 | W9: R'000 | Y9: R'000 | Z9: R'000 | AA9: R'000 | AB9: R'000 | AD9: R'000 | AE9: % | AK9: Financial information | AL9: R'000 | AM9: R'000 | AN9: R'000 | AP9: R'000 | AQ9: R'000 | AR9: R'000 | AS9: R'000 | AU9: R'000 | AV9: %
A10: 1
A11: 1 | C11: Infrastructure by provincial departments | T11: Infrastructure by provincial departments | AK11: Infrastructure by provincial departments
A12: =IF(LEN(C12)>3,1,0) -> 1 | C12: Eastern Cape | D12: =SUMIF($C$36:$C$198,$C12,$D$36:$D$198) -> 8677949.241 | E12: =F12-D12 -> -567115 | F12: =SUMIF($C$36:$C$198,$C12,$F$36:$F$198) -> 8110834.241 | H12: =SUMIF($C$36:$C$198,$C12,$H$36:$H$198) -> 575589.1 | I12: =IF(General!$BE$1<2,"",SUMIF($C$36:$C$198,$C12,$I$36:$I$198)) -> 1974802.2 | J12: =IF(General!$BE$1<3,"",SUMIF($C$36:$C$198,$C12,$J$36:$J$198)) -> 0 | K12: =IF(General!$BE$1<4,"",SUMIF($C$36:$C$198,$C12,$K$36:$K$198)) -> 0 | M12: =SUMIF($C$36:$C$198,$C12,$M$36:$M$198) -> 2550391.3 | N12: =IFERROR(M12/F12,0) -> 0.3144425375 | T12: =C12 -> Eastern Cape | U12: 8291802 | V12: 0 | W12: 8291802 | Y12: 1875573 | Z12: 1727861.467 | AD12: 3603434.467 | AE12: 0.4345779683 | AK12: =C12 -> Eastern Cape | AL12: =IFERROR(U12-D12,0) -> -386147.241 | AM12: =IFERROR(V12-E12,0) -> 567115 | AN12: 180967.759 | AP12: =IFERROR(Y12-H12,0) -> 1299983.9 | AQ12: -246940.7332 | AR12: 0 | AS12: 0 | AU12: =IFERROR(AD12-M12,0) -> 1053043.167
A13: =IF(LEN(C13)>3,1,0) -> 1 | C13: Free State | D13: =SUMIF($C$36:$C$198,$C13,$D$36:$D$198) -> 3768845 | E13: =F13-D13 -> 114650 | F13: =SUMIF($C$36:$C$198,$C13,$F$36:$F$198) -> 3883495 | H13: =SUMIF($C$36:$C$198,$C13,$H$36:$H$198) -> 469380 | I13: =IF(General!$BE$1<2,"",SUMIF($C$36:$C$198,$C13,$I$36:$I$198)) -> 871310 | J13: =IF(General!$BE$1<3,"",SUMIF($C$36:$C$198,$C13,$J$36:$J$198)) -> 0 | K13: =IF(General!$BE$1<4,"",SUMIF($C$36:$C$198,$C13,$K$36:$K$198)) -> 0 | M13: =SUMIF($C$36:$C$198,$C13,$M$36:$M$198) -> 1340690 | N13: =IFERROR(M13/F13,0) -> 0.3452276879 | T13: =C13 -> Free State | U13: 4534996 | V13: -8530 | W13: 4526466 | Y13: 466003 | Z13: 803988 | AD13: 1269991 | AE13: 0.2800423639 | AK13: =C13 -> Free State | AL13: =IFERROR(U13-D13,0) -> 766151 | AM13: =IFERROR(V13-E13,0) -> -123180 | AN13: =IFERROR(W13-F13,0) -> 642971 | AP13: =IFERROR(Y13-H13,0) -> -3377 | AQ13: =IFERROR(Z13-I13,0) -> -67322 | AR13: =IFERROR(AA13-J13,0) -> 0 | AS13: =IFERROR(AB13-K13,0) -> 0 | AU13: =IFERROR(AD13-M13,0) -> -70699
A14: 1 | C14: Gauteng | D14: 11591786 | E14: 698533 | F14: 12290319 | H14: 1188566 | I14: =IF(General!$BE$1<2,"",SUMIF($C$36:$C$198,$C14,$I$36:$I$198)) -> 3258660 | J14: =IF(General!$BE$1<3,"",SUMIF($C$36:$C$198,$C14,$J$36:$J$198)) -> 0 | K14: =IF(General!$BE$1<4,"",SUMIF($C$36:$C$198,$C14,$K$36:$K$198)) -> 0 | M14: 4447226 | N14: 0.3618478902 | T14: Gauteng | U14: 11354991 | V14: 0 | W14: 11354991 | Y14: 1788450 | Z14: 2501116 | AD14: 4289566 | AE14: 0.3777692118 | AK14: Gauteng | AL14: -236795 | AM14: -698533 | AN14: -935328 | AP14: 599884 | AQ14: -757544 | AR14: 0 | AS14: 0 | AU14: -157660
A15: 1 | C15: KwaZulu-Natal | D15: 13878806 | E15: -859110 | F15: 13019696 | H15: 1952437 | I15: =IF(General!$BE$1<2,"",SUMIF($C$36:$C$198,$C15,$I$36:$I$198)) -> 3500711 | J15: =IF(General!$BE$1<3,"",SUMIF($C$36:$C$198,$C15,$J$36:$J$198)) -> 0 | K15: =IF(General!$BE$1<4,"",SUMIF($C$36:$C$198,$C15,$K$36:$K$198)) -> 0 | M15: 5453148 | N15: 0.4188383508 | T15: KwaZulu-Natal | U15: 13669864 | V15: 45027 | W15: 13714891 | Y15: 2412364 | Z15: 2878336 | AD15: 5290700 | AE15: 0.3870338432 | AK15: KwaZulu-Natal | AL15: -208942 | AM15: 904137 | AN15: 695195 | AP15: 459927 | AQ15: -622375 | AR15: 0 | AS15: 0 | AU15: -162448
A16: 1 | C16: Limpopo | D16: 7060605 | E16: 0 | F16: 7060605 | H16: 717281.704 | I16: =IF(General!$BE$1<2,"",SUMIF($C$36:$C$198,$C16,$I$36:$I$198)) -> 1370664.941 | J16: =IF(General!$BE$1<3,"",SUMIF($C$36:$C$198,$C16,$J$36:$J$198)) -> 0 | K16: =IF(General!$BE$1<4,"",SUMIF($C$36:$C$198,$C16,$K$36:$K$198)) -> 0 | M16: 2087946.645 | N16: 0.2957178096 | T16: Limpopo | U16: 5224301 | V16: 0 | W16: 5224301 | Y16: 875715.4716 | Z16: 1377982 | AD16: 2253697.472 | AE16: 0.4313873706 | AK16: Limpopo | AL16: -1836304 | AM16: 0 | AN16: -1836304 | AP16: 158433.7676 | AQ16: 7317.059 | AR16: 0 | AS16: 0 | AU16: 165750.8266
A17: 1 | C17: Mpumalanga | D17: 5301384 | E17: -492200 | F17: 4809184 | H17: 514267 | I17: =IF(General!$BE$1<2,"",SUMIF($C$36:$C$198,$C17,$I$36:$I$198)) -> 1386634 | J17: =IF(General!$BE$1<3,"",SUMIF($C$36:$C$198,$C17,$J$36:$J$198)) -> 0 | K17: =IF(General!$BE$1<4,"",SUMIF($C$36:$C$198,$C17,$K$36:$K$198)) -> 0 | M17: 1900901 | N17: 0.3952647684 | T17: Mpumalanga | U17: 5537591 | V17: 0 | W17: 5537591 | Y17: 1024990 | Z17: 1377382 | AD17: 2402372 | AE17: 0.4338298007 | AK17: Mpumalanga | AL17: 236207 | AM17: 492200 | AN17: 728407 | AP17: 510723 | AQ17: -9252 | AR17: 0 | AS17: 0 | AU17: 501471
A18: 1 | C18: Northern Cape | D18: 2836089 | E18: -214599 | F18: 2621490 | H18: 574523 | I18: =IF(General!$BE$1<2,"",SUMIF($C$36:$C$198,$C18,$I$36:$I$198)) -> 444809 | J18: =IF(General!$BE$1<3,"",SUMIF($C$36:$C$198,$C18,$J$36:$J$198)) -> 0 | K18: =IF(General!$BE$1<4,"",SUMIF($C$36:$C$198,$C18,$K$36:$K$198)) -> 0 | M18: 1019332 | N18: 0.3888368828 | T18: Northern Cape | U18: 2911931 | V18: 0 | W18: 2911931 | Y18: 538632 | Z18: 591990 | AD18: 1130622 | AE18: 0.3882722496 | AK18: Northern Cape | AL18: 75842 | AM18: 214599 | AN18: 290441 | AP18: -35891 | AQ18: 147181 | AR18: 0 | AS18: 0 | AU18: 111290
A19: 1 | C19: North West | D19: 5338353 | E19: -419655 | F19: 4918698 | H19: 320102 | I19: =IF(General!$BE$1<2,"",SUMIF($C$36:$C$198,$C19,$I$36:$I$198)) -> 1135148 | J19: =IF(General!$BE$1<3,"",SUMIF($C$36:$C$198,$C19,$J$36:$J$198)) -> 0 | K19: =IF(General!$BE$1<4,"",SUMIF($C$36:$C$198,$C19,$K$36:$K$198)) -> 0 | M19: 1455250 | N19: 0.2958608152 | T19: North West | U19: 5503390 | V19: -37418 | W19: 5465972 | Y19: 720761.71 | Z19: 1038090.886 | AD19: 1758852.596 | AE19: 0.3195943947 | AK19: North West | AL19: 165037 | AM19: 382237 | AN19: 547274 | AP19: 400659.71 | AQ19: -97057.11424 | AR19: 0 | AS19: 0 | AU19: 303602.5957
A20: 1 | C20: Western Cape | D20: 8894178 | E20: -559693 | F20: 8334485 | H20: 1473373 | I20: =IF(General!$BE$1<2,"",SUMIF($C$36:$C$198,$C20,$I$36:$I$198)) -> 2250968 | J20: =IF(General!$BE$1<3,"",SUMIF($C$36:$C$198,$C20,$J$36:$J$198)) -> 0 | K20: =IF(General!$BE$1<4,"",SUMIF($C$36:$C$198,$C20,$K$36:$K$198)) -> 0 | M20: 3724341 | N20: 0.4468591641 | T20: Western Cape | U20: 9413177 | V20: 108947 | W20: 9522124 | Y20: 1896932 | Z20: 2266967 | AD20: 4163899 | AE20: 0.4423478917 | AK20: Western Cape | AL20: 518999 | AM20: 668640 | AN20: 1187639 | AP20: 423559 | AQ20: 15999 | AR20: 0 | AS20: 0 | AU20: 439558
A21: 0 | D21: 0 | E21: 0 | F21: 0 | H21: 0 | I21: =IF(General!$BE$1<2,"",SUMIF($C$36:$C$198,$C21,$I$36:$I$198)) -> 0 | J21: =IF(General!$BE$1<3,"",SUMIF($C$36:$C$198,$C21,$J$36:$J$198)) -> 0 | K21: =IF(General!$BE$1<4,"",SUMIF($C$36:$C$198,$C21,$K$36:$K$198)) -> 0 | M21: 0 | N21: 0 | T21: 0 | U21: 0 | V21: 0 | W21: 0 | Y21: 0 | Z21: 0 | AD21: 0 | AE21: 0 | AK21: 0 | AL21: 0 | AM21: 0 | AN21: 0 | AP21: 0 | AQ21: 0 | AR21: 0 | AS21: 0 | AU21: 0
A22: 0 | D22: 0 | E22: 0 | F22: 0 | H22: 0 | I22: =IF(General!$BE$1<2,"",SUMIF($C$36:$C$198,$C22,$I$36:$I$198)) -> 0 | J22: =IF(General!$BE$1<3,"",SUMIF($C$36:$C$198,$C22,$J$36:$J$198)) -> 0 | K22: =IF(General!$BE$1<4,"",SUMIF($C$36:$C$198,$C22,$K$36:$K$198)) -> 0 | M22: 0 | N22: 0 | T22: 0 | U22: 0 | V22: 0 | W22: 0 | Y22: 0 | Z22: 0 | AD22: 0 | AE22: 0 | AK22: 0 | AL22: 0 | AM22: 0 | AN22: 0 | AP22: 0 | AQ22: 0 | AR22: 0 | AS22: 0 | AU22: 0
A23: 0 | D23: 0 | E23: 0 | F23: 0 | H23: 0 | I23: =IF(General!$BE$1<2,"",SUMIF($C$36:$C$198,$C23,$I$36:$I$198)) -> 0 | J23: =IF(General!$BE$1<3,"",SUMIF($C$36:$C$198,$C23,$J$36:$J$198)) -> 0 | K23: =IF(General!$BE$1<4,"",SUMIF($C$36:$C$198,$C23,$K$36:$K$198)) -> 0 | M23: 0 | N23: 0 | T23: 0 | U23: 0 | V23: 0 | W23: 0 | Y23: 0 | Z23: 0 | AD23: 0 | AE23: 0 | AK23: 0 | AL23: 0 | AM23: 0 | AN23: 0 | AP23: 0 | AQ23: 0 | AR23: 0 | AS23: 0 | AU23: 0
A24: 0 | D24: 0 | E24: 0 | F24: 0 | H24: 0 | I24: =IF(General!$BE$1<2,"",SUMIF($C$36:$C$198,$C24,$I$36:$I$198)) -> 0 | J24: =IF(General!$BE$1<3,"",SUMIF($C$36:$C$198,$C24,$J$36:$J$198)) -> 0 | K24: =IF(General!$BE$1<4,"",SUMIF($C$36:$C$198,$C24,$K$36:$K$198)) -> 0 | M24: 0 | N24: 0 | T24: 0 | U24: 0 | V24: 0 | W24: 0 | Y24: 0 | Z24: 0 | AD24: 0 | AE24: 0 | AK24: 0 | AL24: 0 | AM24: 0 | AN24: 0 | AP24: 0 | AQ24: 0 | AR24: 0 | AS24: 0 | AU24: 0
A25: 0 | D25: 0 | E25: 0 | F25: 0 | H25: 0 | I25: =IF(General!$BE$1<2,"",SUMIF($C$36:$C$198,$C25,$I$36:$I$198)) -> 0 | J25: =IF(General!$BE$1<3,"",SUMIF($C$36:$C$198,$C25,$J$36:$J$198)) -> 0 | K25: =IF(General!$BE$1<4,"",SUMIF($C$36:$C$198,$C25,$K$36:$K$198)) -> 0 | M25: 0 | N25: 0 | T25: 0 | U25: 0 | V25: 0 | W25: 0 | Y25: 0 | Z25: 0 | AD25: 0 | AE25: 0 | AK25: 0 | AL25: 0 | AM25: 0 | AN25: 0 | AP25: 0 | AQ25: 0 | AR25: 0 | AS25: 0 | AU25: 0
A26: 0 | D26: 0 | E26: 0 | F26: 0 | H26: 0 | I26: =IF(General!$BE$1<2,"",SUMIF($C$36:$C$198,$C26,$I$36:$I$198)) -> 0 | J26: =IF(General!$BE$1<3,"",SUMIF($C$36:$C$198,$C26,$J$36:$J$198)) -> 0 | K26: =IF(General!$BE$1<4,"",SUMIF($C$36:$C$198,$C26,$K$36:$K$198)) -> 0 | M26: 0 | N26: =IFERROR(M26/F26,0) -> 0 | T26: 0 | U26: 0 | V26: 0 | W26: 0 | Y26: 0 | Z26: 0 | AD26: 0 | AE26: 0 | AK26: 0 | AL26: 0 | AM26: 0 | AN26: 0 | AP26: 0 | AQ26: 0 | AR26: 0 | AS26: 0 | AU26: 0
A27: 0 | D27: 0 | E27: 0 | F27: 0 | H27: 0 | I27: =IF(General!$BE$1<2,"",SUMIF($C$36:$C$198,$C27,$I$36:$I$198)) -> 0 | J27: =IF(General!$BE$1<3,"",SUMIF($C$36:$C$198,$C27,$J$36:$J$198)) -> 0 | K27: =IF(General!$BE$1<4,"",SUMIF($C$36:$C$198,$C27,$K$36:$K$198)) -> 0 | M27: 0 | N27: 0 | T27: 0 | U27: 0 | V27: 0 | W27: 0 | Y27: 0 | Z27: 0 | AD27: 0 | AE27: 0 | AK27: 0 | AL27: 0 | AM27: 0 | AN27: 0 | AP27: 0 | AQ27: 0 | AR27: 0 | AS27: 0 | AU27: 0
A28: 0 | D28: 0 | E28: 0 | F28: 0 | H28: 0 | I28: =IF(General!$BE$1<2,"",SUMIF($C$36:$C$198,$C28,$I$36:$I$198)) -> 0 | J28: =IF(General!$BE$1<3,"",SUMIF($C$36:$C$198,$C28,$J$36:$J$198)) -> 0 | K28: =IF(General!$BE$1<4,"",SUMIF($C$36:$C$198,$C28,$K$36:$K$198)) -> 0 | M28: 0 | N28: 0 | T28: 0 | U28: 0 | V28: 0 | W28: 0 | Y28: 0 | Z28: 0 | AD28: 0 | AE28: 0 | AK28: 0 | AL28: 0 | AM28: 0 | AN28: 0 | AP28: 0 | AQ28: 0 | AR28: 0 | AS28: 0 | AU28: 0
A29: 0 | D29: 0 | E29: 0 | F29: 0 | H29: 0 | I29: =IF(General!$BE$1<2,"",SUMIF($C$36:$C$198,$C29,$I$36:$I$198)) -> 0 | J29: =IF(General!$BE$1<3,"",SUMIF($C$36:$C$198,$C29,$J$36:$J$198)) -> 0 | K29: =IF(General!$BE$1<4,"",SUMIF($C$36:$C$198,$C29,$K$36:$K$198)) -> 0 | M29: 0 | N29: 0 | T29: 0 | U29: 0 | V29: 0 | W29: 0 | Y29: 0 | Z29: 0 | AD29: 0 | AE29: 0 | AK29: 0 | AL29: 0 | AM29: 0 | AN29: 0 | AP29: 0 | AQ29: 0 | AR29: 0 | AS29: 0 | AU29: 0
A30: 0 | D30: 0 | E30: 0 | F30: 0 | H30: 0 | I30: =IF(General!$BE$1<2,"",SUMIF($C$36:$C$198,$C30,$I$36:$I$198)) -> 0 | J30: =IF(General!$BE$1<3,"",SUMIF($C$36:$C$198,$C30,$J$36:$J$198)) -> 0 | K30: =IF(General!$BE$1<4,"",SUMIF($C$36:$C$198,$C30,$K$36:$K$198)) -> 0 | M30: 0 | N30: 0 | T30: 0 | U30: 0 | V30: 0 | W30: 0 | Y30: 0 | Z30: 0 | AD30: 0 | AE30: 0 | AK30: 0 | AL30: 0 | AM30: 0 | AN30: 0 | AP30: 0 | AQ30: 0 | AR30: 0 | AS30: 0 | AU30: 0
A31: 0 | D31: 0 | E31: 0 | F31: 0 | H31: 0 | I31: =IF(General!$BE$1<2,"",SUMIF($C$36:$C$198,$C31,$I$36:$I$198)) -> 0 | J31: =IF(General!$BE$1<3,"",SUMIF($C$36:$C$198,$C31,$J$36:$J$198)) -> 0 | K31: =IF(General!$BE$1<4,"",SUMIF($C$36:$C$198,$C31,$K$36:$K$198)) -> 0 | M31: 0 | N31: 0 | T31: 0 | U31: 0 | V31: 0 | W31: 0 | Y31: 0 | Z31: 0 | AD31: 0 | AE31: 0 | AK31: 0 | AL31: 0 | AM31: 0 | AN31: 0 | AP31: 0 | AQ31: 0 | AR31: 0 | AS31: 0 | AU31: 0
A32: 1
A33: 1 | C33: Total infrastructure | D33: =SUM(D12:D31) -> 67347995.24 | E33: =SUM(E12:E31) -> -2299189 | F33: =SUM(F12:F31) -> 65048806.24 | H33: =SUM(H12:H31) -> 7785518.804 | I33: =IF(General!$BE$1>1,SUM(I12:I31),"") -> 16193707.14 | J33: =IF(General!$BE$1>2,SUM(J12:J31),"") -> 0 | K33: =IF(General!$BE$1=4,SUM(K12:K31),"") -> 0 | M33: =SUM(M12:M31) -> 23979225.95 | N33: =IFERROR(M33/F33,0) -> 0.3686343736 | T33: Total infrastructure | U33: 66442043 | V33: 108026 | W33: 66550069 | Y33: 11599421.18 | Z33: 14563713.35 | AD33: 26163134.53 | AE33: 0.3937737817 | AK33: Total infrastructure | AL33: =SUM(AL12:AL31) -> -905952.241 | AM33: =SUM(AM12:AM31) -> 2407215 | AN33: =SUM(AN12:AN31) -> 1501262.759 | AP33: =SUM(AP12:AP31) -> 3813902.378 | AQ33: =SUM(AQ12:AQ31) -> -1629993.788 | AR33: 0 | AS33: 0 | AU33: =SUM(AU12:AU31) -> 2183908.589
A34: 1
A35: 1 | C35: Infrastructure by category | T35: Infrastructure by category | AK35: Infrastructure by category
A36: 1 | C36: Existing infrastructure assets | D36: =D37+D60+D83 -> 37508554.24 | E36: =E37+E60+E83 -> -1518324 | F36: =F37+F60+F83 -> 35990230.24 | G36: =SUM(G37:G83) -> 0 | H36: =H37+H60+H83 -> 4321499.798 | I36: =IF(General!$BE$1<2,"",I37+I60+I83) -> 8701687.772 | J36: =IF(General!$BE$1<3,"",J37+J60+J83) -> 0 | K36: =IF(General!$BE$1<4,"",K37+K60+K83) -> 0 | M36: =M37+M60+M83 -> 13023187.57 | N36: =IFERROR(M36/F36,0) -> 0.3618534109 | T36: =C36 -> Existing infrastructure assets | U36: 36549551 | V36: 42310 | W36: 36591861 | X36: 0 | Y36: 6154154.453 | Z36: 7746509.467 | AD36: 13900663.92 | AE36: 0.3803237944 | AK36: Existing infrastructure assets | AL36: =AL37+AL60+AL83 -> -959003.241 | AM36: =AM37+AM60+AM83 -> 1560634 | AN36: =AN37+AN60+AN83 -> 601630.759 | AO36: =SUM(AO37:AO83) -> 0 | AP36: =AP37+AP60+AP83 -> 1832654.655 | AQ36: =AQ37+AQ60+AQ83 -> -955178.3052 | AR36: 0 | AS36: 0 | AU36: =AU37+AU60+AU83 -> 877476.3495
A37: 1 | C37: Maintenance and repairs | D37: =SUM(D38:D59) -> 16480521.24 | E37: =F37-D37 -> -712409 | F37: =SUM(F38:F59) -> 15768112.24 | H37: =SUM(H38:H59) -> 1924344.2 | I37: =IF(General!$BE$1<2,"",SUM(I38:I59)) -> 3967946.674 | J37: =IF(General!$BE$1<3,"",SUM(J38:J59)) -> 0 | K37: =IF(General!$BE$1<4,"",SUM(K38:K59)) -> 0 | M37: =SUM(M38:M59) -> 5892290.874 | N37: 0.3736839759 | T37: Maintenance and repairs | U37: 15408972 | V37: 30947 | W37: 15439919 | Y37: 2745851.157 | Z37: 3693430.329 | AD37: 6439281.486 | AE37: 0.4178916988 | AK37: Maintenance and repairs | AL37: =IFERROR(U37-D37,0) -> -1071549.241 | AM37: =IFERROR(V37-E37,0) -> 743356 | AN37: =IFERROR(W37-F37,0) -> -328193.241 | AP37: =IFERROR(Y37-H37,0) -> 821506.9575 | AQ37: =IFERROR(Z37-I37,0) -> -274516.3454 | AR37: =IFERROR(AA37-J37,0) -> 0 | AS37: =IFERROR(AB37-K37,0) -> 0 | AU37: =IFERROR(AD37-M37,0) -> 546990.6121
A38: 1 | C38: of which: | T38: of which: | AK38: of which:
A39: 1 | C39: =C$12 -> Eastern Cape | D39: =EC_3!D$37 -> 2232855.241 | E39: -254402 | F39: =EC_3!F$37 -> 1978453.241 | H39: =EC_3!H$37 -> 167628.2 | I39: =EC_3!I$37 -> 443200.7 | J39: =EC_3!J$37 -> 0 | K39: =EC_3!K$37 -> 0 | M39: =SUM(H39:K39) -> 610828.9 | N39: =IFERROR(M39/F39,0) -> 0.30874063 | T39: Eastern Cape | U39: 2024072 | V39: 0 | W39: 2024072 | Y39: 416492 | Z39: 396450.3286 | AD39: 812942.3286 | AE39: 0.4016370606 | AK39: =AK$12 -> Eastern Cape | AL39: =IFERROR(U39-D39,0) -> -208783.241 | AM39: =IFERROR(V39-E39,0) -> 254402 | AN39: =IFERROR(W39-F39,0) -> 45618.759 | AP39: =IFERROR(Y39-H39,0) -> 248863.8 | AQ39: =IFERROR(Z39-I39,0) -> -46750.37141 | AR39: =IFERROR(AA39-J39,0) -> 0 | AS39: =IFERROR(AB39-K39,0) -> 0 | AU39: =IFERROR(AD39-M39,0) -> 202113.4286
A40: 1 | C40: =C$13 -> Free State | D40: =FS_3!D$37 -> 1228925 | E40: -47932 | F40: =FS_3!F$37 -> 1180993 | H40: =FS_3!H$37 -> 172337 | I40: =FS_3!I$37 -> 362740 | J40: =FS_3!J$37 -> 0 | K40: =FS_3!K$37 -> 0 | M40: =SUM(H40:K40) -> 535077 | N40: 0.4530738116 | T40: Free State | U40: 1280655 | V40: 3813 | W40: 1284468 | Y40: 118033 | Z40: 211068 | AD40: 329101 | AE40: 0.2569786555 | AK40: =AK$13 -> Free State | AL40: 51730 | AM40: 51745 | AN40: 103475 | AP40: -54304 | AQ40: -151672 | AR40: 0 | AS40: 0 | AU40: -205976
A41: 1 | C41: =C$14 -> Gauteng | D41: =GT_3!D$37 -> 2613734 | E41: 95868 | F41: =GT_3!F$37 -> 2709602 | H41: =GT_3!H$37 -> 506013 | I41: =GT_3!I$37 -> 887158 | J41: =GT_3!J$37 -> 0 | K41: =GT_3!K$37 -> 0 | M41: 1393171 | N41: 0.5141607513 | T41: Gauteng | U41: 2515403 | V41: 0 | W41: 2515403 | Y41: 456695 | Z41: 794056 | AD41: 1250751 | AE41: 0.4972368245 | AK41: =AK$14 -> Gauteng | AL41: -98331 | AM41: -95868 | AN41: -194199 | AP41: -49318 | AQ41: -93102 | AR41: 0 | AS41: 0 | AU41: -142420
A42: 1 | C42: =C$15 -> KwaZulu-Natal | D42: =KZN_3!D$37 -> 3545345 | E42: -200612 | F42: =KZN_3!F$37 -> 3344733 | H42: =KZN_3!H$37 -> 307901 | I42: =KZN_3!I$37 -> 792328 | J42: =KZN_3!J$37 -> 0 | K42: =KZN_3!K$37 -> 0 | M42: 1100229 | N42: 0.3289437453 | T42: KwaZulu-Natal | U42: 3558254 | V42: 21050 | W42: 3579304 | Y42: 549453 | Z42: 625141 | AD42: 1174594 | AE42: 0.3301040342 | AK42: =AK$15 -> KwaZulu-Natal | AL42: 12909 | AM42: 221662 | AN42: 234571 | AP42: 241552 | AQ42: -167187 | AR42: 0 | AS42: 0 | AU42: 74365
A43: 1 | C43: =C$16 -> Limpopo | D43: =LIM_3!D$37 -> 854180 | E43: 0 | F43: =LIM_3!F$37 -> 854180 | H43: =LIM_3!H$37 -> 126046 | I43: =LIM_3!I$37 -> 182586.974 | J43: =LIM_3!J$37 -> 0 | K43: =LIM_3!K$37 -> 0 | M43: 308632.974 | N43: 0.3613207685 | T43: Limpopo | U43: 966213 | V43: 0 | W43: 966213 | Y43: 130678.5568 | Z43: 205236 | AD43: 335914.5568 | AE43: 0.3476609783 | AK43: =AK$16 -> Limpopo | AL43: 112033 | AM43: 0 | AN43: 112033 | AP43: 4632.55681 | AQ43: 22649.026 | AR43: 0 | AS43: 0 | AU43: 27281.58281
A44: 1 | C44: =C$17 -> Mpumalanga | D44: =MPU_3!D$37 -> 1383975 | E44: -386838 | F44: =MPU_3!F$37 -> 997137 | H44: =MPU_3!H$37 -> 107495 | I44: =MPU_3!I$37 -> 325991 | J44: =MPU_3!J$37 -> 0 | K44: =MPU_3!K$37 -> 0 | M44: 433486 | N44: 0.4347306338 | T44: Mpumalanga | U44: 1026620 | V44: 0 | W44: 1026620 | Y44: 200842 | Z44: 474978 | AD44: 675820 | AE44: 0.6582961563 | AK44: =AK$17 -> Mpumalanga | AL44: -357355 | AM44: 386838 | AN44: 29483 | AP44: 93347 | AQ44: 148987 | AR44: 0 | AS44: 0 | AU44: 242334
A45: 1 | C45: =C$18 -> Northern Cape | D45: =NC_3!D$37 -> 1335789 | E45: -90528 | F45: =NC_3!F$37 -> 1245261 | H45: =NC_3!H$37 -> 226142 | I45: =NC_3!I$37 -> 164715 | J45: =NC_3!J$37 -> 0 | K45: =NC_3!K$37 -> 0 | M45: 390857 | N45: 0.313875565 | T45: Northern Cape | U45: 1312640 | V45: 0 | W45: 1312640 | Y45: 305289 | Z45: 338545 | AD45: 643834 | AE45: 0.4904878718 | AK45: =AK$18 -> Northern Cape | AL45: -23149 | AM45: 90528 | AN45: 67379 | AP45: 79147 | AQ45: 173830 | AR45: 0 | AS45: 0 | AU45: 252977
A46: 1 | C46: =C$19 -> North West | D46: =NW_3!D$37 -> 965115 | E46: 355979 | F46: =NW_3!F$37 -> 1321094 | H46: =NW_3!H$37 -> 25967 | I46: =NW_3!I$37 -> 206586 | J46: =NW_3!J$37 -> 0 | K46: =NW_3!K$37 -> 0 | M46: 232553 | N46: 0.1760306231 | T46: North West | U46: 611990 | V46: 363 | W46: 612353 | Y46: 132530.6007 | Z46: 184877 | AD46: 317407.6007 | AE46: 0.518648345 | AK46: =AK$19 -> North West | AL46: -353125 | AM46: -355616 | AN46: -708741 | AP46: 106563.6007 | AQ46: -21709 | AR46: 0 | AS46: 0 | AU46: 84854.60068
A47: 1 | C47: =C$20 -> Western Cape | D47: =WC_3!D$37 -> 2320603 | E47: -183944 | F47: =WC_3!F$37 -> 2136659 | H47: =WC_3!H$37 -> 284815 | I47: =WC_3!I$37 -> 602641 | J47: =WC_3!J$37 -> 0 | K47: =WC_3!K$37 -> 0 | M47: 887456 | N47: 0.4153475122 | T47: Western Cape | U47: 2113125 | V47: 5721 | W47: 2118846 | Y47: 435838 | Z47: 463079 | AD47: 898917 | AE47: 0.4253969831 | AK47: =AK$20 -> Western Cape | AL47: -207478 | AM47: 189665 | AN47: -17813 | AP47: 151023 | AQ47: -139562 | AR47: 0 | AS47: 0 | AU47: 11461
A48: 0 | C48: =C$21 -> 0 | E48: 0 | M48: 0 | N48: 0 | T48: 0 | V48: 0 | AD48: 0 | AE48: 0 | AK48: =AK$21 -> 0 | AL48: 0 | AM48: 0 | AN48: 0 | AP48: 0 | AQ48: 0 | AR48: 0 | AS48: 0 | AU48: 0
A49: 0 | C49: =C$22 -> 0 | E49: 0 | M49: 0 | N49: 0 | T49: 0 | V49: 0 | AD49: 0 | AE49: 0 | AK49: =AK$22 -> 0 | AL49: 0 | AM49: 0 | AN49: 0 | AP49: 0 | AQ49: 0 | AR49: 0 | AS49: 0 | AU49: 0
A50: 0 | C50: =C$23 -> 0 | E50: 0 | M50: 0 | N50: 0 | T50: 0 | V50: 0 | AD50: 0 | AE50: 0 | AK50: =AK$23 -> 0 | AL50: 0 | AM50: 0 | AN50: 0 | AP50: 0 | AQ50: 0 | AR50: 0 | AS50: 0 | AU50: 0
A51: 0 | C51: =C$24 -> 0 | E51: 0 | M51: 0 | N51: 0 | T51: 0 | V51: 0 | AD51: 0 | AE51: 0 | AK51: =AK$24 -> 0 | AL51: 0 | AM51: 0 | AN51: 0 | AP51: 0 | AQ51: 0 | AR51: 0 | AS51: 0 | AU51: 0
A52: 0 | C52: =C$25 -> 0 | E52: 0 | M52: 0 | N52: 0 | T52: 0 | V52: 0 | AD52: 0 | AE52: 0 | AK52: =AK$25 -> 0 | AL52: 0 | AM52: 0 | AN52: 0 | AP52: 0 | AQ52: 0 | AR52: 0 | AS52: 0 | AU52: 0
A53: 0 | C53: =C$26 -> 0 | E53: 0 | M53: 0 | N53: 0 | T53: 0 | V53: 0 | AD53: 0 | AE53: 0 | AK53: =AK$26 -> 0 | AL53: 0 | AM53: 0 | AN53: 0 | AP53: 0 | AQ53: 0 | AR53: 0 | AS53: 0 | AU53: 0
A54: 0 | C54: =C$27 -> 0 | E54: 0 | M54: 0 | N54: 0 | T54: 0 | V54: 0 | AD54: 0 | AE54: 0 | AK54: =AK$27 -> 0 | AL54: 0 | AM54: 0 | AN54: 0 | AP54: 0 | AQ54: 0 | AR54: 0 | AS54: 0 | AU54: 0
A55: 0 | C55: =C$28 -> 0 | E55: 0 | M55: 0 | N55: 0 | T55: 0 | V55: 0 | AD55: 0 | AE55: 0 | AK55: =AK$28 -> 0 | AL55: 0 | AM55: 0 | AN55: 0 | AP55: 0 | AQ55: 0 | AR55: 0 | AS55: 0 | AU55: 0
A56: 0 | C56: =C$29 -> 0 | E56: 0 | M56: 0 | N56: 0 | T56: 0 | V56: 0 | AD56: 0 | AE56: 0 | AK56: =AK$29 -> 0 | AL56: 0 | AM56: 0 | AN56: 0 | AP56: 0 | AQ56: 0 | AR56: 0 | AS56: 0 | AU56: 0
A57: 0 | C57: =C$30 -> 0 | E57: 0 | M57: 0 | N57: 0 | T57: 0 | V57: 0 | AD57: 0 | AE57: 0 | AK57: =AK$30 -> 0 | AL57: 0 | AM57: 0 | AN57: 0 | AP57: 0 | AQ57: 0 | AR57: 0 | AS57: 0 | AU57: 0
A58: 0 | C58: =C$31 -> 0 | E58: 0 | M58: 0 | N58: 0 | T58: 0 | V58: 0 | AD58: 0 | AE58: 0 | AK58: =AK$31 -> 0 | AL58: 0 | AM58: 0 | AN58: 0 | AP58: 0 | AQ58: 0 | AR58: 0 | AS58: 0 | AU58: 0
A59: 0 | E59: 0 | N59: 0 | T59: 0 | V59: 0 | AE59: 0 | AK59: =AK$32 -> 0 | AL59: 0 | AM59: 0 | AN59: 0 | AP59: 0 | AQ59: 0 | AR59: 0 | AS59: 0 | AU59: 0
A60: 1 | C60: Upgrades and additions | D60: =SUM(D61:D82) -> 11320250 | E60: -67542 | F60: =SUM(F61:F82) -> 11252708 | H60: =SUM(H61:H82) -> 1394939.36 | I60: 2514386.098 | J60: 0 | K60: 0 | M60: =SUM(M61:M82) -> 3909325.458 | N60: 0.3474119703 | T60: Upgrades and additions | U60: 11343107 | V60: 33378 | W60: 11376485 | Y60: 1806439.295 | Z60: 2226059.138 | AA60: 0 | AB60: 0 | AD60: 4032498.433 | AE60: 0.3555021066 | AK60: Upgrades and additions | AL60: 22857 | AM60: 100920 | AN60: 123777 | AP60: 411499.9351 | AQ60: -288326.9598 | AR60: 0 | AS60: 0 | AU60: 123172.9754
A61: 1 | C61: of which: | T61: of which: | AK61: of which:
A62: =A39 -> 1 | C62: =C$12 -> Eastern Cape | D62: =EC_3!D$60 -> 1812382 | E62: -542620 | F62: =EC_3!F$60 -> 1269762 | H62: =EC_3!H$60 -> 121152.9 | I62: =EC_3!I$60 -> 303328.9 | J62: =EC_3!J$60 -> 0 | K62: =EC_3!K$60 -> 0 | M62: =SUM(H62:K62) -> 424481.8 | N62: =IFERROR(M62/F62,0) -> 0.3343002862 | T62: Eastern Cape | U62: 2015333 | V62: 0 | W62: 2015333 | Y62: 484057 | Z62: 307407.1382 | AD62: 791464.1382 | AE62: 0.3927212715 | AK62: =AK$12 -> Eastern Cape | AL62: =IFERROR(U62-D62,0) -> 202951 | AM62: =IFERROR(V62-E62,0) -> 542620 | AN62: =IFERROR(W62-F62,0) -> 745571 | AP62: =IFERROR(Y62-H62,0) -> 362904.1 | AQ62: =IFERROR(Z62-I62,0) -> 4078.23825 | AR62: =IFERROR(AA62-J62,0) -> 0 | AS62: =IFERROR(AB62-K62,0) -> 0 | AU62: =IFERROR(AD62-M62,0) -> 366982.3382
A63: =A40 -> 1 | C63: =C$13 -> Free State | D63: =FS_3!D$60 -> 551252 | E63: 141320 | F63: =FS_3!F$60 -> 692572 | H63: =FS_3!H$60 -> 40963 | I63: =FS_3!I$60 -> 56580 | J63: =FS_3!J$60 -> 0 | K63: =FS_3!K$60 -> 0 | M63: =SUM(H63:K63) -> 97543 | N63: 0.1408416742 | T63: Free State | U63: 926170 | V63: -3300 | W63: 922870 | Y63: 125142 | Z63: 184538 | AD63: 309680 | AE63: 0.3343662611 | AK63: =AK$13 -> Free State | AL63: 374918 | AM63: -144620 | AN63: 230298 | AP63: 84179 | AQ63: 127958 | AR63: 0 | AS63: 0 | AU63: 212137
A64: 1 | C64: =C$14 -> Gauteng | D64: =GT_3!D$60 -> 1325814 | E64: -100967 | F64: =GT_3!F$60 -> 1224847 | H64: =GT_3!H$60 -> 82958 | I64: =GT_3!I$60 -> 309614 | J64: =GT_3!J$60 -> 0 | K64: =GT_3!K$60 -> 0 | M64: 392572 | N64: 0.3205069694 | T64: Gauteng | U64: 882866 | V64: 0 | W64: 882866 | Y64: 152101 | Z64: 256629 | AD64: 408730 | AE64: 0.4629581386 | AK64: =AK$14 -> Gauteng | AL64: -442948 | AM64: 100967 | AN64: -341981 | AP64: 69143 | AQ64: -52985 | AR64: 0 | AS64: 0 | AU64: 16158
A65: 1 | C65: =C$15 -> KwaZulu-Natal | D65: =KZN_3!D$60 -> 3301156 | E65: 687604 | F65: =KZN_3!F$60 -> 3988760 | H65: =KZN_3!H$60 -> 750253 | I65: =KZN_3!I$60 -> 1038645 | J65: =KZN_3!J$60 -> 0 | K65: =KZN_3!K$60 -> 0 | M65: 1788898 | N65: 0.4484847421 | T65: KwaZulu-Natal | U65: 3131043 | V65: 36678 | W65: 3167721 | Y65: 377220 | Z65: 761758 | AD65: 1138978 | AE65: 0.3637695171 | AK65: =AK$15 -> KwaZulu-Natal | AL65: -170113 | AM65: -650926 | AN65: -821039 | AP65: -373033 | AQ65: -276887 | AR65: 0 | AS65: 0 | AU65: -649920
A66: 1 | C66: =C$16 -> Limpopo | D66: =LIM_3!D$60 -> 790158 | E66: 0 | F66: =LIM_3!F$60 -> 790158 | H66: =LIM_3!H$60 -> 9670.46 | I66: =LIM_3!I$60 -> 41469.198 | J66: =LIM_3!J$60 -> 0 | K66: =LIM_3!K$60 -> 0 | M66: 51139.658 | N66: 0.06472080014 | T66: Limpopo | U66: 844403 | V66: 0 | W66: 844403 | Y66: 70633.29513 | Z66: 127779 | AD66: 198412.2951 | AE66: 0.2349734607 | AK66: =AK$16 -> Limpopo | AL66: 54245 | AM66: 0 | AN66: 54245 | AP66: 60962.83513 | AQ66: 86309.802 | AR66: 0 | AS66: 0 | AU66: 147272.6371
A67: 1 | C67: =C$17 -> Mpumalanga | D67: =MPU_3!D$60 -> 1019909 | E67: 169218 | F67: =MPU_3!F$60 -> 1189127 | H67: =MPU_3!H$60 -> 131217 | I67: =MPU_3!I$60 -> 354446 | J67: =MPU_3!J$60 -> 0 | K67: =MPU_3!K$60 -> 0 | M67: 485663 | N67: 0.4084197903 | T67: Mpumalanga | U67: 1241250 | V67: 0 | W67: 1241250 | Y67: 265145 | Z67: 216967 | AD67: 482112 | AE67: 0.3884084592 | AK67: =AK$17 -> Mpumalanga | AL67: 221341 | AM67: -169218 | AN67: 52123 | AP67: 133928 | AQ67: -137479 | AR67: 0 | AS67: 0 | AU67: -3551
A68: 1 | C68: =C$18 -> Northern Cape | D68: =NC_3!D$60 -> 512333 | E68: -111338 | F68: =NC_3!F$60 -> 400995 | H68: =NC_3!H$60 -> 82578 | I68: =NC_3!I$60 -> 113827 | J68: =NC_3!J$60 -> 0 | K68: =NC_3!K$60 -> 0 | M68: 196405 | N68: 0.4897941371 | T68: Northern Cape | U68: 309040 | V68: 0 | W68: 309040 | Y68: 62407 | Z68: 61080 | AD68: 123487 | AE68: 0.3995825783 | AK68: =AK$18 -> Northern Cape | AL68: -203293 | AM68: 111338 | AN68: -91955 | AP68: -20171 | AQ68: -52747 | AR68: 0 | AS68: 0 | AU68: -72918
A69: 1 | C69: =C$19 -> North West | D69: =NW_3!D$60 -> 1111502 | E69: -371102 | F69: =NW_3!F$60 -> 740400 | H69: =NW_3!H$60 -> 57907 | I69: =NW_3!I$60 -> 158438 | J69: =NW_3!J$60 -> 0 | K69: =NW_3!K$60 -> 0 | M69: 216345 | N69: 0.2922001621 | T69: North West | U69: 1088451 | V69: 0 | W69: 1088451 | Y69: 105843 | Z69: 187141 | AD69: 292984 | AE69: 0.2691751857 | AK69: =AK$19 -> North West | AL69: -23051 | AM69: 371102 | AN69: 348051 | AP69: 47936 | AQ69: 28703 | AR69: 0 | AS69: 0 | AU69: 76639
A70: 1 | C70: =C$20 -> Western Cape | D70: =WC_3!D$60 -> 895744 | E70: 60343 | F70: =WC_3!F$60 -> 956087 | H70: =WC_3!H$60 -> 118240 | I70: =WC_3!I$60 -> 138038 | J70: =WC_3!J$60 -> 0 | K70: =WC_3!K$60 -> 0 | M70: 256278 | N70: 0.2680488282 | T70: Western Cape | U70: 904551 | V70: 0 | W70: 904551 | Y70: 163891 | Z70: 122760 | AD70: 286651 | AE70: 0.3168986602 | AK70: =AK$20 -> Western Cape | AL70: 8807 | AM70: -60343 | AN70: -51536 | AP70: 45651 | AQ70: -15278 | AR70: 0 | AS70: 0 | AU70: 30373
A71: 0 | C71: =C$21 -> 0 | E71: 0 | M71: 0 | N71: 0 | T71: 0 | V71: 0 | AD71: 0 | AE71: 0 | AK71: =AK$21 -> 0 | AL71: 0 | AM71: 0 | AN71: 0 | AP71: 0 | AQ71: 0 | AR71: 0 | AS71: 0 | AU71: 0
A72: 0 | C72: =C$22 -> 0 | E72: 0 | M72: 0 | N72: 0 | T72: 0 | V72: 0 | AD72: 0 | AE72: 0 | AK72: =AK$22 -> 0 | AL72: 0 | AM72: 0 | AN72: 0 | AP72: 0 | AQ72: 0 | AR72: 0 | AS72: 0 | AU72: 0
A73: 0 | C73: =C$23 -> 0 | E73: 0 | M73: 0 | N73: 0 | T73: 0 | V73: 0 | AD73: 0 | AE73: 0 | AK73: =AK$23 -> 0 | AL73: 0 | AM73: 0 | AN73: 0 | AP73: 0 | AQ73: 0 | AR73: 0 | AS73: 0 | AU73: 0
A74: 0 | C74: =C$24 -> 0 | E74: 0 | M74: 0 | N74: 0 | T74: 0 | V74: 0 | AD74: 0 | AE74: 0 | AK74: =AK$24 -> 0 | AL74: 0 | AM74: 0 | AN74: 0 | AP74: 0 | AQ74: 0 | AR74: 0 | AS74: 0 | AU74: 0
A75: 0 | C75: =C$25 -> 0 | E75: 0 | M75: 0 | N75: 0 | T75: 0 | V75: 0 | AD75: 0 | AE75: 0 | AK75: =AK$25 -> 0 | AL75: 0 | AM75: 0 | AN75: 0 | AP75: 0 | AQ75: 0 | AR75: 0 | AS75: 0 | AU75: 0
A76: 0 | C76: =C$26 -> 0 | E76: 0 | M76: 0 | N76: 0 | T76: 0 | V76: 0 | AD76: 0 | AE76: 0 | AK76: =AK$26 -> 0 | AL76: 0 | AM76: 0 | AN76: 0 | AP76: 0 | AQ76: 0 | AR76: 0 | AS76: 0 | AU76: 0
A77: 0 | C77: =C$27 -> 0 | E77: 0 | M77: 0 | N77: 0 | T77: 0 | V77: 0 | AD77: 0 | AE77: 0 | AK77: =AK$27 -> 0 | AL77: 0 | AM77: 0 | AN77: 0 | AP77: 0 | AQ77: 0 | AR77: 0 | AS77: 0 | AU77: 0
A78: 0 | C78: =C$28 -> 0 | E78: 0 | M78: 0 | N78: 0 | T78: 0 | V78: 0 | AD78: 0 | AE78: 0 | AK78: =AK$28 -> 0 | AL78: 0 | AM78: 0 | AN78: 0 | AP78: 0 | AQ78: 0 | AR78: 0 | AS78: 0 | AU78: 0
A79: 0 | C79: =C$29 -> 0 | E79: 0 | M79: 0 | N79: 0 | T79: 0 | V79: 0 | AD79: 0 | AE79: 0 | AK79: =AK$29 -> 0 | AL79: 0 | AM79: 0 | AN79: 0 | AP79: 0 | AQ79: 0 | AR79: 0 | AS79: 0 | AU79: 0
A80: 0 | C80: =C$30 -> 0 | E80: 0 | M80: 0 | N80: 0 | T80: 0 | V80: 0 | AD80: 0 | AE80: 0 | AK80: =AK$30 -> 0 | AL80: 0 | AM80: 0 | AN80: 0 | AP80: 0 | AQ80: 0 | AR80: 0 | AS80: 0 | AU80: 0
A81: 0 | C81: =C$31 -> 0 | E81: 0 | M81: 0 | N81: 0 | T81: 0 | V81: 0 | AD81: 0 | AE81: 0 | AK81: =AK$31 -> 0 | AL81: 0 | AM81: 0 | AN81: 0 | AP81: 0 | AQ81: 0 | AR81: 0 | AS81: 0 | AU81: 0
A82: 0 | N82: 0 | T82: 0 | AE82: 0 | AK82: =AK$32 -> 0 | AL82: 0 | AM82: 0 | AN82: 0 | AP82: 0 | AQ82: 0 | AR82: 0 | AS82: 0 | AU82: 0
A83: =IF(LEN(C83)>3,1,0) -> 1 | C83: Refurbishment and rehabilitation | D83: =SUM(D84:D105) -> 9707783 | E83: -738373 | F83: =SUM(F84:F105) -> 8969410 | H83: =SUM(H84:H105) -> 1002216.238 | I83: 2219355 | J83: 0 | K83: 0 | M83: =SUM(M84:M105) -> 3221571.238 | N83: 0.3591731494 | T83: Refurbishment and rehabilitation | U83: 9797472 | V83: -22015 | W83: 9775457 | Y83: 1601864 | Z83: 1827020 | AA83: 0 | AB83: 0 | AD83: 3428884 | AE83: 0.3499764021 | AK83: Refurbishment and rehabilitation | AL83: 89689 | AM83: 716358 | AN83: 806047 | AP83: 599647.762 | AQ83: -392335 | AR83: 0 | AS83: 0 | AU83: 207312.762
A84: 1 | C84: of which: | T84: of which: | AK84: of which:
A85: =A62 -> 1 | C85: =C$12 -> Eastern Cape | D85: =EC_3!D$83 -> 522485 | E85: 396459 | F85: =EC_3!F$83 -> 918944 | H85: =EC_3!H$83 -> 68707 | I85: =EC_3!I$83 -> 91182 | J85: =EC_3!J$83 -> 0 | K85: =EC_3!K$83 -> 0 | M85: =SUM(H85:K85) -> 159889 | N85: =IFERROR(M85/F85,0) -> 0.173992104 | T85: Eastern Cape | U85: 597457 | V85: 0 | W85: 597457 | Y85: 198686 | Z85: 147585 | AD85: 346271 | AE85: 0.5795747644 | AK85: =AK$12 -> Eastern Cape | AL85: =IFERROR(U85-D85,0) -> 74972 | AM85: =IFERROR(V85-E85,0) -> -396459 | AN85: =IFERROR(W85-F85,0) -> -321487 | AP85: =IFERROR(Y85-H85,0) -> 129979 | AQ85: =IFERROR(Z85-I85,0) -> 56403 | AR85: =IFERROR(AA85-J85,0) -> 0 | AS85: =IFERROR(AB85-K85,0) -> 0 | AU85: =IFERROR(AD85-M85,0) -> 186382
A86: =A63 -> 1 | C86: =C$13 -> Free State | D86: =FS_3!D$83 -> 496958 | E86: 112558 | F86: =FS_3!F$83 -> 609516 | H86: =FS_3!H$83 -> 73329 | I86: =FS_3!I$83 -> 161008 | J86: =FS_3!J$83 -> 0 | K86: =FS_3!K$83 -> 0 | M86: =SUM(H86:K86) -> 234337 | N86: 0.3844640666 | T86: Free State | U86: 453705 | V86: 6000 | W86: 459705 | Y86: 43000 | Z86: 86263 | AD86: 129263 | AE86: 0.2849053901 | AK86: =AK$13 -> Free State | AL86: -43253 | AM86: -106558 | AN86: -149811 | AP86: -30329 | AQ86: -74745 | AR86: 0 | AS86: 0 | AU86: -105074
A87: 1 | C87: =C$14 -> Gauteng | D87: =GT_3!D$83 -> 1471131 | E87: 218841 | F87: =GT_3!F$83 -> 1689972 | H87: =GT_3!H$83 -> 266305 | I87: =GT_3!I$83 -> 489214 | J87: =GT_3!J$83 -> 0 | K87: =GT_3!K$83 -> 0 | M87: 755519 | N87: 0.4470600696 | T87: Gauteng | U87: 1585797 | V87: 0 | W87: 1585797 | Y87: 104460 | Z87: 251507 | AD87: 355967 | AE87: 0.2244719847 | AK87: =AK$14 -> Gauteng | AL87: 114666 | AM87: -218841 | AN87: -104175 | AP87: -161845 | AQ87: -237707 | AR87: 0 | AS87: 0 | AU87: -399552
A88: 1 | C88: =C$15 -> KwaZulu-Natal | D88: =KZN_3!D$83 -> 2720680 | E88: -850192 | F88: =KZN_3!F$83 -> 1870488 | H88: =KZN_3!H$83 -> 168839 | I88: =KZN_3!I$83 -> 563510 | J88: =KZN_3!J$83 -> 0 | K88: =KZN_3!K$83 -> 0 | M88: 732349 | N88: 0.3915283071 | T88: KwaZulu-Natal | U88: 2327414 | V88: 313 | W88: 2327727 | Y88: 520474 | Z88: 347968 | AD88: 868442 | AE88: 0.3731360214 | AK88: =AK$15 -> KwaZulu-Natal | AL88: -393266 | AM88: 850505 | AN88: 457239 | AP88: 351635 | AQ88: -215542 | AR88: 0 | AS88: 0 | AU88: 136093
A89: 1 | C89: =C$16 -> Limpopo | D89: =LIM_3!D$83 -> 482417 | E89: 0 | F89: =LIM_3!F$83 -> 482417 | H89: =LIM_3!H$83 -> 17080.238 | I89: =LIM_3!I$83 -> 49869 | J89: =LIM_3!J$83 -> 0 | K89: =LIM_3!K$83 -> 0 | M89: 66949.238 | N89: 0.1387787702 | T89: Limpopo | U89: 169913 | V89: 0 | W89: 169913 | Y89: 21659 | Z89: 17829 | AD89: 39488 | AE89: 0.2324012877 | AK89: =AK$16 -> Limpopo | AL89: -312504 | AM89: 0 | AN89: -312504 | AP89: 4578.762 | AQ89: -32040 | AR89: 0 | AS89: 0 | AU89: -27461.238
A90: 1 | C90: =C$17 -> Mpumalanga | D90: =MPU_3!D$83 -> 798558 | E90: -185225 | F90: =MPU_3!F$83 -> 613333 | H90: =MPU_3!H$83 -> 120775 | I90: =MPU_3!I$83 -> 228946 | J90: =MPU_3!J$83 -> 0 | K90: =MPU_3!K$83 -> 0 | M90: 349721 | N90: 0.5701975925 | T90: Mpumalanga | U90: 1024466 | V90: 0 | W90: 1024466 | Y90: 174805 | Z90: 205295 | AD90: 380100 | AE90: 0.371022562 | AK90: =AK$17 -> Mpumalanga | AL90: 225908 | AM90: 185225 | AN90: 411133 | AP90: 54030 | AQ90: -23651 | AR90: 0 | AS90: 0 | AU90: 30379
A91: 1 | C91: =C$18 -> Northern Cape | D91: =NC_3!D$83 -> 154739 | E91: 15482 | F91: =NC_3!F$83 -> 170221 | H91: =NC_3!H$83 -> 41744 | I91: =NC_3!I$83 -> 28182 | J91: =NC_3!J$83 -> 0 | K91: =NC_3!K$83 -> 0 | M91: 69926 | N91: 0.4107953778 | T91: Northern Cape | U91: 178056 | V91: 0 | W91: 178056 | Y91: 3414 | Z91: 36334 | AD91: 39748 | AE91: 0.2232331401 | AK91: =AK$18 -> Northern Cape | AL91: 23317 | AM91: -15482 | AN91: 7835 | AP91: -38330 | AQ91: 8152 | AR91: 0 | AS91: 0 | AU91: -30178
A92: 1 | C92: =C$19 -> North West | D92: =NW_3!D$83 -> 574007 | E92: -69180 | F92: =NW_3!F$83 -> 504827 | H92: =NW_3!H$83 -> 19628 | I92: =NW_3!I$83 -> 175295 | J92: =NW_3!J$83 -> 0 | K92: =NW_3!K$83 -> 0 | M92: 194923 | N92: 0.3861184128 | T92: North West | U92: 819176 | V92: -47781 | W92: 771395 | Y92: 61933 | Z92: 93881 | AD92: 155814 | AE92: 0.1902082092 | AK92: =AK$19 -> North West | AL92: 245169 | AM92: 21399 | AN92: 266568 | AP92: 42305 | AQ92: -81414 | AR92: 0 | AS92: 0 | AU92: -39109
A93: 1 | C93: =C$20 -> Western Cape | D93: =WC_3!D$83 -> 2486808 | E93: -377116 | F93: =WC_3!F$83 -> 2109692 | H93: =WC_3!H$83 -> 225809 | I93: =WC_3!I$83 -> 432149 | J93: =WC_3!J$83 -> 0 | K93: =WC_3!K$83 -> 0 | M93: 657958 | N93: 0.3118739607 | T93: Western Cape | U93: 2641488 | V93: 19453 | W93: 2660941 | Y93: 473433 | Z93: 640358 | AD93: 1113791 | AE93: 0.4216528714 | AK93: =AK$20 -> Western Cape | AL93: 154680 | AM93: 396569 | AN93: 551249 | AP93: 247624 | AQ93: 208209 | AR93: 0 | AS93: 0 | AU93: 455833
A94: 0 | C94: =C$21 -> 0 | E94: 0 | M94: 0 | N94: 0 | T94: 0 | V94: 0 | AD94: 0 | AE94: 0 | AK94: =AK$21 -> 0 | AL94: 0 | AM94: 0 | AN94: 0 | AP94: 0 | AQ94: 0 | AR94: 0 | AS94: 0 | AU94: 0
A95: 0 | C95: =C$22 -> 0 | E95: 0 | M95: 0 | N95: 0 | T95: 0 | V95: 0 | AD95: 0 | AE95: 0 | AK95: =AK$22 -> 0 | AL95: 0 | AM95: 0 | AN95: 0 | AP95: 0 | AQ95: 0 | AR95: 0 | AS95: 0 | AU95: 0
A96: 0 | C96: =C$23 -> 0 | E96: 0 | M96: 0 | N96: 0 | T96: 0 | V96: 0 | AD96: 0 | AE96: 0 | AK96: =AK$23 -> 0 | AL96: 0 | AM96: 0 | AN96: 0 | AP96: 0 | AQ96: 0 | AR96: 0 | AS96: 0 | AU96: 0
A97: 0 | C97: =C$24 -> 0 | E97: 0 | M97: 0 | N97: 0 | T97: 0 | V97: 0 | AD97: 0 | AE97: 0 | AK97: =AK$24 -> 0 | AL97: 0 | AM97: 0 | AN97: 0 | AP97: 0 | AQ97: 0 | AR97: 0 | AS97: 0 | AU97: 0
A98: 0 | C98: =C$25 -> 0 | E98: 0 | M98: 0 | N98: 0 | T98: 0 | V98: 0 | AD98: 0 | AE98: 0 | AK98: =AK$25 -> 0 | AL98: 0 | AM98: 0 | AN98: 0 | AP98: 0 | AQ98: 0 | AR98: 0 | AS98: 0 | AU98: 0
A99: 0 | C99: =C$26 -> 0 | E99: 0 | M99: 0 | N99: 0 | T99: 0 | V99: 0 | AD99: 0 | AE99: 0 | AK99: =AK$26 -> 0 | AL99: 0 | AM99: 0 | AN99: 0 | AP99: 0 | AQ99: 0 | AR99: 0 | AS99: 0 | AU99: 0
A100: 0 | C100: =C$27 -> 0 | E100: 0 | M100: 0 | N100: 0 | T100: =C100 -> 0 | V100: 0 | AD100: 0 | AE100: 0 | AK100: =AK$27 -> 0 | AL100: 0 | AM100: 0 | AN100: 0 | AP100: 0 | AQ100: 0 | AR100: 0 | AS100: 0 | AU100: 0
A101: 0 | C101: =C$28 -> 0 | E101: =F101-D101 -> 0 | M101: 0 | N101: 0 | T101: 0 | V101: 0 | AD101: 0 | AE101: 0 | AK101: =AK$28 -> 0 | AL101: 0 | AM101: 0 | AN101: 0 | AP101: 0 | AQ101: 0 | AR101: 0 | AS101: 0 | AU101: 0
A102: 0 | C102: =C$29 -> 0 | E102: 0 | M102: 0 | N102: 0 | T102: 0 | V102: 0 | AD102: 0 | AE102: 0 | AK102: =AK$29 -> 0 | AL102: 0 | AM102: 0 | AN102: 0 | AP102: 0 | AQ102: 0 | AR102: 0 | AS102: 0 | AU102: 0
A103: 0 | C103: =C$30 -> 0 | E103: 0 | M103: 0 | N103: 0 | T103: 0 | V103: 0 | AD103: 0 | AE103: 0 | AK103: =AK$30 -> 0 | AL103: 0 | AM103: 0 | AN103: 0 | AP103: 0 | AQ103: 0 | AR103: 0 | AS103: 0 | AU103: 0
A104: 0 | C104: =C$31 -> 0 | E104: 0 | M104: 0 | N104: 0 | T104: 0 | V104: 0 | AD104: 0 | AE104: 0 | AK104: =AK$31 -> 0 | AL104: 0 | AM104: 0 | AN104: 0 | AP104: 0 | AQ104: 0 | AR104: 0 | AS104: 0 | AU104: 0
A105: 0 | E105: 0 | N105: 0 | T105: 0 | V105: 0 | AK105: =AK$32 -> 0 | AL105: 0 | AM105: 0 | AN105: 0 | AP105: 0 | AQ105: 0 | AR105: 0 | AS105: 0 | AU105: 0
A106: 1 | C106: New infrastructure assets | D106: =SUM(D108:D127) -> 12387945 | E106: -808138 | F106: =SUM(F108:F127) -> 11579807 | H106: =SUM(H108:H127) -> 963468.315 | I106: 2653868.6 | J106: 0 | K106: 0 | M106: =SUM(M108:M127) -> 3617336.915 | N106: 0.3123831783 | T106: New infrastructure assets | U106: 13102255 | V106: -152632 | W106: 12949623 | Y106: 2214592.811 | Z106: 2744796 | AA106: 0 | AB106: 0 | AD106: 4959388.811 | AE106: 0.3785141421 | AK106: New infrastructure assets | AL106: 714310 | AM106: 655506 | AN106: 1369816 | AP106: 1251124.496 | AQ106: 90927.4 | AR106: 0 | AS106: 0 | AU106: 1342051.896
A107: 1 | C107: of which: | T107: of which: | AK107: of which:
A108: =A85 -> 1 | C108: =C$12 -> Eastern Cape | D108: =EC_3!D$106 -> 1235263 | E108: -166552 | F108: =EC_3!F$106 -> 1068711 | H108: =EC_3!H$106 -> 79277 | I108: =EC_3!I$106 -> 145281.6 | J108: =EC_3!J$106 -> 0 | K108: =EC_3!K$106 -> 0 | M108: =SUM(H108:K108) -> 224558.6 | N108: =IFERROR(M108/F108,0) -> 0.2101209775 | T108: Eastern Cape | U108: 937241 | V108: 0 | W108: 937241 | Y108: 207939 | Z108: 255165 | AD108: 463104 | AE108: 0.4941141073 | AK108: =AK$12 -> Eastern Cape | AL108: =IFERROR(U108-D108,0) -> -298022 | AM108: =IFERROR(V108-E108,0) -> 166552 | AN108: =IFERROR(W108-F108,0) -> -131470 | AP108: =IFERROR(Y108-H108,0) -> 128662 | AQ108: =IFERROR(Z108-I108,0) -> 109883.4 | AR108: =IFERROR(AA108-J108,0) -> 0 | AS108: =IFERROR(AB108-K108,0) -> 0 | AU108: =IFERROR(AD108-M108,0) -> 238545.4
A109: =A86 -> 1 | C109: =C$13 -> Free State | D109: =FS_3!D$106 -> 226676 | E109: 31884 | F109: =FS_3!F$106 -> 258560 | H109: =FS_3!H$106 -> 46527 | I109: =FS_3!I$106 -> 32447 | J109: =FS_3!J$106 -> 0 | K109: =FS_3!K$106 -> 0 | M109: =SUM(H109:K109) -> 78974 | N109: 0.3054378094 | T109: Free State | U109: 461232 | V109: -15043 | W109: 446189 | Y109: 45741 | Z109: 78235 | AD109: 123976 | AE109: 0.2687931453 | AK109: =AK$13 -> Free State | AL109: 234556 | AM109: -46927 | AN109: 187629 | AP109: -786 | AQ109: 45788 | AR109: 0 | AS109: 0 | AU109: 45002
A110: 1 | C110: =C$14 -> Gauteng | D110: =GT_3!D$106 -> 5687536 | E110: 589113 | F110: =GT_3!F$106 -> 6276649 | H110: =GT_3!H$106 -> 266163 | I110: =GT_3!I$106 -> 1536317 | J110: =GT_3!J$106 -> 0 | K110: =GT_3!K$106 -> 0 | M110: 1802480 | N110: 0.2871723431 | T110: Gauteng | U110: 5769839 | V110: 0 | W110: 5769839 | Y110: 1018440 | Z110: 1135957 | AD110: 2154397 | AE110: 0.3733894481 | AK110: =AK$14 -> Gauteng | AL110: 82303 | AM110: -589113 | AN110: -506810 | AP110: 752277 | AQ110: -400360 | AR110: 0 | AS110: 0 | AU110: 351917
A111: 1 | C111: =C$15 -> KwaZulu-Natal | D111: =KZN_3!D$106 -> 904866 | E111: -189821 | F111: =KZN_3!F$106 -> 715045 | H111: =KZN_3!H$106 -> 167047 | I111: =KZN_3!I$106 -> 219881 | J111: =KZN_3!J$106 -> 0 | K111: =KZN_3!K$106 -> 0 | M111: 386928 | N111: 0.5411239852 | T111: KwaZulu-Natal | U111: 1339392 | V111: -147589 | W111: 1191803 | Y111: 225439 | Z111: 370088 | AD111: 595527 | AE111: 0.4446248746 | AK111: =AK$15 -> KwaZulu-Natal | AL111: 434526 | AM111: 42232 | AN111: 476758 | AP111: 58392 | AQ111: 150207 | AR111: 0 | AS111: 0 | AU111: 208599
A112: 1 | C112: =C$16 -> Limpopo | D112: =LIM_3!D$106 -> 680772 | E112: 0 | F112: =LIM_3!F$106 -> 680772 | H112: =LIM_3!H$106 -> 81420.315 | I112: =LIM_3!I$106 -> 190139 | J112: =LIM_3!J$106 -> 0 | K112: =LIM_3!K$106 -> 0 | M112: 271559.315 | N112: 0.3988990661 | T112: Limpopo | U112: 307720 | V112: 0 | W112: 307720 | Y112: 69908.85885 | Z112: 94258 | AD112: 164166.8589 | AE112: 0.5334942768 | AK112: =AK$16 -> Limpopo | AL112: -373052 | AM112: 0 | AN112: -373052 | AP112: -11511.45615 | AQ112: -95881 | AR112: 0 | AS112: 0 | AU112: -107392.4561
A113: 1 | C113: =C$17 -> Mpumalanga | D113: =MPU_3!D$106 -> 1726598 | E113: -202025 | F113: =MPU_3!F$106 -> 1524573 | H113: =MPU_3!H$106 -> 41196 | I113: =MPU_3!I$106 -> 326106 | J113: =MPU_3!J$106 -> 0 | K113: =MPU_3!K$106 -> 0 | M113: 367302 | N113: 0.2409212284 | T113: Mpumalanga | U113: 1973499 | V113: 0 | W113: 1973499 | Y113: 250958 | Z113: 359620 | AD113: 610578 | AE113: 0.309388553 | AK113: =AK$17 -> Mpumalanga | AL113: 246901 | AM113: 202025 | AN113: 448926 | AP113: 209762 | AQ113: 33514 | AR113: 0 | AS113: 0 | AU113: 243276
A114: 1 | C114: =C$18 -> Northern Cape | D114: =NC_3!D$106 -> 435069 | E114: -174720 | F114: =NC_3!F$106 -> 260349 | H114: =NC_3!H$106 -> 121107 | I114: =NC_3!I$106 -> 38790 | J114: =NC_3!J$106 -> 0 | K114: =NC_3!K$106 -> 0 | M114: 159897 | N114: 0.6141640644 | T114: Northern Cape | U114: 510834 | V114: 0 | W114: 510834 | Y114: 130723 | Z114: 118653 | AD114: 249376 | AE114: 0.4881742406 | AK114: =AK$18 -> Northern Cape | AL114: 75765 | AM114: 174720 | AN114: 250485 | AP114: 9616 | AQ114: 79863 | AR114: 0 | AS114: 0 | AU114: 89479
A115: 1 | C115: =C$19 -> North West | D115: =NW_3!D$106 -> 897595 | E115: -516038 | F115: =NW_3!F$106 -> 381557 | H115: =NW_3!H$106 -> 81407 | I115: =NW_3!I$106 -> 42739 | J115: =NW_3!J$106 -> 0 | K115: =NW_3!K$106 -> 0 | M115: 124146 | N115: 0.3253668521 | T115: North West | U115: 866689 | V115: 10000 | W115: 876689 | Y115: 73286.95174 | Z115: 110168 | AD115: 183454.9517 | AE115: 0.2116733358 | AK115: =AK$19 -> North West | AL115: -30906 | AM115: 526038 | AN115: 495132 | AP115: -8120.04826 | AQ115: 67429 | AR115: 0 | AS115: 0 | AU115: 59308.95174
A116: 1 | C116: =C$20 -> Western Cape | D116: =WC_3!D$106 -> 593570 | E116: -179979 | F116: =WC_3!F$106 -> 413591 | H116: =WC_3!H$106 -> 79324 | I116: =WC_3!I$106 -> 122168 | J116: =WC_3!J$106 -> 0 | K116: =WC_3!K$106 -> 0 | M116: 201492 | N116: 0.4871769453 | T116: Western Cape | U116: 935809 | V116: 0 | W116: 935809 | Y116: 192157 | Z116: 222652 | AD116: 414809 | AE116: 0.4432624606 | AK116: =AK$20 -> Western Cape | AL116: 342239 | AM116: 179979 | AN116: 522218 | AP116: 112833 | AQ116: 100484 | AR116: 0 | AS116: 0 | AU116: 213317
A117: 0 | C117: =C$21 -> 0 | E117: 0 | M117: 0 | N117: 0 | T117: 0 | V117: 0 | AD117: 0 | AE117: 0 | AK117: =AK$21 -> 0 | AL117: 0 | AM117: 0 | AN117: 0 | AP117: 0 | AQ117: 0 | AR117: 0 | AS117: 0 | AU117: 0
A118: 0 | C118: =C$22 -> 0 | E118: 0 | M118: 0 | N118: 0 | T118: 0 | V118: 0 | AD118: 0 | AE118: 0 | AK118: =AK$22 -> 0 | AL118: 0 | AM118: 0 | AN118: 0 | AP118: 0 | AQ118: 0 | AR118: 0 | AS118: 0 | AU118: 0
A119: 0 | C119: =C$23 -> 0 | E119: 0 | M119: 0 | N119: 0 | T119: 0 | V119: 0 | AD119: 0 | AE119: 0 | AK119: =AK$23 -> 0 | AL119: 0 | AM119: 0 | AN119: 0 | AP119: 0 | AQ119: 0 | AR119: 0 | AS119: 0 | AU119: 0
A120: 0 | C120: =C$24 -> 0 | E120: 0 | M120: 0 | N120: 0 | T120: 0 | V120: 0 | AD120: 0 | AE120: 0 | AK120: =AK$24 -> 0 | AL120: 0 | AM120: 0 | AN120: 0 | AP120: 0 | AQ120: 0 | AR120: 0 | AS120: 0 | AU120: 0
A121: 0 | C121: =C$25 -> 0 | E121: 0 | M121: 0 | N121: 0 | T121: 0 | V121: 0 | AD121: 0 | AE121: 0 | AK121: =AK$25 -> 0 | AL121: 0 | AM121: 0 | AN121: 0 | AP121: 0 | AQ121: 0 | AR121: 0 | AS121: 0 | AU121: 0
A122: 0 | C122: =C$26 -> 0 | E122: 0 | M122: 0 | N122: 0 | T122: 0 | V122: 0 | AD122: 0 | AE122: 0 | AK122: =AK$26 -> 0 | AL122: 0 | AM122: 0 | AN122: 0 | AP122: 0 | AQ122: 0 | AR122: 0 | AS122: 0 | AU122: 0
A123: 0 | C123: =C$27 -> 0 | E123: 0 | M123: 0 | N123: 0 | T123: 0 | V123: 0 | AD123: 0 | AE123: 0 | AK123: =AK$27 -> 0 | AL123: 0 | AM123: 0 | AN123: 0 | AP123: 0 | AQ123: 0 | AR123: 0 | AS123: 0 | AU123: 0
A124: 0 | C124: =C$28 -> 0 | E124: 0 | M124: 0 | N124: 0 | T124: 0 | V124: 0 | AD124: 0 | AE124: 0 | AK124: =AK$28 -> 0 | AL124: 0 | AM124: 0 | AN124: 0 | AP124: 0 | AQ124: 0 | AR124: 0 | AS124: 0 | AU124: 0
A125: 0 | C125: =C$29 -> 0 | E125: 0 | M125: 0 | N125: 0 | T125: 0 | V125: 0 | AD125: 0 | AE125: 0 | AK125: =AK$29 -> 0 | AL125: 0 | AM125: 0 | AN125: 0 | AP125: 0 | AQ125: 0 | AR125: 0 | AS125: 0 | AU125: 0
A126: 0 | C126: =C$30 -> 0 | E126: 0 | M126: 0 | N126: 0 | T126: 0 | V126: 0 | AD126: 0 | AE126: 0 | AK126: =AK$30 -> 0 | AL126: 0 | AM126: 0 | AN126: 0 | AP126: 0 | AQ126: 0 | AR126: 0 | AS126: 0 | AU126: 0
A127: 0 | C127: =C$31 -> 0 | E127: 0 | M127: 0 | N127: 0 | T127: 0 | V127: 0 | AD127: 0 | AE127: 0 | AK127: =AK$31 -> 0 | AL127: 0 | AM127: 0 | AN127: 0 | AP127: 0 | AQ127: 0 | AR127: 0 | AS127: 0 | AU127: 0
A128: 0 | E128: 0 | N128: 0 | T128: 0 | V128: 0 | AK128: =AK$32 -> 0 | AL128: 0 | AM128: 0 | AN128: 0 | AP128: 0 | AQ128: 0 | AR128: 0 | AS128: 0 | AU128: 0
A129: 1 | C129: Infrastructure Transfers | D129: =SUM(D131:D150) -> 10437211 | E129: -463740 | F129: =SUM(F131:F150) -> 9973471 | H129: =SUM(H131:H150) -> 1029027 | I129: 2417591 | J129: 0 | K129: 0 | M129: =SUM(M131:M150) -> 3446618 | N129: 0.3455785854 | T129: Infrastructure Transfers | U129: 11593805 | V129: 214735 | W129: 11808540 | Y129: 2272018.701 | Z129: 2888530.886 | AA129: 0 | AB129: 0 | AD129: 5160549.587 | AE129: 0.4451126776 | AK129: Infrastructure Transfers | AL129: 1156594 | AM129: 678475 | AN129: 1835069 | AP129: 1242991.701 | AQ129: 470939.8858 | AR129: 0 | AS129: 0 | AU129: 1713931.587
A130: 1 | C130: of which: | T130: of which: | AK130: of which:
A131: =A108 -> 1 | C131: =C$12 -> Eastern Cape | D131: =EC_3!D$129 -> 2084047 | E131: 0 | F131: =EC_3!F$129 -> 2084047 | H131: =EC_3!H$129 -> 63042 | I131: =EC_3!I$129 -> 509214 | J131: =EC_3!J$129 -> 0 | K131: =EC_3!K$129 -> 0 | M131: =SUM(H131:K131) -> 572256 | N131: =IFERROR(M131/F131,0) -> 0.2745888169 | T131: Eastern Cape | U131: 2222268 | V131: 0 | W131: 2222268 | Y131: 512856 | Z131: 547172 | AD131: 1060028 | AE131: 0.4770027737 | AK131: =AK$12 -> Eastern Cape | AL131: =IFERROR(U131-D131,0) -> 138221 | AM131: =IFERROR(V131-E131,0) -> 0 | AN131: =IFERROR(W131-F131,0) -> 138221 | AP131: =IFERROR(Y131-H131,0) -> 449814 | AQ131: =IFERROR(Z131-I131,0) -> 37958 | AR131: =IFERROR(AA131-J131,0) -> 0 | AS131: =IFERROR(AB131-K131,0) -> 0 | AU131: =IFERROR(AD131-M131,0) -> 487772
A132: =A109 -> 1 | C132: =C$13 -> Free State | D132: =FS_3!D$129 -> 833225 | E132: -98046 | F132: =FS_3!F$129 -> 735179 | H132: =FS_3!H$129 -> 77581 | I132: =FS_3!I$129 -> 144086 | J132: =FS_3!J$129 -> 0 | K132: =FS_3!K$129 -> 0 | M132: =SUM(H132:K132) -> 221667 | N132: 0.3015143251 | T132: Free State | U132: 1193853 | V132: -3613 | W132: 1190240 | Y132: 115859 | Z132: 231919 | AD132: 347778 | AE132: 0.2913072212 | AK132: =AK$13 -> Free State | AL132: 360628 | AM132: 94433 | AN132: 455061 | AP132: 38278 | AQ132: 87833 | AR132: 0 | AS132: 0 | AU132: 126111
A133: 1 | C133: =C$14 -> Gauteng | D133: =GT_3!D$129 -> 0 | E133: 40000 | F133: =GT_3!F$129 -> 40000 | H133: =GT_3!H$129 -> 0 | I133: =GT_3!I$129 -> 0 | J133: =GT_3!J$129 -> 0 | K133: =GT_3!K$129 -> 0 | M133: 0 | N133: 0 | T133: Gauteng | U133: 0 | V133: 0 | W133: 0 | Y133: 0 | Z133: 0 | AD133: 0 | AE133: 0 | AK133: =AK$14 -> Gauteng | AL133: 0 | AM133: -40000 | AN133: -40000 | AP133: 0 | AQ133: 0 | AR133: 0 | AS133: 0 | AU133: 0
A134: 1 | C134: =C$15 -> KwaZulu-Natal | D134: =KZN_3!D$129 -> 694841 | E134: -182686 | F134: =KZN_3!F$129 -> 512155 | H134: =KZN_3!H$129 -> 120216 | I134: =KZN_3!I$129 -> 150466 | J134: =KZN_3!J$129 -> 0 | K134: =KZN_3!K$129 -> 0 | M134: 270682 | N134: 0.5285157814 | T134: KwaZulu-Natal | U134: 681804 | V134: 134575 | W134: 816379 | Y134: 188492 | Z134: 131581 | AD134: 320073 | AE134: 0.4694501646 | AK134: =AK$15 -> KwaZulu-Natal | AL134: -13037 | AM134: 317261 | AN134: 304224 | AP134: 68276 | AQ134: -18885 | AR134: 0 | AS134: 0 | AU134: 49391
A135: 1 | C135: =C$16 -> Limpopo | D135: =LIM_3!D$129 -> 2697365 | E135: 0 | F135: =LIM_3!F$129 -> 2697365 | H135: =LIM_3!H$129 -> 162004 | I135: =LIM_3!I$129 -> 577532 | J135: =LIM_3!J$129 -> 0 | K135: =LIM_3!K$129 -> 0 | M135: 739536 | N135: 0.2741697916 | T135: Limpopo | U135: 2847858 | V135: 0 | W135: 2847858 | Y135: 564452 | Z135: 908391 | AD135: 1472843 | AE135: 0.5171757159 | AK135: =AK$16 -> Limpopo | AL135: 150493 | AM135: 0 | AN135: 150493 | AP135: 402448 | AQ135: 330859 | AR135: 0 | AS135: 0 | AU135: 733307
A136: 1 | C136: =C$17 -> Mpumalanga | D136: =MPU_3!D$129 -> 43676 | E136: -4237 | F136: =MPU_3!F$129 -> 39439 | H136: =MPU_3!H$129 -> 5195 | I136: =MPU_3!I$129 -> 12541 | J136: =MPU_3!J$129 -> 0 | K136: =MPU_3!K$129 -> 0 | M136: 17736 | N136: 0.4497071427 | T136: Mpumalanga | U136: 0 | V136: 0 | W136: 0 | Y136: 1811 | Z136: 100 | AD136: 1911 | AE136: 0 | AK136: =AK$17 -> Mpumalanga | AL136: -43676 | AM136: 4237 | AN136: -39439 | AP136: -3384 | AQ136: -12441 | AR136: 0 | AS136: 0 | AU136: -15825
A137: 1 | C137: =C$18 -> Northern Cape | D137: =NC_3!D$129 -> 293016 | E137: 0 | F137: =NC_3!F$129 -> 293016 | H137: =NC_3!H$129 -> 0 | I137: =NC_3!I$129 -> 0 | J137: =NC_3!J$129 -> 0 | K137: =NC_3!K$129 -> 0 | M137: 0 | N137: 0 | T137: Northern Cape | U137: 487930 | V137: 0 | W137: 487930 | Y137: 0 | Z137: 0 | AD137: 0 | AE137: 0 | AK137: =AK$18 -> Northern Cape | AL137: 194914 | AM137: 0 | AN137: 194914 | AP137: 0 | AQ137: 0 | AR137: 0 | AS137: 0 | AU137: 0
A138: 1 | C138: =C$19 -> North West | D138: =NW_3!D$129 -> 1628058 | E138: -93765 | F138: =NW_3!F$129 -> 1534293 | H138: =NW_3!H$129 -> 110934 | I138: =NW_3!I$129 -> 499901 | J138: =NW_3!J$129 -> 0 | K138: =NW_3!K$129 -> 0 | M138: 610835 | N138: 0.3981214801 | T138: North West | U138: 2018536 | V138: 0 | W138: 2018536 | Y138: 338560.701 | Z138: 450341.8858 | AD138: 788902.5868 | AE138: 0.3908290894 | AK138: =AK$19 -> North West | AL138: 390478 | AM138: 93765 | AN138: 484243 | AP138: 227626.701 | AQ138: -49559.11424 | AR138: 0 | AS138: 0 | AU138: 178067.5868
A139: 1 | C139: =C$20 -> Western Cape | D139: =WC_3!D$129 -> 2162983 | E139: -125006 | F139: =WC_3!F$129 -> 2037977 | H139: =WC_3!H$129 -> 490055 | I139: =WC_3!I$129 -> 523851 | J139: =WC_3!J$129 -> 0 | K139: =WC_3!K$129 -> 0 | M139: 1013906 | N139: 0.4975061053 | T139: Western Cape | U139: 2141556 | V139: 83773 | W139: 2225329 | Y139: 549988 | Z139: 619026 | AD139: 1169014 | AE139: 0.5458713197 | AK139: =AK$20 -> Western Cape | AL139: -21427 | AM139: 208779 | AN139: 187352 | AP139: 59933 | AQ139: 95175 | AR139: 0 | AS139: 0 | AU139: 155108
A140: 0 | C140: =C$21 -> 0 | E140: 0 | M140: 0 | N140: 0 | T140: 0 | V140: 0 | AD140: 0 | AE140: 0 | AK140: =AK$21 -> 0 | AL140: 0 | AM140: 0 | AN140: 0 | AP140: 0 | AQ140: 0 | AR140: 0 | AS140: 0 | AU140: 0
A141: 0 | C141: =C$22 -> 0 | E141: 0 | M141: 0 | N141: 0 | T141: 0 | V141: 0 | AD141: 0 | AE141: 0 | AK141: =AK$22 -> 0 | AL141: 0 | AM141: 0 | AN141: 0 | AP141: 0 | AQ141: 0 | AR141: 0 | AS141: 0 | AU141: 0
A142: 0 | C142: =C$23 -> 0 | E142: 0 | M142: 0 | N142: 0 | T142: 0 | V142: 0 | AD142: 0 | AE142: 0 | AK142: =AK$23 -> 0 | AL142: 0 | AM142: 0 | AN142: 0 | AP142: 0 | AQ142: 0 | AR142: 0 | AS142: 0 | AU142: 0
A143: 0 | C143: =C$24 -> 0 | E143: 0 | M143: 0 | N143: 0 | T143: 0 | V143: 0 | AD143: 0 | AE143: 0 | AK143: =AK$24 -> 0 | AL143: 0 | AM143: 0 | AN143: 0 | AP143: 0 | AQ143: 0 | AR143: 0 | AS143: 0 | AU143: 0
A144: 0 | C144: =C$25 -> 0 | E144: 0 | M144: 0 | N144: 0 | T144: 0 | V144: 0 | AD144: 0 | AE144: 0 | AK144: =AK$25 -> 0 | AL144: 0 | AM144: 0 | AN144: 0 | AP144: 0 | AQ144: 0 | AR144: 0 | AS144: 0 | AU144: 0
A145: 0 | C145: =C$26 -> 0 | E145: 0 | M145: 0 | N145: 0 | T145: 0 | V145: 0 | AD145: 0 | AE145: 0 | AK145: =AK$26 -> 0 | AL145: 0 | AM145: 0 | AN145: 0 | AP145: 0 | AQ145: 0 | AR145: 0 | AS145: 0 | AU145: 0
A146: 0 | C146: =C$27 -> 0 | E146: 0 | M146: 0 | N146: 0 | T146: 0 | V146: 0 | AD146: 0 | AE146: 0 | AK146: =AK$27 -> 0 | AL146: 0 | AM146: 0 | AN146: 0 | AP146: 0 | AQ146: 0 | AR146: 0 | AS146: 0 | AU146: 0
A147: 0 | C147: =C$28 -> 0 | E147: 0 | M147: 0 | N147: 0 | T147: 0 | V147: 0 | AD147: 0 | AE147: 0 | AK147: =AK$28 -> 0 | AL147: 0 | AM147: 0 | AN147: 0 | AP147: 0 | AQ147: 0 | AR147: 0 | AS147: 0 | AU147: 0
A148: 0 | C148: =C$29 -> 0 | E148: 0 | M148: 0 | N148: 0 | T148: 0 | V148: 0 | AD148: 0 | AE148: 0 | AK148: =AK$29 -> 0 | AL148: 0 | AM148: 0 | AN148: 0 | AP148: 0 | AQ148: 0 | AR148: 0 | AS148: 0 | AU148: 0
A149: 0 | C149: =C$30 -> 0 | E149: 0 | M149: 0 | N149: 0 | T149: 0 | V149: 0 | AD149: 0 | AE149: 0 | AK149: =AK$30 -> 0 | AL149: 0 | AM149: 0 | AN149: 0 | AP149: 0 | AQ149: 0 | AR149: 0 | AS149: 0 | AU149: 0
A150: 0 | C150: =C$31 -> 0 | E150: 0 | M150: 0 | N150: 0 | T150: 0 | V150: 0 | AD150: 0 | AE150: 0 | AK150: =AK$31 -> 0 | AL150: 0 | AM150: 0 | AN150: 0 | AP150: 0 | AQ150: 0 | AR150: 0 | AS150: 0 | AU150: 0
A151: 0 | E151: 0 | N151: 0 | T151: 0 | V151: 0 | AK151: =AK$32 -> 0 | AL151: 0 | AM151: 0 | AN151: 0 | AP151: 0 | AQ151: 0 | AR151: 0 | AS151: 0 | AU151: 0
A152: =IF(LEN(C152)>3,1,0) -> 1 | C152: Infrastructure: Leases | D152: =SUM(D154:D173) -> 547007 | E152: 168202 | F152: =SUM(F154:F173) -> 715209 | H152: =SUM(H154:H173) -> 98143 | I152: 162167 | J152: 0 | K152: 0 | M152: =SUM(M154:M173) -> 260310 | N152: 0.3639635407 | T152: Infrastructure: Leases | U152: 312725 | V152: 0 | W152: 312725 | Y152: 84215 | Z152: 103865 | AA152: 0 | AB152: 0 | AD152: 188080 | AE152: 0.6014229755 | AK152: Infrastructure: Leases | AL152: -234282 | AM152: -168202 | AN152: -402484 | AP152: -13928 | AQ152: -58302 | AR152: 0 | AS152: 0 | AU152: -72230
A153: 1 | C153: of which: | T153: of which: | AK153: of which:
A154: =A131 -> 1 | C154: =C$12 -> Eastern Cape | D154: =EC_3!D$152 -> 0 | E154: 0 | F154: =EC_3!F$152 -> 0 | H154: =EC_3!H$152 -> 0 | I154: =EC_3!I$152 -> 0 | J154: =EC_3!J$152 -> 0 | K154: =EC_3!K$152 -> 0 | M154: =SUM(H154:K154) -> 0 | N154: =IFERROR(M154/F154,0) -> 0 | T154: Eastern Cape | U154: 0 | V154: 0 | W154: 0 | Y154: 0 | Z154: 0 | AD154: 0 | AE154: 0 | AK154: =AK$12 -> Eastern Cape | AL154: =IFERROR(U154-D154,0) -> 0 | AM154: =IFERROR(V154-E154,0) -> 0 | AN154: =IFERROR(W154-F154,0) -> 0 | AP154: =IFERROR(Y154-H154,0) -> 0 | AQ154: =IFERROR(Z154-I154,0) -> 0 | AR154: =IFERROR(AA154-J154,0) -> 0 | AS154: =IFERROR(AB154-K154,0) -> 0 | AU154: =IFERROR(AD154-M154,0) -> 0
A155: =A132 -> 1 | C155: =C$13 -> Free State | D155: =FS_3!D$152 -> 0 | E155: 0 | F155: =FS_3!F$152 -> 0 | H155: =FS_3!H$152 -> 0 | I155: =FS_3!I$152 -> 0 | J155: =FS_3!J$152 -> 0 | K155: =FS_3!K$152 -> 0 | M155: =SUM(H155:K155) -> 0 | N155: 0 | T155: Free State | U155: 0 | V155: 0 | W155: 0 | Y155: 0 | Z155: 0 | AD155: 0 | AE155: 0 | AK155: =AK$13 -> Free State | AL155: 0 | AM155: 0 | AN155: 0 | AP155: 0 | AQ155: 0 | AR155: 0 | AS155: 0 | AU155: 0
A156: 1 | C156: =C$14 -> Gauteng | D156: =GT_3!D$152 -> 0 | E156: 0 | F156: =GT_3!F$152 -> 0 | H156: =GT_3!H$152 -> 0 | I156: =GT_3!I$152 -> 0 | J156: =GT_3!J$152 -> 0 | K156: =GT_3!K$152 -> 0 | M156: 0 | N156: 0 | T156: Gauteng | U156: 0 | V156: 0 | W156: 0 | Y156: 0 | Z156: 0 | AD156: 0 | AE156: 0 | AK156: =AK$14 -> Gauteng | AL156: 0 | AM156: 0 | AN156: 0 | AP156: 0 | AQ156: 0 | AR156: 0 | AS156: 0 | AU156: 0
A157: 1 | C157: =C$15 -> KwaZulu-Natal | D157: =KZN_3!D$152 -> 387226 | E157: 165746 | F157: =KZN_3!F$152 -> 552972 | H157: =KZN_3!H$152 -> 36855 | I157: =KZN_3!I$152 -> 89258 | J157: =KZN_3!J$152 -> 0 | K157: =KZN_3!K$152 -> 0 | M157: 126113 | N157: 0.2280639888 | T157: KwaZulu-Natal | U157: 162939 | V157: 0 | W157: 162939 | Y157: 29469 | Z157: 67290 | AD157: 96759 | AE157: 0.5938357299 | AK157: =AK$15 -> KwaZulu-Natal | AL157: -224287 | AM157: -165746 | AN157: -390033 | AP157: -7386 | AQ157: -21968 | AR157: 0 | AS157: 0 | AU157: -29354
A158: 1 | C158: =C$16 -> Limpopo | D158: =LIM_3!D$152 -> 0 | E158: 0 | F158: =LIM_3!F$152 -> 0 | H158: =LIM_3!H$152 -> 10695 | I158: =LIM_3!I$152 -> 10695 | J158: =LIM_3!J$152 -> 0 | K158: =LIM_3!K$152 -> 0 | M158: 21390 | N158: 0 | T158: Limpopo | U158: 0 | V158: 0 | W158: 0 | Y158: 0 | Z158: 0 | AD158: 0 | AE158: 0 | AK158: =AK$16 -> Limpopo | AL158: 0 | AM158: 0 | AN158: 0 | AP158: -10695 | AQ158: -10695 | AR158: 0 | AS158: 0 | AU158: -21390
A159: 1 | C159: =C$17 -> Mpumalanga | D159: =MPU_3!D$152 -> 146850 | E159: -544 | F159: =MPU_3!F$152 -> 146306 | H159: =MPU_3!H$152 -> 49622 | I159: =MPU_3!I$152 -> 60969 | J159: =MPU_3!J$152 -> 0 | K159: =MPU_3!K$152 -> 0 | M159: 110591 | N159: 0.7558883436 | T159: Mpumalanga | U159: 146591 | V159: 0 | W159: 146591 | Y159: 54402 | Z159: 35771 | AD159: 90173 | AE159: 0.6151332619 | AK159: =AK$17 -> Mpumalanga | AL159: -259 | AM159: 544 | AN159: 285 | AP159: 4780 | AQ159: -25198 | AR159: 0 | AS159: 0 | AU159: -20418
A160: 1 | C160: =C$18 -> Northern Cape | D160: =NC_3!D$152 -> 12931 | E160: 3000 | F160: =NC_3!F$152 -> 15931 | H160: =NC_3!H$152 -> 971 | I160: =NC_3!I$152 -> 1245 | J160: =NC_3!J$152 -> 0 | K160: =NC_3!K$152 -> 0 | M160: 2216 | N160: 0.1390998682 | T160: Northern Cape | U160: 3195 | V160: 0 | W160: 3195 | Y160: 344 | Z160: 804 | AD160: 1148 | AE160: 0.3593114241 | AK160: =AK$18 -> Northern Cape | AL160: -9736 | AM160: -3000 | AN160: -12736 | AP160: -627 | AQ160: -441 | AR160: 0 | AS160: 0 | AU160: -1068
A161: 1 | C161: =C$19 -> North West | D161: =NW_3!D$152 -> 0 | E161: 0 | F161: =NW_3!F$152 -> 0 | H161: =NW_3!H$152 -> 0 | I161: =NW_3!I$152 -> 0 | J161: =NW_3!J$152 -> 0 | K161: =NW_3!K$152 -> 0 | M161: 0 | N161: 0 | T161: North West | U161: 0 | V161: 0 | W161: 0 | Y161: 0 | Z161: 0 | AD161: 0 | AE161: 0 | AK161: =AK$19 -> North West | AL161: 0 | AM161: 0 | AN161: 0 | AP161: 0 | AQ161: 0 | AR161: 0 | AS161: 0 | AU161: 0
A162: 1 | C162: =C$20 -> Western Cape | D162: =WC_3!D$152 -> 0 | E162: 0 | F162: =WC_3!F$152 -> 0 | H162: =WC_3!H$152 -> 0 | I162: =WC_3!I$152 -> 0 | J162: =WC_3!J$152 -> 0 | K162: =WC_3!K$152 -> 0 | M162: 0 | N162: 0 | T162: Western Cape | U162: 0 | V162: 0 | W162: 0 | Y162: 0 | Z162: 0 | AD162: 0 | AE162: 0 | AK162: =AK$20 -> Western Cape | AL162: 0 | AM162: 0 | AN162: 0 | AP162: 0 | AQ162: 0 | AR162: 0 | AS162: 0 | AU162: 0
A163: 0 | C163: =C$21 -> 0 | E163: 0 | M163: 0 | N163: 0 | T163: 0 | V163: 0 | AD163: 0 | AE163: 0 | AK163: =AK$21 -> 0 | AL163: 0 | AM163: 0 | AN163: 0 | AP163: 0 | AQ163: 0 | AR163: 0 | AS163: 0 | AU163: 0
A164: 0 | C164: =C$22 -> 0 | E164: 0 | M164: 0 | N164: 0 | T164: =C164 -> 0 | V164: 0 | AD164: 0 | AE164: 0 | AK164: =AK$22 -> 0 | AL164: 0 | AM164: 0 | AN164: 0 | AP164: 0 | AQ164: 0 | AR164: 0 | AS164: 0 | AU164: 0
A165: 0 | C165: =C$23 -> 0 | E165: =F165-D165 -> 0 | M165: 0 | N165: 0 | T165: 0 | V165: 0 | AD165: 0 | AE165: 0 | AK165: =AK$23 -> 0 | AL165: 0 | AM165: 0 | AN165: 0 | AP165: 0 | AQ165: 0 | AR165: 0 | AS165: 0 | AU165: 0
A166: 0 | C166: =C$24 -> 0 | E166: 0 | M166: 0 | N166: 0 | T166: 0 | V166: 0 | AD166: 0 | AE166: 0 | AK166: =AK$24 -> 0 | AL166: 0 | AM166: 0 | AN166: 0 | AP166: 0 | AQ166: 0 | AR166: 0 | AS166: 0 | AU166: 0
A167: 0 | C167: =C$25 -> 0 | E167: 0 | M167: 0 | N167: 0 | T167: 0 | V167: 0 | AD167: 0 | AE167: 0 | AK167: =AK$25 -> 0 | AL167: 0 | AM167: 0 | AN167: 0 | AP167: 0 | AQ167: 0 | AR167: 0 | AS167: 0 | AU167: 0
A168: 0 | C168: =C$26 -> 0 | E168: 0 | M168: 0 | N168: 0 | T168: 0 | V168: 0 | AD168: 0 | AE168: 0 | AK168: =AK$26 -> 0 | AL168: 0 | AM168: 0 | AN168: 0 | AP168: 0 | AQ168: 0 | AR168: 0 | AS168: 0 | AU168: 0
A169: 0 | C169: =C$27 -> 0 | E169: 0 | M169: 0 | N169: 0 | T169: 0 | V169: 0 | AD169: 0 | AE169: 0 | AK169: =AK$27 -> 0 | AL169: 0 | AM169: 0 | AN169: 0 | AP169: 0 | AQ169: 0 | AR169: 0 | AS169: 0 | AU169: 0
A170: 0 | C170: =C$28 -> 0 | E170: 0 | M170: 0 | N170: 0 | T170: 0 | V170: 0 | AD170: 0 | AE170: 0 | AK170: =AK$28 -> 0 | AL170: 0 | AM170: 0 | AN170: 0 | AP170: 0 | AQ170: 0 | AR170: 0 | AS170: 0 | AU170: 0
A171: 0 | C171: =C$29 -> 0 | E171: 0 | M171: 0 | N171: 0 | T171: 0 | V171: 0 | AD171: 0 | AE171: 0 | AK171: =AK$29 -> 0 | AL171: 0 | AM171: 0 | AN171: 0 | AP171: 0 | AQ171: 0 | AR171: 0 | AS171: 0 | AU171: 0
A172: 0 | C172: =C$30 -> 0 | E172: 0 | M172: 0 | N172: 0 | T172: 0 | V172: 0 | AD172: 0 | AE172: 0 | AK172: =AK$30 -> 0 | AL172: 0 | AM172: 0 | AN172: 0 | AP172: 0 | AQ172: 0 | AR172: 0 | AS172: 0 | AU172: 0
A173: 0 | C173: =C$31 -> 0 | E173: 0 | M173: 0 | N173: 0 | T173: 0 | V173: 0 | AD173: 0 | AE173: 0 | AK173: =AK$31 -> 0 | AL173: 0 | AM173: 0 | AN173: 0 | AP173: 0 | AQ173: 0 | AR173: 0 | AS173: 0 | AU173: 0
A174: 0 | E174: 0 | N174: 0 | T174: 0 | V174: 0 | AK174: =AK$32 -> 0 | AL174: 0 | AM174: 0 | AN174: 0 | AP174: 0 | AQ174: 0 | AR174: 0 | AS174: 0 | AU174: 0
A175: 1 | C175: Non Infrastructure | D175: =SUM(D177:D196) -> 6467278 | E175: 322811 | F175: =SUM(F177:F196) -> 6790089 | H175: =SUM(H177:H196) -> 1373380.691 | I175: 2258392.769 | J175: 0 | K175: 0 | M175: =SUM(M177:M196) -> 3631773.46 | N175: 0.5348638965 | T175: Non Infrastructure | U175: 4883707 | V175: 3613 | W175: 4887320 | Y175: 874440.2173 | Z175: 1080012 | AA175: 0 | AB175: 0 | AD175: 1954452.217 | AE175: 0.4001985003 | AK175: Non Infrastructure | AL175: -1583571 | AM175: -319198 | AN175: -1902769 | AP175: -498940.4737 | AQ175: -1178380.769 | AR175: 0 | AS175: 0 | AU175: -1677321.243
A176: 1 | C176: of which: | T176: of which: | AK176: of which:
A177: =A154 -> 1 | C177: =C$12 -> Eastern Cape | D177: =EC_3!D$175 -> 790917 | E177: 0 | F177: =EC_3!F$175 -> 790917 | H177: =EC_3!H$175 -> 75782 | I177: =EC_3!I$175 -> 482595 | J177: =EC_3!J$175 -> 0 | K177: =EC_3!K$175 -> 0 | M177: =SUM(H177:K177) -> 558377 | N177: =IFERROR(M177/F177,0) -> 0.7059868482 | T177: Eastern Cape | U177: 495431 | V177: 0 | W177: 495431 | Y177: 55543 | Z177: 74082 | AD177: 129625 | AE177: 0.2616408743 | AK177: =AK$12 -> Eastern Cape | AL177: =IFERROR(U177-D177,0) -> -295486 | AM177: =IFERROR(V177-E177,0) -> 0 | AN177: =IFERROR(W177-F177,0) -> -295486 | AP177: =IFERROR(Y177-H177,0) -> -20239 | AQ177: =IFERROR(Z177-I177,0) -> -408513 | AR177: =IFERROR(AA177-J177,0) -> 0 | AS177: =IFERROR(AB177-K177,0) -> 0 | AU177: =IFERROR(AD177-M177,0) -> -428752
A178: =A155 -> 1 | C178: =C$13 -> Free State | D178: =FS_3!D$175 -> 431809 | E178: -25134 | F178: =FS_3!F$175 -> 406675 | H178: =FS_3!H$175 -> 58643 | I178: =FS_3!I$175 -> 114449 | J178: =FS_3!J$175 -> 0 | K178: =FS_3!K$175 -> 0 | M178: =SUM(H178:K178) -> 173092 | N178: 0.4256273437 | T178: Free State | U178: 219381 | V178: 3613 | W178: 222994 | Y178: 18228 | Z178: 11965 | AD178: 30193 | AE178: 0.1376281446 | AK178: =AK$13 -> Free State | AL178: -212428 | AM178: 28747 | AN178: -183681 | AP178: -40415 | AQ178: -102484 | AR178: 0 | AS178: 0 | AU178: -142899
A179: 1 | C179: =C$14 -> Gauteng | D179: =GT_3!D$175 -> 493571 | E179: -144322 | F179: =GT_3!F$175 -> 349249 | H179: =GT_3!H$175 -> 67127 | I179: =GT_3!I$175 -> 36357 | J179: =GT_3!J$175 -> 0 | K179: =GT_3!K$175 -> 0 | M179: 103484 | N179: 0.2963043559 | T179: Gauteng | U179: 601086 | V179: 0 | W179: 601086 | Y179: 56754 | Z179: 62967 | AD179: 119721 | AE179: 0.1991744942 | AK179: =AK$14 -> Gauteng | AL179: 107515 | AM179: 144322 | AN179: 251837 | AP179: -10373 | AQ179: 26610 | AR179: 0 | AS179: 0 | AU179: 16237
A180: 1 | C180: =C$15 -> KwaZulu-Natal | D180: =KZN_3!D$175 -> 2324692 | E180: -289149 | F180: =KZN_3!F$175 -> 2035543 | H180: =KZN_3!H$175 -> 401326 | I180: =KZN_3!I$175 -> 646623 | J180: =KZN_3!J$175 -> 0 | K180: =KZN_3!K$175 -> 0 | M180: 1047949 | N180: 0.5148252825 | T180: KwaZulu-Natal | U180: 2469018 | V180: 0 | W180: 2469018 | Y180: 521817 | Z180: 574510 | AD180: 1096327 | AE180: 0.4440336198 | AK180: =AK$15 -> KwaZulu-Natal | AL180: 144326 | AM180: 289149 | AN180: 433475 | AP180: 120491 | AQ180: -72113 | AR180: 0 | AS180: 0 | AU180: 48378
A181: 1 | C181: =C$16 -> Limpopo | D181: =LIM_3!D$175 -> 1555713 | E181: 0 | F181: =LIM_3!F$175 -> 1555713 | H181: =LIM_3!H$175 -> 310365.691 | I181: =LIM_3!I$175 -> 318373.769 | J181: =LIM_3!J$175 -> 0 | K181: =LIM_3!K$175 -> 0 | M181: 628739.46 | N181: 0.4041487472 | T181: Limpopo | U181: 88194 | V181: 0 | W181: 88194 | Y181: 18383.76081 | Z181: 24489 | AD181: 42872.76081 | AE181: 0.4861187928 | AK181: =AK$16 -> Limpopo | AL181: -1467519 | AM181: 0 | AN181: -1467519 | AP181: -291981.9302 | AQ181: -293884.769 | AR181: 0 | AS181: 0 | AU181: -585866.6992
A182: 1 | C182: =C$17 -> Mpumalanga | D182: =MPU_3!D$175 -> 181818 | E182: 117451 | F182: =MPU_3!F$175 -> 299269 | H182: =MPU_3!H$175 -> 58767 | I182: =MPU_3!I$175 -> 77635 | J182: =MPU_3!J$175 -> 0 | K182: =MPU_3!K$175 -> 0 | M182: 136402 | N182: 0.4557839268 | T182: Mpumalanga | U182: 125165 | V182: 0 | W182: 125165 | Y182: 77027 | Z182: 84651 | AD182: 161678 | AE182: 1.291718931 | AK182: =AK$17 -> Mpumalanga | AL182: -56653 | AM182: -117451 | AN182: -174104 | AP182: 18260 | AQ182: 7016 | AR182: 0 | AS182: 0 | AU182: 25276
A183: 1 | C183: =C$18 -> Northern Cape | D183: =NC_3!D$175 -> 92212 | E183: 143505 | F183: =NC_3!F$175 -> 235717 | H183: =NC_3!H$175 -> 101981 | I183: =NC_3!I$175 -> 98050 | J183: =NC_3!J$175 -> 0 | K183: =NC_3!K$175 -> 0 | M183: 200031 | N183: 0.8486065918 | T183: Northern Cape | U183: 110236 | V183: 0 | W183: 110236 | Y183: 36455 | Z183: 36574 | AD183: 73029 | AE183: 0.6624786821 | AK183: =AK$18 -> Northern Cape | AL183: 18024 | AM183: -143505 | AN183: -125481 | AP183: -65526 | AQ183: -61476 | AR183: 0 | AS183: 0 | AU183: -127002
A184: 1 | C184: =C$19 -> North West | D184: =NW_3!D$175 -> 162076 | E184: 274451 | F184: =NW_3!F$175 -> 436527 | H184: =NW_3!H$175 -> 24259 | I184: =NW_3!I$175 -> 52189 | J184: =NW_3!J$175 -> 0 | K184: =NW_3!K$175 -> 0 | M184: 76448 | N184: 0.1751277699 | T184: North West | U184: 98548 | V184: 0 | W184: 98548 | Y184: 8607.45651 | Z184: 11682 | AD184: 20289.45651 | AE184: 0.2058840008 | AK184: =AK$19 -> North West | AL184: -63528 | AM184: -274451 | AN184: -337979 | AP184: -15651.54349 | AQ184: -40507 | AR184: 0 | AS184: 0 | AU184: -56158.54349
A185: 1 | C185: =C$20 -> Western Cape | D185: =WC_3!D$175 -> 434470 | E185: 246009 | F185: =WC_3!F$175 -> 680479 | H185: =WC_3!H$175 -> 275130 | I185: =WC_3!I$175 -> 432121 | J185: =WC_3!J$175 -> 0 | K185: =WC_3!K$175 -> 0 | M185: 707251 | N185: 1.039342875 | T185: Western Cape | U185: 676648 | V185: 0 | W185: 676648 | Y185: 81625 | Z185: 199092 | AD185: 280717 | AE185: 0.4148641539 | AK185: =AK$20 -> Western Cape | AL185: 242178 | AM185: -246009 | AN185: -3831 | AP185: -193505 | AQ185: -233029 | AR185: 0 | AS185: 0 | AU185: -426534
A186: 0 | C186: =C$21 -> 0 | E186: 0 | M186: 0 | N186: 0 | T186: 0 | V186: 0 | AD186: 0 | AE186: 0 | AK186: =AK$21 -> 0 | AL186: 0 | AM186: 0 | AN186: 0 | AP186: 0 | AQ186: 0 | AR186: 0 | AS186: 0 | AU186: 0
A187: 0 | C187: =C$22 -> 0 | E187: 0 | M187: 0 | N187: 0 | T187: 0 | V187: 0 | AD187: 0 | AE187: 0 | AK187: =AK$22 -> 0 | AL187: 0 | AM187: 0 | AN187: 0 | AP187: 0 | AQ187: 0 | AR187: 0 | AS187: 0 | AU187: 0
A188: 0 | C188: =C$23 -> 0 | E188: 0 | M188: 0 | N188: 0 | T188: 0 | V188: 0 | AD188: 0 | AE188: 0 | AK188: =AK$23 -> 0 | AL188: 0 | AM188: 0 | AN188: 0 | AP188: 0 | AQ188: 0 | AR188: 0 | AS188: 0 | AU188: 0
A189: 0 | C189: =C$24 -> 0 | E189: 0 | M189: 0 | N189: 0 | T189: 0 | V189: 0 | AD189: 0 | AE189: 0 | AK189: =AK$24 -> 0 | AL189: 0 | AM189: 0 | AN189: 0 | AP189: 0 | AQ189: 0 | AR189: 0 | AS189: 0 | AU189: 0
A190: 0 | C190: =C$25 -> 0 | E190: 0 | M190: 0 | N190: 0 | T190: 0 | V190: 0 | AD190: 0 | AE190: 0 | AK190: =AK$25 -> 0 | AL190: 0 | AM190: 0 | AN190: 0 | AP190: 0 | AQ190: 0 | AR190: 0 | AS190: 0 | AU190: 0
A191: 0 | C191: =C$26 -> 0 | E191: 0 | M191: 0 | N191: 0 | T191: 0 | V191: 0 | AD191: 0 | AE191: 0 | AK191: =AK$26 -> 0 | AL191: 0 | AM191: 0 | AN191: 0 | AP191: 0 | AQ191: 0 | AR191: 0 | AS191: 0 | AU191: 0
A192: 0 | C192: =C$27 -> 0 | E192: 0 | M192: 0 | N192: 0 | T192: 0 | V192: 0 | AD192: 0 | AE192: 0 | AK192: =AK$27 -> 0 | AL192: 0 | AM192: 0 | AN192: 0 | AP192: 0 | AQ192: 0 | AR192: 0 | AS192: 0 | AU192: 0
A193: 0 | C193: =C$28 -> 0 | E193: 0 | M193: 0 | N193: 0 | T193: 0 | V193: 0 | AD193: 0 | AE193: 0 | AK193: =AK$28 -> 0 | AL193: 0 | AM193: 0 | AN193: 0 | AP193: 0 | AQ193: 0 | AR193: 0 | AS193: 0 | AU193: 0
A194: 0 | C194: =C$29 -> 0 | E194: 0 | M194: 0 | N194: 0 | T194: 0 | V194: 0 | AD194: 0 | AE194: 0 | AK194: =AK$29 -> 0 | AL194: 0 | AM194: 0 | AN194: 0 | AP194: 0 | AQ194: 0 | AR194: 0 | AS194: 0 | AU194: 0
A195: 0 | C195: =C$30 -> 0 | E195: 0 | M195: 0 | N195: 0 | T195: 0 | V195: 0 | AD195: 0 | AE195: 0 | AK195: =AK$30 -> 0 | AL195: 0 | AM195: 0 | AN195: 0 | AP195: 0 | AQ195: 0 | AR195: 0 | AS195: 0 | AU195: 0
A196: 0 | C196: =C$31 -> 0 | E196: 0 | M196: 0 | N196: 0 | T196: 0 | V196: 0 | AD196: 0 | AE196: 0 | AK196: =AK$31 -> 0 | AL196: 0 | AM196: 0 | AN196: 0 | AP196: 0 | AQ196: 0 | AR196: 0 | AS196: 0 | AU196: 0
A197: 0 | E197: 0 | N197: 0 | T197: 0 | V197: 0 | AK197: =AK$32 -> 0 | AL197: 0 | AM197: 0 | AN197: 0 | AP197: 0 | AQ197: 0 | AR197: 0 | AS197: 0 | AU197: 0
A198: 1 | C198: Infrastructure: Payments for financial assets | D198: =EC_3!D198+FS_3!D198+GT_3!D198+KZN_3!D198+LIM_3!D198+MPU_3!D198+NC_3!D198+NW_3!D198+WC_3!D198 -> 0 | E198: 0 | F198: =EC_3!F198+FS_3!F198+GT_3!F198+KZN_3!F198+LIM_3!F198+MPU_3!F198+NC_3!F198+NW_3!F198+WC_3!F198 -> 0 | H198: =EC_3!H198+FS_3!H198+GT_3!H198+KZN_3!H198+LIM_3!H198+MPU_3!H198+NC_3!H198+NW_3!H198+WC_3!H198 -> 0 | I198: =EC_3!I198+FS_3!I198+GT_3!I198+KZN_3!I198+LIM_3!I198+MPU_3!I198+NC_3!I198+NW_3!I198+WC_3!I198 -> 0 | J198: =EC_3!J198+FS_3!J198+GT_3!J198+KZN_3!J198+LIM_3!J198+MPU_3!J198+NC_3!J198+NW_3!J198+WC_3!J198 -> 0 | K198: =EC_3!K198+FS_3!K198+GT_3!K198+KZN_3!K198+LIM_3!K198+MPU_3!K198+NC_3!K198+NW_3!K198+WC_3!K198 -> 0 | M198: =SUM(H198:K198) -> 0 | N198: 0 | T198: Infrastructure: Payments for financial assets | U198: 0 | V198: 0 | W198: 0 | Y198: 0 | Z198: 0 | AA198: 0 | AB198: 0 | AD198: 0 | AE198: 0 | AK198: Infrastructure: Payments for financial assets | AL198: 0 | AM198: 0 | AN198: 0 | AP198: 0 | AQ198: 0 | AR198: 0 | AS198: 0 | AU198: 0
A199: 1
A200: 1 | C200: Total infrastructure | D200: =D36+D106+D129+D152+D175+D198 -> 67347995.24 | E200: =E36+E106+E129+E152+E175+E198 -> -2299189 | F200: 65048806.24 | H200: =H36+H106+H129+H152+H175+H198 -> 7785518.804 | I200: =IF(General!$BE$1>1,I36+I106+I129+I152+I175+I198,"") -> 16193707.14 | J200: =IF(General!$BE$1>2,J36+J106+J129+J152+J175+J198,"") -> 0 | K200: =IF(General!$BE$1=4,K36+K106+K129+K152+K175+K198,"") -> 0 | M200: =M36+M106+M129+M152+M175+M198 -> 23979225.95 | N200: =IFERROR(M200/F200,0) -> 0.3686343736 | T200: Total infrastructure | U200: 66442043 | V200: 108026 | W200: 66550069 | Y200: 11599421.18 | Z200: 14563713.35 | AD200: 26163134.53 | AE200: 0.3937737817 | AK200: Total infrastructure | AL200: =AL36+AL106+AL129+AL198+AL152+AL175 -> -905952.241 | AM200: =AM36+AM106+AM129+AM198+AM152+AM175 -> 2407215 | AN200: =AN36+AN106+AN129+AN198+AN152+AN175 -> 1501262.759 | AP200: =AP36+AP106+AP129+AP198+AP152+AP175 -> 3813902.378 | AQ200: =AQ36+AQ106+AQ129+AQ198+AQ152+AQ175 -> -1629993.788 | AR200: 0 | AS200: 0 | AU200: =AU36+AU106+AU129+AU198+AU152+AU175 -> 2183908.589
A201: 1
A202: 1 | C202: =Overview!C68 -> Information submitted by provinces | T202: Information submitted by: Mr Daluhlanga Majeke Head Official: Provincial Treasury Eastern Cape Tel No: (040) 609-5612
A203: 1
... 8 more rows

Sheet Infrastructure2 (hidden)
C3: ="PROVINCIAL INFRASTRUCTURE PROJECT STATUS REPORT BY PROVINCES FOR THE " & QUARTER -> PROVINCIAL INFRASTRUCTURE PROJECT STATUS REPORT BY PROVINCES FOR THE FOURTH QUARTER ENDED 31 MARCH 2022 | Q3: ="NATIONAL TREASURY: " & C3 -> NATIONAL TREASURY: PROVINCIAL INFRASTRUCTURE PROJECT STATUS REPORT BY PROVINCES FOR THE FOURTH QUARTER ENDED 31 MARCH 2022 | AE3: ="VARIANCE FROM NATIONAL TREASURY: " & C3 -> VARIANCE FROM NATIONAL TREASURY: PROVINCIAL INFRASTRUCTURE PROJECT STATUS REPORT BY PROVINCES FOR THE FOURTH QUARTER ENDED 31 MARCH 2022
C4: =UPPER(Prov) & " PROVINCE" -> ALL PROVINCES PROVINCE | Q4: =C4 -> ALL PROVINCES PROVINCE | AE4: =C4 -> ALL PROVINCES PROVINCE
C6: Details | E6: =Overview!D6 -> 2021/22 | Q6: Details | AE6: Details
E7: Project Status Report by Quarter | J7: Project Status to Date | S7: Project Status Report by Quarter | X7: Project Status to Date | AG7: Project Status Report by Quarter | AL7: Project Status to Date
E8: First Quarter | F8: Second Quarter | G8: Third Quarter | H8: Fourth Quarter | J8: Project Progress | K8: Project Progress as a % of total number of projects | S8: First Quarter | T8: Second Quarter | U8: Third Quarter | V8: Fourth Quarter | X8: Project Progress | Y8: Project Progress as a % of total number of projects | AG8: First Quarter | AH8: Second Quarter | AI8: Third Quarter | AJ8: Fourth Quarter | AL8: Project Progress | AM8: Project Progress as a % of total number of projects
A9: Filter | C9: Non-Finacial Information1. | K9: % | Q9: Non-Finacial Information1. | Y9: % | AE9: Non-Finacial Information1. | AM9: %
A10: 1
A11: 1 | C11: Projects by Project Status | Q11: Projects by provincial departments | AE11: =C11 -> Projects by Project Status
A12: =IF(LEN(C12)>3,1,0) -> 1 | C12: Planning | E12: =IF(General!$BE$1<1,"",INDEX($E$35:$E$287,MATCH($C12,$C$35:$C$287,0),1)) -> 4439 | F12: =IF(General!$BE$1<2,"",INDEX($F$35:$F$287,MATCH($C12,$C$35:$C$287,0),1)) -> 4296 | G12: =IF(General!$BE$1<3,"",INDEX($G$35:$G$287,MATCH($C12,$C$35:$C$287,0),1)) -> 0 | H12: =IF(General!$BE$1<4,"",INDEX($H$35:$H$287,MATCH($C12,$C$35:$C$287,0),1)) -> 0 | J12: =IFERROR(SUMIF($C$36:$C$287,$C12,$J$36:$J$287),0) -> 0 | K12: =IFERROR(J12/$J$33,0) -> 0 | Q12: =C12 -> Planning | S12: 3451 | T12: 3132 | X12: 3132 | Y12: 0.2895442359 | AE12: =C12 -> Planning | AG12: =IFERROR(S12-E12,0) -> -988 | AH12: =IFERROR(T12-F12,0) -> -1164 | AI12: =IFERROR(U12-G12,0) -> 0 | AJ12: =IFERROR(V12-H12,0) -> 0 | AL12: =IFERROR(X12-J12,0) -> 3132
A13: =IF(LEN(C13)>3,1,0) -> 1 | C13: =C59 -> Tender | E13: =IF(General!$BE$1<1,"",INDEX($E$35:$E$287,MATCH($C13,$C$35:$C$287,0),1)) -> 1402 | F13: =IF(General!$BE$1<2,"",INDEX($F$35:$F$287,MATCH($C13,$C$35:$C$287,0),1)) -> 1270 | G13: =IF(General!$BE$1<3,"",INDEX($G$35:$G$287,MATCH($C13,$C$35:$C$287,0),1)) -> 0 | H13: =IF(General!$BE$1<4,"",INDEX($H$35:$H$287,MATCH($C13,$C$35:$C$287,0),1)) -> 0 | J13: =IFERROR(SUMIF($C$36:$C$287,$C13,$J$36:$J$287),0) -> 0 | K13: =IFERROR(J13/$J$33,0) -> 0 | Q13: Tender | S13: 1272 | T13: 1436 | X13: 1436 | Y13: 0.1327539983 | AE13: Tender | AG13: -130 | AH13: 166 | AI13: 0 | AJ13: 0 | AL13: 1436
A14: 1 | C14: Site Handed Over to Contractor | E14: =IF(General!$BE$1<1,"",INDEX($E$35:$E$287,MATCH($C14,$C$35:$C$287,0),1)) -> 233 | F14: =IF(General!$BE$1<2,"",INDEX($F$35:$F$287,MATCH($C14,$C$35:$C$287,0),1)) -> 549 | G14: =IF(General!$BE$1<3,"",INDEX($G$35:$G$287,MATCH($C14,$C$35:$C$287,0),1)) -> 0 | H14: =IF(General!$BE$1<4,"",INDEX($H$35:$H$287,MATCH($C14,$C$35:$C$287,0),1)) -> 0 | J14: 0 | K14: 0 | Q14: Site Handed Over to Contractor | S14: 157 | T14: 167 | X14: 167 | Y14: 0.01543866137 | AE14: Site Handed Over to Contractor | AG14: -76 | AH14: -382 | AI14: 0 | AJ14: 0 | AL14: 167
A15: 1 | C15: Construction | E15: =IF(General!$BE$1<1,"",INDEX($E$35:$E$287,MATCH($C15,$C$35:$C$287,0),1)) -> 4349 | F15: =IF(General!$BE$1<2,"",INDEX($F$35:$F$287,MATCH($C15,$C$35:$C$287,0),1)) -> 5085 | G15: =IF(General!$BE$1<3,"",INDEX($G$35:$G$287,MATCH($C15,$C$35:$C$287,0),1)) -> 0 | H15: =IF(General!$BE$1<4,"",INDEX($H$35:$H$287,MATCH($C15,$C$35:$C$287,0),1)) -> 0 | J15: 0 | K15: 0 | Q15: Construction | S15: 3608 | T15: 3902 | X15: 3902 | Y15: 0.3607284829 | AE15: Construction | AG15: -741 | AH15: -1183 | AI15: 0 | AJ15: 0 | AL15: 3902
A16: 1 | C16: Practical Completion (100%) | E16: =IF(General!$BE$1<1,"",INDEX($E$35:$E$287,MATCH($C16,$C$35:$C$287,0),1)) -> 1479 | F16: =IF(General!$BE$1<2,"",INDEX($F$35:$F$287,MATCH($C16,$C$35:$C$287,0),1)) -> 1719 | G16: =IF(General!$BE$1<3,"",INDEX($G$35:$G$287,MATCH($C16,$C$35:$C$287,0),1)) -> 0 | H16: =IF(General!$BE$1<4,"",INDEX($H$35:$H$287,MATCH($C16,$C$35:$C$287,0),1)) -> 0 | J16: 0 | K16: 0 | Q16: Practical Completion (100%) | S16: 1031 | T16: 1148 | X16: 1148 | Y16: 0.106129241 | AE16: Practical Completion (100%) | AG16: -448 | AH16: -571 | AI16: 0 | AJ16: 0 | AL16: 1148
A17: 1 | C17: Final Completion | E17: =IF(General!$BE$1<1,"",INDEX($E$35:$E$287,MATCH($C17,$C$35:$C$287,0),1)) -> 218 | F17: =IF(General!$BE$1<2,"",INDEX($F$35:$F$287,MATCH($C17,$C$35:$C$287,0),1)) -> 247 | G17: =IF(General!$BE$1<3,"",INDEX($G$35:$G$287,MATCH($C17,$C$35:$C$287,0),1)) -> 0 | H17: =IF(General!$BE$1<4,"",INDEX($H$35:$H$287,MATCH($C17,$C$35:$C$287,0),1)) -> 0 | J17: 0 | K17: 0 | Q17: Final Completion | S17: 102 | T17: 144 | X17: 144 | Y17: 0.01331237866 | AE17: Final Completion | AG17: -116 | AH17: -103 | AI17: 0 | AJ17: 0 | AL17: 144
A18: 1 | C18: On Hold | E18: =IF(General!$BE$1<1,"",INDEX($E$35:$E$287,MATCH($C18,$C$35:$C$287,0),1)) -> 80 | F18: =IF(General!$BE$1<2,"",INDEX($F$35:$F$287,MATCH($C18,$C$35:$C$287,0),1)) -> 129 | G18: =IF(General!$BE$1<3,"",INDEX($G$35:$G$287,MATCH($C18,$C$35:$C$287,0),1)) -> 0 | H18: =IF(General!$BE$1<4,"",INDEX($H$35:$H$287,MATCH($C18,$C$35:$C$287,0),1)) -> 0 | J18: 0 | K18: 0 | Q18: On Hold | S18: 35 | T18: 45 | X18: 45 | Y18: 0.004160118332 | AE18: On Hold | AG18: -45 | AH18: -84 | AI18: 0 | AJ18: 0 | AL18: 45
A19: 1 | C19: Terminated | E19: =IF(General!$BE$1<1,"",INDEX($E$35:$E$287,MATCH($C19,$C$35:$C$287,0),1)) -> 6 | F19: =IF(General!$BE$1<2,"",INDEX($F$35:$F$287,MATCH($C19,$C$35:$C$287,0),1)) -> 8 | G19: =IF(General!$BE$1<3,"",INDEX($G$35:$G$287,MATCH($C19,$C$35:$C$287,0),1)) -> 0 | H19: =IF(General!$BE$1<4,"",INDEX($H$35:$H$287,MATCH($C19,$C$35:$C$287,0),1)) -> 0 | J19: 0 | K19: 0 | Q19: Terminated | S19: 2 | T19: 6 | X19: 6 | Y19: 0.0005546824443 | AE19: Terminated | AG19: -4 | AH19: -2 | AI19: 0 | AJ19: 0 | AL19: 6
A20: 1 | C20: Other - Compensation of employees | E20: =IF(General!$BE$1<1,"",INDEX($E$35:$E$287,MATCH($C20,$C$35:$C$287,0),1)) -> 37 | F20: =IF(General!$BE$1<2,"",INDEX($F$35:$F$287,MATCH($C20,$C$35:$C$287,0),1)) -> 44 | G20: =IF(General!$BE$1<3,"",INDEX($G$35:$G$287,MATCH($C20,$C$35:$C$287,0),1)) -> 0 | H20: =IF(General!$BE$1<4,"",INDEX($H$35:$H$287,MATCH($C20,$C$35:$C$287,0),1)) -> 0 | J20: 0 | K20: 0 | Q20: Other - Compensation of employees | S20: 45 | T20: 45 | X20: 45 | Y20: 0.004160118332 | AE20: Other - Compensation of employees | AG20: 8 | AH20: 1 | AI20: 0 | AJ20: 0 | AL20: 45
A21: 1 | C21: Other - Packaged Ongoing Project | E21: =IF(General!$BE$1<1,"",INDEX($E$35:$E$287,MATCH($C21,$C$35:$C$287,0),1)) -> 795 | F21: =IF(General!$BE$1<2,"",INDEX($F$35:$F$287,MATCH($C21,$C$35:$C$287,0),1)) -> 889 | G21: =IF(General!$BE$1<3,"",INDEX($G$35:$G$287,MATCH($C21,$C$35:$C$287,0),1)) -> 0 | H21: =IF(General!$BE$1<4,"",INDEX($H$35:$H$287,MATCH($C21,$C$35:$C$287,0),1)) -> 0 | J21: 0 | K21: 0 | Q21: Other - Packaged Ongoing Project | S21: 782 | T21: 792 | X21: 792 | Y21: 0.07321808265 | AE21: Other - Packaged Ongoing Project | AG21: -13 | AH21: -97 | AI21: 0 | AJ21: 0 | AL21: 792
A22: 1 | C22: Project Status Not Captured | E22: =IF(General!$BE$1<1,"",INDEX($E$35:$E$287,MATCH($C22,$C$35:$C$287,0),1)) -> 0 | F22: =IF(General!$BE$1<2,"",INDEX($F$35:$F$287,MATCH($C22,$C$35:$C$287,0),1)) -> 0 | G22: =IF(General!$BE$1<3,"",INDEX($G$35:$G$287,MATCH($C22,$C$35:$C$287,0),1)) -> 0 | H22: =IF(General!$BE$1<4,"",INDEX($H$35:$H$287,MATCH($C22,$C$35:$C$287,0),1)) -> 0 | J22: 0 | K22: 0 | Q22: Project Status Not Captured | S22: 0 | T22: 0 | X22: 0 | Y22: 0 | AE22: Project Status Not Captured | AG22: 0 | AH22: 0 | AI22: 0 | AJ22: 0 | AL22: 0
A23: 0 | E23: =IF(General!$BE$1<1,"",INDEX($E$35:$E$287,MATCH($C23,$C$35:$C$287,0),1)) -> 0 | F23: =IF(General!$BE$1<2,"",INDEX($F$35:$F$287,MATCH($C23,$C$35:$C$287,0),1)) -> 0 | G23: =IF(General!$BE$1<3,"",INDEX($G$35:$G$287,MATCH($C23,$C$35:$C$287,0),1)) -> 0 | H23: =IF(General!$BE$1<4,"",INDEX($H$35:$H$287,MATCH($C23,$C$35:$C$287,0),1)) -> 0 | J23: 0 | K23: 0 | Q23: 0 | S23: 0 | T23: 0 | X23: 0 | Y23: 0 | AE23: 0 | AG23: 0 | AH23: 0 | AI23: 0 | AJ23: 0 | AL23: 0
A24: 0 | E24: =IF(General!$BE$1<1,"",INDEX($E$35:$E$287,MATCH($C24,$C$35:$C$287,0),1)) -> 0 | F24: =IF(General!$BE$1<2,"",INDEX($F$35:$F$287,MATCH($C24,$C$35:$C$287,0),1)) -> 0 | G24: =IF(General!$BE$1<3,"",INDEX($G$35:$G$287,MATCH($C24,$C$35:$C$287,0),1)) -> 0 | H24: =IF(General!$BE$1<4,"",INDEX($H$35:$H$287,MATCH($C24,$C$35:$C$287,0),1)) -> 0 | J24: 0 | K24: 0 | Q24: 0 | S24: 0 | T24: 0 | X24: 0 | Y24: 0 | AE24: 0 | AG24: 0 | AH24: 0 | AI24: 0 | AJ24: 0 | AL24: 0
A25: 0 | E25: =IF(General!$BE$1<1,"",INDEX($E$35:$E$287,MATCH($C25,$C$35:$C$287,0),1)) -> 0 | F25: =IF(General!$BE$1<2,"",INDEX($F$35:$F$287,MATCH($C25,$C$35:$C$287,0),1)) -> 0 | G25: =IF(General!$BE$1<3,"",INDEX($G$35:$G$287,MATCH($C25,$C$35:$C$287,0),1)) -> 0 | H25: =IF(General!$BE$1<4,"",INDEX($H$35:$H$287,MATCH($C25,$C$35:$C$287,0),1)) -> 0 | J25: 0 | K25: 0 | Q25: 0 | S25: 0 | T25: 0 | X25: 0 | Y25: 0 | AE25: 0 | AG25: 0 | AH25: 0 | AI25: 0 | AJ25: 0 | AL25: 0
A26: 0 | E26: =IF(General!$BE$1<1,"",INDEX($E$35:$E$287,MATCH($C26,$C$35:$C$287,0),1)) -> 0 | F26: =IF(General!$BE$1<2,"",INDEX($F$35:$F$287,MATCH($C26,$C$35:$C$287,0),1)) -> 0 | G26: =IF(General!$BE$1<3,"",INDEX($G$35:$G$287,MATCH($C26,$C$35:$C$287,0),1)) -> 0 | H26: =IF(General!$BE$1<4,"",INDEX($H$35:$H$287,MATCH($C26,$C$35:$C$287,0),1)) -> 0 | J26: 0 | K26: 0 | Q26: 0 | S26: 0 | T26: 0 | X26: 0 | Y26: 0 | AE26: 0 | AG26: 0 | AH26: 0 | AI26: 0 | AJ26: 0 | AL26: 0
A27: 0 | E27: =IF(General!$BE$1<1,"",INDEX($E$35:$E$287,MATCH($C27,$C$35:$C$287,0),1)) -> 0 | F27: =IF(General!$BE$1<2,"",INDEX($F$35:$F$287,MATCH($C27,$C$35:$C$287,0),1)) -> 0 | G27: =IF(General!$BE$1<3,"",INDEX($G$35:$G$287,MATCH($C27,$C$35:$C$287,0),1)) -> 0 | H27: =IF(General!$BE$1<4,"",INDEX($H$35:$H$287,MATCH($C27,$C$35:$C$287,0),1)) -> 0 | J27: 0 | K27: 0 | Q27: 0 | S27: 0 | T27: 0 | X27: 0 | Y27: 0 | AE27: 0 | AG27: 0 | AH27: 0 | AI27: 0 | AJ27: 0 | AL27: 0
A28: 0 | E28: =IF(General!$BE$1<1,"",INDEX($E$35:$E$287,MATCH($C28,$C$35:$C$287,0),1)) -> 0 | F28: =IF(General!$BE$1<2,"",INDEX($F$35:$F$287,MATCH($C28,$C$35:$C$287,0),1)) -> 0 | G28: =IF(General!$BE$1<3,"",INDEX($G$35:$G$287,MATCH($C28,$C$35:$C$287,0),1)) -> 0 | H28: =IF(General!$BE$1<4,"",INDEX($H$35:$H$287,MATCH($C28,$C$35:$C$287,0),1)) -> 0 | J28: 0 | K28: 0 | Q28: 0 | S28: 0 | T28: 0 | X28: 0 | Y28: 0 | AE28: 0 | AG28: 0 | AH28: 0 | AI28: 0 | AJ28: 0 | AL28: 0
A29: 0 | E29: =IF(General!$BE$1<1,"",INDEX($E$35:$E$287,MATCH($C29,$C$35:$C$287,0),1)) -> 0 | F29: =IF(General!$BE$1<2,"",INDEX($F$35:$F$287,MATCH($C29,$C$35:$C$287,0),1)) -> 0 | G29: =IF(General!$BE$1<3,"",INDEX($G$35:$G$287,MATCH($C29,$C$35:$C$287,0),1)) -> 0 | H29: =IF(General!$BE$1<4,"",INDEX($H$35:$H$287,MATCH($C29,$C$35:$C$287,0),1)) -> 0 | J29: 0 | K29: 0 | Q29: 0 | S29: 0 | T29: 0 | X29: 0 | Y29: 0 | AE29: 0 | AG29: 0 | AH29: 0 | AI29: 0 | AJ29: 0 | AL29: 0
A30: 0 | E30: =IF(General!$BE$1<1,"",INDEX($E$35:$E$287,MATCH($C30,$C$35:$C$287,0),1)) -> 0 | F30: =IF(General!$BE$1<2,"",INDEX($F$35:$F$287,MATCH($C30,$C$35:$C$287,0),1)) -> 0 | G30: =IF(General!$BE$1<3,"",INDEX($G$35:$G$287,MATCH($C30,$C$35:$C$287,0),1)) -> 0 | H30: =IF(General!$BE$1<4,"",INDEX($H$35:$H$287,MATCH($C30,$C$35:$C$287,0),1)) -> 0 | J30: 0 | K30: 0 | Q30: 0 | S30: 0 | T30: 0 | X30: 0 | Y30: 0 | AE30: 0 | AG30: 0 | AH30: 0 | AI30: 0 | AJ30: 0 | AL30: 0
A31: 0 | E31: =IF(General!$BE$1<1,"",INDEX($E$35:$E$287,MATCH($C31,$C$35:$C$287,0),1)) -> 0 | F31: =IF(General!$BE$1<2,"",INDEX($F$35:$F$287,MATCH($C31,$C$35:$C$287,0),1)) -> 0 | G31: =IF(General!$BE$1<3,"",INDEX($G$35:$G$287,MATCH($C31,$C$35:$C$287,0),1)) -> 0 | H31: =IF(General!$BE$1<4,"",INDEX($H$35:$H$287,MATCH($C31,$C$35:$C$287,0),1)) -> 0 | J31: 0 | K31: 0 | Q31: 0 | S31: 0 | T31: 0 | X31: 0 | Y31: 0 | AE31: 0 | AG31: 0 | AH31: 0 | AI31: 0 | AJ31: 0 | AL31: 0
A32: 1
A33: 1 | C33: Total infrastructure | E33: =SUM(E12:E31) -> 13038 | F33: =IF(General!$BE$1>1,SUM(F12:F31),"") -> 14236 | G33: =IF(General!$BE$1>2,SUM(G12:G31),"") -> 0 | H33: =IF(General!$BE$1=4,SUM(H12:H31),"") -> 0 | J33: =SUM(J12:J31) -> 0 | K33: =IFERROR(J33/$J$33,0) -> 0 | Q33: Total infrastructure | S33: 10485 | T33: 10817 | X33: 10817 | Y33: 1 | AE33: Total infrastructure | AG33: =SUM(AG12:AG31) -> -2553 | AH33: =SUM(AH12:AH31) -> -3419 | AI33: 0 | AJ33: 0 | AL33: =SUM(AL12:AL31) -> 10817
A34: 1
A35: 1 | C35: Projects by Project Status | Q35: Projects by Project Status | AE35: Projects by Project Status
A36: 1 | C36: Planning | E36: =EC_4!E36+FS_4!E36+GT_4!E36+KZN_4!E36+LIM_4!E36+MPU_4!E36+NC_4!E36+NW_4!E36+WC_4!E36 -> 4439 | F36: =EC_4!F36+FS_4!F36+GT_4!F36+KZN_4!F36+LIM_4!F36+MPU_4!F36+NC_4!F36+NW_4!F36+WC_4!F36 -> 4296 | G36: =EC_4!G36+FS_4!G36+GT_4!G36+KZN_4!G36+LIM_4!G36+MPU_4!G36+NC_4!G36+NW_4!G36+WC_4!G36 -> 0 | H36: =EC_4!H36+FS_4!H36+GT_4!H36+KZN_4!H36+LIM_4!H36+MPU_4!H36+NC_4!H36+NW_4!H36+WC_4!H36 -> 0 | J36: =OFFSET($D36,0,Settings!$T$6) -> 0 | K36: =IFERROR(J36/$J$33,0) -> 0 | Q36: =C36 -> Planning | S36: 3451 | T36: 3132 | U36: 0 | V36: 0 | X36: 3132 | Y36: 0.2895442359 | AE36: =C36 -> Planning | AF36: =SUM(AF37:AF82) -> 0 | AG36: =IFERROR(S36-E36,0) -> -988 | AH36: =IFERROR(T36-F36,0) -> -1164 | AI36: =IFERROR(U36-G36,0) -> 0 | AJ36: =IFERROR(V36-H36,0) -> 0 | AL36: =IFERROR(X36-J36,0) -> 3132
A37: 1 | C37: of which: | Q37: of which: | AE37: of which:
A38: 1 | C38: Eastern Cape | E38: =EC_4!E$36 -> 437 | F38: =EC_4!F$36 -> 406 | G38: =EC_4!G$36 -> 0 | H38: =EC_4!H$36 -> 0 | J38: =OFFSET($D38,0,Settings!$T$6) -> 0 | K38: =IFERROR(J38/$J$33,0) -> 0 | Q38: Eastern Cape | S38: 440 | T38: 435 | U38: 0 | V38: 0 | X38: 435 | Y38: 0.04021447721 | AE38: Eastern Cape | AG38: =IFERROR(S38-E38,0) -> 3 | AH38: =IFERROR(T38-F38,0) -> 29 | AI38: =IFERROR(U38-G38,0) -> 0 | AJ38: =IFERROR(V38-H38,0) -> 0 | AL38: =IFERROR(X38-J38,0) -> 435
A39: 1 | C39: Free State | E39: =FS_4!E$36 -> 216 | F39: =FS_4!F$36 -> 186 | G39: =FS_4!G$36 -> 0 | H39: =FS_4!H$36 -> 0 | J39: =OFFSET($D39,0,Settings!$T$6) -> 0 | K39: 0 | Q39: Free State | S39: 162 | T39: 129 | U39: 0 | V39: 0 | X39: 129 | Y39: 0.01192567255 | AE39: Free State | AG39: -54 | AH39: -57 | AI39: 0 | AJ39: 0 | AL39: 129
A40: 1 | C40: Gauteng | E40: =GT_4!E$36 -> 577 | F40: =GT_4!F$36 -> 512 | G40: =GT_4!G$36 -> 0 | H40: =GT_4!H$36 -> 0 | J40: =OFFSET($D40,0,Settings!$T$6) -> 0 | K40: 0 | Q40: Gauteng | S40: 436 | T40: 438 | U40: 0 | V40: 0 | X40: 438 | Y40: 0.04049181843 | AE40: Gauteng | AG40: -141 | AH40: -74 | AI40: 0 | AJ40: 0 | AL40: 438
A41: 1 | C41: KwaZulu-Natal | E41: =KZN_4!E$36 -> 1414 | F41: =KZN_4!F$36 -> 1363 | G41: =KZN_4!G$36 -> 0 | H41: =KZN_4!H$36 -> 0 | J41: =OFFSET($D41,0,Settings!$T$6) -> 0 | K41: 0 | Q41: KwaZulu-Natal | S41: 1121 | T41: 975 | U41: 0 | V41: 0 | X41: 975 | Y41: 0.0901358972 | AE41: KwaZulu-Natal | AG41: -293 | AH41: -388 | AI41: 0 | AJ41: 0 | AL41: 975
A42: 1 | C42: Limpopo | E42: =LIM_4!E$36 -> 449 | F42: =LIM_4!F$36 -> 439 | G42: =LIM_4!G$36 -> 0 | H42: =LIM_4!H$36 -> 0 | J42: =OFFSET($D42,0,Settings!$T$6) -> 0 | K42: 0 | Q42: Limpopo | S42: 391 | T42: 380 | U42: 0 | V42: 0 | X42: 380 | Y42: 0.03512988814 | AE42: Limpopo | AG42: -58 | AH42: -59 | AI42: 0 | AJ42: 0 | AL42: 380
A43: 1 | C43: Mpumalanga | E43: =MPU_4!E$36 -> 590 | F43: =MPU_4!F$36 -> 517 | G43: =MPU_4!G$36 -> 0 | H43: =MPU_4!H$36 -> 0 | J43: =OFFSET($D43,0,Settings!$T$6) -> 0 | K43: 0 | Q43: Mpumalanga | S43: 335 | T43: 244 | U43: 0 | V43: 0 | X43: 244 | Y43: 0.02255708607 | AE43: Mpumalanga | AG43: -255 | AH43: -273 | AI43: 0 | AJ43: 0 | AL43: 244
A44: 1 | C44: Northern Cape | E44: =NC_4!E$36 -> 137 | F44: =NC_4!F$36 -> 256 | G44: =NC_4!G$36 -> 0 | H44: =NC_4!H$36 -> 0 | J44: =OFFSET($D44,0,Settings!$T$6) -> 0 | K44: 0 | Q44: Northern Cape | S44: 94 | T44: 81 | U44: 0 | V44: 0 | X44: 81 | Y44: 0.007488212998 | AE44: Northern Cape | AG44: -43 | AH44: -175 | AI44: 0 | AJ44: 0 | AL44: 81
A45: 1 | C45: North West | E45: =NW_4!E$36 -> 408 | F45: =NW_4!F$36 -> 402 | G45: =NW_4!G$36 -> 0 | H45: =NW_4!H$36 -> 0 | J45: =OFFSET($D45,0,Settings!$T$6) -> 0 | K45: 0 | Q45: North West | S45: 298 | T45: 284 | U45: 0 | V45: 0 | X45: 284 | Y45: 0.02625496903 | AE45: North West | AG45: -110 | AH45: -118 | AI45: 0 | AJ45: 0 | AL45: 284
A46: 1 | C46: Western Cape | E46: =WC_4!E$36 -> 211 | F46: =WC_4!F$36 -> 215 | G46: =WC_4!G$36 -> 0 | H46: =WC_4!H$36 -> 0 | J46: =OFFSET($D46,0,Settings!$T$6) -> 0 | K46: 0 | Q46: Western Cape | S46: 174 | T46: 166 | U46: 0 | V46: 0 | X46: 166 | Y46: 0.01534621429 | AE46: Western Cape | AG46: -37 | AH46: -49 | AI46: 0 | AJ46: 0 | AL46: 166
A47: 0 | J47: =OFFSET($D47,0,Settings!$T$6) -> 0 | K47: 0 | Q47: 0 | X47: 0 | Y47: 0 | AE47: 0 | AG47: 0 | AH47: 0 | AI47: 0 | AJ47: 0 | AL47: 0
A48: 0 | J48: =OFFSET($D48,0,Settings!$T$6) -> 0 | K48: 0 | Q48: 0 | X48: 0 | Y48: 0 | AE48: 0 | AG48: 0 | AH48: 0 | AI48: 0 | AJ48: 0 | AL48: 0
A49: 0 | J49: =OFFSET($D49,0,Settings!$T$6) -> 0 | K49: 0 | Q49: 0 | X49: 0 | Y49: 0 | AE49: 0 | AG49: 0 | AH49: 0 | AI49: 0 | AJ49: 0 | AL49: 0
A50: 0 | J50: =OFFSET($D50,0,Settings!$T$6) -> 0 | K50: 0 | Q50: 0 | X50: 0 | Y50: 0 | AE50: 0 | AG50: 0 | AH50: 0 | AI50: 0 | AJ50: 0 | AL50: 0
A51: 0 | J51: =OFFSET($D51,0,Settings!$T$6) -> 0 | K51: 0 | Q51: 0 | X51: 0 | Y51: 0 | AE51: 0 | AG51: 0 | AH51: 0 | AI51: 0 | AJ51: 0 | AL51: 0
A52: 0 | J52: =OFFSET($D52,0,Settings!$T$6) -> 0 | K52: 0 | Q52: 0 | X52: 0 | Y52: 0 | AE52: 0 | AG52: 0 | AH52: 0 | AI52: 0 | AJ52: 0 | AL52: 0
A53: 0 | J53: =OFFSET($D53,0,Settings!$T$6) -> 0 | K53: 0 | Q53: 0 | X53: 0 | Y53: 0 | AE53: 0 | AG53: 0 | AH53: 0 | AI53: 0 | AJ53: 0 | AL53: 0
A54: 0 | J54: =OFFSET($D54,0,Settings!$T$6) -> 0 | K54: 0 | Q54: 0 | X54: 0 | Y54: 0 | AE54: 0 | AG54: 0 | AH54: 0 | AI54: 0 | AJ54: 0 | AL54: 0
A55: 0 | J55: =OFFSET($D55,0,Settings!$T$6) -> 0 | K55: 0 | Q55: 0 | X55: 0 | Y55: 0 | AE55: 0 | AG55: 0 | AH55: 0 | AI55: 0 | AJ55: 0 | AL55: 0
A56: 0 | J56: =OFFSET($D56,0,Settings!$T$6) -> 0 | K56: 0 | Q56: 0 | X56: 0 | Y56: 0 | AE56: 0 | AG56: 0 | AH56: 0 | AI56: 0 | AJ56: 0 | AL56: 0
A57: 0 | J57: =OFFSET($D57,0,Settings!$T$6) -> 0 | K57: 0 | Q57: 0 | X57: 0 | Y57: 0 | AE57: 0 | AG57: 0 | AH57: 0 | AI57: 0 | AJ57: 0 | AL57: 0
A58: 0 | C58: =C$32 -> 0 | J58: =OFFSET($D58,0,Settings!$T$6) -> 0 | K58: 0 | Q58: 0 | X58: 0 | Y58: 0 | AE58: 0 | AG58: 0 | AH58: 0 | AI58: 0 | AJ58: 0 | AL58: 0
A59: 1 | C59: Tender | E59: =EC_4!E59+FS_4!E59+GT_4!E59+KZN_4!E59+LIM_4!E59+MPU_4!E59+NC_4!E59+NW_4!E59+WC_4!E59 -> 1402 | F59: =EC_4!F59+FS_4!F59+GT_4!F59+KZN_4!F59+LIM_4!F59+MPU_4!F59+NC_4!F59+NW_4!F59+WC_4!F59 -> 1270 | G59: =EC_4!G59+FS_4!G59+GT_4!G59+KZN_4!G59+LIM_4!G59+MPU_4!G59+NC_4!G59+NW_4!G59+WC_4!G59 -> 0 | H59: =EC_4!H59+FS_4!H59+GT_4!H59+KZN_4!H59+LIM_4!H59+MPU_4!H59+NC_4!H59+NW_4!H59+WC_4!H59 -> 0 | J59: =OFFSET($D59,0,Settings!$T$6) -> 0 | K59: 0 | Q59: Tender | S59: 1272 | T59: 1436 | U59: 0 | V59: 0 | X59: 1436 | Y59: 0.1327539983 | AE59: Tender | AG59: -130 | AH59: 166 | AI59: 0 | AJ59: 0 | AL59: 1436
A60: 1 | C60: of which: | Q60: of which: | AE60: of which:
A61: =A38 -> 1 | C61: =C38 -> Eastern Cape | E61: =EC_4!E$59 -> 184 | F61: =EC_4!F$59 -> 198 | G61: =EC_4!G$59 -> 0 | H61: =EC_4!H$59 -> 0 | J61: =OFFSET($D61,0,Settings!$T$6) -> 0 | K61: =IFERROR(J61/$J$33,0) -> 0 | Q61: Eastern Cape | S61: 184 | T61: 178 | U61: 0 | V61: 0 | X61: 178 | Y61: 0.01645557918 | AE61: Eastern Cape | AG61: =IFERROR(S61-E61,0) -> 0 | AH61: =IFERROR(T61-F61,0) -> -20 | AI61: =IFERROR(U61-G61,0) -> 0 | AJ61: =IFERROR(V61-H61,0) -> 0 | AL61: =IFERROR(X61-J61,0) -> 178
A62: =A39 -> 1 | C62: =C39 -> Free State | E62: =FS_4!E$59 -> 27 | F62: =FS_4!F$59 -> 24 | G62: =FS_4!G$59 -> 0 | H62: =FS_4!H$59 -> 0 | J62: =OFFSET($D62,0,Settings!$T$6) -> 0 | K62: 0 | Q62: Free State | S62: 22 | T62: 55 | U62: 0 | V62: 0 | X62: 55 | Y62: 0.005084589073 | AE62: Free State | AG62: -5 | AH62: 31 | AI62: 0 | AJ62: 0 | AL62: 55
A63: 1 | C63: Gauteng | E63: =GT_4!E$59 -> 61 | F63: =GT_4!F$59 -> 58 | G63: =GT_4!G$59 -> 0 | H63: =GT_4!H$59 -> 0 | J63: =OFFSET($D63,0,Settings!$T$6) -> 0 | K63: 0 | Q63: Gauteng | S63: 73 | T63: 69 | U63: 0 | V63: 0 | X63: 69 | Y63: 0.006378848109 | AE63: Gauteng | AG63: 12 | AH63: 11 | AI63: 0 | AJ63: 0 | AL63: 69
A64: 1 | C64: KwaZulu-Natal | E64: =KZN_4!E$59 -> 870 | F64: =KZN_4!F$59 -> 639 | G64: =KZN_4!G$59 -> 0 | H64: =KZN_4!H$59 -> 0 | J64: =OFFSET($D64,0,Settings!$T$6) -> 0 | K64: 0 | Q64: KwaZulu-Natal | S64: 600 | T64: 763 | U64: 0 | V64: 0 | X64: 763 | Y64: 0.0705371175 | AE64: KwaZulu-Natal | AG64: -270 | AH64: 124 | AI64: 0 | AJ64: 0 | AL64: 763
A65: 1 | C65: Limpopo | E65: =LIM_4!E$59 -> 147 | F65: =LIM_4!F$59 -> 151 | G65: =LIM_4!G$59 -> 0 | H65: =LIM_4!H$59 -> 0 | J65: =OFFSET($D65,0,Settings!$T$6) -> 0 | K65: 0 | Q65: Limpopo | S65: 205 | T65: 181 | U65: 0 | V65: 0 | X65: 181 | Y65: 0.0167329204 | AE65: Limpopo | AG65: 58 | AH65: 30 | AI65: 0 | AJ65: 0 | AL65: 181
A66: 1 | C66: Mpumalanga | E66: =MPU_4!E$59 -> 43 | F66: =MPU_4!F$59 -> 36 | G66: =MPU_4!G$59 -> 0 | H66: =MPU_4!H$59 -> 0 | J66: =OFFSET($D66,0,Settings!$T$6) -> 0 | K66: 0 | Q66: Mpumalanga | S66: 75 | T66: 99 | U66: 0 | V66: 0 | X66: 99 | Y66: 0.009152260331 | AE66: Mpumalanga | AG66: 32 | AH66: 63 | AI66: 0 | AJ66: 0 | AL66: 99
A67: 1 | C67: Northern Cape | E67: =NC_4!E$59 -> 16 | F67: =NC_4!F$59 -> 76 | G67: =NC_4!G$59 -> 0 | H67: =NC_4!H$59 -> 0 | J67: =OFFSET($D67,0,Settings!$T$6) -> 0 | K67: 0 | Q67: Northern Cape | S67: 55 | T67: 28 | U67: 0 | V67: 0 | X67: 28 | Y67: 0.002588518073 | AE67: Northern Cape | AG67: 39 | AH67: -48 | AI67: 0 | AJ67: 0 | AL67: 28
A68: 1 | C68: North West | E68: =NW_4!E$59 -> 35 | F68: =NW_4!F$59 -> 61 | G68: =NW_4!G$59 -> 0 | H68: =NW_4!H$59 -> 0 | J68: =OFFSET($D68,0,Settings!$T$6) -> 0 | K68: 0 | Q68: North West | S68: 32 | T68: 36 | U68: 0 | V68: 0 | X68: 36 | Y68: 0.003328094666 | AE68: North West | AG68: -3 | AH68: -25 | AI68: 0 | AJ68: 0 | AL68: 36
A69: 1 | C69: Western Cape | E69: =WC_4!E$59 -> 19 | F69: =WC_4!F$59 -> 27 | G69: =WC_4!G$59 -> 0 | H69: =WC_4!H$59 -> 0 | J69: =OFFSET($D69,0,Settings!$T$6) -> 0 | K69: 0 | Q69: Western Cape | S69: 26 | T69: 27 | U69: 0 | V69: 0 | X69: 27 | Y69: 0.002496070999 | AE69: Western Cape | AG69: 7 | AH69: 0 | AI69: 0 | AJ69: 0 | AL69: 27
A70: 0 | C70: 0 | J70: =OFFSET($D70,0,Settings!$T$6) -> 0 | K70: 0 | Q70: 0 | X70: 0 | Y70: 0 | AE70: 0 | AG70: 0 | AH70: 0 | AI70: 0 | AJ70: 0 | AL70: 0
A71: 0 | C71: 0 | J71: =OFFSET($D71,0,Settings!$T$6) -> 0 | K71: 0 | Q71: 0 | X71: 0 | Y71: 0 | AE71: 0 | AG71: 0 | AH71: 0 | AI71: 0 | AJ71: 0 | AL71: 0
A72: 0 | C72: 0 | J72: =OFFSET($D72,0,Settings!$T$6) -> 0 | K72: 0 | Q72: 0 | X72: 0 | Y72: 0 | AE72: 0 | AG72: 0 | AH72: 0 | AI72: 0 | AJ72: 0 | AL72: 0
A73: 0 | C73: 0 | J73: =OFFSET($D73,0,Settings!$T$6) -> 0 | K73: 0 | Q73: 0 | X73: 0 | Y73: 0 | AE73: 0 | AG73: 0 | AH73: 0 | AI73: 0 | AJ73: 0 | AL73: 0
A74: 0 | C74: 0 | J74: =OFFSET($D74,0,Settings!$T$6) -> 0 | K74: 0 | Q74: 0 | X74: 0 | Y74: 0 | AE74: 0 | AG74: 0 | AH74: 0 | AI74: 0 | AJ74: 0 | AL74: 0
A75: 0 | C75: 0 | J75: =OFFSET($D75,0,Settings!$T$6) -> 0 | K75: 0 | Q75: 0 | X75: 0 | Y75: 0 | AE75: 0 | AG75: 0 | AH75: 0 | AI75: 0 | AJ75: 0 | AL75: 0
A76: 0 | C76: 0 | J76: =OFFSET($D76,0,Settings!$T$6) -> 0 | K76: 0 | Q76: 0 | X76: 0 | Y76: 0 | AE76: 0 | AG76: 0 | AH76: 0 | AI76: 0 | AJ76: 0 | AL76: 0
A77: 0 | C77: 0 | J77: =OFFSET($D77,0,Settings!$T$6) -> 0 | K77: 0 | Q77: 0 | X77: 0 | Y77: 0 | AE77: 0 | AG77: 0 | AH77: 0 | AI77: 0 | AJ77: 0 | AL77: 0
A78: 0 | C78: 0 | J78: =OFFSET($D78,0,Settings!$T$6) -> 0 | K78: 0 | Q78: 0 | X78: 0 | Y78: 0 | AE78: 0 | AG78: 0 | AH78: 0 | AI78: 0 | AJ78: 0 | AL78: 0
A79: 0 | C79: 0 | J79: =OFFSET($D79,0,Settings!$T$6) -> 0 | K79: 0 | Q79: 0 | X79: 0 | Y79: 0 | AE79: 0 | AG79: 0 | AH79: 0 | AI79: 0 | AJ79: 0 | AL79: 0
A80: 0 | C80: 0 | J80: =OFFSET($D80,0,Settings!$T$6) -> 0 | K80: 0 | Q80: 0 | X80: 0 | Y80: 0 | AE80: 0 | AG80: 0 | AH80: 0 | AI80: 0 | AJ80: 0 | AL80: 0
A81: 0 | C81: 0 | J81: =OFFSET($D81,0,Settings!$T$6) -> 0 | K81: 0 | Q81: 0 | X81: 0 | Y81: 0 | AE81: 0 | AG81: 0 | AH81: 0 | AI81: 0 | AJ81: 0 | AL81: 0
A82: 1 | C82: Site Handed Over to Contractor | E82: =EC_4!E82+FS_4!E82+GT_4!E82+KZN_4!E82+LIM_4!E82+MPU_4!E82+NC_4!E82+NW_4!E82+WC_4!E82 -> 233 | F82: =EC_4!F82+FS_4!F82+GT_4!F82+KZN_4!F82+LIM_4!F82+MPU_4!F82+NC_4!F82+NW_4!F82+WC_4!F82 -> 549 | G82: =EC_4!G82+FS_4!G82+GT_4!G82+KZN_4!G82+LIM_4!G82+MPU_4!G82+NC_4!G82+NW_4!G82+WC_4!G82 -> 0 | H82: =EC_4!H82+FS_4!H82+GT_4!H82+KZN_4!H82+LIM_4!H82+MPU_4!H82+NC_4!H82+NW_4!H82+WC_4!H82 -> 0 | J82: =OFFSET($D82,0,Settings!$T$6) -> 0 | K82: 0 | Q82: Site Handed Over to Contractor | S82: 157 | T82: 167 | U82: 0 | V82: 0 | X82: 167 | Y82: 0.01543866137 | AE82: Site Handed Over to Contractor | AG82: -76 | AH82: -382 | AI82: 0 | AJ82: 0 | AL82: 167
A83: 1 | C83: of which: | Q83: of which: | AE83: of which:
A84: =A61 -> 1 | C84: =C61 -> Eastern Cape | E84: =EC_4!E$82 -> 80 | F84: =EC_4!F$82 -> 85 | G84: =EC_4!G$82 -> 0 | H84: =EC_4!H$82 -> 0 | J84: =OFFSET($D84,0,Settings!$T$6) -> 0 | K84: =IFERROR(J84/$J$33,0) -> 0 | Q84: Eastern Cape | S84: 43 | T84: 40 | U84: 0 | V84: 0 | X84: 40 | Y84: 0.003697882962 | AE84: Eastern Cape | AG84: =IFERROR(S84-E84,0) -> -37 | AH84: =IFERROR(T84-F84,0) -> -45 | AI84: =IFERROR(U84-G84,0) -> 0 | AJ84: =IFERROR(V84-H84,0) -> 0 | AL84: =IFERROR(X84-J84,0) -> 40
A85: =A62 -> 1 | C85: =C62 -> Free State | E85: =FS_4!E$82 -> 9 | F85: =FS_4!F$82 -> 8 | G85: =FS_4!G$82 -> 0 | H85: =FS_4!H$82 -> 0 | J85: =OFFSET($D85,0,Settings!$T$6) -> 0 | K85: 0 | Q85: Free State | S85: 5 | T85: 5 | U85: 0 | V85: 0 | X85: 5 | Y85: 0.0004622353703 | AE85: Free State | AG85: -4 | AH85: -3 | AI85: 0 | AJ85: 0 | AL85: 5
A86: 1 | C86: Gauteng | E86: =GT_4!E$82 -> 7 | F86: =GT_4!F$82 -> 7 | G86: =GT_4!G$82 -> 0 | H86: =GT_4!H$82 -> 0 | J86: =OFFSET($D86,0,Settings!$T$6) -> 0 | K86: 0 | Q86: Gauteng | S86: 9 | T86: 9 | U86: 0 | V86: 0 | X86: 9 | Y86: 0.0008320236665 | AE86: Gauteng | AG86: 2 | AH86: 2 | AI86: 0 | AJ86: 0 | AL86: 9
A87: 1 | C87: KwaZulu-Natal | E87: =KZN_4!E$82 -> 16 | F87: =KZN_4!F$82 -> 19 | G87: =KZN_4!G$82 -> 0 | H87: =KZN_4!H$82 -> 0 | J87: =OFFSET($D87,0,Settings!$T$6) -> 0 | K87: 0 | Q87: KwaZulu-Natal | S87: 17 | T87: 19 | U87: 0 | V87: 0 | X87: 19 | Y87: 0.001756494407 | AE87: KwaZulu-Natal | AG87: 1 | AH87: 0 | AI87: 0 | AJ87: 0 | AL87: 19
A88: 1 | C88: Limpopo | E88: =LIM_4!E$82 -> 68 | F88: =LIM_4!F$82 -> 277 | G88: =LIM_4!G$82 -> 0 | H88: =LIM_4!H$82 -> 0 | J88: =OFFSET($D88,0,Settings!$T$6) -> 0 | K88: 0 | Q88: Limpopo | S88: 32 | T88: 36 | U88: 0 | V88: 0 | X88: 36 | Y88: 0.003328094666 | AE88: Limpopo | AG88: -36 | AH88: -241 | AI88: 0 | AJ88: 0 | AL88: 36
A89: 1 | C89: Mpumalanga | E89: =MPU_4!E$82 -> 12 | F89: =MPU_4!F$82 -> 13 | G89: =MPU_4!G$82 -> 0 | H89: =MPU_4!H$82 -> 0 | J89: =OFFSET($D89,0,Settings!$T$6) -> 0 | K89: 0 | Q89: Mpumalanga | S89: 7 | T89: 9 | U89: 0 | V89: 0 | X89: 9 | Y89: 0.0008320236665 | AE89: Mpumalanga | AG89: -5 | AH89: -4 | AI89: 0 | AJ89: 0 | AL89: 9
A90: 1 | C90: Northern Cape | E90: =NC_4!E$82 -> 22 | F90: =NC_4!F$82 -> 115 | G90: =NC_4!G$82 -> 0 | H90: =NC_4!H$82 -> 0 | J90: =OFFSET($D90,0,Settings!$T$6) -> 0 | K90: 0 | Q90: Northern Cape | S90: 23 | T90: 22 | U90: 0 | V90: 0 | X90: 22 | Y90: 0.002033835629 | AE90: Northern Cape | AG90: 1 | AH90: -93 | AI90: 0 | AJ90: 0 | AL90: 22
A91: 1 | C91: North West | E91: =NW_4!E$82 -> 16 | F91: =NW_4!F$82 -> 24 | G91: =NW_4!G$82 -> 0 | H91: =NW_4!H$82 -> 0 | J91: =OFFSET($D91,0,Settings!$T$6) -> 0 | K91: 0 | Q91: North West | S91: 17 | T91: 25 | U91: 0 | V91: 0 | X91: 25 | Y91: 0.002311176851 | AE91: North West | AG91: 1 | AH91: 1 | AI91: 0 | AJ91: 0 | AL91: 25
A92: 1 | C92: Western Cape | E92: =WC_4!E$82 -> 3 | F92: =WC_4!F$82 -> 1 | G92: =WC_4!G$82 -> 0 | H92: =WC_4!H$82 -> 0 | J92: =OFFSET($D92,0,Settings!$T$6) -> 0 | K92: 0 | Q92: Western Cape | S92: 4 | T92: 2 | U92: 0 | V92: 0 | X92: 2 | Y92: 0.0001848941481 | AE92: Western Cape | AG92: 1 | AH92: 1 | AI92: 0 | AJ92: 0 | AL92: 2
A93: 0 | C93: 0 | J93: =OFFSET($D93,0,Settings!$T$6) -> 0 | K93: 0 | Q93: 0 | X93: 0 | Y93: 0 | AE93: 0 | AG93: 0 | AH93: 0 | AI93: 0 | AJ93: 0 | AL93: 0
A94: 0 | C94: 0 | J94: =OFFSET($D94,0,Settings!$T$6) -> 0 | K94: 0 | Q94: 0 | X94: 0 | Y94: 0 | AE94: 0 | AG94: 0 | AH94: 0 | AI94: 0 | AJ94: 0 | AL94: 0
A95: 0 | C95: 0 | J95: =OFFSET($D95,0,Settings!$T$6) -> 0 | K95: 0 | Q95: 0 | X95: 0 | Y95: 0 | AE95: 0 | AG95: 0 | AH95: 0 | AI95: 0 | AJ95: 0 | AL95: 0
A96: 0 | C96: 0 | J96: =OFFSET($D96,0,Settings!$T$6) -> 0 | K96: 0 | Q96: 0 | X96: 0 | Y96: 0 | AE96: 0 | AG96: 0 | AH96: 0 | AI96: 0 | AJ96: 0 | AL96: 0
A97: 0 | C97: 0 | J97: =OFFSET($D97,0,Settings!$T$6) -> 0 | K97: 0 | Q97: 0 | X97: 0 | Y97: 0 | AE97: 0 | AG97: 0 | AH97: 0 | AI97: 0 | AJ97: 0 | AL97: 0
A98: 0 | C98: 0 | J98: =OFFSET($D98,0,Settings!$T$6) -> 0 | K98: 0 | Q98: 0 | X98: 0 | Y98: 0 | AE98: 0 | AG98: 0 | AH98: 0 | AI98: 0 | AJ98: 0 | AL98: 0
A99: 0 | C99: 0 | J99: =OFFSET($D99,0,Settings!$T$6) -> 0 | K99: 0 | Q99: 0 | X99: 0 | Y99: 0 | AE99: 0 | AG99: 0 | AH99: 0 | AI99: 0 | AJ99: 0 | AL99: 0
A100: 0 | C100: 0 | J100: =OFFSET($D100,0,Settings!$T$6) -> 0 | K100: 0 | Q100: =C100 -> 0 | X100: 0 | Y100: 0 | AE100: =C100 -> 0 | AG100: 0 | AH100: 0 | AI100: 0 | AJ100: 0 | AL100: 0
A101: 0 | C101: 0 | J101: =OFFSET($D101,0,Settings!$T$6) -> 0 | K101: 0 | Q101: 0 | X101: 0 | Y101: 0 | AE101: 0 | AG101: 0 | AH101: 0 | AI101: 0 | AJ101: 0 | AL101: 0
A102: 0 | C102: 0 | J102: =OFFSET($D102,0,Settings!$T$6) -> 0 | K102: 0 | Q102: 0 | X102: 0 | Y102: 0 | AE102: 0 | AG102: 0 | AH102: 0 | AI102: 0 | AJ102: 0 | AL102: 0
A103: 0 | C103: 0 | J103: =OFFSET($D103,0,Settings!$T$6) -> 0 | K103: 0 | Q103: 0 | X103: 0 | Y103: 0 | AE103: 0 | AG103: 0 | AH103: 0 | AI103: 0 | AJ103: 0 | AL103: 0
A104: 0 | C104: 0 | J104: =OFFSET($D104,0,Settings!$T$6) -> 0 | K104: 0 | Q104: 0 | X104: 0 | Y104: 0 | AE104: 0 | AG104: 0 | AH104: 0 | AI104: 0 | AJ104: 0 | AL104: 0
A105: 1 | C105: Construction | E105: =EC_4!E105+FS_4!E105+GT_4!E105+KZN_4!E105+LIM_4!E105+MPU_4!E105+NC_4!E105+NW_4!E105+WC_4!E105 -> 4349 | F105: =EC_4!F105+FS_4!F105+GT_4!F105+KZN_4!F105+LIM_4!F105+MPU_4!F105+NC_4!F105+NW_4!F105+WC_4!F105 -> 5085 | G105: =EC_4!G105+FS_4!G105+GT_4!G105+KZN_4!G105+LIM_4!G105+MPU_4!G105+NC_4!G105+NW_4!G105+WC_4!G105 -> 0 | H105: =EC_4!H105+FS_4!H105+GT_4!H105+KZN_4!H105+LIM_4!H105+MPU_4!H105+NC_4!H105+NW_4!H105+WC_4!H105 -> 0 | J105: =OFFSET($D105,0,Settings!$T$6) -> 0 | K105: 0 | Q105: Construction | S105: 3608 | T105: 3902 | U105: 0 | V105: 0 | X105: 3902 | Y105: 0.3607284829 | AE105: Construction | AG105: -741 | AH105: -1183 | AI105: 0 | AJ105: 0 | AL105: 3902
A106: 1 | C106: of which: | Q106: of which: | AE106: of which:
A107: =A84 -> 1 | C107: =C84 -> Eastern Cape | E107: =EC_4!E$105 -> 590 | F107: =EC_4!F$105 -> 598 | G107: =EC_4!G$105 -> 0 | H107: =EC_4!H$105 -> 0 | J107: =OFFSET($D107,0,Settings!$T$6) -> 0 | K107: =IFERROR(J107/$J$33,0) -> 0 | Q107: Eastern Cape | S107: 1224 | T107: 1230 | U107: 0 | V107: 0 | X107: 1230 | Y107: 0.1137099011 | AE107: Eastern Cape | AG107: =IFERROR(S107-E107,0) -> 634 | AH107: =IFERROR(T107-F107,0) -> 632 | AI107: =IFERROR(U107-G107,0) -> 0 | AJ107: =IFERROR(V107-H107,0) -> 0 | AL107: =IFERROR(X107-J107,0) -> 1230
A108: =A85 -> 1 | C108: =C85 -> Free State | E108: =FS_4!E$105 -> 104 | F108: =FS_4!F$105 -> 130 | G108: =FS_4!G$105 -> 0 | H108: =FS_4!H$105 -> 0 | J108: =OFFSET($D108,0,Settings!$T$6) -> 0 | K108: 0 | Q108: Free State | S108: 99 | T108: 108 | U108: 0 | V108: 0 | X108: 108 | Y108: 0.009984283997 | AE108: Free State | AG108: -5 | AH108: -22 | AI108: 0 | AJ108: 0 | AL108: 108
A109: 1 | C109: Gauteng | E109: =GT_4!E$105 -> 284 | F109: =GT_4!F$105 -> 351 | G109: =GT_4!G$105 -> 0 | H109: =GT_4!H$105 -> 0 | J109: =OFFSET($D109,0,Settings!$T$6) -> 0 | K109: 0 | Q109: Gauteng | S109: 329 | T109: 321 | U109: 0 | V109: 0 | X109: 321 | Y109: 0.02967551077 | AE109: Gauteng | AG109: 45 | AH109: -30 | AI109: 0 | AJ109: 0 | AL109: 321
A110: 1 | C110: KwaZulu-Natal | E110: =KZN_4!E$105 -> 1029 | F110: =KZN_4!F$105 -> 1308 | G110: =KZN_4!G$105 -> 0 | H110: =KZN_4!H$105 -> 0 | J110: =OFFSET($D110,0,Settings!$T$6) -> 0 | K110: 0 | Q110: KwaZulu-Natal | S110: 855 | T110: 1037 | U110: 0 | V110: 0 | X110: 1037 | Y110: 0.09586761579 | AE110: KwaZulu-Natal | AG110: -174 | AH110: -271 | AI110: 0 | AJ110: 0 | AL110: 1037
A111: 1 | C111: Limpopo | E111: =LIM_4!E$105 -> 1717 | F111: =LIM_4!F$105 -> 1761 | G111: =LIM_4!G$105 -> 0 | H111: =LIM_4!H$105 -> 0 | J111: =OFFSET($D111,0,Settings!$T$6) -> 0 | K111: 0 | Q111: Limpopo | S111: 373 | T111: 387 | U111: 0 | V111: 0 | X111: 387 | Y111: 0.03577701766 | AE111: Limpopo | AG111: -1344 | AH111: -1374 | AI111: 0 | AJ111: 0 | AL111: 387
